Workbook

Sheet 1. Information Sheet
V1: Alectra Utilities Corporation
V2: Algoma Power Inc.
V3: Atikokan Hydro Inc.
V4: Bluewater Power Distribution Corporation
V5: Brantford Power Inc.
V6: Burlington Hydro Inc.
V7: Canadian Niagara Power Inc.
V8: Centre Wellington Hydro Ltd.
V9: Chapleau Public Utilities Corporation
V10: Collus PowerStream Corp.
V11: Cooperative Hydro Embrun Inc.
V12: E.L.K. Energy Inc.
V13: Energy+ Inc.
E14: Utility Name | F14: Erie Thames Powerlines Corporation | V14: Enersource Hydro Mississauga Inc.
V15: Entegrus Powerlines Inc.
E16: Service Territory | V16: EnWin Utilities Ltd.
V17: Erie Thames Powerlines Corporation
E18: Assigned EB Number | F18: EB-2017-0038 | V18: Espanola Regional Hydro Distribution Corporation
V19: Essex Powerlines Corporation
E20: Name of Contact and Title | F20: Graig Pettitt, Director-Regulatory, Finance & Customer Relations | V20: Festival Hydro Inc.
V21: Fort Frances Power Corporation
E22: Phone Number | F22: 519-485-1820 Ex 254 | V22: Greater Sudbury Hydro Inc.
V23: Grimsby Power Incorporated
E24: Email Address | F24: gpettit@eriethamespower.com | V24: Guelph Hydro Electric Systems Inc.
V25: Halton Hills Hydro Inc.
V26: Hearst Power Distribution Company Ltd.
B27: General Notes 1. Please ensure that your macros have been enabled. (Tools -> Macro -> Security) 2. Due to the time lag of deferral/variance account dispositions, this model assumes that all opening balances include previously disposed of amounts. Accordingly, all "Board Approved Dispositions" are deducted from the opening balance. 3. Please provide information in this model since the last time your balances were disposed. 4. For all Board-Approved dispositions, please ensure that the disposition amount has the same sign (e.g: debit balances are to have a positive figure and credit balance are to have a negative figure) as per the related Board decision. | V27: Horizon Utilities Corporation
V28: Hydro 2000 Inc.
B29: Notes | V29: Hydro Hawkesbury Inc.
V30: Hydro One Brampton Networks Inc.
C31: Pale green cells represent input cells. | V31: Hydro One Networks Inc.
V32: Hydro Ottawa Limited
C33: Pale blue cells represent drop-down lists. The applicant should select the appropriate item from the drop-down list. | V33: InnPower Corporation
V34: Kenora Hydro Electric Corporation Ltd.
C35: White cells contain fixed values, automatically generated values or formulae. | V35: Kingston Hydro Corporation
V36: Kitchener-Wilmot Hydro Inc.
V37: Lakefront Utilities Inc.
V38: Lakeland Power Distribution Ltd.
V39: London Hydro Inc.
V40: Midland Power Utility Corporation
V41: Milton Hydro Distribution Inc.
V42: Newmarket - Tay Power Distribution Ltd.
V43: Niagara Peninsula Energy Inc.
V44: Niagara-on-the-Lake Hydro Inc.
V45: North Bay Hydro Distribution Limited
V46: Northern Ontario Wires Inc.
V47: Oakville Hydro Electricity Distribution Inc.
V48: Orangeville Hydro Limited
V49: Orillia Power Distribution Corporation
V50: Oshawa PUC Networks Inc.
V51: Ottawa River Power Corporation
V52: Peterborough Distribution Incorporated
V53: PUC Distribution Inc.
V54: Renfrew Hydro Inc.
V55: Sioux Lookout Hydro Inc.
V56: St. Thomas Energy Inc.
V57: Thunder Bay Hydro Electricity Distribution Inc.
V58: Tillsonburg Hydro Inc.
V59: Toronto Hydro-Electric System Limited
V60: Veridian Connections Inc.
V61: Wasaga Distribution Inc.
V62: Waterloo North Hydro Inc.
V63: Welland Hydro-Electric System Corp.
V64: Wellington North Power Inc.
V65: West Coast Huron Energy Inc.
V66: Westario Power Inc.
V67: Whitby Hydro Electric Corporation

Sheet 1.1 Instruction Sheet
A13: Instructions for Tabs 2 to 7
A15: Tab | B15: Tab Details | C15: Step | D15: Instructions
A16: 2 - Continuity Schedule | B16: This tab is the continuity schedule that shows all the accounts and the accumulation of the balances a utility has. | C16: 1 | D16: Complete the DVA continuity schedule.
D18: For all Account 1595 sub-accounts, complete the DVA continuity schedule for each Account 1595 vintage year that has a GL balance as at December 31, 2016 regardless of whether the account is being requested for disposition in the current application. For each Account 1595 sub-account, start inputting data from the year the sub-account started to accumulate a balance (i.e. the vintage year). For example, Account 1595 (2014) would have information starting in 2014, when the relevant balances approved for disposition were first transferred into Account 1595 (2014). The DVA continuity schedule currently starts from 2011, if a utility has an Account 1595 with a vintage year prior to 2011, then a separate schedule should be provided starting from the vintage year.
C20: 2a | D20: If you had any Class A customers at any point during the period that the Account 1589 GA balance accumulated (e.g. last disposition was for 2014 balances in the 2016 rate application, current balance requested for disposition accumulated from 2015 to 2016), check off the checkbox in cell BS13.
D21: If the checkbox is not checked off, then proceed to tabs 4 to 7 and complete the tabs accordingly.
D22: If the checkbox is checked off, tab 5.1 relating to Class A customer consumption will be generated, see step 7 to 10 below for further details.
C24: 2b | D24: If the checkbox in step 2a is checked off, another checkbox will pop up to the right of the checkbox. If you had any Class A customers at any point during the period that the Account 1580, sub-account CBR Class B balance accumulated (i.e. 2015 and 2016 or 2016), check off the checkbox.
D25: If the checkbox is not checked off, then the balance in the Account 1580, sub-account CBR Class B will be allocated and disposed with Account 1580 WMS, as a part of the general DVA rate rider.
D26: If the checkbox is checked off, then tab 5.3 will be generated. This tab will calculate the billing determinants applicable to Account 1580 sub-account CBR Class B, using information inputted in tab 5.1. See step 12 below for further details. The CBR Class B balance will be allocated in tab 5 and the rate rider will be calculated in tab 6.
C28: 3 | D28: Enter the number of utility specific 1508 sub-accounts that are approved for the utility in the textbox in cell B50. The DVA continuity schedule will generate the number of utility specific 1508 sub-accounts starting in row 51. Input the name and the balances of the sub-account(s) starting in row 51. If a utility does not have utility specific 1508 sub-accounts, the generic 1508 sub-account Other will still be listed in the DVA continuity schedule. Check off the "check to dispose of account" checkbox in column BT for sub-accounts requested for disposition.
A30: 3. Appendix A | B30: This tab shows the year end balance variances between the continuity schedule and that reported in the RRR. | C30: 4 | D30: Provide an explanation for the variances identified.
A32: 4 - Billing Determinant | B32: This tab shows the billing determinants that will be used to allocate account balances and calculate rate riders. | C32: 5 | D32: Complete the billing determinant table. Note that columns O and P are generated when a utility indicates they have Class A customers in tab 2. Information in these columns are populated based on data from tab 5.1.
A34: 5 - Allocating Def-Var Balances | B34: This tab allocates the DVA balance (except for CBR Class B if Class A customers exist). | C34: 6 | D34: Review the allocated balances to ensure the allocation is appropriate. Note that the allocations for Account 1589, Account 1580, sub-account CBR Class B will be determined after tabs 5.1 to 5.3a have been completed.
A36: 5.1 - Class A Data Consumption | B36: This is a new tab that is to be completed if there were any Class A customers at any point during the period the GA balance accumulated. The tab also considers Class A/B transition customers. The data on this tab is used for the purposes of determining the GA rate rider, CBR Class B rate rider (if applicable), as well as customer specific GA and CBR Class B charges for transition customers (if applicable). | C36: 7 | D36: This tab is generated when the utility checks in tab 2 that they have Class A customers during the period that the GA balance accumulated.
D37: Under #1, enter the year the Account 1589 GA balance was last disposed.
C39: 8 | D39: Under #2a, indicate whether you had any customers that transitioned between Class A and B during the period the Account 1589 GA balance accumulated.
D40: If no, proceed to #3b in step 10.
D41: If yes, #2b and tab 5.2 will be generated. Proceed to #2b.
D42: Under #2b, indicate whether you had any customers that transitioned between Class A and B during the period the Account 1580, sub-account CBR Class B balance accumulated.
D43: If no, proceed to #3a in step 9.
D44: If yes, tab 5.3a will be generated. Proceed to #3a in step 9.
C46: 9 | D46: Under #3a, enter the number of transition customers during the period the Account 1589 GA balance accumulated. A table will be generated based on the number of customers. Complete the table accordingly for each transition customer identified (i.e. kWh/kW for half year periods, and the customer class during the half year). This data will automatically be used in the GA balance and CBR Class B balance allocation to transition customers in tabs 5.2 and 5.3a, respectively. Each transition customer identified in tab 5.1, table 3a will be assigned a customer number and the number will correspond to the same transition customers populated in tabs 5.2 and 5.3a. The data in tab 5.1 will also be used in the calculation of billing determinants in the allocation of GA and CBR Class B balances to the rate classes, as applicable.
C48: 10 | D48: Under #3b, enter the number of customers who were Class A customers during the entire period since the year the Account 1589 GA balance accumulated (i.e. did not transition between Class A and B during the period). A table will be generated based on the number of customers. Complete the table accordingly for each Class A customer identified. This data will be used in the calculation of billing determinants in the allocation of GA and CBR Class B balances to the rate classes, as applicable.
A50: 5.2 - GA Allocation | B50: This tab has been revised. It allocates the GA balance to each transition customer for the period in which these customers were Class B customers and contributed to the GA balance (i.e. former Class B customers who contributed to the GA balance but are now Class A customers and former Class A customers who are now Class B customers contributing to the GA balance). | C50: 11 | D50: This tab is generated when the utility indicates that they have transition customers in tab 5.1, #2a during the period where the GA balance accumulated.
D51: In row 20, enter the total Class B consumption which equals to Non-RPP consumption less WMP consumption and consumption for Class A customers (who were Class A for partial and full year).
D52: The rest of the information in this tab will be auto-populated and will calculate the customer specific allocation of the GA balance to transition customers in the bottom table. All transition customers who are allocated a specific GA amount are not to be charged the general Non-RPP Class B GA rate rider as calculated in tab 6.
A54: 5.3 - CBR | B54: This is a new tab that calculates the CBR Class B rate rider if there were Class A customers at any point during the period that the CBR Class B balance accumulated. | C54: 12 | D54: This tab is generated when the utility checks in tab 2 that they have Class A customers during the period that Account 1580, sub-account CBR Class B balance accumulated.
D55: Select one of two options pertaining to the years in which the CBR Class B balance accumulated, either 2015 and 2016, or 2016 only in cell B13.
D56: The rest of the information in the tab is auto-populated and will be used in the calculation of the CBR Class B rate rider calculated in tab 6.
A58: 5.3a - CBR_B Allocation | B58: This is a new tab that allocates the CBR Class B balance to each transition customer for the period in which these customers were Class B customers and contributed to the CBR Class B balance (i.e. former Class B customers who contributed to the balance but are now Class A customers and former Class A customers who are now Class B contributing to the balance). | C58: 13 | D58: This tab is generated when the utility indicates that they have transition customers in tab 5.1, #2b during the period where the CBR Class B balance accumulated.
D59: In row 20, enter the total Class B consumption which equals to total consumption less WMP consumption and consumption for Class A customers (who were Class A for partial and full year).
D60: The rest of the information in this tab will be auto-populated and will calculate the customer specific allocation of the CBR Class B balance to transition customers in the bottom table. Note that the transition customers for the GA may be different than the transition customers for CBR Class B as this would depend on the period in which the GA and CBR Class B balances accumulated. All transition customers who are allocated a specific CBR Class B amount is not to be charged the general CBR Class B rate rider.
A62: 6 - Calculation of Def-Var RR | B62: This tab calculates all the applicable DVA ate riders. | C62: 14 | D62: Enter the proposed rate rider recovery period if different than the default 12 month period. For each rate class of each rate rider, select whether the rate rider is to be calculated on a kWh/kW or number of customers basis. The rest of the information in the tab is auto-populated and the rate riders are calculated accordingly .
A64: 7 + 7.a GA Analysis | B64: This is a new GA Analysis Workform that is to be completed. | C64: 15 | D64: Complete tab 7.a according to the instructions in tab 7.

Sheet 2. 2016 Continuity Schedule
F1: 1 | CE1: 1
CE2: 2
CE3: 3
CE4: 4
CE5: 5
CE6: 6
CE7: 7
CE8: 8
CE9: 9
CE10: 10
CA11: TRUE | CE11: 11
CA12: TRUE | CE12: 12
CE13: 13
CE14: 14
CE15: 15
C16: This continuity schedule must be completed for each account and sub-account that the utility has approved for use as at Dec. 31, 2016, regardless of whether disposition is being requested for the account. For all accounts, except for Account 1595, start inputting data from the year in which the GL balance was last disposed. For example, if in the 2017 rate application, DVA balances as at December 31, 2015 were approved for disposition, start the continuity schedule from 2015 by entering the approved closing 2014 balance in the Adjustment column under 2014. For each Account 1595 sub-account, start inputting data from the year the sub-account started to accumulate a balance (i.e. the vintage year). For example, Account 1595 (2014), data should be inputted starting in 2014 when the relevant balances approved for disposition was first transferred into Account 1595 (2014). The DVA continuity schedule currently starts from 2011, if a utility has an Account 1595 with a vintage year prior to 2011, then a separate schedule should be provided starting from the vintage year. For any new accounts that have never been disposed, start inputting data from the year the account was approved to be used. | CE16: 16
E19: 2011 | O19: =E19+1 -> 2012 | Y19: =O19+1 -> 2013 | AI19: =Y19+1 -> 2014 | AS19: =AI19+1 -> 2015 | BC19: =AS19+1 -> 2016 | BM19: =BC19+1 -> 2017 | BQ19: =CONCATENATE("Projected Interest on Dec-31-",RIGHT(BC19,2)," Balances") -> Projected Interest on Dec-31-16 Balances | BU19: 2.1.7 RRR
C20: Account Descriptions | D20: Account Number | E20: =CONCATENATE("Opening Principal Amounts as of Jan-1-",RIGHT(E19,2)) -> Opening Principal Amounts as of Jan-1-11 | F20: =CONCATENATE("Transactions(1) Debit / (Credit) during ",E19) -> Transactions(1) Debit / (Credit) during 2011 | G20: =CONCATENATE("OEB-Approved Disposition during ",E19) -> OEB-Approved Disposition during 2011 | H20: =CONCATENATE("Principal Adjustments(2) during ",E19) -> Principal Adjustments(2) during 2011 | I20: =CONCATENATE("Closing Principal Balance as of Dec-31-",RIGHT(E19,2)) -> Closing Principal Balance as of Dec-31-11 | J20: =CONCATENATE("Opening Interest Amounts as of Jan-1-",RIGHT(E19,2)) -> Opening Interest Amounts as of Jan-1-11 | K20: =CONCATENATE("Interest Jan-1 to Dec-31-",RIGHT(E19,2)) -> Interest Jan-1 to Dec-31-11 | L20: =CONCATENATE("OEB-Approved Disposition during ",E19) -> OEB-Approved Disposition during 2011 | M20: =CONCATENATE("Interest Adjustments(1) during ",E19) -> Interest Adjustments(1) during 2011 | N20: =CONCATENATE("Closing Interest Amounts as of Dec-31-",RIGHT(E19,2)) -> Closing Interest Amounts as of Dec-31-11 | O20: =CONCATENATE("Opening Principal Amounts as of Jan-1-",RIGHT(O19,2)) -> Opening Principal Amounts as of Jan-1-12 | P20: =CONCATENATE("Transactions(1) Debit / (Credit) during ",O19) -> Transactions(1) Debit / (Credit) during 2012 | Q20: =CONCATENATE("OEB-Approved Disposition during ",O19) -> OEB-Approved Disposition during 2012 | R20: =CONCATENATE("Principal Adjustments(2) during ",O19) -> Principal Adjustments(2) during 2012 | S20: =CONCATENATE("Closing Principal Balance as of Dec-31-",RIGHT(O19,2)) -> Closing Principal Balance as of Dec-31-12 | T20: =CONCATENATE("Opening Interest Amounts as of Jan-1-",RIGHT(O19,2)) -> Opening Interest Amounts as of Jan-1-12 | U20: =CONCATENATE("Interest Jan-1 to Dec-31-",RIGHT(O19,2)) -> Interest Jan-1 to Dec-31-12 | V20: =CONCATENATE("OEB-Approved Disposition during ",O19) -> OEB-Approved Disposition during 2012 | W20: =CONCATENATE("Interest Adjustments(2) during ",O19) -> Interest Adjustments(2) during 2012 | X20: =CONCATENATE("Closing Interest Amounts as of Dec-31-",RIGHT(O19,2)) -> Closing Interest Amounts as of Dec-31-12 | Y20: =CONCATENATE("Opening Principal Amounts as of Jan-1-",RIGHT(Y19,2)) -> Opening Principal Amounts as of Jan-1-13 | Z20: =CONCATENATE("Transactions(1) Debit / (Credit) during ",Y19) -> Transactions(1) Debit / (Credit) during 2013 | AA20: =CONCATENATE("OEB-Approved Disposition during ",Y19) -> OEB-Approved Disposition during 2013 | AB20: =CONCATENATE("Principal Adjustments(2) during ",Y19) -> Principal Adjustments(2) during 2013 | AC20: =CONCATENATE("Closing Principal Balance as of Dec-31-",RIGHT(Y19,2)) -> Closing Principal Balance as of Dec-31-13 | AD20: =CONCATENATE("Opening Interest Amounts as of Jan-1-",RIGHT(Y19,2)) -> Opening Interest Amounts as of Jan-1-13 | AE20: =CONCATENATE("Interest Jan-1 to Dec-31-",RIGHT(Y19,2)) -> Interest Jan-1 to Dec-31-13 | AF20: =CONCATENATE("OEB-Approved Disposition during ",Y19) -> OEB-Approved Disposition during 2013 | AG20: =CONCATENATE("Interest Adjustments(2) during ",Y19) -> Interest Adjustments(2) during 2013 | AH20: =CONCATENATE("Closing Interest Amounts as of Dec-31-",RIGHT(Y19,2)) -> Closing Interest Amounts as of Dec-31-13 | AI20: =CONCATENATE("Opening Principal Amounts as of Jan-1-",RIGHT(AI19,2)) -> Opening Principal Amounts as of Jan-1-14 | AJ20: =CONCATENATE("Transactions(1) Debit / (Credit) during ",AI19) -> Transactions(1) Debit / (Credit) during 2014 | AK20: =CONCATENATE("OEB-Approved Disposition during ",AI19) -> OEB-Approved Disposition during 2014 | AL20: =CONCATENATE("Principal Adjustments(2) during ",AI19) -> Principal Adjustments(2) during 2014 | AM20: =CONCATENATE("Closing Principal Balance as of Dec-31-",RIGHT(AI19,2)) -> Closing Principal Balance as of Dec-31-14 | AN20: =CONCATENATE("Opening Interest Amounts as of Jan-1-",RIGHT(AI19,2)) -> Opening Interest Amounts as of Jan-1-14 | AO20: =CONCATENATE("Interest Jan-1 to Dec-31-",RIGHT(AI19,2)) -> Interest Jan-1 to Dec-31-14 | AP20: =CONCATENATE("OEB-Approved Disposition during ",AI19) -> OEB-Approved Disposition during 2014 | AQ20: =CONCATENATE("Interest Adjustments(2) during ",AI19) -> Interest Adjustments(2) during 2014 | AR20: =CONCATENATE("Closing Interest Amounts as of Dec-31-",RIGHT(AI19,2)) -> Closing Interest Amounts as of Dec-31-14 | AS20: =CONCATENATE("Opening Principal Amounts as of Jan-1-",RIGHT(AS19,2)) -> Opening Principal Amounts as of Jan-1-15 | AT20: =CONCATENATE("Transactions(1) Debit / (Credit) during ",AS19) -> Transactions(1) Debit / (Credit) during 2015 | AU20: =CONCATENATE("OEB-Approved Disposition during ",AS19) -> OEB-Approved Disposition during 2015 | AV20: =CONCATENATE("Principal Adjustments(2) during ",AS19) -> Principal Adjustments(2) during 2015 | AW20: =CONCATENATE("Closing Principal Balance as of Dec-31-",RIGHT(AS19,2)) -> Closing Principal Balance as of Dec-31-15 | AX20: =CONCATENATE("Opening Interest Amounts as of Jan-1-",RIGHT(AS19,2)) -> Opening Interest Amounts as of Jan-1-15 | AY20: =CONCATENATE("Interest Jan-1 to Dec-31-",RIGHT(AS19,2)) -> Interest Jan-1 to Dec-31-15 | AZ20: =CONCATENATE("OEB-Approved Disposition during ",AS19) -> OEB-Approved Disposition during 2015 | BA20: =CONCATENATE("Interest Adjustments(2) during ",AS19) -> Interest Adjustments(2) during 2015 | BB20: =CONCATENATE("Closing Interest Amounts as of Dec-31-",RIGHT(AS19,2)) -> Closing Interest Amounts as of Dec-31-15 | BC20: =CONCATENATE("Opening Principal Amounts as of Jan-1-",RIGHT(BC19,2)) -> Opening Principal Amounts as of Jan-1-16 | BD20: =CONCATENATE("Transactions(1) Debit / (Credit) during ",BC19) -> Transactions(1) Debit / (Credit) during 2016 | BE20: =CONCATENATE("OEB-Approved Disposition during ",BC19) -> OEB-Approved Disposition during 2016 | BF20: =CONCATENATE("Principal Adjustments(2) during ",BC19) -> Principal Adjustments(2) during 2016 | BG20: =CONCATENATE("Closing Principal Balance as of Dec-31-",RIGHT(BC19,2)) -> Closing Principal Balance as of Dec-31-16 | BH20: =CONCATENATE("Opening Interest Amounts as of Jan-1-",RIGHT(BC19,2)) -> Opening Interest Amounts as of Jan-1-16 | BI20: =CONCATENATE("Interest Jan-1 to Dec-31-",RIGHT(BC19,2)) -> Interest Jan-1 to Dec-31-16 | BJ20: =CONCATENATE("OEB-Approved Disposition during ",BC19) -> OEB-Approved Disposition during 2016 | BK20: =CONCATENATE("Interest Adjustments(2) during ",BC19) -> Interest Adjustments(2) during 2016 | BL20: =CONCATENATE("Closing Interest Amounts as of Dec-31-",RIGHT(BC19,2)) -> Closing Interest Amounts as of Dec-31-16 | BM20: =CONCATENATE("Principal Disposition during ",BM19," - instructed by OEB") -> Principal Disposition during 2017 - instructed by OEB | BN20: =CONCATENATE("Interest Disposition during ",BM19," - instructed by OEB") -> Interest Disposition during 2017 - instructed by OEB | BO20: =CONCATENATE("Closing Principal Balances as of Dec 31-",RIGHT(BM19-1,2)," Adjusted for Dispositions during ",BM19) -> Closing Principal Balances as of Dec 31-16 Adjusted for Dispositions during 2017 | BP20: =CONCATENATE("Closing Interest Balances as of Dec 31-",RIGHT(BM19-1,2)," Adjusted for Dispositions during ",BM19) -> Closing Interest Balances as of Dec 31-16 Adjusted for Dispositions during 2017 | BQ20: =CONCATENATE("Projected Interest from Jan 1, ",BM19," to December 31, ",BM19," on Dec 31 -",RIGHT(BM19-1,2)," balance adjusted for disposition during ",BM19," (6)") -> Projected Interest from Jan 1, 2017 to December 31, 2017 on Dec 31 -16 balance adjusted for disposition during 2017 (6) | BR20: =CONCATENATE("Projected Interest from January 1, ",BM19+1," to April 30, ",BM19+1," on Dec 31 -",RIGHT(BC19,2)," balance adjusted for disposition during ",BM19," (6)") -> Projected Interest from January 1, 2018 to April 30, 2018 on Dec 31 -16 balance adjusted for disposition during 2017 (6) | BS20: Total Interest | BT20: Total Claim | BU20: =CONCATENATE("As of Dec 31-",RIGHT(BC19,2)) -> As of Dec 31-16 | BV20: =CONCATENATE("Variance RRR vs. ",BC19," Balance (Principal + Interest)") -> Variance RRR vs. 2016 Balance (Principal + Interest)
BS22: Claim before Forecasted Transactions | BT22: Claim before Forecasted Transactions
B23: 1 | C23: Group 1 Accounts
A24: 1 | B24: 2 | C24: LV Variance Account | D24: 1550 | I24: =E24+F24-G24+H24 -> 0 | N24: =J24+K24-L24+M24 -> 0 | O24: =I24 -> 0 | S24: =O24+P24-Q24+R24 -> 0 | T24: =N24 -> 0 | X24: =T24+U24-V24+W24 -> 0 | Y24: =S24 -> 0 | AB24: -143470 | AC24: =Y24+Z24-AA24+AB24 -> -143470 | AD24: =X24 -> 0 | AG24: -29387 | AH24: =AD24+AE24-AF24+AG24 -> -29387 | AI24: =AC24 -> -143470 | AJ24: 251947 | AK24: -398823 | AM24: =AI24+AJ24-AK24+SUM(AL24:AL24) -> 507300 | AN24: =AH24 -> -29387 | AO24: 2854 | AP24: -34085 | AR24: =AN24+AO24-AP24+AQ24 -> 7552 | AS24: =AM24 -> 507300 | AT24: 580076 | AU24: 255353 | AW24: =AS24+AT24-AU24+AV24 -> 832023 | AX24: =AR24 -> 7552 | AY24: 6206 | AZ24: 9703 | BB24: =AX24+AY24-AZ24+BA24 -> 4055 | BC24: =AW24 -> 832023 | BD24: 760946 | BE24: 251947 | BG24: =BC24+BD24-BE24+SUM(BF24:BF24) -> 1341022 | BH24: =BB24 -> 4055 | BI24: 11196 | BJ24: 1544 | BL24: =BH24+BI24-BJ24+BK24 -> 13707 | BO24: =BG24-BM24 -> 1341022 | BP24: =BL24-BN24 -> 13707 | BQ24: 14751 | BR24: 4917 | BS24: =BP24+BQ24+BR24 -> 33375 | BT24: =SUM(BO24:BR24) -> 1374397 | BU24: 1354729 | BV24: =BU24-SUM(BG24,BL24) -> 0
A25: 2 | B25: 3 | C25: Smart Metering Entity Charge Variance Account | D25: 1551 | Y25: 0 | AC25: =Y25+Z25-AA25+AB25 -> 0 | AD25: 0 | AG25: 0 | AH25: =AD25+AE25-AF25+AG25 -> 0 | AI25: =AC25 -> 0 | AJ25: 10232 | AM25: =AI25+AJ25-AK25+SUM(AL25:AL25) -> 10232 | AN25: 0 | AO25: 428 | AR25: =AN25+AO25-AP25+AQ25 -> 428 | AS25: 10232 | AT25: -5431 | AU25: 11484 | AW25: =AS25+AT25-AU25+AV25 -> -6683 | AX25: 428 | AY25: 23 | AZ25: 260 | BB25: =AX25+AY25-AZ25+BA25 -> 191 | BC25: -6683 | BD25: -5910 | BE25: -1252 | BG25: =BC25+BD25-BE25+SUM(BF25:BF25) -> -11341 | BH25: 191 | BI25: -90 | BJ25: 150 | BL25: =BH25+BI25-BJ25+BK25 -> -49 | BO25: =BG25-BM25 -> -11341 | BP25: =BL25-BN25 -> -49 | BQ25: -125 | BR25: -42 | BS25: -216 | BT25: =SUM(BO25:BR25) -> -11557 | BU25: -11389 | BV25: =BU25-SUM(BG25,BL25) -> 1
A26: 3 | B26: 4 | C26: RSVA - Wholesale Market Service Charge9 | D26: 1580 | I26: =E26+F26-G26+H26 -> 0 | N26: =J26+K26-L26+M26 -> 0 | O26: =I26 -> 0 | S26: =O26+P26-Q26+R26 -> 0 | T26: =N26 -> 0 | X26: =T26+U26-V26+W26 -> 0 | Y26: 0 | AB26: -1415979 | AC26: =Y26+Z26-AA26+AB26 -> -1415979 | AD26: 0 | AG26: -18317 | AH26: =AD26+AE26-AF26+AG26 -> -18317 | AI26: -1415979 | AJ26: -33788 | AK26: -1125198 | AM26: -324569 | AN26: -18317 | AO26: -7216 | AP26: -23563 | AR26: =AN26+AO26-AP26+AQ26 -> -1970 | AS26: -324569 | AT26: -1041673 | AU26: -290782 | AW26: =AS26+AT26-AU26+AV26 -> -1075460 | AX26: -1970 | AY26: -5617 | AZ26: -452 | BB26: =AX26+AY26-AZ26+BA26 -> -7135 | BC26: -1075460 | BD26: -443479 | BE26: -33788 | BG26: -1485151 | BH26: -7135 | BI26: -14081 | BJ26: -2012 | BL26: =BH26+BI26-BJ26+BK26 -> -19204 | BO26: -1485151 | BP26: -19204 | BQ26: -16337 | BR26: -5446 | BS26: -40987 | BT26: =SUM(BO26:BR26) -> -1526138 | BU26: -1504356 | BV26: -1
A27: 3.1 | B27: 5 | C27: Variance WMS – Sub-account CBR Class A9 | D27: 1580 | AS27: 0 | AW27: =AS27+AT27-AU27+AV27 -> 0 | AX27: 0 | BB27: 0 | BC27: 0 | BD27: 14067 | BE27: 0 | BG27: 14067 | BH27: 0 | BI27: 211 | BJ27: 0 | BL27: 211 | BO27: 14067 | BP27: 211 | BS27: 211 | BT27: 0 | BU27: 14278 | BV27: =BU27-SUM(BG27,BL27) -> 0 | CA27: 1580 CBDR A | CB27: TRUE
A28: 3.2 | B28: 6 | C28: Variance WMS – Sub-account CBR Class B9 | D28: 1580 | AS28: 0 | AW28: =AS28+AT28-AU28+AV28 -> 0 | AX28: 0 | BB28: 0 | BC28: 0 | BD28: 98953 | BE28: 0 | BG28: 98953 | BH28: 0 | BI28: 1304 | BJ28: 0 | BL28: 1304 | BO28: 98953 | BP28: 1304 | BQ28: 1088 | BR28: 363 | BS28: 2755 | BT28: =IF(CB28=TRUE, SUM(BO28:BR28), 0) -> 101708 | BU28: 100257 | BV28: =BU28-SUM(BG28,BL28) -> 0 | CA28: 1580 CBDR B | CB28: TRUE
A29: 4 | B29: 7 | C29: RSVA - Retail Transmission Network Charge | D29: 1584 | I29: =E29+F29-G29+H29 -> 0 | N29: =J29+K29-L29+M29 -> 0 | O29: 0 | S29: =O29+P29-Q29+R29 -> 0 | T29: 0 | X29: 0 | Y29: 0 | AB29: -2162831 | AC29: =Y29+Z29-AA29+AB29 -> -2162831 | AD29: 0 | AG29: -48356 | AH29: -48356 | AI29: -2162831 | AJ29: -6636 | AK29: -2372931 | AM29: 203464 | AN29: -48356 | AO29: -10438 | AP29: -64192 | AR29: 5398 | AS29: 203464 | AT29: -36619 | AU29: 210100 | AW29: =AS29+AT29-AU29+AV29 -> -43255 | AX29: 5398 | AY29: 335 | AZ29: 19953 | BB29: -14220 | BC29: -43255 | BD29: 91829 | BE29: -6636 | BG29: =BC29+BD29-BE29+SUM(BF29:BF29) -> 55210 | BH29: -14220 | BI29: -127 | BJ29: -14652 | BL29: 305 | BO29: 55210 | BP29: 305 | BQ29: 607 | BR29: 202 | BS29: 1114 | BT29: =SUM(BO29:BR29) -> 56324 | BU29: 55516 | BV29: 1
A30: 5 | B30: 8 | C30: RSVA - Retail Transmission Connection Charge | D30: 1586 | I30: 0 | N30: 0 | O30: 0 | S30: =O30+P30-Q30+R30 -> 0 | T30: 0 | X30: 0 | Y30: 0 | AB30: 453340 | AC30: =Y30+Z30-AA30+AB30 -> 453340 | AD30: 0 | AG30: 43069 | AH30: 43069 | AI30: 453340 | AJ30: 171870 | AK30: -112299 | AM30: 737509 | AN30: 43069 | AO30: 10182 | AP30: 39908 | AR30: 13343 | AS30: 737509 | AT30: 97641 | AU30: 565641 | AW30: 269509 | AX30: 13343 | AY30: 5127 | AZ30: 14249 | BB30: 4221 | BC30: 269509 | BD30: 136833 | BE30: 171870 | BG30: 234472 | BH30: =BB30 -> 4221 | BI30: 2678 | BJ30: 1615 | BL30: 5284 | BO30: 234472 | BP30: 5284 | BQ30: 2579 | BR30: 860 | BS30: 8723 | BT30: =SUM(BO30:BR30) -> 243195 | BU30: 239759 | BV30: 3
A31: 6 | B31: 9 | C31: RSVA - Power (excluding Global Adjustment)12 | D31: 1588 | I31: 0 | N31: 0 | O31: 0 | S31: 0 | T31: 0 | X31: 0 | Y31: 0 | AB31: 1550299 | AC31: 1550299 | AD31: 0 | AG31: 80365 | AH31: 80365 | AI31: 1550299 | AJ31: 107087 | AK31: 287447 | AM31: 1369939 | AN31: 80365 | AO31: 14612 | AP31: 37534 | AR31: 57443 | AS31: 1369939 | AT31: -1163879 | AU31: 1262852 | AV31: 823910.14 | AW31: -232881.86 | AX31: 57443 | AY31: 6263 | AZ31: 67582 | BA31: 2839.01 | BB31: -1036.99 | BC31: -232881.86 | BD31: -652103 | BE31: 107087 | BF31: 1299176.34 | BG31: 307104.48 | BH31: -1036.99 | BI31: -11622 | BJ31: -8569 | BK31: 10707.4 | BL31: 6617.41 | BO31: 307104.48 | BP31: 6617.41 | BQ31: 3378.14 | BR31: 1126.05 | BS31: 11121.6 | BT31: =SUM(BO31:BR31) -> 318226.08 | BU31: -1822912 | BV31: -2136633.89
A32: 7 | B32: 10 | C32: RSVA - Global Adjustment 12 | D32: 1589 | I32: 0 | N32: 0 | O32: 0 | S32: 0 | T32: 0 | X32: 0 | Y32: 0 | AB32: 89531 | AC32: 89531 | AD32: 0 | AG32: 84352 | AH32: 84352 | AI32: 89531 | AJ32: 962542 | AK32: 821612 | AL32: 1623815 | AM32: 1854276 | AN32: 84352 | AO32: 15130 | AP32: 67198 | AR32: 32284 | AS32: 1854276 | AT32: 1501705 | AU32: -732081 | AV32: -823910.14 | AW32: 3264151.86 | AX32: 32284 | AY32: 31546 | AZ32: 2805 | BA32: -2839.01 | BB32: 58185.99 | BC32: 3264151.86 | BD32: 1624109 | BE32: 2586357 | BF32: -1299176.19 | BG32: 1002727.67 | BH32: 58185.99 | BI32: 34418 | BJ32: 67412 | BK32: -10707.4 | BL32: 14484.59 | BO32: 1002727.67 | BP32: 14484.59 | BQ32: 11030 | BR32: 3676.67 | BS32: 29191.26 | BT32: =SUM(BO32:BR32) -> 1031918.93 | BU32: 3153845 | BV32: 2136632.74
A33: 8 | B33: 11 | C33: Disposition and Recovery/Refund of Regulatory Balances (2009)7 | D33: 1595 | I33: 0 | N33: 0 | O33: =I33 -> 0 | S33: 0 | T33: =N33 -> 0 | X33: 0 | Y33: =S33 -> 0 | AB33: 400904 | AC33: 400904 | AD33: 0 | AG33: 11423 | AH33: 11423 | AI33: 400904 | AK33: 400904 | AM33: 0 | AN33: 11423 | AP33: 19281 | AR33: -7858 | AS33: =AM33 -> 0 | AW33: 0 | AX33: -7858 | AZ33: -7858 | BB33: 0 | BC33: =AW33 -> 0 | BG33: 0 | BH33: 0 | BL33: 0 | BO33: 0 | BP33: 0 | BS33: 0 | BT33: =IF(CB33=TRUE, SUM(BO33:BR33), 0) -> 0 | BV33: 0 | CA33: 1595 (2009) | CB33: FALSE
A34: 9 | B34: 12 | C34: Disposition and Recovery/Refund of Regulatory Balances (2010)7 | D34: 1595 | I34: 0 | N34: 0 | O34: 0 | S34: 0 | T34: 0 | X34: 0 | Y34: 0 | AC34: 0 | AD34: 0 | AH34: 0 | AI34: 0 | AM34: 0 | AN34: 0 | AR34: 0 | AS34: 0 | AW34: 0 | AX34: 0 | BB34: 0 | BC34: 0 | BG34: 0 | BH34: 0 | BL34: 0 | BO34: 0 | BP34: 0 | BS34: 0 | BT34: 0 | BV34: 0 | CA34: 1595 (2010) | CB34: FALSE
A35: 10 | B35: 13 | C35: Disposition and Recovery/Refund of Regulatory Balances (2011)7 | D35: 1595 | I35: 0 | N35: 0 | O35: =I35 -> 0 | S35: 0 | T35: =N35 -> 0 | X35: =T35+U35-V35+W35 -> 0 | Y35: 0 | AC35: 0 | AD35: 0 | AH35: =AD35+AE35-AF35+AG35 -> 0 | AI35: 0 | AM35: 0 | AN35: 0 | AR35: =AN35+AO35-AP35+AQ35 -> 0 | AS35: 0 | AW35: 0 | AX35: 0 | BB35: =AX35+AY35-AZ35+BA35 -> 0 | BC35: 0 | BG35: 0 | BH35: 0 | BL35: =BH35+BI35-BJ35+BK35 -> 0 | BO35: 0 | BP35: 0 | BS35: 0 | BT35: 0 | BV35: 0 | CA35: 1595 (2011) | CB35: FALSE
A36: 11 | B36: 14 | C36: Disposition and Recovery/Refund of Regulatory Balances (2012)7 | D36: 1595 | I36: 0 | N36: 0 | O36: 0 | S36: 0 | T36: 0 | X36: 0 | Y36: 0 | AB36: 579961 | AC36: 579961 | AD36: =X36 -> 0 | AG36: 22987 | AH36: 22987 | AI36: 579961 | AJ36: -691022 | AM36: -111061 | AN36: 22987 | AO36: 4141 | AR36: 27128 | AS36: -111061 | AT36: -203358 | AW36: -314419 | AX36: 27128 | AY36: -2352 | AZ36: 174 | BB36: 24602 | BC36: -314419 | BD36: -298506 | BG36: -612925 | BH36: 24602 | BI36: -5572 | BL36: 19030 | BO36: -612925 | BP36: 19030 | BQ36: -6742 | BR36: -2247 | BS36: 10041 | BT36: -602884 | BU36: -593896 | BV36: -1 | CA36: 1595 (2012) | CB36: TRUE
A37: 12 | B37: 15 | C37: Disposition and Recovery/Refund of Regulatory Balances (2013)7 | D37: 1595 | I37: 0 | N37: 0 | O37: 0 | S37: 0 | T37: 0 | X37: 0 | Y37: 0 | AC37: 0 | AD37: =X37 -> 0 | AH37: 0 | AI37: 0 | AM37: 0 | AN37: 0 | AR37: 0 | AS37: 0 | AW37: 0 | AX37: 0 | BB37: 0 | BC37: 0 | BG37: 0 | BH37: 0 | BL37: 0 | BO37: 0 | BP37: 0 | BS37: 0 | BT37: 0 | BU37: 0 | BV37: 0 | CA37: 1595 (2013) | CB37: FALSE
A38: 13 | B38: 16 | C38: Disposition and Recovery/Refund of Regulatory Balances (2014)7 | D38: 1595 | I38: 0 | N38: 0 | O38: 0 | S38: 0 | T38: 0 | X38: 0 | Y38: 0 | AC38: 0 | AD38: =X38 -> 0 | AH38: 0 | AI38: 0 | AJ38: 1418671 | AK38: 2826961 | AM38: -1408290 | AN38: 0 | AO38: -18131 | AR38: -18131 | AS38: -1408290 | AT38: 1605941 | AW38: 197651 | AX38: -18131 | AY38: -10738 | BB38: -28869 | BC38: 197651 | BD38: 459629 | BG38: 657280 | BH38: -28869 | BI38: 2359 | BL38: -26510 | BO38: 657280 | BP38: -26510 | BQ38: 7230 | BR38: 2410 | BS38: -16870 | BT38: 640410 | BU38: 630769 | BV38: -1 | CA38: 1595 (2014) | CB38: TRUE
A39: 14 | B39: 17 | C39: Disposition and Recovery/Refund of Regulatory Balances (2015)7 | D39: 1595 | I39: 0 | N39: 0 | O39: 0 | S39: 0 | T39: 0 | X39: 0 | Y39: 0 | AC39: 0 | AD39: =X39 -> 0 | AH39: 0 | AI39: 0 | AM39: 0 | AN39: 0 | AR39: 0 | AS39: 0 | AT39: -955679 | AU39: -1388982 | AW39: 433303 | AX39: 0 | AY39: 5948 | BB39: 5948 | BC39: 433303 | BD39: -491629 | BG39: -58326 | BH39: 5948 | BI39: 554 | BL39: 6502 | BO39: -58326 | BP39: 6502 | BQ39: -642 | BR39: -214 | BS39: =BP39+BQ39+BR39 -> 5646 | BT39: -52680 | BU39: -51825 | BV39: -1 | CA39: 1595 (2015) | CB39: TRUE
A40: 15 | B40: 18 | C40: Disposition and Recovery/Refund of Regulatory Balances (2016)7 | D40: 1595 | I40: =E40+F40-G40+H40 -> 0 | N40: =J40+K40-L40+M40 -> 0 | O40: 0 | S40: 0 | T40: 0 | X40: 0 | Y40: =S40 -> 0 | AC40: 0 | AD40: =X40 -> 0 | AH40: 0 | AI40: =AC40 -> 0 | AM40: =AI40+AJ40-AK40+SUM(AL40:AL40) -> 0 | AN40: =AH40 -> 0 | AR40: 0 | AS40: =AM40 -> 0 | AW40: 0 | AX40: =AR40 -> 0 | BB40: 0 | BC40: =AW40 -> 0 | BD40: -1349840 | BE40: -3148848 | BG40: =BC40+BD40-BE40+SUM(BF40:BF40) -> 1799008 | BH40: =BB40 -> 0 | BI40: 16521 | BL40: 16521 | BO40: =BG40-BM40 -> 1799008 | BP40: =BL40-BN40 -> 16521 | BS40: =BP40+BQ40+BR40 -> 16521 | BT40: =IF(CB40=TRUE, SUM(BO40:BR40), 0) -> 0 | BU40: 1815530 | BV40: 1 | CB40: FALSE
B41: 19 | C41: Not to be disposed of until a year after rate rider has expired and that balance has been audited
B42: 20
C43: Group 1 Sub-Total (including Account 1589 - Global Adjustment) | E43: =SUM(E24:E40) -> 0 | F43: =SUM(F24:F40) -> 0 | G43: 0 | H43: 0 | I43: 0 | J43: 0 | K43: 0 | L43: 0 | M43: 0 | N43: 0 | O43: =SUM(O24:O40) -> 0 | P43: =SUM(P24:P40) -> 0 | Q43: =SUM(Q24:Q40) -> 0 | R43: 0 | S43: 0 | T43: 0 | U43: 0 | V43: 0 | W43: 0 | X43: =SUM(X24:X40) -> 0 | Y43: =SUM(Y24:Y40) -> 0 | Z43: =SUM(Z24:Z40) -> 0 | AA43: =SUM(AA24:AA40) -> 0 | AB43: -648245 | AC43: -648245 | AD43: 0 | AE43: 0 | AF43: 0 | AG43: 146136 | AH43: =SUM(AH24:AH40) -> 146136 | AI43: -648245 | AJ43: 2190903 | AK43: 327673 | AL43: 1623815 | AM43: 2838800 | AN43: 146136 | AO43: 11562 | AP43: 42081 | AQ43: 0 | AR43: 115617 | AS43: 2838800 | AT43: 378724 | AU43: -106415 | AV43: 0 | AW43: 3323939 | AX43: 115617 | AY43: 36741 | AZ43: 106416 | BA43: 0 | BB43: 45942 | BC43: 3323939 | BD43: -55101 | BE43: -73263 | BF43: 0.1500000001 | BG43: 3342101.15 | BH43: 45942 | BI43: 37749 | BJ43: 45488 | BK43: 0 | BL43: 38203 | BM43: 0 | BN43: 0 | BO43: 3342101.15 | BP43: 38203 | BQ43: 16817.14 | BR43: 5605.72 | BS43: 60625.86 | BT43: =SUM(BT24:BT40) -> 1572920.01 | BU43: =SUM(BU24:BU40) -> 3380305 | BV43: 0.8500000006
C44: Group 1 Sub-Total (excluding Account 1589 - Global Adjustment) | E44: =E43-E45 -> 0 | F44: =F43-F45 -> 0 | G44: 0 | H44: 0 | I44: 0 | J44: 0 | K44: 0 | L44: 0 | M44: 0 | N44: 0 | O44: 0 | P44: 0 | Q44: 0 | R44: 0 | S44: 0 | T44: 0 | U44: 0 | V44: 0 | W44: 0 | X44: 0 | Y44: 0 | Z44: 0 | AA44: 0 | AB44: -737776 | AC44: -737776 | AD44: 0 | AE44: 0 | AF44: 0 | AG44: 61784 | AH44: 61784 | AI44: =AI43-AI45 -> -737776 | AJ44: 1228361 | AK44: -493939 | AL44: 0 | AM44: 984524 | AN44: 61784 | AO44: -3568 | AP44: -25117 | AQ44: 0 | AR44: 83333 | AS44: =AS43-AS45 -> 984524 | AT44: -1122981 | AU44: 625666 | AV44: 823910.14 | AW44: 59787.14 | AX44: 83333 | AY44: 5195 | AZ44: 103611 | BA44: 2839.01 | BB44: -12243.99 | BC44: =BC43-BC45 -> 59787.14 | BD44: -1679210 | BE44: -2659620 | BF44: 1299176.34 | BG44: 2339373.48 | BH44: -12243.99 | BI44: 3331 | BJ44: -21924 | BK44: 10707.4 | BL44: 23718.41 | BM44: =BM43-BM45 -> 0 | BN44: 0 | BO44: 2339373.48 | BP44: 23718.41 | BQ44: 5787.14 | BR44: 1929.05 | BS44: 31434.6 | BT44: 541001.08 | BU44: 226460 | BV44: -2136631.89
C45: =C32 -> RSVA - Global Adjustment 12 | D45: 1589 | E45: =E32 -> 0 | F45: =F32 -> 0 | G45: 0 | H45: 0 | I45: 0 | J45: 0 | K45: 0 | L45: 0 | M45: 0 | N45: 0 | O45: 0 | P45: 0 | Q45: 0 | R45: 0 | S45: 0 | T45: 0 | U45: 0 | V45: 0 | W45: 0 | X45: 0 | Y45: 0 | Z45: 0 | AA45: 0 | AB45: 89531 | AC45: 89531 | AD45: 0 | AE45: 0 | AF45: 0 | AG45: 84352 | AH45: 84352 | AI45: 89531 | AJ45: 962542 | AK45: =AK32 -> 821612 | AL45: 1623815 | AM45: 1854276 | AN45: 84352 | AO45: 15130 | AP45: 67198 | AQ45: 0 | AR45: 32284 | AS45: 1854276 | AT45: 1501705 | AU45: -732081 | AV45: -823910.14 | AW45: 3264151.86 | AX45: 32284 | AY45: 31546 | AZ45: 2805 | BA45: -2839.01 | BB45: 58185.99 | BC45: =BC32 -> 3264151.86 | BD45: =BD32 -> 1624109 | BE45: 2586357 | BF45: -1299176.19 | BG45: 1002727.67 | BH45: 58185.99 | BI45: 34418 | BJ45: 67412 | BK45: -10707.4 | BL45: 14484.59 | BM45: 0 | BN45: 0 | BO45: 1002727.67 | BP45: 14484.59 | BQ45: 11030 | BR45: =BR32 -> 3676.67 | BS45: =BS32 -> 29191.26 | BT45: =SUM(BO45:BR45) -> 1031918.93 | BU45: =BU32 -> 3153845 | BV45: 2136632.74
C47: Group 2 Accounts
A48: 16 | C48: Other Regulatory Assets - Sub-Account - Deferred IFRS Transition Costs | D48: 1508 | I48: =E48+F48-G48+H48 -> 0 | N48: =J48+K48-L48+M48 -> 0 | O48: =I48 -> 0 | S48: =O48+P48-Q48+R48 -> 0 | T48: =N48 -> 0 | X48: =T48+U48-V48+W48 -> 0 | Y48: =S48 -> 0 | AC48: =Y48+Z48-AA48+AB48 -> 0 | AD48: =X48 -> 0 | AH48: =AD48+AE48-AF48+AG48 -> 0 | AI48: =AC48 -> 0 | AM48: =AI48+AJ48-AK48+SUM(AL48:AL48) -> 0 | AN48: =AH48 -> 0 | AR48: =AN48+AO48-AP48+AQ48 -> 0 | AS48: =AM48 -> 0 | AW48: =AS48+AT48-AU48+AV48 -> 0 | AX48: =AR48 -> 0 | BB48: =AX48+AY48-AZ48+BA48 -> 0 | BC48: =AW48 -> 0 | BF48: 305022 | BG48: =BC48+BD48-BE48+SUM(BF48:BF48) -> 305022 | BH48: =BB48 -> 0 | BL48: =BH48+BI48-BJ48+BK48 -> 0 | BO48: =BG48-BM48 -> 305022 | BP48: =BL48-BN48 -> 0 | BQ48: 3306.74 | BR48: 1102.25 | BS48: =BP48+BQ48+BR48 -> 4408.99 | BT48: =SUM(BO48:BR48) -> 309430.99 | BV48: =BU48-SUM(BG48,BL48) -> -305022
A49: 17 | C49: Other Regulatory Assets - Sub-Account - Incremental Capital Charges | D49: 1508 | I49: =E49+F49-G49+H49 -> 0 | N49: =J49+K49-L49+M49 -> 0 | O49: =I49 -> 0 | S49: 0 | T49: 0 | X49: =T49+U49-V49+W49 -> 0 | Y49: 0 | AC49: 0 | AD49: 0 | AH49: 0 | AI49: 0 | AM49: 0 | AN49: 0 | AR49: 0 | AS49: 0 | AW49: 0 | AX49: 0 | BB49: =AX49+AY49-AZ49+BA49 -> 0 | BC49: 0 | BG49: =BC49+BD49-BE49+SUM(BF49:BF49) -> 0 | BH49: =BB49 -> 0 | BL49: 0 | BO49: =BG49-BM49 -> 0 | BP49: =BL49-BN49 -> 0 | BS49: =BP49+BQ49+BR49 -> 0 | BT49: =SUM(BO49:BR49) -> 0 | BV49: 0
A50: 18 | C50: Other Regulatory Assets - Sub-Account - Financial Assistance Payment and Recovery Variance - Ontario Clean Energy Benefit Act3 | D50: 1508 | I50: =E50+F50-G50+H50 -> 0 | N50: =J50+K50-L50+M50 -> 0 | O50: =I50 -> 0 | S50: 0 | T50: =N50 -> 0 | X50: =T50+U50-V50+W50 -> 0 | Y50: =S50 -> 0 | AC50: 0 | AD50: 0 | AH50: 0 | AI50: 0 | AM50: 0 | AN50: 0 | AR50: 0 | AS50: 0 | AW50: 0 | AX50: 0 | BB50: 0 | BC50: 0 | BG50: =BC50+BD50-BE50+SUM(BF50:BF50) -> 0 | BH50: =BB50 -> 0 | BL50: 0 | BO50: =BG50-BM50 -> 0 | BP50: =BL50-BN50 -> 0 | BS50: =BP50+BQ50+BR50 -> 0 | BT50: =SUM(BO50:BR50) -> 0 | BV50: 0
A51: 19 | C51: Other Regulatory Assets - Sub-Account - OEB Cost Assessment | D51: 1508 | I51: 0 | N51: 0 | O51: 0 | S51: 0 | T51: 0 | X51: 0 | Y51: 0 | AC51: 0 | AD51: 0 | AH51: 0 | AI51: 0 | AM51: 0 | AN51: 0 | AR51: 0 | AS51: 0 | AW51: 0 | AX51: 0 | BB51: 0 | BC51: 0 | BD51: 29559 | BG51: =BC51+BD51-BE51+SUM(BF51:BF51) -> 29559 | BH51: =BB51 -> 0 | BL51: 0 | BO51: =BG51-BM51 -> 29559 | BP51: =BL51-BN51 -> 0 | BQ51: 325.15 | BR51: 108.38 | BS51: =BP51+BQ51+BR51 -> 433.53 | BT51: =IF(CB51=TRUE, SUM(BO51:BR51), 0) -> 29992.53 | BU51: 29559 | BV51: 0 | CA51: 1508 | CB51: TRUE
A52: 20 | D52: 1508 | I52: 0 | N52: 0 | O52: 0 | S52: 0 | T52: 0 | X52: 0 | Y52: 0 | AC52: 0 | AD52: 0 | AH52: 0 | AI52: 0 | AM52: 0 | AN52: 0 | AR52: 0 | AS52: 0 | AW52: 0 | AX52: 0 | BB52: 0 | BC52: 0 | BG52: =BC52+BD52-BE52+SUM(BF52:BF52) -> 0 | BH52: =BB52 -> 0 | BL52: 0 | BO52: =BG52-BM52 -> 0 | BP52: =BL52-BN52 -> 0 | BS52: =BP52+BQ52+BR52 -> 0 | BT52: =IF(CB52=TRUE, SUM(BO52:BR52), 0) -> 0 | BV52: 0 | CA52: 1508 | CB52: FALSE
A53: 21 | D53: 1508 | I53: 0 | N53: 0 | O53: 0 | S53: 0 | T53: 0 | X53: 0 | Y53: 0 | AC53: 0 | AD53: 0 | AH53: 0 | AI53: 0 | AM53: 0 | AN53: 0 | AR53: 0 | AS53: 0 | AW53: 0 | AX53: 0 | BB53: 0 | BC53: 0 | BG53: 0 | BH53: 0 | BL53: 0 | BO53: 0 | BP53: 0 | BS53: 0 | BT53: 0 | BV53: 0 | CA53: 1508 | CB53: FALSE
A54: 22 | D54: 1508 | I54: 0 | N54: 0 | O54: 0 | S54: 0 | T54: 0 | X54: 0 | Y54: 0 | AC54: 0 | AD54: 0 | AH54: 0 | AI54: 0 | AM54: 0 | AN54: 0 | AR54: 0 | AS54: 0 | AW54: 0 | AX54: 0 | BB54: 0 | BC54: 0 | BG54: 0 | BH54: 0 | BL54: 0 | BO54: 0 | BP54: 0 | BS54: 0 | BT54: 0 | BV54: 0 | CA54: 1508 | CB54: FALSE
A55: 23 | D55: 1508 | I55: 0 | N55: 0 | O55: 0 | S55: 0 | T55: 0 | X55: 0 | Y55: 0 | AC55: 0 | AD55: 0 | AH55: 0 | AI55: 0 | AM55: 0 | AN55: 0 | AR55: 0 | AS55: 0 | AW55: 0 | AX55: 0 | BB55: 0 | BC55: 0 | BG55: 0 | BH55: 0 | BL55: 0 | BO55: 0 | BP55: 0 | BS55: 0 | BT55: 0 | BV55: 0 | CA55: 1508 | CB55: FALSE
A56: 24 | D56: 1508 | I56: 0 | N56: 0 | O56: 0 | S56: 0 | T56: 0 | X56: 0 | Y56: 0 | AC56: 0 | AD56: 0 | AH56: 0 | AI56: 0 | AM56: 0 | AN56: 0 | AR56: 0 | AS56: 0 | AW56: 0 | AX56: 0 | BB56: 0 | BC56: 0 | BG56: 0 | BH56: 0 | BL56: 0 | BO56: 0 | BP56: 0 | BS56: 0 | BT56: 0 | BV56: 0 | CA56: 1508 | CB56: FALSE
A57: 25 | D57: 1508 | I57: 0 | N57: 0 | O57: 0 | S57: 0 | T57: 0 | X57: 0 | Y57: 0 | AC57: 0 | AD57: 0 | AH57: 0 | AI57: 0 | AM57: 0 | AN57: 0 | AR57: 0 | AS57: 0 | AW57: 0 | AX57: 0 | BB57: 0 | BC57: 0 | BG57: 0 | BH57: 0 | BL57: 0 | BO57: 0 | BP57: 0 | BS57: 0 | BT57: 0 | BV57: 0 | CA57: 1508 | CB57: FALSE
A58: 26 | D58: 1508 | I58: 0 | N58: 0 | O58: 0 | S58: 0 | T58: 0 | X58: 0 | Y58: 0 | AC58: 0 | AD58: 0 | AH58: 0 | AI58: 0 | AM58: 0 | AN58: 0 | AR58: 0 | AS58: 0 | AW58: 0 | AX58: 0 | BB58: 0 | BC58: 0 | BG58: 0 | BH58: 0 | BL58: 0 | BO58: 0 | BP58: 0 | BS58: 0 | BT58: 0 | BV58: 0 | CA58: 1508 | CB58: FALSE
A59: 27 | D59: 1508 | I59: 0 | N59: 0 | O59: 0 | S59: 0 | T59: 0 | X59: 0 | Y59: 0 | AC59: 0 | AD59: 0 | AH59: 0 | AI59: 0 | AM59: 0 | AN59: 0 | AR59: 0 | AS59: 0 | AW59: 0 | AX59: 0 | BB59: 0 | BC59: 0 | BG59: 0 | BH59: 0 | BL59: 0 | BO59: 0 | BP59: 0 | BS59: 0 | BT59: 0 | BV59: 0 | CA59: 1508 | CB59: FALSE
A60: 28 | D60: 1508 | I60: 0 | N60: 0 | O60: 0 | S60: 0 | T60: 0 | X60: 0 | Y60: 0 | AC60: 0 | AD60: 0 | AH60: 0 | AI60: 0 | AM60: 0 | AN60: 0 | AR60: 0 | AS60: 0 | AW60: 0 | AX60: 0 | BB60: 0 | BC60: 0 | BG60: 0 | BH60: 0 | BL60: 0 | BO60: 0 | BP60: 0 | BS60: 0 | BT60: 0 | BV60: 0 | CA60: 1508 | CB60: FALSE
A61: 29 | D61: 1508 | I61: 0 | N61: 0 | O61: 0 | S61: 0 | T61: 0 | X61: 0 | Y61: 0 | AC61: 0 | AD61: 0 | AH61: 0 | AI61: 0 | AM61: 0 | AN61: 0 | AR61: 0 | AS61: 0 | AW61: 0 | AX61: 0 | BB61: 0 | BC61: 0 | BG61: 0 | BH61: 0 | BL61: 0 | BO61: 0 | BP61: 0 | BS61: 0 | BT61: 0 | BV61: 0 | CA61: 1508 | CB61: FALSE
A62: 30 | D62: 1508 | I62: 0 | N62: 0 | O62: 0 | S62: 0 | T62: 0 | X62: 0 | Y62: 0 | AC62: 0 | AD62: 0 | AH62: 0 | AI62: 0 | AM62: 0 | AN62: 0 | AR62: 0 | AS62: 0 | AW62: 0 | AX62: 0 | BB62: 0 | BC62: 0 | BG62: 0 | BH62: 0 | BL62: 0 | BO62: 0 | BP62: 0 | BS62: 0 | BT62: 0 | BV62: 0 | CA62: 1508 | CB62: FALSE
A63: 31 | D63: 1508 | I63: 0 | N63: 0 | O63: 0 | S63: 0 | T63: 0 | X63: 0 | Y63: 0 | AC63: 0 | AD63: 0 | AH63: 0 | AI63: 0 | AM63: 0 | AN63: 0 | AR63: 0 | AS63: 0 | AW63: 0 | AX63: 0 | BB63: 0 | BC63: 0 | BG63: 0 | BH63: 0 | BL63: 0 | BO63: 0 | BP63: 0 | BS63: 0 | BT63: 0 | BV63: 0 | CA63: 1508 | CB63: FALSE
A64: 32 | D64: 1508 | I64: 0 | N64: 0 | O64: 0 | S64: 0 | T64: 0 | X64: 0 | Y64: 0 | AC64: 0 | AD64: 0 | AH64: 0 | AI64: 0 | AM64: 0 | AN64: 0 | AR64: 0 | AS64: 0 | AW64: 0 | AX64: 0 | BB64: 0 | BC64: 0 | BG64: 0 | BH64: 0 | BL64: 0 | BO64: 0 | BP64: 0 | BS64: 0 | BT64: 0 | BV64: 0 | CA64: 1508 | CB64: FALSE
A65: 33 | D65: 1508 | I65: 0 | N65: 0 | O65: 0 | S65: 0 | T65: 0 | X65: 0 | Y65: 0 | AC65: 0 | AD65: 0 | AH65: 0 | AI65: 0 | AM65: 0 | AN65: 0 | AR65: 0 | AS65: 0 | AW65: 0 | AX65: 0 | BB65: 0 | BC65: 0 | BG65: 0 | BH65: 0 | BL65: 0 | BO65: 0 | BP65: 0 | BS65: 0 | BT65: 0 | BV65: 0 | CA65: 1508 | CB65: FALSE
A66: 34 | D66: 1508 | I66: 0 | N66: 0 | O66: 0 | S66: 0 | T66: 0 | X66: 0 | Y66: 0 | AC66: 0 | AD66: 0 | AH66: 0 | AI66: 0 | AM66: 0 | AN66: 0 | AR66: 0 | AS66: 0 | AW66: 0 | AX66: 0 | BB66: 0 | BC66: 0 | BG66: 0 | BH66: 0 | BL66: 0 | BO66: 0 | BP66: 0 | BS66: 0 | BT66: 0 | BV66: 0 | CA66: 1508 | CB66: FALSE
A67: 35 | D67: 1508 | I67: 0 | N67: 0 | O67: 0 | S67: 0 | T67: 0 | X67: 0 | Y67: 0 | AC67: 0 | AD67: 0 | AH67: 0 | AI67: 0 | AM67: 0 | AN67: 0 | AR67: 0 | AS67: 0 | AW67: 0 | AX67: 0 | BB67: 0 | BC67: 0 | BG67: 0 | BH67: 0 | BL67: 0 | BO67: 0 | BP67: 0 | BS67: 0 | BT67: 0 | BV67: 0 | CA67: 1508 | CB67: FALSE
A68: 36 | D68: 1508 | I68: 0 | N68: 0 | O68: 0 | S68: 0 | T68: 0 | X68: 0 | Y68: 0 | AC68: 0 | AD68: 0 | AH68: 0 | AI68: 0 | AM68: 0 | AN68: 0 | AR68: 0 | AS68: 0 | AW68: 0 | AX68: 0 | BB68: 0 | BC68: 0 | BG68: 0 | BH68: 0 | BL68: 0 | BO68: 0 | BP68: 0 | BS68: 0 | BT68: 0 | BV68: 0 | CA68: 1508 | CB68: FALSE
A69: 37 | D69: 1508 | I69: 0 | N69: 0 | O69: 0 | S69: 0 | T69: 0 | X69: 0 | Y69: 0 | AC69: 0 | AD69: 0 | AH69: 0 | AI69: 0 | AM69: 0 | AN69: 0 | AR69: 0 | AS69: 0 | AW69: 0 | AX69: 0 | BB69: 0 | BC69: 0 | BG69: 0 | BH69: 0 | BL69: 0 | BO69: 0 | BP69: 0 | BS69: 0 | BT69: 0 | BV69: 0 | CA69: 1508 | CB69: FALSE
A70: 38 | D70: 1508 | I70: 0 | N70: 0 | O70: 0 | S70: 0 | T70: 0 | X70: 0 | Y70: 0 | AC70: 0 | AD70: 0 | AH70: 0 | AI70: 0 | AM70: 0 | AN70: 0 | AR70: 0 | AS70: 0 | AW70: 0 | AX70: 0 | BB70: 0 | BC70: 0 | BG70: 0 | BH70: 0 | BL70: 0 | BO70: 0 | BP70: 0 | BS70: 0 | BT70: 0 | BV70: 0 | CA70: 1508 | CB70: FALSE
A71: 39 | C71: Retail Cost Variance Account - Retail | D71: 1518 | I71: 0 | N71: 0 | O71: 0 | S71: 0 | T71: 0 | X71: 0 | Y71: 0 | AC71: 0 | AD71: 0 | AH71: 0 | AI71: 0 | AM71: 0 | AN71: 0 | AR71: 0 | AS71: 0 | AW71: 0 | AX71: 0 | BB71: 0 | BC71: 0 | BG71: =BC71+BD71-BE71+SUM(BF71:BF71) -> 0 | BH71: =BB71 -> 0 | BL71: 0 | BO71: =BG71-BM71 -> 0 | BP71: =BL71-BN71 -> 0 | BS71: =BP71+BQ71+BR71 -> 0 | BT71: =SUM(BO71:BR71) -> 0 | BV71: 0
A72: 40 | C72: Misc. Deferred Debits | D72: 1525 | I72: 0 | N72: 0 | O72: 0 | S72: 0 | T72: 0 | X72: 0 | Y72: 0 | AC72: 0 | AD72: 0 | AH72: 0 | AI72: 0 | AM72: 0 | AN72: 0 | AR72: 0 | AS72: 0 | AW72: 0 | AX72: 0 | BB72: 0 | BC72: 0 | BG72: 0 | BH72: 0 | BL72: 0 | BO72: 0 | BP72: 0 | BS72: 0 | BT72: =IF(CB72=TRUE, SUM(BO72:BR72), 0) -> 0 | BV72: 0 | CA72: 1525 | CB72: FALSE
A73: 41 | C73: Retail Cost Variance Account - STR | D73: 1548 | I73: =E73+F73-G73+H73 -> 0 | N73: =J73+K73-L73+M73 -> 0 | O73: =I73 -> 0 | S73: 0 | T73: =N73 -> 0 | X73: =T73+U73-V73+W73 -> 0 | Y73: =S73 -> 0 | AC73: 0 | AD73: =X73 -> 0 | AH73: =AD73+AE73-AF73+AG73 -> 0 | AI73: =AC73 -> 0 | AM73: =AI73+AJ73-AK73+SUM(AL73:AL73) -> 0 | AN73: =AH73 -> 0 | AR73: =AN73+AO73-AP73+AQ73 -> 0 | AS73: =AM73 -> 0 | AW73: 0 | AX73: =AR73 -> 0 | BB73: =AX73+AY73-AZ73+BA73 -> 0 | BC73: =AW73 -> 0 | BG73: 0 | BH73: 0 | BL73: =BH73+BI73-BJ73+BK73 -> 0 | BO73: 0 | BP73: 0 | BS73: 0 | BT73: =SUM(BO73:BR73) -> 0 | BV73: =BU73-SUM(BG73,BL73) -> 0
A74: 42 | C74: Board-Approved CDM Variance Account | D74: 1567 | I74: =E74+F74-G74+H74 -> 0 | N74: =J74+K74-L74+M74 -> 0 | O74: 0 | S74: 0 | T74: 0 | X74: =T74+U74-V74+W74 -> 0 | Y74: 0 | AC74: 0 | AD74: 0 | AH74: 0 | AI74: 0 | AM74: 0 | AN74: 0 | AR74: 0 | AS74: 0 | AW74: 0 | AX74: 0 | BB74: 0 | BC74: 0 | BG74: 0 | BH74: 0 | BL74: 0 | BO74: 0 | BP74: 0 | BS74: 0 | BT74: =SUM(BO74:BR74) -> 0 | BV74: 0
A75: 43 | C75: Extra-Ordinary Event Costs | D75: 1572 | I75: 0 | N75: 0 | O75: =I75 -> 0 | S75: 0 | T75: 0 | X75: 0 | Y75: 0 | AC75: 0 | AD75: 0 | AH75: 0 | AI75: =AC75 -> 0 | AM75: 0 | AN75: 0 | AR75: 0 | AS75: =AM75 -> 0 | AW75: 0 | AX75: 0 | BB75: 0 | BC75: =AW75 -> 0 | BG75: 0 | BH75: 0 | BL75: 0 | BO75: 0 | BP75: 0 | BS75: 0 | BT75: =SUM(BO75:BR75) -> 0 | BV75: 0
A76: 44 | C76: Deferred Rate Impact Amounts | D76: 1574 | I76: 0 | N76: 0 | O76: =I76 -> 0 | S76: 0 | T76: 0 | X76: 0 | Y76: 0 | AC76: 0 | AD76: 0 | AH76: 0 | AI76: =AC76 -> 0 | AM76: 0 | AN76: 0 | AR76: 0 | AS76: =AM76 -> 0 | AW76: 0 | AX76: 0 | BB76: 0 | BC76: =AW76 -> 0 | BG76: 0 | BH76: 0 | BL76: 0 | BO76: 0 | BP76: 0 | BS76: 0 | BT76: =SUM(BO76:BR76) -> 0 | BV76: 0
A77: 45 | C77: RSVA - One-time | D77: 1582 | I77: 0 | N77: 0 | O77: =I77 -> 0 | S77: 0 | T77: 0 | X77: 0 | Y77: 0 | AC77: 0 | AD77: 0 | AH77: 0 | AI77: =AC77 -> 0 | AM77: 0 | AN77: 0 | AR77: 0 | AS77: =AM77 -> 0 | AW77: 0 | AX77: 0 | BB77: 0 | BC77: =AW77 -> 0 | BG77: 0 | BH77: 0 | BL77: 0 | BO77: 0 | BP77: 0 | BS77: 0 | BT77: =SUM(BO77:BR77) -> 0 | BV77: 0
A78: 46 | C78: Other Deferred Credits | D78: 2425 | I78: 0 | N78: 0 | O78: =I78 -> 0 | S78: 0 | T78: 0 | X78: 0 | Y78: 0 | AC78: 0 | AD78: 0 | AH78: 0 | AI78: =AC78 -> 0 | AM78: 0 | AN78: 0 | AR78: 0 | AS78: =AM78 -> 0 | AW78: 0 | AX78: 0 | BB78: 0 | BC78: =AW78 -> 0 | BG78: 0 | BH78: 0 | BL78: 0 | BO78: 0 | BP78: 0 | BS78: 0 | BT78: =IF(CB78=TRUE, SUM(BO78:BR78), 0) -> 0 | BV78: 0 | CA78: 2425 | CB78: FALSE
C80: Group 2 Sub-Total | F80: =SUM(F48:F78) -> 0 | G80: 0 | H80: 0 | I80: 0 | J80: 0 | K80: 0 | L80: 0 | M80: 0 | N80: 0 | O80: 0 | P80: 0 | Q80: 0 | R80: 0 | S80: 0 | T80: 0 | U80: 0 | V80: 0 | W80: 0 | X80: 0 | Y80: 0 | Z80: 0 | AA80: 0 | AB80: 0 | AC80: 0 | AD80: 0 | AE80: 0 | AF80: 0 | AG80: 0 | AH80: 0 | AI80: 0 | AJ80: 0 | AK80: 0 | AL80: =SUM(AL48:AL78) -> 0 | AM80: 0 | AN80: 0 | AO80: 0 | AP80: 0 | AQ80: 0 | AR80: 0 | AS80: 0 | AT80: 0 | AU80: 0 | AV80: 0 | AW80: 0 | AX80: 0 | AY80: 0 | AZ80: 0 | BA80: 0 | BB80: 0 | BC80: 0 | BD80: 29559 | BE80: 0 | BF80: 305022 | BG80: 334581 | BH80: 0 | BI80: 0 | BJ80: 0 | BK80: 0 | BL80: 0 | BM80: 0 | BN80: 0 | BO80: 334581 | BP80: 0 | BQ80: 3631.89 | BR80: 1210.63 | BS80: 4842.52 | BT80: 339423.52 | BU80: 29559 | BV80: =BU80-SUM(BG80,BL80) -> -305022
A82: 47 | C82: PILs and Tax Variance for 2006 and Subsequent Years (excludes sub-account and contra account below) | D82: 1592 | I82: =E82+F82-G82+H82 -> 0 | N82: =J82+K82-L82+M82 -> 0 | O82: =I82 -> 0 | S82: =O82+P82-Q82+R82 -> 0 | T82: =N82 -> 0 | X82: =T82+U82-V82+W82 -> 0 | Y82: =S82 -> 0 | AC82: =Y82+Z82-AA82+AB82 -> 0 | AD82: =X82 -> 0 | AH82: =AD82+AE82-AF82+AG82 -> 0 | AI82: =AC82 -> 0 | AM82: =AI82+AJ82-AK82+SUM(AL82:AL82) -> 0 | AN82: =AH82 -> 0 | AR82: =AN82+AO82-AP82+AQ82 -> 0 | AS82: =AM82 -> 0 | AW82: =AS82+AT82-AU82+AV82 -> 0 | AX82: =AR82 -> 0 | BB82: =AX82+AY82-AZ82+BA82 -> 0 | BC82: =AW82 -> 0 | BG82: =BC82+BD82-BE82+SUM(BF82:BF82) -> 0 | BH82: =BB82 -> 0 | BL82: =BH82+BI82-BJ82+BK82 -> 0 | BO82: =BG82-BM82 -> 0 | BP82: =BL82-BN82 -> 0 | BS82: =BP82+BQ82+BR82 -> 0 | BT82: =SUM(BO82:BR82) -> 0 | BV82: =BU82-SUM(BG82,BL82) -> 0
A83: 48 | C83: PILs and Tax Variance for 2006 and Subsequent Years - Sub-Account HST/OVAT Input Tax Credits (ITCs) | D83: 1592 | I83: =E83+F83-G83+H83 -> 0 | N83: =J83+K83-L83+M83 -> 0 | O83: =I83 -> 0 | S83: =O83+P83-Q83+R83 -> 0 | T83: =N83 -> 0 | X83: =T83+U83-V83+W83 -> 0 | Y83: =S83 -> 0 | AC83: =Y83+Z83-AA83+AB83 -> 0 | AD83: =X83 -> 0 | AH83: =AD83+AE83-AF83+AG83 -> 0 | AI83: =AC83 -> 0 | AM83: =AI83+AJ83-AK83+SUM(AL83:AL83) -> 0 | AN83: =AH83 -> 0 | AR83: =AN83+AO83-AP83+AQ83 -> 0 | AS83: =AM83 -> 0 | AW83: =AS83+AT83-AU83+AV83 -> 0 | AX83: =AR83 -> 0 | BB83: =AX83+AY83-AZ83+BA83 -> 0 | BC83: =AW83 -> 0 | BG83: =BC83+BD83-BE83+SUM(BF83:BF83) -> 0 | BH83: =BB83 -> 0 | BL83: =BH83+BI83-BJ83+BK83 -> 0 | BO83: =BG83-BM83 -> 0 | BP83: =BL83-BN83 -> 0 | BS83: =BP83+BQ83+BR83 -> 0 | BT83: =SUM(BO83:BR83) -> 0 | BV83: =BU83-SUM(BG83,BL83) -> 0
C85: Total of Group 1 and Group 2 Accounts (including 1592) | E85: =SUM(E82:E83,E80, E43) -> 0 | F85: 0 | G85: 0 | H85: 0 | I85: 0 | J85: 0 | K85: 0 | L85: 0 | M85: 0 | N85: 0 | O85: 0 | P85: 0 | Q85: 0 | R85: 0 | S85: 0 | T85: 0 | U85: 0 | V85: 0 | W85: 0 | X85: 0 | Y85: 0 | Z85: 0 | AA85: 0 | AB85: -648245 | AC85: -648245 | AD85: 0 | AE85: 0 | AF85: 0 | AG85: 146136 | AH85: 146136 | AI85: -648245 | AJ85: 2190903 | AK85: =SUM(AK82:AK83,AK80, AK43) -> 327673 | AL85: 1623815 | AM85: 2838800 | AN85: 146136 | AO85: 11562 | AP85: 42081 | AQ85: 0 | AR85: 115617 | AS85: 2838800 | AT85: 378724 | AU85: -106415 | AV85: 0 | AW85: 3323939 | AX85: 115617 | AY85: 36741 | AZ85: 106416 | BA85: 0 | BB85: 45942 | BC85: 3323939 | BD85: -25542 | BE85: -73263 | BF85: 305022.15 | BG85: 3676682.15 | BH85: 45942 | BI85: 37749 | BJ85: 45488 | BK85: 0 | BL85: 38203 | BM85: 0 | BN85: 0 | BO85: 3676682.15 | BP85: 38203 | BQ85: 20449.03 | BR85: 6816.35 | BS85: 65468.38 | BT85: 1912343.53 | BU85: 3409864 | BV85: =BU85-SUM(BG85,BL85) -> -305021.15
A88: 49 | C88: LRAM Variance Account11 | D88: 1568 | I88: =E88+F88-G88+H88 -> 0 | N88: =J88+K88-L88+M88 -> 0 | O88: =I88 -> 0 | S88: =O88+P88-Q88+R88 -> 0 | T88: =N88 -> 0 | X88: =T88+U88-V88+W88 -> 0 | Y88: =S88 -> 0 | AC88: =Y88+Z88-AA88+AB88 -> 0 | AD88: =X88 -> 0 | AH88: =AD88+AE88-AF88+AG88 -> 0 | AI88: =AC88 -> 0 | AM88: =AI88+AJ88-AK88+SUM(AL88:AL88) -> 0 | AN88: =AH88 -> 0 | AR88: =AN88+AO88-AP88+AQ88 -> 0 | AS88: =AM88 -> 0 | AW88: =AS88+AT88-AU88+AV88 -> 0 | AX88: =AR88 -> 0 | BB88: =AX88+AY88-AZ88+BA88 -> 0 | BC88: =AW88 -> 0 | BF88: 348410.01 | BG88: =BC88+BD88-BE88+SUM(BF88:BF88) -> 348410.01 | BH88: =BB88 -> 0 | BI88: 0 | BK88: 11089.27 | BL88: =BH88+BI88-BJ88+BK88 -> 11089.27 | BO88: =BG88-BM88 -> 348410.01 | BP88: =BL88-BN88 -> 11089.27 | BQ88: 3832.51 | BR88: 1277.5 | BS88: =BP88+BQ88+BR88 -> 16199.28 | BT88: =SUM(BO88:BR88) -> 364609.29 | BU88: 335000 | BV88: =BU88-SUM(BG88,BL88) -> -24499.28
C91: Total including Account 1568 | F91: =F85+F88 -> 0 | G91: 0 | H91: 0 | I91: 0 | J91: 0 | K91: 0 | L91: 0 | M91: 0 | N91: 0 | O91: 0 | P91: 0 | Q91: 0 | R91: 0 | S91: 0 | T91: 0 | U91: 0 | V91: 0 | W91: 0 | X91: 0 | Y91: 0 | Z91: 0 | AA91: 0 | AB91: -648245 | AC91: =AC85+AC88 -> -648245 | AD91: 0 | AE91: 0 | AF91: 0 | AG91: 146136 | AH91: 146136 | AI91: -648245 | AJ91: 2190903 | AK91: 327673 | AL91: 1623815 | AM91: 2838800 | AN91: 146136 | AO91: 11562 | AP91: 42081 | AQ91: 0 | AR91: 115617 | AS91: =AS85+AS88 -> 2838800 | AT91: 378724 | AU91: -106415 | AV91: 0 | AW91: 3323939 | AX91: 115617 | AY91: 36741 | AZ91: 106416 | BA91: 0 | BB91: 45942 | BC91: =BC85+BC88 -> 3323939 | BD91: -25542 | BE91: -73263 | BF91: 653432.16 | BG91: 4025092.16 | BH91: 45942 | BI91: 37749 | BJ91: 45488 | BK91: 11089.27 | BL91: 49292.27 | BM91: 0 | BN91: 0 | BO91: 4025092.16 | BP91: 49292.27 | BQ91: 24281.54 | BR91: 8093.85 | BS91: 81667.66 | BT91: =BT85+BT88 -> 2276952.82 | BU91: 3744864 | BV91: =BU91-SUM(BG91,BL91) -> -329520.43
A93: 50 | C93: Renewable Generation Connection Capital Deferral Account8 | D93: 1531 | I93: =E93+F93-G93+H93 -> 0 | N93: =J93+K93-L93+M93 -> 0 | O93: =I93 -> 0 | S93: =O93+P93-Q93+R93 -> 0 | T93: =N93 -> 0 | X93: =T93+U93-V93+W93 -> 0 | Y93: =S93 -> 0 | AC93: =Y93+Z93-AA93+AB93 -> 0 | AD93: =X93 -> 0 | AH93: =AD93+AE93-AF93+AG93 -> 0 | AI93: =AC93 -> 0 | AM93: =AI93+AJ93-AK93+SUM(AL93:AL93) -> 0 | AN93: =AH93 -> 0 | AR93: =AN93+AO93-AP93+AQ93 -> 0 | AS93: =AM93 -> 0 | AW93: =AS93+AT93-AU93+AV93 -> 0 | AX93: =AR93 -> 0 | BB93: =AX93+AY93-AZ93+BA93 -> 0 | BC93: =AW93 -> 0 | BG93: =BC93+BD93-BE93+SUM(BF93:BF93) -> 0 | BH93: =BB93 -> 0 | BL93: =BH93+BI93-BJ93+BK93 -> 0 | BO93: =BG93-BM93 -> 0 | BP93: =BL93-BN93 -> 0 | BS93: =BP93+BQ93+BR93 -> 0 | BT93: =SUM(BO93:BR93) -> 0 | BV93: =BU93-SUM(BG93,BL93) -> 0
A94: 51 | C94: Renewable Generation Connection OM&A Deferral Account8 | D94: 1532 | I94: 0 | N94: 0 | O94: 0 | S94: 0 | T94: 0 | X94: 0 | Y94: 0 | AC94: 0 | AD94: 0 | AH94: 0 | AI94: 0 | AM94: 0 | AN94: 0 | AR94: 0 | AS94: 0 | AW94: 0 | AX94: 0 | BB94: 0 | BC94: 0 | BG94: 0 | BH94: 0 | BL94: 0 | BO94: 0 | BP94: 0 | BS94: 0 | BT94: 0 | BV94: =BU94-SUM(BG94,BL94) -> 0
A95: 52 | C95: Renewable Generation Connection Funding Adder Deferral Account | D95: 1533 | I95: 0 | N95: 0 | O95: 0 | S95: 0 | T95: 0 | X95: 0 | Y95: 0 | AC95: 0 | AD95: 0 | AH95: 0 | AI95: 0 | AM95: 0 | AN95: 0 | AR95: 0 | AS95: 0 | AW95: 0 | AX95: 0 | BB95: 0 | BC95: 0 | BG95: 0 | BH95: 0 | BL95: 0 | BO95: 0 | BP95: 0 | BS95: 0 | BT95: 0 | BV95: 0
A96: 53 | C96: Smart Grid Capital Deferral Account | D96: 1534 | I96: 0 | N96: 0 | O96: 0 | S96: 0 | T96: 0 | X96: 0 | Y96: 0 | AC96: 0 | AD96: 0 | AH96: 0 | AI96: 0 | AM96: 0 | AN96: 0 | AR96: 0 | AS96: 0 | AW96: 0 | AX96: 0 | BB96: 0 | BC96: 0 | BG96: 0 | BH96: 0 | BL96: 0 | BO96: 0 | BP96: 0 | BS96: 0 | BT96: 0 | BV96: 0
A97: 54 | C97: Smart Grid OM&A Deferral Account | D97: 1535 | I97: 0 | N97: 0 | O97: 0 | S97: 0 | T97: 0 | X97: 0 | Y97: 0 | AC97: 0 | AD97: 0 | AH97: 0 | AI97: 0 | AM97: 0 | AN97: 0 | AR97: 0 | AS97: 0 | AW97: 0 | AX97: 0 | BB97: 0 | BC97: 0 | BG97: 0 | BH97: 0 | BL97: 0 | BO97: 0 | BP97: 0 | BS97: 0 | BT97: 0 | BV97: 0
A98: 55 | C98: Smart Grid Funding Adder Deferral Account | D98: 1536 | I98: 0 | N98: 0 | O98: 0 | S98: 0 | T98: 0 | X98: 0 | Y98: 0 | AC98: 0 | AD98: 0 | AH98: 0 | AI98: 0 | AM98: 0 | AN98: 0 | AR98: 0 | AS98: 0 | AW98: 0 | AX98: 0 | BB98: 0 | BC98: 0 | BG98: 0 | BH98: 0 | BL98: 0 | BO98: 0 | BP98: 0 | BS98: 0 | BT98: 0 | BV98: 0
A99: 56 | C99: Smart Meter Capital and Recovery Offset Variance - Sub-Account - Capital4 | D99: 1555 | I99: 0 | N99: 0 | O99: 0 | S99: 0 | T99: 0 | X99: 0 | Y99: 0 | AC99: 0 | AD99: 0 | AH99: 0 | AI99: 0 | AM99: 0 | AN99: 0 | AR99: 0 | AS99: 0 | AW99: 0 | AX99: 0 | BB99: 0 | BC99: 0 | BG99: 0 | BH99: 0 | BL99: 0 | BO99: 0 | BP99: 0 | BS99: 0 | BT99: =SUM(BO99:BR99) -> 0 | BV99: 0
A100: 57 | C100: Smart Meter Capital and Recovery Offset Variance - Sub-Account - Recoveries4 | D100: 1555 | I100: 0 | N100: 0 | O100: 0 | S100: 0 | T100: 0 | X100: 0 | Y100: 0 | AC100: 0 | AD100: 0 | AH100: 0 | AI100: 0 | AM100: 0 | AN100: 0 | AR100: 0 | AS100: 0 | AW100: 0 | AX100: 0 | BB100: 0 | BC100: 0 | BG100: 0 | BH100: 0 | BL100: 0 | BO100: 0 | BP100: 0 | BS100: 0 | BT100: =SUM(BO100:BR100) -> 0 | BV100: 0
A101: 58 | C101: Smart Meter Capital and Recovery Offset Variance - Sub-Account - Stranded Meter Costs4 | D101: 1555 | I101: 0 | N101: 0 | O101: 0 | S101: 0 | T101: 0 | X101: 0 | Y101: 0 | AC101: 0 | AD101: 0 | AH101: 0 | AI101: 0 | AM101: 0 | AN101: 0 | AR101: 0 | AS101: 0 | AW101: 0 | AX101: 0 | BB101: 0 | BC101: 0 | BG101: 0 | BH101: 0 | BL101: 0 | BO101: 0 | BP101: 0 | BS101: 0 | BT101: =SUM(BO101:BR101) -> 0 | BV101: 0
A102: 59 | C102: Smart Meter OM&A Variance4 | D102: 1556 | I102: 0 | N102: 0 | O102: 0 | S102: 0 | T102: 0 | X102: 0 | Y102: 0 | AC102: 0 | AD102: 0 | AH102: 0 | AI102: 0 | AM102: 0 | AN102: 0 | AR102: 0 | AS102: 0 | AW102: 0 | AX102: 0 | BB102: 0 | BC102: 0 | BG102: 0 | BH102: 0 | BL102: 0 | BO102: 0 | BP102: 0 | BS102: 0 | BT102: =SUM(BO102:BR102) -> 0 | BV102: 0
A103: 60 | C103: Meter Cost Deferral Account (MIST Meters)10 | D103: 1557 | AI103: 0 | AM103: =AI103+AJ103-AK103+SUM(AL103:AL103) -> 0 | AN103: 0 | AR103: 0 | AS103: =AM103 -> 0 | AW103: =AS103+AT103-AU103+AV103 -> 0 | AX103: =AR103 -> 0 | BB103: =AX103+AY103-AZ103+BA103 -> 0 | BC103: 0 | BG103: 0 | BH103: 0 | BL103: 0 | BO103: 0 | BP103: 0 | BS103: 0 | BT103: =SUM(BO103:BR103) -> 0 | BV103: 0
A105: 61 | C105: IFRS-CGAAP Transition PP&E Amounts Balance + Return Component5 | D105: 1575 | I105: =E105+F105-G105+H105 -> 0 | O105: =I105 -> 0 | S105: =O105+P105-Q105+R105 -> 0 | Y105: =S105 -> 0 | AC105: =Y105+Z105-AA105+AB105 -> 0 | AI105: =AC105 -> 0 | AM105: =AI105+AJ105-AK105+SUM(AL105:AL105) -> 0 | AS105: =AM105 -> 0 | AW105: 0 | BC105: =AW105 -> 0 | BG105: =BC105+BD105-BE105+SUM(BF105:BF105) -> 0 | BO105: =BG105-BM105 -> 0 | BT105: =IF(CB105=TRUE, SUM(BO105:BR105), 0) -> 0 | BU105: 300614 | BV105: =BU105-SUM(BG105,BL105) -> 300614 | CA105: 1575 | CB105: FALSE
A106: 62 | C106: Accounting Changes Under CGAAP Balance + Return Component5 | D106: 1576 | O106: =I106 -> 0 | S106: =O106+P106-Q106+R106 -> 0 | Y106: =S106 -> 0 | AC106: =Y106+Z106-AA106+AB106 -> 0 | AI106: 0 | AM106: =AI106+AJ106-AK106+SUM(AL106:AL106) -> 0 | AS106: =AM106 -> 0 | AW106: 0 | BC106: =AW106 -> 0 | BF106: -1048825 | BG106: =BC106+BD106-BE106+SUM(BF106:BF106) -> -1048825 | BO106: =BG106-BM106 -> -1048825 | BT106: =IF(CB106=TRUE, SUM(BO106:BR106), 0) -> -1048825 | BU106: -975652 | BV106: =BU106-SUM(BG106,BL106) -> 73173 | CA106: 1576 | CB106: TRUE
C110: For all OEB-Approved dispositions, please ensure that the disposition amount has the same sign (e.g: debit balances are to have a positive figure and credit balance are to have a negative figure) as per the related OEB decision.
B111: 1 | C111: For RSVA accounts only, report the net variance to the account during the year. For all other accounts, record the transactions during the year. Do not include interest, adjustments, or OEB approved dispositions in this column.
B112: 2 | C112: Please provide explanations for the nature of the adjustments. If the adjustment relates to previously OEB Approved disposed balances, please provide amounts for adjustments and include supporting documentations.
B113: 3 | C113: As per the January 6, 2011 Letter from the OEB regarding the implementation of the Ontario Clean Energy Benefit:
C114: "By way of exception... The Board does anticipate that licensed distributors that cannot adapt their invoices as of January 1, 2011 will require a variance account for OCEB purposes... The Board expects that any principal balances in "Sub account Financial Assistance Payment and Recovery Variance - Ontario Clean Energy Benefit Act" will be addressed through the monthly settlement process with the IESO or the host distributor, as applicable."
B115: 4 | C115: Deferral accounts related to Smart Meter deployment are not to be recovered/refunded through the Deferral and Variance Account rate rider. For details on how to dispose of balances in Smart Meter accounts see the OEB's Guideline: Smart Meter Disposition and Cost Recovery (G-2011-0001)
B116: 5 | C116: The OEB requires that disposition of Account 1575 and Account 1576 shall require the use of separate rate riders. In the "Adjustments during 2016" column of the continuity schedule, please enter the amounts to be included in the Account 1575 and 1576 rate rider calculation from the applicable Chapter 2-E appendix line "Amount included in Deferral and Variance Account Rate Rider Calculation".
C117: Depending on the disposition period, balances may exist in Account 1575 and Account 1576 even if the accounts have been approved for disposition in a previous decision. Report these account balances in the continuity schedule if this is the case and leave the checkbox "Check to Dispose of Account" in the Total Claim column unchecked.
B118: 6 | C118: If the LDC’s rate year begins on January 1, 2018, the projected interest is recorded from January 1, 2017 to December 31, 2017 on the December 31, 2016 balances adjusted for the disposed balances approved by the OEB in the 2017 rate decision. If the LDC’s rate year begins on May 1, 2018, the projected interest is recorded from January 1, 2017 to April 30, 2018 on the December 31, 2016 balances adjusted for the disposed interest balances approved by the OEB in the 2017 rate decision.
B119: 7 | C119: The individual sub-accounts as well as the total for all Account 1595 sub-accounts are to agree to the RRR data. Differences need to be explained.
C120: For each Account 1595 sub-account, the transfer of the balance approved for disposition into Account 1595 is to be recorded in the "OEB Approved Disposition" column. The recovery/refund is to be recorded in the "Transaction" column. The two are not to be netted together and recorded in one column in the first year.
C121: The audited balance in the account is only to be disposed a year after the recovery/refund period has been completed. Generally, no further transactions would be expected to flow through the account after that. Any vintage year of Account 1595 is only to be disposed once on a final basis. No further dispositions of these accounts are generally expected thereafter, unless justified by the distributor. Select the "Check to dispose of account" checkbox in Total Claims column if the account is requested for disposition.
B122: 8 | C122: As per the Filing Requirements for 2018 rate applications, request for rate protection on eligible investments are subject to a materiality threshold. If the materiality threshold is met, per the APH March 2015 Guidance, the Direct Benefits portion of Account 1531 should be transferred to rate base. The Direct Benefits portion of Account 1532 should be included in the DVA continuity schedule to be requested for disposition. In this continuity schedule, Account 1531 is listed for reference only. Account 1532 is included in the Group 2 allocation of balances that are used to calculate the rate riders. Only input the Direct Benefits portion of the account balances in this continuity schedule.
B123: 9 | C123: Account 1580 RSVA WMS balance inputted into this schedule is to exclude any amounts relating to CBR. CBR amounts are to be inputted into Account 1580, sub-accounts CBR Class A and B separately. There is no disposition of Account 1580, sub-account CBR Class A, accounting guidance for this sub-account is to be followed. If a balance exists for Account 1580, sub-account CBR Class A as at Dec. 31, 2016, the balance must be explained.
B124: 10 | C124: Account 1557 is to be recovered in a manner similar to the Smart Meter accounts. Distributors should request for disposition upon completion of the MIST meter deployment. A prudence review and disposition should be done in the application, outside of this continuity schedule.
B125: 11 | C125: Input the LRAMVA balance in the continuity schedule as calculated from the LRAMVA model. The associated rate riders will be calculated in the DVA continuity schedule.
B126: 12 | C126: Applicants must reflect RPP Settlement true-up claims pertaining to the period that is being requested for disposition in Accounts 1588 and 1589. The amount requested for disposition starts with the audited account balance. If the audited account balance does not reflect the true-up claims for that year, the impacts of the true-up claims are to be shown in the Adjustment column in that year. Note that this true-up claim will need to be reversed in the amount requested for disposition in the following year.

Sheet 3. Appendix A
B16: Accounts that produced a variance on the continuity schedule are listed below. Please provide a detailed explanation for each variance below.
C20: Account Descriptions | D20: Account Number | E20: =CONCATENATE("Variance RRR vs. ",'2. 2016 Continuity Schedule'!BC19," Balance (Principal + Interest)") -> Variance RRR vs. 2016 Balance (Principal + Interest) | F20: Explanation
A24: 1 | C24: =VLOOKUP(A24, '2. 2016 Continuity Schedule'!$A$24:$BV$107,3,FALSE) -> LV Variance Account | D24: =VLOOKUP(A24, '2. 2016 Continuity Schedule'!$A$24:$BV$107,4,FALSE) -> 1550 | E24: =IF(ISERROR(VLOOKUP($A24, '2. 2016 Continuity Schedule'!$A$20:$BV$109, MATCH('3. Appendix A'!$E$20, '2. 2016 Continuity Schedule'!$A$20:$BV$20,0),FALSE)), 0, VLOOKUP($A24, '2. 2016 Continuity Schedule'!$A$20:$BV$109, MATCH('3. Appendix A'!$E$20, '2. 2016 Continuity Schedule'!$A$20:$BV$20,0),FALSE)) -> 0
A25: 2 | C25: =VLOOKUP(A25, '2. 2016 Continuity Schedule'!$A$24:$BV$107,3,FALSE) -> Smart Metering Entity Charge Variance Account | D25: =VLOOKUP(A25, '2. 2016 Continuity Schedule'!$A$24:$BV$107,4,FALSE) -> 1551 | E25: =IF(ISERROR(VLOOKUP($A25, '2. 2016 Continuity Schedule'!$A$20:$BV$109, MATCH('3. Appendix A'!$E$20, '2. 2016 Continuity Schedule'!$A$20:$BV$20,0),FALSE)), 0, VLOOKUP($A25, '2. 2016 Continuity Schedule'!$A$20:$BV$109, MATCH('3. Appendix A'!$E$20, '2. 2016 Continuity Schedule'!$A$20:$BV$20,0),FALSE)) -> 1
A26: 3 | C26: =VLOOKUP(A26, '2. 2016 Continuity Schedule'!$A$24:$BV$107,3,FALSE) -> RSVA - Wholesale Market Service Charge9 | D26: =VLOOKUP(A26, '2. 2016 Continuity Schedule'!$A$24:$BV$107,4,FALSE) -> 1580 | E26: =IF(ISERROR(VLOOKUP($A26, '2. 2016 Continuity Schedule'!$A$20:$BV$109, MATCH('3. Appendix A'!$E$20, '2. 2016 Continuity Schedule'!$A$20:$BV$20,0),FALSE)), 0, VLOOKUP($A26, '2. 2016 Continuity Schedule'!$A$20:$BV$109, MATCH('3. Appendix A'!$E$20, '2. 2016 Continuity Schedule'!$A$20:$BV$20,0),FALSE)) -> -1 | F26: CBR Class A has a balance in it as ETPL has not yet charged the one Class A customer the variance amount. ETPL will disperse the variance amount in July 2017 billing to customer. As it is not a significant amount the variance will be charged to the customer in one lump sum and ETPL will explain the billing to the customer.
A27: 3.1 | C27: =VLOOKUP(A27, '2. 2016 Continuity Schedule'!$A$24:$BV$107,3,FALSE) -> Variance WMS – Sub-account CBR Class A9 | D27: =VLOOKUP(A27, '2. 2016 Continuity Schedule'!$A$24:$BV$107,4,FALSE) -> 1580 | E27: =IF(ISERROR(VLOOKUP($A27, '2. 2016 Continuity Schedule'!$A$20:$BV$109, MATCH('3. Appendix A'!$E$20, '2. 2016 Continuity Schedule'!$A$20:$BV$20,0),FALSE)), 0, VLOOKUP($A27, '2. 2016 Continuity Schedule'!$A$20:$BV$109, MATCH('3. Appendix A'!$E$20, '2. 2016 Continuity Schedule'!$A$20:$BV$20,0),FALSE)) -> 0
A28: 3.2 | C28: =VLOOKUP(A28, '2. 2016 Continuity Schedule'!$A$24:$BV$107,3,FALSE) -> Variance WMS – Sub-account CBR Class B9 | D28: =VLOOKUP(A28, '2. 2016 Continuity Schedule'!$A$24:$BV$107,4,FALSE) -> 1580 | E28: =IF(ISERROR(VLOOKUP($A28, '2. 2016 Continuity Schedule'!$A$20:$BV$109, MATCH('3. Appendix A'!$E$20, '2. 2016 Continuity Schedule'!$A$20:$BV$20,0),FALSE)), 0, VLOOKUP($A28, '2. 2016 Continuity Schedule'!$A$20:$BV$109, MATCH('3. Appendix A'!$E$20, '2. 2016 Continuity Schedule'!$A$20:$BV$20,0),FALSE)) -> 0
A29: 4 | C29: =VLOOKUP(A29, '2. 2016 Continuity Schedule'!$A$24:$BV$107,3,FALSE) -> RSVA - Retail Transmission Network Charge | D29: =VLOOKUP(A29, '2. 2016 Continuity Schedule'!$A$24:$BV$107,4,FALSE) -> 1584 | E29: =IF(ISERROR(VLOOKUP($A29, '2. 2016 Continuity Schedule'!$A$20:$BV$109, MATCH('3. Appendix A'!$E$20, '2. 2016 Continuity Schedule'!$A$20:$BV$20,0),FALSE)), 0, VLOOKUP($A29, '2. 2016 Continuity Schedule'!$A$20:$BV$109, MATCH('3. Appendix A'!$E$20, '2. 2016 Continuity Schedule'!$A$20:$BV$20,0),FALSE)) -> 1
A30: 5 | C30: =VLOOKUP(A30, '2. 2016 Continuity Schedule'!$A$24:$BV$107,3,FALSE) -> RSVA - Retail Transmission Connection Charge | D30: =VLOOKUP(A30, '2. 2016 Continuity Schedule'!$A$24:$BV$107,4,FALSE) -> 1586 | E30: =IF(ISERROR(VLOOKUP($A30, '2. 2016 Continuity Schedule'!$A$20:$BV$109, MATCH('3. Appendix A'!$E$20, '2. 2016 Continuity Schedule'!$A$20:$BV$20,0),FALSE)), 0, VLOOKUP($A30, '2. 2016 Continuity Schedule'!$A$20:$BV$109, MATCH('3. Appendix A'!$E$20, '2. 2016 Continuity Schedule'!$A$20:$BV$20,0),FALSE)) -> 3
A31: 6 | C31: =VLOOKUP(A31, '2. 2016 Continuity Schedule'!$A$24:$BV$107,3,FALSE) -> RSVA - Power (excluding Global Adjustment)12 | D31: =VLOOKUP(A31, '2. 2016 Continuity Schedule'!$A$24:$BV$107,4,FALSE) -> 1588 | E31: =IF(ISERROR(VLOOKUP($A31, '2. 2016 Continuity Schedule'!$A$20:$BV$109, MATCH('3. Appendix A'!$E$20, '2. 2016 Continuity Schedule'!$A$20:$BV$20,0),FALSE)), 0, VLOOKUP($A31, '2. 2016 Continuity Schedule'!$A$20:$BV$109, MATCH('3. Appendix A'!$E$20, '2. 2016 Continuity Schedule'!$A$20:$BV$20,0),FALSE)) -> -2136633.89 | F31: ETPL made adjustments to the pro-ration of the Global Adjustment between RPP and NON-RPP as a result of the GA review. ETPL adjusted the principal and interest balances for 2015 and 2016 which is corrected back to the last disposition. The exact offsetting variance si in account 1589 -Global Adjustment
A32: 7 | C32: =VLOOKUP(A32, '2. 2016 Continuity Schedule'!$A$24:$BV$107,3,FALSE) -> RSVA - Global Adjustment 12 | D32: =VLOOKUP(A32, '2. 2016 Continuity Schedule'!$A$24:$BV$107,4,FALSE) -> 1589 | E32: =IF(ISERROR(VLOOKUP($A32, '2. 2016 Continuity Schedule'!$A$20:$BV$109, MATCH('3. Appendix A'!$E$20, '2. 2016 Continuity Schedule'!$A$20:$BV$20,0),FALSE)), 0, VLOOKUP($A32, '2. 2016 Continuity Schedule'!$A$20:$BV$109, MATCH('3. Appendix A'!$E$20, '2. 2016 Continuity Schedule'!$A$20:$BV$20,0),FALSE)) -> 2136632.74
A33: 8 | C33: =VLOOKUP(A33, '2. 2016 Continuity Schedule'!$A$24:$BV$107,3,FALSE) -> Disposition and Recovery/Refund of Regulatory Balances (2009)7 | D33: =VLOOKUP(A33, '2. 2016 Continuity Schedule'!$A$24:$BV$107,4,FALSE) -> 1595 | E33: =IF(ISERROR(VLOOKUP($A33, '2. 2016 Continuity Schedule'!$A$20:$BV$109, MATCH('3. Appendix A'!$E$20, '2. 2016 Continuity Schedule'!$A$20:$BV$20,0),FALSE)), 0, VLOOKUP($A33, '2. 2016 Continuity Schedule'!$A$20:$BV$109, MATCH('3. Appendix A'!$E$20, '2. 2016 Continuity Schedule'!$A$20:$BV$20,0),FALSE)) -> 0
A34: 9 | C34: =VLOOKUP(A34, '2. 2016 Continuity Schedule'!$A$24:$BV$107,3,FALSE) -> Disposition and Recovery/Refund of Regulatory Balances (2010)7 | D34: =VLOOKUP(A34, '2. 2016 Continuity Schedule'!$A$24:$BV$107,4,FALSE) -> 1595 | E34: =IF(ISERROR(VLOOKUP($A34, '2. 2016 Continuity Schedule'!$A$20:$BV$109, MATCH('3. Appendix A'!$E$20, '2. 2016 Continuity Schedule'!$A$20:$BV$20,0),FALSE)), 0, VLOOKUP($A34, '2. 2016 Continuity Schedule'!$A$20:$BV$109, MATCH('3. Appendix A'!$E$20, '2. 2016 Continuity Schedule'!$A$20:$BV$20,0),FALSE)) -> 0
A35: 10 | C35: =VLOOKUP(A35, '2. 2016 Continuity Schedule'!$A$24:$BV$107,3,FALSE) -> Disposition and Recovery/Refund of Regulatory Balances (2011)7 | D35: =VLOOKUP(A35, '2. 2016 Continuity Schedule'!$A$24:$BV$107,4,FALSE) -> 1595 | E35: =IF(ISERROR(VLOOKUP($A35, '2. 2016 Continuity Schedule'!$A$20:$BV$109, MATCH('3. Appendix A'!$E$20, '2. 2016 Continuity Schedule'!$A$20:$BV$20,0),FALSE)), 0, VLOOKUP($A35, '2. 2016 Continuity Schedule'!$A$20:$BV$109, MATCH('3. Appendix A'!$E$20, '2. 2016 Continuity Schedule'!$A$20:$BV$20,0),FALSE)) -> 0
A36: 11 | C36: =VLOOKUP(A36, '2. 2016 Continuity Schedule'!$A$24:$BV$107,3,FALSE) -> Disposition and Recovery/Refund of Regulatory Balances (2012)7 | D36: =VLOOKUP(A36, '2. 2016 Continuity Schedule'!$A$24:$BV$107,4,FALSE) -> 1595 | E36: =IF(ISERROR(VLOOKUP($A36, '2. 2016 Continuity Schedule'!$A$20:$BV$109, MATCH('3. Appendix A'!$E$20, '2. 2016 Continuity Schedule'!$A$20:$BV$20,0),FALSE)), 0, VLOOKUP($A36, '2. 2016 Continuity Schedule'!$A$20:$BV$109, MATCH('3. Appendix A'!$E$20, '2. 2016 Continuity Schedule'!$A$20:$BV$20,0),FALSE)) -> -1
A37: 12 | C37: =VLOOKUP(A37, '2. 2016 Continuity Schedule'!$A$24:$BV$107,3,FALSE) -> Disposition and Recovery/Refund of Regulatory Balances (2013)7 | D37: =VLOOKUP(A37, '2. 2016 Continuity Schedule'!$A$24:$BV$107,4,FALSE) -> 1595 | E37: =IF(ISERROR(VLOOKUP($A37, '2. 2016 Continuity Schedule'!$A$20:$BV$109, MATCH('3. Appendix A'!$E$20, '2. 2016 Continuity Schedule'!$A$20:$BV$20,0),FALSE)), 0, VLOOKUP($A37, '2. 2016 Continuity Schedule'!$A$20:$BV$109, MATCH('3. Appendix A'!$E$20, '2. 2016 Continuity Schedule'!$A$20:$BV$20,0),FALSE)) -> 0
A38: 13 | C38: =VLOOKUP(A38, '2. 2016 Continuity Schedule'!$A$24:$BV$107,3,FALSE) -> Disposition and Recovery/Refund of Regulatory Balances (2014)7 | D38: =VLOOKUP(A38, '2. 2016 Continuity Schedule'!$A$24:$BV$107,4,FALSE) -> 1595 | E38: =IF(ISERROR(VLOOKUP($A38, '2. 2016 Continuity Schedule'!$A$20:$BV$109, MATCH('3. Appendix A'!$E$20, '2. 2016 Continuity Schedule'!$A$20:$BV$20,0),FALSE)), 0, VLOOKUP($A38, '2. 2016 Continuity Schedule'!$A$20:$BV$109, MATCH('3. Appendix A'!$E$20, '2. 2016 Continuity Schedule'!$A$20:$BV$20,0),FALSE)) -> -1
A39: 14 | C39: =VLOOKUP(A39, '2. 2016 Continuity Schedule'!$A$24:$BV$107,3,FALSE) -> Disposition and Recovery/Refund of Regulatory Balances (2015)7 | D39: =VLOOKUP(A39, '2. 2016 Continuity Schedule'!$A$24:$BV$107,4,FALSE) -> 1595 | E39: =IF(ISERROR(VLOOKUP($A39, '2. 2016 Continuity Schedule'!$A$20:$BV$109, MATCH('3. Appendix A'!$E$20, '2. 2016 Continuity Schedule'!$A$20:$BV$20,0),FALSE)), 0, VLOOKUP($A39, '2. 2016 Continuity Schedule'!$A$20:$BV$109, MATCH('3. Appendix A'!$E$20, '2. 2016 Continuity Schedule'!$A$20:$BV$20,0),FALSE)) -> -1
A40: 15 | C40: =VLOOKUP(A40, '2. 2016 Continuity Schedule'!$A$24:$BV$107,3,FALSE) -> Disposition and Recovery/Refund of Regulatory Balances (2016)7 | D40: =VLOOKUP(A40, '2. 2016 Continuity Schedule'!$A$24:$BV$107,4,FALSE) -> 1595 | E40: =IF(ISERROR(VLOOKUP($A40, '2. 2016 Continuity Schedule'!$A$20:$BV$109, MATCH('3. Appendix A'!$E$20, '2. 2016 Continuity Schedule'!$A$20:$BV$20,0),FALSE)), 0, VLOOKUP($A40, '2. 2016 Continuity Schedule'!$A$20:$BV$109, MATCH('3. Appendix A'!$E$20, '2. 2016 Continuity Schedule'!$A$20:$BV$20,0),FALSE)) -> 1
C41: Group 2 Accounts
A42: 16 | C42: =VLOOKUP(A42, '2. 2016 Continuity Schedule'!$A$24:$BV$107,3,FALSE) -> Other Regulatory Assets - Sub-Account - Deferred IFRS Transition Costs | D42: =VLOOKUP(A42, '2. 2016 Continuity Schedule'!$A$24:$BV$107,4,FALSE) -> 1508 | E42: =IF(ISERROR(VLOOKUP($A42, '2. 2016 Continuity Schedule'!$A$20:$BV$109, MATCH('3. Appendix A'!$E$20, '2. 2016 Continuity Schedule'!$A$20:$BV$20,0),FALSE)), 0, VLOOKUP($A42, '2. 2016 Continuity Schedule'!$A$20:$BV$109, MATCH('3. Appendix A'!$E$20, '2. 2016 Continuity Schedule'!$A$20:$BV$20,0),FALSE)) -> -305022 | F42: The Deferred IFRS Transition costs were mistakenly being reported in Account 1575. The difference is the same as account 1575.
A43: 17 | C43: =VLOOKUP(A43, '2. 2016 Continuity Schedule'!$A$24:$BV$107,3,FALSE) -> Other Regulatory Assets - Sub-Account - Incremental Capital Charges | D43: =VLOOKUP(A43, '2. 2016 Continuity Schedule'!$A$24:$BV$107,4,FALSE) -> 1508 | E43: =IF(ISERROR(VLOOKUP($A43, '2. 2016 Continuity Schedule'!$A$20:$BV$109, MATCH('3. Appendix A'!$E$20, '2. 2016 Continuity Schedule'!$A$20:$BV$20,0),FALSE)), 0, VLOOKUP($A43, '2. 2016 Continuity Schedule'!$A$20:$BV$109, MATCH('3. Appendix A'!$E$20, '2. 2016 Continuity Schedule'!$A$20:$BV$20,0),FALSE)) -> 0
A44: 18 | C44: =VLOOKUP(A44, '2. 2016 Continuity Schedule'!$A$24:$BV$107,3,FALSE) -> Other Regulatory Assets - Sub-Account - Financial Assistance Payment and Recovery Variance - Ontario Clean Energy Benefit Act3 | D44: =VLOOKUP(A44, '2. 2016 Continuity Schedule'!$A$24:$BV$107,4,FALSE) -> 1508 | E44: =IF(ISERROR(VLOOKUP($A44, '2. 2016 Continuity Schedule'!$A$20:$BV$109, MATCH('3. Appendix A'!$E$20, '2. 2016 Continuity Schedule'!$A$20:$BV$20,0),FALSE)), 0, VLOOKUP($A44, '2. 2016 Continuity Schedule'!$A$20:$BV$109, MATCH('3. Appendix A'!$E$20, '2. 2016 Continuity Schedule'!$A$20:$BV$20,0),FALSE)) -> 0
A45: 19 | C45: =VLOOKUP(A45, '2. 2016 Continuity Schedule'!$A$24:$BV$107,3,FALSE) -> Other Regulatory Assets - Sub-Account - OEB Cost Assessment | D45: =VLOOKUP(A45, '2. 2016 Continuity Schedule'!$A$24:$BV$107,4,FALSE) -> 1508 | E45: =IF(ISERROR(VLOOKUP($A45, '2. 2016 Continuity Schedule'!$A$20:$BV$109, MATCH('3. Appendix A'!$E$20, '2. 2016 Continuity Schedule'!$A$20:$BV$20,0),FALSE)), 0, VLOOKUP($A45, '2. 2016 Continuity Schedule'!$A$20:$BV$109, MATCH('3. Appendix A'!$E$20, '2. 2016 Continuity Schedule'!$A$20:$BV$20,0),FALSE)) -> 0
A46: 20 | C46: =VLOOKUP(A46, '2. 2016 Continuity Schedule'!$A$24:$BV$107,3,FALSE) -> 0 | D46: =VLOOKUP(A46, '2. 2016 Continuity Schedule'!$A$24:$BV$107,4,FALSE) -> 1508 | E46: =IF(ISERROR(VLOOKUP($A46, '2. 2016 Continuity Schedule'!$A$20:$BV$109, MATCH('3. Appendix A'!$E$20, '2. 2016 Continuity Schedule'!$A$20:$BV$20,0),FALSE)), 0, VLOOKUP($A46, '2. 2016 Continuity Schedule'!$A$20:$BV$109, MATCH('3. Appendix A'!$E$20, '2. 2016 Continuity Schedule'!$A$20:$BV$20,0),FALSE)) -> 0
A47: 21 | C47: =VLOOKUP(A47, '2. 2016 Continuity Schedule'!$A$24:$BV$107,3,FALSE) -> 0 | D47: =VLOOKUP(A47, '2. 2016 Continuity Schedule'!$A$24:$BV$107,4,FALSE) -> 1508 | E47: =IF(ISERROR(VLOOKUP($A47, '2. 2016 Continuity Schedule'!$A$20:$BV$109, MATCH('3. Appendix A'!$E$20, '2. 2016 Continuity Schedule'!$A$20:$BV$20,0),FALSE)), 0, VLOOKUP($A47, '2. 2016 Continuity Schedule'!$A$20:$BV$109, MATCH('3. Appendix A'!$E$20, '2. 2016 Continuity Schedule'!$A$20:$BV$20,0),FALSE)) -> 0
A48: 22 | C48: =VLOOKUP(A48, '2. 2016 Continuity Schedule'!$A$24:$BV$107,3,FALSE) -> 0 | D48: =VLOOKUP(A48, '2. 2016 Continuity Schedule'!$A$24:$BV$107,4,FALSE) -> 1508 | E48: =IF(ISERROR(VLOOKUP($A48, '2. 2016 Continuity Schedule'!$A$20:$BV$109, MATCH('3. Appendix A'!$E$20, '2. 2016 Continuity Schedule'!$A$20:$BV$20,0),FALSE)), 0, VLOOKUP($A48, '2. 2016 Continuity Schedule'!$A$20:$BV$109, MATCH('3. Appendix A'!$E$20, '2. 2016 Continuity Schedule'!$A$20:$BV$20,0),FALSE)) -> 0
A49: 23 | C49: =VLOOKUP(A49, '2. 2016 Continuity Schedule'!$A$24:$BV$107,3,FALSE) -> 0 | D49: =VLOOKUP(A49, '2. 2016 Continuity Schedule'!$A$24:$BV$107,4,FALSE) -> 1508 | E49: =IF(ISERROR(VLOOKUP($A49, '2. 2016 Continuity Schedule'!$A$20:$BV$109, MATCH('3. Appendix A'!$E$20, '2. 2016 Continuity Schedule'!$A$20:$BV$20,0),FALSE)), 0, VLOOKUP($A49, '2. 2016 Continuity Schedule'!$A$20:$BV$109, MATCH('3. Appendix A'!$E$20, '2. 2016 Continuity Schedule'!$A$20:$BV$20,0),FALSE)) -> 0
A50: 24 | C50: =VLOOKUP(A50, '2. 2016 Continuity Schedule'!$A$24:$BV$107,3,FALSE) -> 0 | D50: =VLOOKUP(A50, '2. 2016 Continuity Schedule'!$A$24:$BV$107,4,FALSE) -> 1508 | E50: =IF(ISERROR(VLOOKUP($A50, '2. 2016 Continuity Schedule'!$A$20:$BV$109, MATCH('3. Appendix A'!$E$20, '2. 2016 Continuity Schedule'!$A$20:$BV$20,0),FALSE)), 0, VLOOKUP($A50, '2. 2016 Continuity Schedule'!$A$20:$BV$109, MATCH('3. Appendix A'!$E$20, '2. 2016 Continuity Schedule'!$A$20:$BV$20,0),FALSE)) -> 0
A51: 25 | C51: =VLOOKUP(A51, '2. 2016 Continuity Schedule'!$A$24:$BV$107,3,FALSE) -> 0 | D51: =VLOOKUP(A51, '2. 2016 Continuity Schedule'!$A$24:$BV$107,4,FALSE) -> 1508 | E51: =IF(ISERROR(VLOOKUP($A51, '2. 2016 Continuity Schedule'!$A$20:$BV$109, MATCH('3. Appendix A'!$E$20, '2. 2016 Continuity Schedule'!$A$20:$BV$20,0),FALSE)), 0, VLOOKUP($A51, '2. 2016 Continuity Schedule'!$A$20:$BV$109, MATCH('3. Appendix A'!$E$20, '2. 2016 Continuity Schedule'!$A$20:$BV$20,0),FALSE)) -> 0
A52: 26 | C52: =VLOOKUP(A52, '2. 2016 Continuity Schedule'!$A$24:$BV$107,3,FALSE) -> 0 | D52: =VLOOKUP(A52, '2. 2016 Continuity Schedule'!$A$24:$BV$107,4,FALSE) -> 1508 | E52: =IF(ISERROR(VLOOKUP($A52, '2. 2016 Continuity Schedule'!$A$20:$BV$109, MATCH('3. Appendix A'!$E$20, '2. 2016 Continuity Schedule'!$A$20:$BV$20,0),FALSE)), 0, VLOOKUP($A52, '2. 2016 Continuity Schedule'!$A$20:$BV$109, MATCH('3. Appendix A'!$E$20, '2. 2016 Continuity Schedule'!$A$20:$BV$20,0),FALSE)) -> 0
A53: 27 | C53: =VLOOKUP(A53, '2. 2016 Continuity Schedule'!$A$24:$BV$107,3,FALSE) -> 0 | D53: =VLOOKUP(A53, '2. 2016 Continuity Schedule'!$A$24:$BV$107,4,FALSE) -> 1508 | E53: =IF(ISERROR(VLOOKUP($A53, '2. 2016 Continuity Schedule'!$A$20:$BV$109, MATCH('3. Appendix A'!$E$20, '2. 2016 Continuity Schedule'!$A$20:$BV$20,0),FALSE)), 0, VLOOKUP($A53, '2. 2016 Continuity Schedule'!$A$20:$BV$109, MATCH('3. Appendix A'!$E$20, '2. 2016 Continuity Schedule'!$A$20:$BV$20,0),FALSE)) -> 0
A54: 28 | C54: =VLOOKUP(A54, '2. 2016 Continuity Schedule'!$A$24:$BV$107,3,FALSE) -> 0 | D54: =VLOOKUP(A54, '2. 2016 Continuity Schedule'!$A$24:$BV$107,4,FALSE) -> 1508 | E54: =IF(ISERROR(VLOOKUP($A54, '2. 2016 Continuity Schedule'!$A$20:$BV$109, MATCH('3. Appendix A'!$E$20, '2. 2016 Continuity Schedule'!$A$20:$BV$20,0),FALSE)), 0, VLOOKUP($A54, '2. 2016 Continuity Schedule'!$A$20:$BV$109, MATCH('3. Appendix A'!$E$20, '2. 2016 Continuity Schedule'!$A$20:$BV$20,0),FALSE)) -> 0
A55: 29 | C55: =VLOOKUP(A55, '2. 2016 Continuity Schedule'!$A$24:$BV$107,3,FALSE) -> 0 | D55: =VLOOKUP(A55, '2. 2016 Continuity Schedule'!$A$24:$BV$107,4,FALSE) -> 1508 | E55: =IF(ISERROR(VLOOKUP($A55, '2. 2016 Continuity Schedule'!$A$20:$BV$109, MATCH('3. Appendix A'!$E$20, '2. 2016 Continuity Schedule'!$A$20:$BV$20,0),FALSE)), 0, VLOOKUP($A55, '2. 2016 Continuity Schedule'!$A$20:$BV$109, MATCH('3. Appendix A'!$E$20, '2. 2016 Continuity Schedule'!$A$20:$BV$20,0),FALSE)) -> 0
A56: 30 | C56: =VLOOKUP(A56, '2. 2016 Continuity Schedule'!$A$24:$BV$107,3,FALSE) -> 0 | D56: =VLOOKUP(A56, '2. 2016 Continuity Schedule'!$A$24:$BV$107,4,FALSE) -> 1508 | E56: =IF(ISERROR(VLOOKUP($A56, '2. 2016 Continuity Schedule'!$A$20:$BV$109, MATCH('3. Appendix A'!$E$20, '2. 2016 Continuity Schedule'!$A$20:$BV$20,0),FALSE)), 0, VLOOKUP($A56, '2. 2016 Continuity Schedule'!$A$20:$BV$109, MATCH('3. Appendix A'!$E$20, '2. 2016 Continuity Schedule'!$A$20:$BV$20,0),FALSE)) -> 0
A57: 31 | C57: =VLOOKUP(A57, '2. 2016 Continuity Schedule'!$A$24:$BV$107,3,FALSE) -> 0 | D57: =VLOOKUP(A57, '2. 2016 Continuity Schedule'!$A$24:$BV$107,4,FALSE) -> 1508 | E57: =IF(ISERROR(VLOOKUP($A57, '2. 2016 Continuity Schedule'!$A$20:$BV$109, MATCH('3. Appendix A'!$E$20, '2. 2016 Continuity Schedule'!$A$20:$BV$20,0),FALSE)), 0, VLOOKUP($A57, '2. 2016 Continuity Schedule'!$A$20:$BV$109, MATCH('3. Appendix A'!$E$20, '2. 2016 Continuity Schedule'!$A$20:$BV$20,0),FALSE)) -> 0
A58: 32 | C58: =VLOOKUP(A58, '2. 2016 Continuity Schedule'!$A$24:$BV$107,3,FALSE) -> 0 | D58: =VLOOKUP(A58, '2. 2016 Continuity Schedule'!$A$24:$BV$107,4,FALSE) -> 1508 | E58: =IF(ISERROR(VLOOKUP($A58, '2. 2016 Continuity Schedule'!$A$20:$BV$109, MATCH('3. Appendix A'!$E$20, '2. 2016 Continuity Schedule'!$A$20:$BV$20,0),FALSE)), 0, VLOOKUP($A58, '2. 2016 Continuity Schedule'!$A$20:$BV$109, MATCH('3. Appendix A'!$E$20, '2. 2016 Continuity Schedule'!$A$20:$BV$20,0),FALSE)) -> 0
A59: 33 | C59: =VLOOKUP(A59, '2. 2016 Continuity Schedule'!$A$24:$BV$107,3,FALSE) -> 0 | D59: =VLOOKUP(A59, '2. 2016 Continuity Schedule'!$A$24:$BV$107,4,FALSE) -> 1508 | E59: =IF(ISERROR(VLOOKUP($A59, '2. 2016 Continuity Schedule'!$A$20:$BV$109, MATCH('3. Appendix A'!$E$20, '2. 2016 Continuity Schedule'!$A$20:$BV$20,0),FALSE)), 0, VLOOKUP($A59, '2. 2016 Continuity Schedule'!$A$20:$BV$109, MATCH('3. Appendix A'!$E$20, '2. 2016 Continuity Schedule'!$A$20:$BV$20,0),FALSE)) -> 0
A60: 34 | C60: =VLOOKUP(A60, '2. 2016 Continuity Schedule'!$A$24:$BV$107,3,FALSE) -> 0 | D60: =VLOOKUP(A60, '2. 2016 Continuity Schedule'!$A$24:$BV$107,4,FALSE) -> 1508 | E60: =IF(ISERROR(VLOOKUP($A60, '2. 2016 Continuity Schedule'!$A$20:$BV$109, MATCH('3. Appendix A'!$E$20, '2. 2016 Continuity Schedule'!$A$20:$BV$20,0),FALSE)), 0, VLOOKUP($A60, '2. 2016 Continuity Schedule'!$A$20:$BV$109, MATCH('3. Appendix A'!$E$20, '2. 2016 Continuity Schedule'!$A$20:$BV$20,0),FALSE)) -> 0
A61: 35 | C61: =VLOOKUP(A61, '2. 2016 Continuity Schedule'!$A$24:$BV$107,3,FALSE) -> 0 | D61: =VLOOKUP(A61, '2. 2016 Continuity Schedule'!$A$24:$BV$107,4,FALSE) -> 1508 | E61: =IF(ISERROR(VLOOKUP($A61, '2. 2016 Continuity Schedule'!$A$20:$BV$109, MATCH('3. Appendix A'!$E$20, '2. 2016 Continuity Schedule'!$A$20:$BV$20,0),FALSE)), 0, VLOOKUP($A61, '2. 2016 Continuity Schedule'!$A$20:$BV$109, MATCH('3. Appendix A'!$E$20, '2. 2016 Continuity Schedule'!$A$20:$BV$20,0),FALSE)) -> 0
A62: 36 | C62: =VLOOKUP(A62, '2. 2016 Continuity Schedule'!$A$24:$BV$107,3,FALSE) -> 0 | D62: =VLOOKUP(A62, '2. 2016 Continuity Schedule'!$A$24:$BV$107,4,FALSE) -> 1508 | E62: =IF(ISERROR(VLOOKUP($A62, '2. 2016 Continuity Schedule'!$A$20:$BV$109, MATCH('3. Appendix A'!$E$20, '2. 2016 Continuity Schedule'!$A$20:$BV$20,0),FALSE)), 0, VLOOKUP($A62, '2. 2016 Continuity Schedule'!$A$20:$BV$109, MATCH('3. Appendix A'!$E$20, '2. 2016 Continuity Schedule'!$A$20:$BV$20,0),FALSE)) -> 0
A63: 37 | C63: =VLOOKUP(A63, '2. 2016 Continuity Schedule'!$A$24:$BV$107,3,FALSE) -> 0 | D63: =VLOOKUP(A63, '2. 2016 Continuity Schedule'!$A$24:$BV$107,4,FALSE) -> 1508 | E63: =IF(ISERROR(VLOOKUP($A63, '2. 2016 Continuity Schedule'!$A$20:$BV$109, MATCH('3. Appendix A'!$E$20, '2. 2016 Continuity Schedule'!$A$20:$BV$20,0),FALSE)), 0, VLOOKUP($A63, '2. 2016 Continuity Schedule'!$A$20:$BV$109, MATCH('3. Appendix A'!$E$20, '2. 2016 Continuity Schedule'!$A$20:$BV$20,0),FALSE)) -> 0
A64: 38 | C64: =VLOOKUP(A64, '2. 2016 Continuity Schedule'!$A$24:$BV$107,3,FALSE) -> 0 | D64: =VLOOKUP(A64, '2. 2016 Continuity Schedule'!$A$24:$BV$107,4,FALSE) -> 1508 | E64: =IF(ISERROR(VLOOKUP($A64, '2. 2016 Continuity Schedule'!$A$20:$BV$109, MATCH('3. Appendix A'!$E$20, '2. 2016 Continuity Schedule'!$A$20:$BV$20,0),FALSE)), 0, VLOOKUP($A64, '2. 2016 Continuity Schedule'!$A$20:$BV$109, MATCH('3. Appendix A'!$E$20, '2. 2016 Continuity Schedule'!$A$20:$BV$20,0),FALSE)) -> 0
A65: 39 | C65: =VLOOKUP(A65, '2. 2016 Continuity Schedule'!$A$24:$BV$107,3,FALSE) -> Retail Cost Variance Account - Retail | D65: =VLOOKUP(A65, '2. 2016 Continuity Schedule'!$A$24:$BV$107,4,FALSE) -> 1518 | E65: =IF(ISERROR(VLOOKUP($A65, '2. 2016 Continuity Schedule'!$A$20:$BV$109, MATCH('3. Appendix A'!$E$20, '2. 2016 Continuity Schedule'!$A$20:$BV$20,0),FALSE)), 0, VLOOKUP($A65, '2. 2016 Continuity Schedule'!$A$20:$BV$109, MATCH('3. Appendix A'!$E$20, '2. 2016 Continuity Schedule'!$A$20:$BV$20,0),FALSE)) -> 0
A66: 40 | C66: =VLOOKUP(A66, '2. 2016 Continuity Schedule'!$A$24:$BV$107,3,FALSE) -> Misc. Deferred Debits | D66: =VLOOKUP(A66, '2. 2016 Continuity Schedule'!$A$24:$BV$107,4,FALSE) -> 1525 | E66: =IF(ISERROR(VLOOKUP($A66, '2. 2016 Continuity Schedule'!$A$20:$BV$109, MATCH('3. Appendix A'!$E$20, '2. 2016 Continuity Schedule'!$A$20:$BV$20,0),FALSE)), 0, VLOOKUP($A66, '2. 2016 Continuity Schedule'!$A$20:$BV$109, MATCH('3. Appendix A'!$E$20, '2. 2016 Continuity Schedule'!$A$20:$BV$20,0),FALSE)) -> 0
A67: 41 | C67: =VLOOKUP(A67, '2. 2016 Continuity Schedule'!$A$24:$BV$107,3,FALSE) -> Retail Cost Variance Account - STR | D67: =VLOOKUP(A67, '2. 2016 Continuity Schedule'!$A$24:$BV$107,4,FALSE) -> 1548 | E67: =IF(ISERROR(VLOOKUP($A67, '2. 2016 Continuity Schedule'!$A$20:$BV$109, MATCH('3. Appendix A'!$E$20, '2. 2016 Continuity Schedule'!$A$20:$BV$20,0),FALSE)), 0, VLOOKUP($A67, '2. 2016 Continuity Schedule'!$A$20:$BV$109, MATCH('3. Appendix A'!$E$20, '2. 2016 Continuity Schedule'!$A$20:$BV$20,0),FALSE)) -> 0
A68: 42 | C68: =VLOOKUP(A68, '2. 2016 Continuity Schedule'!$A$24:$BV$107,3,FALSE) -> Board-Approved CDM Variance Account | D68: =VLOOKUP(A68, '2. 2016 Continuity Schedule'!$A$24:$BV$107,4,FALSE) -> 1567 | E68: =IF(ISERROR(VLOOKUP($A68, '2. 2016 Continuity Schedule'!$A$20:$BV$109, MATCH('3. Appendix A'!$E$20, '2. 2016 Continuity Schedule'!$A$20:$BV$20,0),FALSE)), 0, VLOOKUP($A68, '2. 2016 Continuity Schedule'!$A$20:$BV$109, MATCH('3. Appendix A'!$E$20, '2. 2016 Continuity Schedule'!$A$20:$BV$20,0),FALSE)) -> 0
A69: 43 | C69: =VLOOKUP(A69, '2. 2016 Continuity Schedule'!$A$24:$BV$107,3,FALSE) -> Extra-Ordinary Event Costs | D69: =VLOOKUP(A69, '2. 2016 Continuity Schedule'!$A$24:$BV$107,4,FALSE) -> 1572 | E69: =IF(ISERROR(VLOOKUP($A69, '2. 2016 Continuity Schedule'!$A$20:$BV$109, MATCH('3. Appendix A'!$E$20, '2. 2016 Continuity Schedule'!$A$20:$BV$20,0),FALSE)), 0, VLOOKUP($A69, '2. 2016 Continuity Schedule'!$A$20:$BV$109, MATCH('3. Appendix A'!$E$20, '2. 2016 Continuity Schedule'!$A$20:$BV$20,0),FALSE)) -> 0
A70: 44 | C70: =VLOOKUP(A70, '2. 2016 Continuity Schedule'!$A$24:$BV$107,3,FALSE) -> Deferred Rate Impact Amounts | D70: =VLOOKUP(A70, '2. 2016 Continuity Schedule'!$A$24:$BV$107,4,FALSE) -> 1574 | E70: =IF(ISERROR(VLOOKUP($A70, '2. 2016 Continuity Schedule'!$A$20:$BV$109, MATCH('3. Appendix A'!$E$20, '2. 2016 Continuity Schedule'!$A$20:$BV$20,0),FALSE)), 0, VLOOKUP($A70, '2. 2016 Continuity Schedule'!$A$20:$BV$109, MATCH('3. Appendix A'!$E$20, '2. 2016 Continuity Schedule'!$A$20:$BV$20,0),FALSE)) -> 0
A71: 45 | C71: =VLOOKUP(A71, '2. 2016 Continuity Schedule'!$A$24:$BV$107,3,FALSE) -> RSVA - One-time | D71: =VLOOKUP(A71, '2. 2016 Continuity Schedule'!$A$24:$BV$107,4,FALSE) -> 1582 | E71: =IF(ISERROR(VLOOKUP($A71, '2. 2016 Continuity Schedule'!$A$20:$BV$109, MATCH('3. Appendix A'!$E$20, '2. 2016 Continuity Schedule'!$A$20:$BV$20,0),FALSE)), 0, VLOOKUP($A71, '2. 2016 Continuity Schedule'!$A$20:$BV$109, MATCH('3. Appendix A'!$E$20, '2. 2016 Continuity Schedule'!$A$20:$BV$20,0),FALSE)) -> 0
A72: 46 | C72: =VLOOKUP(A72, '2. 2016 Continuity Schedule'!$A$24:$BV$107,3,FALSE) -> Other Deferred Credits | D72: =VLOOKUP(A72, '2. 2016 Continuity Schedule'!$A$24:$BV$107,4,FALSE) -> 2425 | E72: =IF(ISERROR(VLOOKUP($A72, '2. 2016 Continuity Schedule'!$A$20:$BV$109, MATCH('3. Appendix A'!$E$20, '2. 2016 Continuity Schedule'!$A$20:$BV$20,0),FALSE)), 0, VLOOKUP($A72, '2. 2016 Continuity Schedule'!$A$20:$BV$109, MATCH('3. Appendix A'!$E$20, '2. 2016 Continuity Schedule'!$A$20:$BV$20,0),FALSE)) -> 0
A73: 47 | C73: =VLOOKUP(A73, '2. 2016 Continuity Schedule'!$A$24:$BV$107,3,FALSE) -> PILs and Tax Variance for 2006 and Subsequent Years (excludes sub-account and contra account below) | D73: =VLOOKUP(A73, '2. 2016 Continuity Schedule'!$A$24:$BV$107,4,FALSE) -> 1592 | E73: =IF(ISERROR(VLOOKUP($A73, '2. 2016 Continuity Schedule'!$A$20:$BV$109, MATCH('3. Appendix A'!$E$20, '2. 2016 Continuity Schedule'!$A$20:$BV$20,0),FALSE)), 0, VLOOKUP($A73, '2. 2016 Continuity Schedule'!$A$20:$BV$109, MATCH('3. Appendix A'!$E$20, '2. 2016 Continuity Schedule'!$A$20:$BV$20,0),FALSE)) -> 0
A74: 48 | C74: =VLOOKUP(A74, '2. 2016 Continuity Schedule'!$A$24:$BV$107,3,FALSE) -> PILs and Tax Variance for 2006 and Subsequent Years - Sub-Account HST/OVAT Input Tax Credits (ITCs) | D74: =VLOOKUP(A74, '2. 2016 Continuity Schedule'!$A$24:$BV$107,4,FALSE) -> 1592 | E74: =IF(ISERROR(VLOOKUP($A74, '2. 2016 Continuity Schedule'!$A$20:$BV$109, MATCH('3. Appendix A'!$E$20, '2. 2016 Continuity Schedule'!$A$20:$BV$20,0),FALSE)), 0, VLOOKUP($A74, '2. 2016 Continuity Schedule'!$A$20:$BV$109, MATCH('3. Appendix A'!$E$20, '2. 2016 Continuity Schedule'!$A$20:$BV$20,0),FALSE)) -> 0
A75: 49 | C75: =VLOOKUP(A75, '2. 2016 Continuity Schedule'!$A$24:$BV$107,3,FALSE) -> LRAM Variance Account11 | D75: =VLOOKUP(A75, '2. 2016 Continuity Schedule'!$A$24:$BV$107,4,FALSE) -> 1568 | E75: =IF(ISERROR(VLOOKUP($A75, '2. 2016 Continuity Schedule'!$A$20:$BV$109, MATCH('3. Appendix A'!$E$20, '2. 2016 Continuity Schedule'!$A$20:$BV$20,0),FALSE)), 0, VLOOKUP($A75, '2. 2016 Continuity Schedule'!$A$20:$BV$109, MATCH('3. Appendix A'!$E$20, '2. 2016 Continuity Schedule'!$A$20:$BV$20,0),FALSE)) -> -24499.28 | F75: Erie Thames accrued the LRAM each year for the Financial Statements but did not include any interest calculation. Erie Thames updated the balance in 1568 to agree with Appendix 2
A76: 50 | C76: =VLOOKUP(A76, '2. 2016 Continuity Schedule'!$A$24:$BV$107,3,FALSE) -> Renewable Generation Connection Capital Deferral Account8 | D76: =VLOOKUP(A76, '2. 2016 Continuity Schedule'!$A$24:$BV$107,4,FALSE) -> 1531 | E76: =IF(ISERROR(VLOOKUP($A76, '2. 2016 Continuity Schedule'!$A$20:$BV$109, MATCH('3. Appendix A'!$E$20, '2. 2016 Continuity Schedule'!$A$20:$BV$20,0),FALSE)), 0, VLOOKUP($A76, '2. 2016 Continuity Schedule'!$A$20:$BV$109, MATCH('3. Appendix A'!$E$20, '2. 2016 Continuity Schedule'!$A$20:$BV$20,0),FALSE)) -> 0
A77: 51 | C77: =VLOOKUP(A77, '2. 2016 Continuity Schedule'!$A$24:$BV$107,3,FALSE) -> Renewable Generation Connection OM&A Deferral Account8 | D77: =VLOOKUP(A77, '2. 2016 Continuity Schedule'!$A$24:$BV$107,4,FALSE) -> 1532 | E77: =IF(ISERROR(VLOOKUP($A77, '2. 2016 Continuity Schedule'!$A$20:$BV$109, MATCH('3. Appendix A'!$E$20, '2. 2016 Continuity Schedule'!$A$20:$BV$20,0),FALSE)), 0, VLOOKUP($A77, '2. 2016 Continuity Schedule'!$A$20:$BV$109, MATCH('3. Appendix A'!$E$20, '2. 2016 Continuity Schedule'!$A$20:$BV$20,0),FALSE)) -> 0
A78: 52 | C78: =VLOOKUP(A78, '2. 2016 Continuity Schedule'!$A$24:$BV$107,3,FALSE) -> Renewable Generation Connection Funding Adder Deferral Account | D78: =VLOOKUP(A78, '2. 2016 Continuity Schedule'!$A$24:$BV$107,4,FALSE) -> 1533 | E78: =IF(ISERROR(VLOOKUP($A78, '2. 2016 Continuity Schedule'!$A$20:$BV$109, MATCH('3. Appendix A'!$E$20, '2. 2016 Continuity Schedule'!$A$20:$BV$20,0),FALSE)), 0, VLOOKUP($A78, '2. 2016 Continuity Schedule'!$A$20:$BV$109, MATCH('3. Appendix A'!$E$20, '2. 2016 Continuity Schedule'!$A$20:$BV$20,0),FALSE)) -> 0
A79: 53 | C79: =VLOOKUP(A79, '2. 2016 Continuity Schedule'!$A$24:$BV$107,3,FALSE) -> Smart Grid Capital Deferral Account | D79: =VLOOKUP(A79, '2. 2016 Continuity Schedule'!$A$24:$BV$107,4,FALSE) -> 1534 | E79: =IF(ISERROR(VLOOKUP($A79, '2. 2016 Continuity Schedule'!$A$20:$BV$109, MATCH('3. Appendix A'!$E$20, '2. 2016 Continuity Schedule'!$A$20:$BV$20,0),FALSE)), 0, VLOOKUP($A79, '2. 2016 Continuity Schedule'!$A$20:$BV$109, MATCH('3. Appendix A'!$E$20, '2. 2016 Continuity Schedule'!$A$20:$BV$20,0),FALSE)) -> 0
A80: 54 | C80: =VLOOKUP(A80, '2. 2016 Continuity Schedule'!$A$24:$BV$107,3,FALSE) -> Smart Grid OM&A Deferral Account | D80: =VLOOKUP(A80, '2. 2016 Continuity Schedule'!$A$24:$BV$107,4,FALSE) -> 1535 | E80: =IF(ISERROR(VLOOKUP($A80, '2. 2016 Continuity Schedule'!$A$20:$BV$109, MATCH('3. Appendix A'!$E$20, '2. 2016 Continuity Schedule'!$A$20:$BV$20,0),FALSE)), 0, VLOOKUP($A80, '2. 2016 Continuity Schedule'!$A$20:$BV$109, MATCH('3. Appendix A'!$E$20, '2. 2016 Continuity Schedule'!$A$20:$BV$20,0),FALSE)) -> 0
A81: 55 | C81: =VLOOKUP(A81, '2. 2016 Continuity Schedule'!$A$24:$BV$107,3,FALSE) -> Smart Grid Funding Adder Deferral Account | D81: =VLOOKUP(A81, '2. 2016 Continuity Schedule'!$A$24:$BV$107,4,FALSE) -> 1536 | E81: =IF(ISERROR(VLOOKUP($A81, '2. 2016 Continuity Schedule'!$A$20:$BV$109, MATCH('3. Appendix A'!$E$20, '2. 2016 Continuity Schedule'!$A$20:$BV$20,0),FALSE)), 0, VLOOKUP($A81, '2. 2016 Continuity Schedule'!$A$20:$BV$109, MATCH('3. Appendix A'!$E$20, '2. 2016 Continuity Schedule'!$A$20:$BV$20,0),FALSE)) -> 0
A82: 56 | C82: =VLOOKUP(A82, '2. 2016 Continuity Schedule'!$A$24:$BV$107,3,FALSE) -> Smart Meter Capital and Recovery Offset Variance - Sub-Account - Capital4 | D82: =VLOOKUP(A82, '2. 2016 Continuity Schedule'!$A$24:$BV$107,4,FALSE) -> 1555 | E82: =IF(ISERROR(VLOOKUP($A82, '2. 2016 Continuity Schedule'!$A$20:$BV$109, MATCH('3. Appendix A'!$E$20, '2. 2016 Continuity Schedule'!$A$20:$BV$20,0),FALSE)), 0, VLOOKUP($A82, '2. 2016 Continuity Schedule'!$A$20:$BV$109, MATCH('3. Appendix A'!$E$20, '2. 2016 Continuity Schedule'!$A$20:$BV$20,0),FALSE)) -> 0
A83: 57 | C83: =VLOOKUP(A83, '2. 2016 Continuity Schedule'!$A$24:$BV$107,3,FALSE) -> Smart Meter Capital and Recovery Offset Variance - Sub-Account - Recoveries4 | D83: =VLOOKUP(A83, '2. 2016 Continuity Schedule'!$A$24:$BV$107,4,FALSE) -> 1555 | E83: =IF(ISERROR(VLOOKUP($A83, '2. 2016 Continuity Schedule'!$A$20:$BV$109, MATCH('3. Appendix A'!$E$20, '2. 2016 Continuity Schedule'!$A$20:$BV$20,0),FALSE)), 0, VLOOKUP($A83, '2. 2016 Continuity Schedule'!$A$20:$BV$109, MATCH('3. Appendix A'!$E$20, '2. 2016 Continuity Schedule'!$A$20:$BV$20,0),FALSE)) -> 0
A84: 58 | C84: =VLOOKUP(A84, '2. 2016 Continuity Schedule'!$A$24:$BV$107,3,FALSE) -> Smart Meter Capital and Recovery Offset Variance - Sub-Account - Stranded Meter Costs4 | D84: =VLOOKUP(A84, '2. 2016 Continuity Schedule'!$A$24:$BV$107,4,FALSE) -> 1555 | E84: =IF(ISERROR(VLOOKUP($A84, '2. 2016 Continuity Schedule'!$A$20:$BV$109, MATCH('3. Appendix A'!$E$20, '2. 2016 Continuity Schedule'!$A$20:$BV$20,0),FALSE)), 0, VLOOKUP($A84, '2. 2016 Continuity Schedule'!$A$20:$BV$109, MATCH('3. Appendix A'!$E$20, '2. 2016 Continuity Schedule'!$A$20:$BV$20,0),FALSE)) -> 0
A85: 59 | C85: =VLOOKUP(A85, '2. 2016 Continuity Schedule'!$A$24:$BV$107,3,FALSE) -> Smart Meter OM&A Variance4 | D85: =VLOOKUP(A85, '2. 2016 Continuity Schedule'!$A$24:$BV$107,4,FALSE) -> 1556 | E85: =IF(ISERROR(VLOOKUP($A85, '2. 2016 Continuity Schedule'!$A$20:$BV$109, MATCH('3. Appendix A'!$E$20, '2. 2016 Continuity Schedule'!$A$20:$BV$20,0),FALSE)), 0, VLOOKUP($A85, '2. 2016 Continuity Schedule'!$A$20:$BV$109, MATCH('3. Appendix A'!$E$20, '2. 2016 Continuity Schedule'!$A$20:$BV$20,0),FALSE)) -> 0
A86: 60 | C86: =VLOOKUP(A86, '2. 2016 Continuity Schedule'!$A$24:$BV$107,3,FALSE) -> Meter Cost Deferral Account (MIST Meters)10 | D86: =VLOOKUP(A86, '2. 2016 Continuity Schedule'!$A$24:$BV$107,4,FALSE) -> 1557 | E86: =IF(ISERROR(VLOOKUP($A86, '2. 2016 Continuity Schedule'!$A$20:$BV$109, MATCH('3. Appendix A'!$E$20, '2. 2016 Continuity Schedule'!$A$20:$BV$20,0),FALSE)), 0, VLOOKUP($A86, '2. 2016 Continuity Schedule'!$A$20:$BV$109, MATCH('3. Appendix A'!$E$20, '2. 2016 Continuity Schedule'!$A$20:$BV$20,0),FALSE)) -> 0
A87: 61 | C87: =VLOOKUP(A87, '2. 2016 Continuity Schedule'!$A$24:$BV$107,3,FALSE) -> IFRS-CGAAP Transition PP&E Amounts Balance + Return Component5 | D87: =VLOOKUP(A87, '2. 2016 Continuity Schedule'!$A$24:$BV$107,4,FALSE) -> 1575 | E87: =IF(ISERROR(VLOOKUP($A87, '2. 2016 Continuity Schedule'!$A$20:$BV$109, MATCH('3. Appendix A'!$E$20, '2. 2016 Continuity Schedule'!$A$20:$BV$20,0),FALSE)), 0, VLOOKUP($A87, '2. 2016 Continuity Schedule'!$A$20:$BV$109, MATCH('3. Appendix A'!$E$20, '2. 2016 Continuity Schedule'!$A$20:$BV$20,0),FALSE)) -> 300614 | F87: Erie Thames mistakenly used account 1575 to record the Deferred IFRS Transition costs. They are now reported in account 1508. This difference is the same as account 1508,
A88: 62 | C88: =VLOOKUP(A88, '2. 2016 Continuity Schedule'!$A$24:$BV$107,3,FALSE) -> Accounting Changes Under CGAAP Balance + Return Component5 | D88: =VLOOKUP(A88, '2. 2016 Continuity Schedule'!$A$24:$BV$107,4,FALSE) -> 1576 | E88: =IF(ISERROR(VLOOKUP($A88, '2. 2016 Continuity Schedule'!$A$20:$BV$109, MATCH('3. Appendix A'!$E$20, '2. 2016 Continuity Schedule'!$A$20:$BV$20,0),FALSE)), 0, VLOOKUP($A88, '2. 2016 Continuity Schedule'!$A$20:$BV$109, MATCH('3. Appendix A'!$E$20, '2. 2016 Continuity Schedule'!$A$20:$BV$20,0),FALSE)) -> 73173

Sheet 4. Billing Determinants
B16: In the green shaded cells, enter the data related to the proposed load forecast. Do not enter data for the MicroFit class.
E18: A | G18: B | J18: C | L18: D=A-C | O18: E | S18: F =B-C-E (deduct E if applicable)
B19: Rate Class (Enter Rate Classes in cells below as they appear on your current tariff of rates and charges) | C19: Units | D19: # of Customers | E19: Total Metered kWh 4 | F19: Total Metered kW 4 | G19: Metered kWh for Non-RPP Customers 4, 5 | H19: Metered kW for Non-RPP Customers 4, 5 | I19: Distribution Revenue | J19: Metered kWh for Wholesale Market Participants (WMP) 4 | K19: Metered kW for Wholesale Market Participants (WMP) 4 | L19: Total Metered kWh less WMP consumption (if applicable) | M19: Total Metered kW less WMP consumption (if applicable) | N19: GA Allocator for Class A, Non-WMP Customers (if applicable)2 | O19: Total Metered 2016 kWh for Class A Customers that were Class A for the entire period the GA balance accumulated | P19: Total Metered 2016 kWh for Customers that Transitioned Between Class A and B during the period the GA balance accumulated | R19: Metered kW Consumption for New Class A customer(s) in the period prior to becoming Class A (i.e. Jan. 1 - June 30, 2015) | S19: Non-RPP Metered Consumption for Current Class B Customers (Non-RPP Consumption excluding WMP, Class A and Transition Customers' Consumption | T19: Total Metered kW for Non-RPP Customers less WMP and Class A Consumption | U19: 1595 Recovery Share Proportion (2009) 1 | V19: 1595 Recovery Share Proportion (2010) 1 | W19: 1595 Recovery Share Proportion (2011) 1 | X19: 1595 Recovery Share Proportion (2012) 1 | Y19: 1595 Recovery Share Proportion (2013) 1 | Z19: 1595 Recovery Share Proportion (2014) 1 | AA19: 1595 Recovery Share Proportion (2015) 1 | AB19: 1595 Recovery Share Proportion (2016) 1 | AC19: 1568 LRAM Variance Account Class Allocation3 ($ amounts) | AD19: Number of Customers for Residential and GS<50 classes2
B21: RESIDENTIAL SERVICE CLASSIFICATION | C21: kWh | D21: 17119 | E21: 135812999 | G21: 12783746.7 | I21: 6986214.38 | L21: =E21-J21 -> 135812999 | M21: =F21-K21 -> 0 | O21: =SUM(IF('5.1 Class A Consumption Data'!$D$492:$D$791=B21,'5.1 Class A Consumption Data'!$F$492:$F$791)) -> 0 | P21: =SUM(IF('5.1 Class A Consumption Data'!$D$30:$D$479=B21,'5.1 Class A Consumption Data'!$F$30:$G$479)) -> 0 | Q21: =L21-O21-P21 -> 135812999 | S21: =IF(OR(G21=0, ISBLANK(G21)), 0, G21-J21-O21-P21) -> 12783746.7 | T21: =IF(OR(H21=0, ISBLANK(H21)), 0, H21-K21-P21-R21) -> 0 | X21: 0.3259 | Z21: 0.32 | AA21: 0.32 | AC21: 95870 | AD21: 17119
B22: GENERAL SERVICE LESS THAN 50 KW SERVICE CLASSIFICATION | C22: kWh | D22: 2018 | E22: 47996002 | G22: 12698561 | I22: 1275038.48 | L22: =E22-J22 -> 47996002 | M22: =F22-K22 -> 0 | O22: =SUM(IF('5.1 Class A Consumption Data'!$D$492:$D$791=B22,'5.1 Class A Consumption Data'!$F$492:$F$791)) -> 0 | P22: =SUM(IF('5.1 Class A Consumption Data'!$D$30:$D$479=B22,'5.1 Class A Consumption Data'!$F$30:$G$479)) -> 0 | Q22: =L22-O22-P22 -> 47996002 | S22: =IF(OR(G22=0, ISBLANK(G22)), 0, G22-J22-O22-P22) -> 12698561 | T22: =IF(OR(H22=0, ISBLANK(H22)), 0, H22-K22-P22-R22) -> 0 | X22: 0.1009 | Z22: 0.11 | AA22: 0.11 | AC22: 89790 | AD22: 2019
B23: GENERAL SERVICE 50 TO 999 KW SERVICE CLASSIFICATION | C23: kW | D23: 155 | E23: 111817487 | F23: 272809.7 | G23: 58400127 | H23: 138356 | I23: 812154.69 | L23: 111817487 | M23: 272809.7 | O23: =SUM(IF('5.1 Class A Consumption Data'!$D$492:$D$791=B23,'5.1 Class A Consumption Data'!$F$492:$F$791)) -> 0 | P23: =SUM(IF('5.1 Class A Consumption Data'!$D$30:$D$479=B23,'5.1 Class A Consumption Data'!$F$30:$G$479)) -> 0 | Q23: 111817487 | S23: 58400127 | T23: 138356 | X23: 0.0764 | Z23: 0.17 | AA23: 0.17 | AC23: 45371
B24: GENERAL SERVICE 1,000 TO 4,999 KW SERVICE CLASSIFICATION | C24: kW | D24: 4 | E24: 56559248 | F24: 197271 | G24: 56559248 | H24: 197271 | I24: 501055.39 | L24: 56559248 | M24: 197271 | O24: =SUM(IF('5.1 Class A Consumption Data'!$D$492:$D$791=B24,'5.1 Class A Consumption Data'!$F$492:$F$791)) -> 0 | P24: =SUM(IF('5.1 Class A Consumption Data'!$D$30:$D$479=B24,'5.1 Class A Consumption Data'!$F$30:$G$479)) -> 0 | Q24: 56559248 | S24: 56559248 | T24: 197271 | X24: 0.1882 | Z24: 0.15 | AA24: 0.15 | AC24: 132174
B25: LARGE USE SERVICE CLASSIFICATION | C25: kW | D25: 1 | E25: 107399719 | F25: 177134 | G25: 107399719 | H25: 177134 | I25: 249625.65 | L25: 107399719 | M25: 177134 | N25: 0 | O25: =SUM(IF('5.1 Class A Consumption Data'!$D$492:$D$791=B25,'5.1 Class A Consumption Data'!$F$492:$F$791)) -> 107399719 | P25: =SUM(IF('5.1 Class A Consumption Data'!$D$30:$D$479=B25,'5.1 Class A Consumption Data'!$F$30:$G$479)) -> 0 | Q25: 0 | S25: 0 | T25: 177134 | X25: 0.2505 | Z25: 0.21 | AA25: 0.21 | AC25: 102551
B26: UNMETERED SCATTERED LOAD SERVICE CLASSIFICATION | C26: kW | D26: 130 | E26: 514359 | G26: 54758 | I26: 45132.63 | L26: 514359 | M26: 0 | N26: 0 | O26: =SUM(IF('5.1 Class A Consumption Data'!$D$492:$D$791=B26,'5.1 Class A Consumption Data'!$F$492:$F$791)) -> 0 | P26: =SUM(IF('5.1 Class A Consumption Data'!$D$30:$D$479=B26,'5.1 Class A Consumption Data'!$F$30:$G$479)) -> 0 | Q26: 514359 | S26: 54758 | T26: 0 | X26: 0.0014 | Z26: 0 | AA26: 0 | AC26: -2773
B27: SENTINEL LIGHTING SERVICE CLASSIFICATION | C27: kW | D27: 238 | E27: 220513.5 | F27: 0 | G27: 31202 | I27: 46128.41 | L27: 220513.5 | M27: 0 | O27: =SUM(IF('5.1 Class A Consumption Data'!$D$492:$D$791=B27,'5.1 Class A Consumption Data'!$F$492:$F$791)) -> 0 | P27: =SUM(IF('5.1 Class A Consumption Data'!$D$30:$D$479=B27,'5.1 Class A Consumption Data'!$F$30:$G$479)) -> 0 | Q27: 220513.5 | S27: 31202 | T27: 0 | X27: 0.0006 | Z27: 0 | AA27: 0 | AC27: 402
B28: STREET LIGHTING SERVICE CLASSIFICATION | C28: kW | D28: 6070 | E28: 1928543 | F28: 5395 | G28: 1290090 | H28: 3774.8 | I28: 287341.63 | L28: 1928543 | M28: 5395 | O28: =SUM(IF('5.1 Class A Consumption Data'!$D$492:$D$791=B28,'5.1 Class A Consumption Data'!$F$492:$F$791)) -> 0 | P28: =SUM(IF('5.1 Class A Consumption Data'!$D$30:$D$479=B28,'5.1 Class A Consumption Data'!$F$30:$G$479)) -> 0 | Q28: 1928543 | S28: 1290090 | T28: 3774.8 | X28: 0.0085 | Z28: 0.01 | AA28: 0.01 | AC28: -102705
B29: EMBEDDED DISTRIBUTOR SERVICE CLASSIFICATION | C29: kW | D29: 4 | E29: 16022325 | F29: 36389 | G29: 16022325 | H29: 36389 | I29: 131369.25 | L29: 16022325 | M29: 36389 | O29: =SUM(IF('5.1 Class A Consumption Data'!$D$492:$D$791=B29,'5.1 Class A Consumption Data'!$F$492:$F$791)) -> 0 | P29: =SUM(IF('5.1 Class A Consumption Data'!$D$30:$D$479=B29,'5.1 Class A Consumption Data'!$F$30:$G$479)) -> 0 | Q29: 16022325 | S29: 16022325 | T29: 36389 | X29: 0.0475 | Z29: 0.04 | AA29: 0.04 | AC29: -1180
L30: 0 | M30: 0 | O30: =SUM(IF('5.1 Class A Consumption Data'!$D$492:$D$791=B30,'5.1 Class A Consumption Data'!$F$492:$F$791)) -> 0 | P30: =SUM(IF('5.1 Class A Consumption Data'!$D$30:$D$479=B30,'5.1 Class A Consumption Data'!$F$30:$G$479)) -> 0 | Q30: 0 | S30: 0 | T30: 0
L31: 0 | M31: 0 | O31: =SUM(IF('5.1 Class A Consumption Data'!$D$492:$D$791=B31,'5.1 Class A Consumption Data'!$F$492:$F$791)) -> 0 | P31: =SUM(IF('5.1 Class A Consumption Data'!$D$30:$D$479=B31,'5.1 Class A Consumption Data'!$F$30:$G$479)) -> 0 | Q31: 0 | S31: 0 | T31: 0
L32: 0 | M32: 0 | O32: =SUM(IF('5.1 Class A Consumption Data'!$D$492:$D$791=B32,'5.1 Class A Consumption Data'!$F$492:$F$791)) -> 0 | P32: =SUM(IF('5.1 Class A Consumption Data'!$D$30:$D$479=B32,'5.1 Class A Consumption Data'!$F$30:$G$479)) -> 0 | Q32: 0 | S32: 0 | T32: 0
L33: 0 | M33: 0 | O33: =SUM(IF('5.1 Class A Consumption Data'!$D$492:$D$791=B33,'5.1 Class A Consumption Data'!$F$492:$F$791)) -> 0 | P33: =SUM(IF('5.1 Class A Consumption Data'!$D$30:$D$479=B33,'5.1 Class A Consumption Data'!$F$30:$G$479)) -> 0 | Q33: 0 | S33: 0 | T33: 0
L34: 0 | M34: 0 | O34: =SUM(IF('5.1 Class A Consumption Data'!$D$492:$D$791=B34,'5.1 Class A Consumption Data'!$F$492:$F$791)) -> 0 | P34: =SUM(IF('5.1 Class A Consumption Data'!$D$30:$D$479=B34,'5.1 Class A Consumption Data'!$F$30:$G$479)) -> 0 | Q34: 0 | S34: 0 | T34: 0
L35: 0 | M35: 0 | O35: =SUM(IF('5.1 Class A Consumption Data'!$D$492:$D$791=B35,'5.1 Class A Consumption Data'!$F$492:$F$791)) -> 0 | P35: =SUM(IF('5.1 Class A Consumption Data'!$D$30:$D$479=B35,'5.1 Class A Consumption Data'!$F$30:$G$479)) -> 0 | Q35: 0 | S35: 0 | T35: 0
L36: 0 | M36: 0 | O36: =SUM(IF('5.1 Class A Consumption Data'!$D$492:$D$791=B36,'5.1 Class A Consumption Data'!$F$492:$F$791)) -> 0 | P36: =SUM(IF('5.1 Class A Consumption Data'!$D$30:$D$479=B36,'5.1 Class A Consumption Data'!$F$30:$G$479)) -> 0 | Q36: 0 | S36: 0 | T36: 0
L37: 0 | M37: 0 | O37: =SUM(IF('5.1 Class A Consumption Data'!$D$492:$D$791=B37,'5.1 Class A Consumption Data'!$F$492:$F$791)) -> 0 | P37: =SUM(IF('5.1 Class A Consumption Data'!$D$30:$D$479=B37,'5.1 Class A Consumption Data'!$F$30:$G$479)) -> 0 | Q37: 0 | S37: 0 | T37: 0
L38: 0 | M38: 0 | O38: =SUM(IF('5.1 Class A Consumption Data'!$D$492:$D$791=B38,'5.1 Class A Consumption Data'!$F$492:$F$791)) -> 0 | P38: =SUM(IF('5.1 Class A Consumption Data'!$D$30:$D$479=B38,'5.1 Class A Consumption Data'!$F$30:$G$479)) -> 0 | Q38: 0 | S38: 0 | T38: 0
L39: 0 | M39: 0 | O39: =SUM(IF('5.1 Class A Consumption Data'!$D$492:$D$791=B39,'5.1 Class A Consumption Data'!$F$492:$F$791)) -> 0 | P39: =SUM(IF('5.1 Class A Consumption Data'!$D$30:$D$479=B39,'5.1 Class A Consumption Data'!$F$30:$G$479)) -> 0 | Q39: 0 | S39: 0 | T39: 0
L40: 0 | M40: 0 | O40: =SUM(IF('5.1 Class A Consumption Data'!$D$492:$D$791=B40,'5.1 Class A Consumption Data'!$F$492:$F$791)) -> 0 | P40: =SUM(IF('5.1 Class A Consumption Data'!$D$30:$D$479=B40,'5.1 Class A Consumption Data'!$F$30:$G$479)) -> 0 | Q40: 0 | S40: 0 | T40: 0
B41: Total | D41: =SUM(D21:D40) -> 25739 | E41: 478271195.5 | F41: 688998.7 | G41: 265239776.7 | H41: 552924.8 | I41: 10334060.51 | J41: 0 | K41: =SUM(K21:K40) -> 0 | L41: 478271195.5 | M41: 688998.7 | N41: 0 | O41: 107399719 | P41: 0 | Q41: 370871476.5 | S41: 157840057.7 | T41: =SUM(T21:T40) -> 552924.8 | U41: 0 | V41: 0 | W41: 0 | X41: 0.9999 | Y41: 0 | Z41: 1.01 | AA41: =SUM(AA21:AA40) -> 1.01 | AB41: =SUM(AB21:AB40) -> 0 | AC41: =SUM(AC21:AC40) -> 359500
AB42: Balance as per Sheet 2 | AC42: ='2. 2016 Continuity Schedule'!BT88 -> 364609.29
AB43: Variance | AC43: =AC41-AC42 -> -5109.29
A47: 1 Account 1595 sub-accounts are to be allocated to rate classes in proportion to the recovery share as established when rate riders were implemented.
A49: 2 The proportion of customers for the Residential and GS<50 Classes will be used to allocate Account 1551.
A51: 3 Input the allocation as determined in the LRAMVA model. The associated rate riders will be calculated in the EDDVAR model.
A53: 4 Data inputted should equal that reported in RRR 2.1.5.4
A55: 5 If a distributor uses the actual GA price to bill non-RPP Class B customers for an entire rate class, it must exclude these customers from the allocation of the GA balance and the calculation of the resulting rate riders. These rate classes are not to be charged/refunded the general GA rate rider as they did not contribute to the GA balance. If this is the case, this must be noted in the evidence and the proposed allocation methodology must be explained.

Sheet 5. Allocation of Balances
AA1: 21
AA2: 22
A4: 1 | D4: Amounts from Sheet 2 | E4: Allocator | F4: =IF(LEN(TRIM('4. Billing Determinants'!$B21))=0, "", UPPER('4. Billing Determinants'!$B21)) -> RESIDENTIAL SERVICE CLASSIFICATION | G4: =IF(LEN(TRIM('4. Billing Determinants'!$B22))=0, "", '4. Billing Determinants'!$B22) -> GENERAL SERVICE LESS THAN 50 KW SERVICE CLASSIFICATION | H4: =IF(LEN(TRIM('4. Billing Determinants'!$B23))=0, "", '4. Billing Determinants'!$B23) -> GENERAL SERVICE 50 TO 999 KW SERVICE CLASSIFICATION | I4: =IF(LEN(TRIM('4. Billing Determinants'!$B24))=0, "", '4. Billing Determinants'!$B24) -> GENERAL SERVICE 1,000 TO 4,999 KW SERVICE CLASSIFICATION | J4: =IF(LEN(TRIM('4. Billing Determinants'!$B25))=0, "", '4. Billing Determinants'!$B25) -> LARGE USE SERVICE CLASSIFICATION | K4: =IF(LEN(TRIM('4. Billing Determinants'!$B26))=0, "", '4. Billing Determinants'!$B26) -> UNMETERED SCATTERED LOAD SERVICE CLASSIFICATION | L4: =IF(LEN(TRIM('4. Billing Determinants'!$B27))=0, "", '4. Billing Determinants'!$B27) -> SENTINEL LIGHTING SERVICE CLASSIFICATION | M4: =IF(LEN(TRIM('4. Billing Determinants'!$B28))=0, "", '4. Billing Determinants'!$B28) -> STREET LIGHTING SERVICE CLASSIFICATION | N4: =IF(LEN(TRIM('4. Billing Determinants'!$B29))=0, "", '4. Billing Determinants'!$B29) -> EMBEDDED DISTRIBUTOR SERVICE CLASSIFICATION | O4: =IF(LEN(TRIM('4. Billing Determinants'!$B30))=0, "", '4. Billing Determinants'!$B30) ->  | P4: =IF(LEN(TRIM('4. Billing Determinants'!$B31))=0, "", '4. Billing Determinants'!$B31) ->  | Q4: =IF(LEN(TRIM('4. Billing Determinants'!$B32))=0, "", '4. Billing Determinants'!$B32) ->  | R4: =IF(LEN(TRIM('4. Billing Determinants'!$B33))=0, "", '4. Billing Determinants'!$B33) ->  | S4: =IF(LEN(TRIM('4. Billing Determinants'!$B34))=0, "", '4. Billing Determinants'!$B34) ->  | T4: =IF(LEN(TRIM('4. Billing Determinants'!$B35))=0, "", '4. Billing Determinants'!$B35) ->  | U4: =IF(LEN(TRIM('4. Billing Determinants'!$B36))=0, "", '4. Billing Determinants'!$B36) ->  | V4: =IF(LEN(TRIM('4. Billing Determinants'!$B37))=0, "", '4. Billing Determinants'!$B37) ->  | W4: =IF(LEN(TRIM('4. Billing Determinants'!$B38))=0, "", '4. Billing Determinants'!$B38) ->  | X4: =IF(LEN(TRIM('4. Billing Determinants'!$B39))=0, "", '4. Billing Determinants'!$B39) ->  | Y4: =IF(LEN(TRIM('4. Billing Determinants'!$B40))=0, "", '4. Billing Determinants'!$B40) -> 
A5: 2 | B5: LV Variance Account | C5: 1550 | D5: ='2. 2016 Continuity Schedule'!BT24 -> 1374397 | E5: kWh | F5: =IFERROR(IF(F$4="",0,IF($E5="kWh",VLOOKUP(F$4,'4. Billing Determinants'!$B$19:$R$41,4,0)/'4. Billing Determinants'!$E$41*$D5,IF($E5="kW",VLOOKUP(F$4,'4. Billing Determinants'!$B$19:$R$41,5,0)/'4. Billing Determinants'!$F$41*$D5,IF($E5="Non-RPP kWh",VLOOKUP(F$4,'4. Billing Determinants'!$B$19:$R$41,6,0)/'4. Billing Determinants'!$G$41*$D5,IF($E5="Distribution Rev.",VLOOKUP(F$4,'4. Billing Determinants'!$B$19:$R$41,8,0)/'4. Billing Determinants'!$I$41*$D5, VLOOKUP(F$4,'4. Billing Determinants'!$B$19:$R$41,3,0)/'4. Billing Determinants'!$D$41*$D5))))),0) -> 390282.7102 | G5: =IFERROR(IF(G$4="",0,IF($E5="kWh",VLOOKUP(G$4,'4. Billing Determinants'!$B$19:$R$41,4,0)/'4. Billing Determinants'!$E$41*$D5,IF($E5="kW",VLOOKUP(G$4,'4. Billing Determinants'!$B$19:$R$41,5,0)/'4. Billing Determinants'!$F$41*$D5,IF($E5="Non-RPP kWh",VLOOKUP(G$4,'4. Billing Determinants'!$B$19:$R$41,6,0)/'4. Billing Determinants'!$G$41*$D5,IF($E5="Distribution Rev.",VLOOKUP(G$4,'4. Billing Determinants'!$B$19:$R$41,8,0)/'4. Billing Determinants'!$I$41*$D5, VLOOKUP(G$4,'4. Billing Determinants'!$B$19:$R$41,3,0)/'4. Billing Determinants'!$D$41*$D5))))),0) -> 137925.0136 | H5: =IFERROR(IF(H$4="",0,IF($E5="kWh",VLOOKUP(H$4,'4. Billing Determinants'!$B$19:$R$41,4,0)/'4. Billing Determinants'!$E$41*$D5,IF($E5="kW",VLOOKUP(H$4,'4. Billing Determinants'!$B$19:$R$41,5,0)/'4. Billing Determinants'!$F$41*$D5,IF($E5="Non-RPP kWh",VLOOKUP(H$4,'4. Billing Determinants'!$B$19:$R$41,6,0)/'4. Billing Determinants'!$G$41*$D5,IF($E5="Distribution Rev.",VLOOKUP(H$4,'4. Billing Determinants'!$B$19:$R$41,8,0)/'4. Billing Determinants'!$I$41*$D5, VLOOKUP(H$4,'4. Billing Determinants'!$B$19:$R$41,3,0)/'4. Billing Determinants'!$D$41*$D5))))),0) -> 321327.356 | I5: =IFERROR(IF(I$4="",0,IF($E5="kWh",VLOOKUP(I$4,'4. Billing Determinants'!$B$19:$R$41,4,0)/'4. Billing Determinants'!$E$41*$D5,IF($E5="kW",VLOOKUP(I$4,'4. Billing Determinants'!$B$19:$R$41,5,0)/'4. Billing Determinants'!$F$41*$D5,IF($E5="Non-RPP kWh",VLOOKUP(I$4,'4. Billing Determinants'!$B$19:$R$41,6,0)/'4. Billing Determinants'!$G$41*$D5,IF($E5="Distribution Rev.",VLOOKUP(I$4,'4. Billing Determinants'!$B$19:$R$41,8,0)/'4. Billing Determinants'!$I$41*$D5, VLOOKUP(I$4,'4. Billing Determinants'!$B$19:$R$41,3,0)/'4. Billing Determinants'!$D$41*$D5))))),0) -> 162533.0179 | J5: =IFERROR(IF(J$4="",0,IF($E5="kWh",VLOOKUP(J$4,'4. Billing Determinants'!$B$19:$R$41,4,0)/'4. Billing Determinants'!$E$41*$D5,IF($E5="kW",VLOOKUP(J$4,'4. Billing Determinants'!$B$19:$R$41,5,0)/'4. Billing Determinants'!$F$41*$D5,IF($E5="Non-RPP kWh",VLOOKUP(J$4,'4. Billing Determinants'!$B$19:$R$41,6,0)/'4. Billing Determinants'!$G$41*$D5,IF($E5="Distribution Rev.",VLOOKUP(J$4,'4. Billing Determinants'!$B$19:$R$41,8,0)/'4. Billing Determinants'!$I$41*$D5, VLOOKUP(J$4,'4. Billing Determinants'!$B$19:$R$41,3,0)/'4. Billing Determinants'!$D$41*$D5))))),0) -> 308632.1171 | K5: =IFERROR(IF(K$4="",0,IF($E5="kWh",VLOOKUP(K$4,'4. Billing Determinants'!$B$19:$R$41,4,0)/'4. Billing Determinants'!$E$41*$D5,IF($E5="kW",VLOOKUP(K$4,'4. Billing Determinants'!$B$19:$R$41,5,0)/'4. Billing Determinants'!$F$41*$D5,IF($E5="Non-RPP kWh",VLOOKUP(K$4,'4. Billing Determinants'!$B$19:$R$41,6,0)/'4. Billing Determinants'!$G$41*$D5,IF($E5="Distribution Rev.",VLOOKUP(K$4,'4. Billing Determinants'!$B$19:$R$41,8,0)/'4. Billing Determinants'!$I$41*$D5, VLOOKUP(K$4,'4. Billing Determinants'!$B$19:$R$41,3,0)/'4. Billing Determinants'!$D$41*$D5))))),0) -> 1478.101699 | L5: =IFERROR(IF(L$4="",0,IF($E5="kWh",VLOOKUP(L$4,'4. Billing Determinants'!$B$19:$R$41,4,0)/'4. Billing Determinants'!$E$41*$D5,IF($E5="kW",VLOOKUP(L$4,'4. Billing Determinants'!$B$19:$R$41,5,0)/'4. Billing Determinants'!$F$41*$D5,IF($E5="Non-RPP kWh",VLOOKUP(L$4,'4. Billing Determinants'!$B$19:$R$41,6,0)/'4. Billing Determinants'!$G$41*$D5,IF($E5="Distribution Rev.",VLOOKUP(L$4,'4. Billing Determinants'!$B$19:$R$41,8,0)/'4. Billing Determinants'!$I$41*$D5, VLOOKUP(L$4,'4. Billing Determinants'!$B$19:$R$41,3,0)/'4. Billing Determinants'!$D$41*$D5))))),0) -> 633.6846034 | M5: =IFERROR(IF(M$4="",0,IF($E5="kWh",VLOOKUP(M$4,'4. Billing Determinants'!$B$19:$R$41,4,0)/'4. Billing Determinants'!$E$41*$D5,IF($E5="kW",VLOOKUP(M$4,'4. Billing Determinants'!$B$19:$R$41,5,0)/'4. Billing Determinants'!$F$41*$D5,IF($E5="Non-RPP kWh",VLOOKUP(M$4,'4. Billing Determinants'!$B$19:$R$41,6,0)/'4. Billing Determinants'!$G$41*$D5,IF($E5="Distribution Rev.",VLOOKUP(M$4,'4. Billing Determinants'!$B$19:$R$41,8,0)/'4. Billing Determinants'!$I$41*$D5, VLOOKUP(M$4,'4. Billing Determinants'!$B$19:$R$41,3,0)/'4. Billing Determinants'!$D$41*$D5))))),0) -> 5542.009928 | N5: =IFERROR(IF(N$4="",0,IF($E5="kWh",VLOOKUP(N$4,'4. Billing Determinants'!$B$19:$R$41,4,0)/'4. Billing Determinants'!$E$41*$D5,IF($E5="kW",VLOOKUP(N$4,'4. Billing Determinants'!$B$19:$R$41,5,0)/'4. Billing Determinants'!$F$41*$D5,IF($E5="Non-RPP kWh",VLOOKUP(N$4,'4. Billing Determinants'!$B$19:$R$41,6,0)/'4. Billing Determinants'!$G$41*$D5,IF($E5="Distribution Rev.",VLOOKUP(N$4,'4. Billing Determinants'!$B$19:$R$41,8,0)/'4. Billing Determinants'!$I$41*$D5, VLOOKUP(N$4,'4. Billing Determinants'!$B$19:$R$41,3,0)/'4. Billing Determinants'!$D$41*$D5))))),0) -> 46042.98904 | O5: =IFERROR(IF(O$4="",0,IF($E5="kWh",VLOOKUP(O$4,'4. Billing Determinants'!$B$19:$R$41,4,0)/'4. Billing Determinants'!$E$41*$D5,IF($E5="kW",VLOOKUP(O$4,'4. Billing Determinants'!$B$19:$R$41,5,0)/'4. Billing Determinants'!$F$41*$D5,IF($E5="Non-RPP kWh",VLOOKUP(O$4,'4. Billing Determinants'!$B$19:$R$41,6,0)/'4. Billing Determinants'!$G$41*$D5,IF($E5="Distribution Rev.",VLOOKUP(O$4,'4. Billing Determinants'!$B$19:$R$41,8,0)/'4. Billing Determinants'!$I$41*$D5, VLOOKUP(O$4,'4. Billing Determinants'!$B$19:$R$41,3,0)/'4. Billing Determinants'!$D$41*$D5))))),0) -> 0 | P5: =IFERROR(IF(P$4="",0,IF($E5="kWh",VLOOKUP(P$4,'4. Billing Determinants'!$B$19:$R$41,4,0)/'4. Billing Determinants'!$E$41*$D5,IF($E5="kW",VLOOKUP(P$4,'4. Billing Determinants'!$B$19:$R$41,5,0)/'4. Billing Determinants'!$F$41*$D5,IF($E5="Non-RPP kWh",VLOOKUP(P$4,'4. Billing Determinants'!$B$19:$R$41,6,0)/'4. Billing Determinants'!$G$41*$D5,IF($E5="Distribution Rev.",VLOOKUP(P$4,'4. Billing Determinants'!$B$19:$R$41,8,0)/'4. Billing Determinants'!$I$41*$D5, VLOOKUP(P$4,'4. Billing Determinants'!$B$19:$R$41,3,0)/'4. Billing Determinants'!$D$41*$D5))))),0) -> 0 | Q5: =IFERROR(IF(Q$4="",0,IF($E5="kWh",VLOOKUP(Q$4,'4. Billing Determinants'!$B$19:$R$41,4,0)/'4. Billing Determinants'!$E$41*$D5,IF($E5="kW",VLOOKUP(Q$4,'4. Billing Determinants'!$B$19:$R$41,5,0)/'4. Billing Determinants'!$F$41*$D5,IF($E5="Non-RPP kWh",VLOOKUP(Q$4,'4. Billing Determinants'!$B$19:$R$41,6,0)/'4. Billing Determinants'!$G$41*$D5,IF($E5="Distribution Rev.",VLOOKUP(Q$4,'4. Billing Determinants'!$B$19:$R$41,8,0)/'4. Billing Determinants'!$I$41*$D5, VLOOKUP(Q$4,'4. Billing Determinants'!$B$19:$R$41,3,0)/'4. Billing Determinants'!$D$41*$D5))))),0) -> 0 | R5: =IFERROR(IF(R$4="",0,IF($E5="kWh",VLOOKUP(R$4,'4. Billing Determinants'!$B$19:$R$41,4,0)/'4. Billing Determinants'!$E$41*$D5,IF($E5="kW",VLOOKUP(R$4,'4. Billing Determinants'!$B$19:$R$41,5,0)/'4. Billing Determinants'!$F$41*$D5,IF($E5="Non-RPP kWh",VLOOKUP(R$4,'4. Billing Determinants'!$B$19:$R$41,6,0)/'4. Billing Determinants'!$G$41*$D5,IF($E5="Distribution Rev.",VLOOKUP(R$4,'4. Billing Determinants'!$B$19:$R$41,8,0)/'4. Billing Determinants'!$I$41*$D5, VLOOKUP(R$4,'4. Billing Determinants'!$B$19:$R$41,3,0)/'4. Billing Determinants'!$D$41*$D5))))),0) -> 0 | S5: =IFERROR(IF(S$4="",0,IF($E5="kWh",VLOOKUP(S$4,'4. Billing Determinants'!$B$19:$R$41,4,0)/'4. Billing Determinants'!$E$41*$D5,IF($E5="kW",VLOOKUP(S$4,'4. Billing Determinants'!$B$19:$R$41,5,0)/'4. Billing Determinants'!$F$41*$D5,IF($E5="Non-RPP kWh",VLOOKUP(S$4,'4. Billing Determinants'!$B$19:$R$41,6,0)/'4. Billing Determinants'!$G$41*$D5,IF($E5="Distribution Rev.",VLOOKUP(S$4,'4. Billing Determinants'!$B$19:$R$41,8,0)/'4. Billing Determinants'!$I$41*$D5, VLOOKUP(S$4,'4. Billing Determinants'!$B$19:$R$41,3,0)/'4. Billing Determinants'!$D$41*$D5))))),0) -> 0 | T5: =IFERROR(IF(T$4="",0,IF($E5="kWh",VLOOKUP(T$4,'4. Billing Determinants'!$B$19:$R$41,4,0)/'4. Billing Determinants'!$E$41*$D5,IF($E5="kW",VLOOKUP(T$4,'4. Billing Determinants'!$B$19:$R$41,5,0)/'4. Billing Determinants'!$F$41*$D5,IF($E5="Non-RPP kWh",VLOOKUP(T$4,'4. Billing Determinants'!$B$19:$R$41,6,0)/'4. Billing Determinants'!$G$41*$D5,IF($E5="Distribution Rev.",VLOOKUP(T$4,'4. Billing Determinants'!$B$19:$R$41,8,0)/'4. Billing Determinants'!$I$41*$D5, VLOOKUP(T$4,'4. Billing Determinants'!$B$19:$R$41,3,0)/'4. Billing Determinants'!$D$41*$D5))))),0) -> 0 | U5: =IFERROR(IF(U$4="",0,IF($E5="kWh",VLOOKUP(U$4,'4. Billing Determinants'!$B$19:$R$41,4,0)/'4. Billing Determinants'!$E$41*$D5,IF($E5="kW",VLOOKUP(U$4,'4. Billing Determinants'!$B$19:$R$41,5,0)/'4. Billing Determinants'!$F$41*$D5,IF($E5="Non-RPP kWh",VLOOKUP(U$4,'4. Billing Determinants'!$B$19:$R$41,6,0)/'4. Billing Determinants'!$G$41*$D5,IF($E5="Distribution Rev.",VLOOKUP(U$4,'4. Billing Determinants'!$B$19:$R$41,8,0)/'4. Billing Determinants'!$I$41*$D5, VLOOKUP(U$4,'4. Billing Determinants'!$B$19:$R$41,3,0)/'4. Billing Determinants'!$D$41*$D5))))),0) -> 0 | V5: =IFERROR(IF(V$4="",0,IF($E5="kWh",VLOOKUP(V$4,'4. Billing Determinants'!$B$19:$R$41,4,0)/'4. Billing Determinants'!$E$41*$D5,IF($E5="kW",VLOOKUP(V$4,'4. Billing Determinants'!$B$19:$R$41,5,0)/'4. Billing Determinants'!$F$41*$D5,IF($E5="Non-RPP kWh",VLOOKUP(V$4,'4. Billing Determinants'!$B$19:$R$41,6,0)/'4. Billing Determinants'!$G$41*$D5,IF($E5="Distribution Rev.",VLOOKUP(V$4,'4. Billing Determinants'!$B$19:$R$41,8,0)/'4. Billing Determinants'!$I$41*$D5, VLOOKUP(V$4,'4. Billing Determinants'!$B$19:$R$41,3,0)/'4. Billing Determinants'!$D$41*$D5))))),0) -> 0 | W5: =IFERROR(IF(W$4="",0,IF($E5="kWh",VLOOKUP(W$4,'4. Billing Determinants'!$B$19:$R$41,4,0)/'4. Billing Determinants'!$E$41*$D5,IF($E5="kW",VLOOKUP(W$4,'4. Billing Determinants'!$B$19:$R$41,5,0)/'4. Billing Determinants'!$F$41*$D5,IF($E5="Non-RPP kWh",VLOOKUP(W$4,'4. Billing Determinants'!$B$19:$R$41,6,0)/'4. Billing Determinants'!$G$41*$D5,IF($E5="Distribution Rev.",VLOOKUP(W$4,'4. Billing Determinants'!$B$19:$R$41,8,0)/'4. Billing Determinants'!$I$41*$D5, VLOOKUP(W$4,'4. Billing Determinants'!$B$19:$R$41,3,0)/'4. Billing Determinants'!$D$41*$D5))))),0) -> 0 | X5: =IFERROR(IF(X$4="",0,IF($E5="kWh",VLOOKUP(X$4,'4. Billing Determinants'!$B$19:$R$41,4,0)/'4. Billing Determinants'!$E$41*$D5,IF($E5="kW",VLOOKUP(X$4,'4. Billing Determinants'!$B$19:$R$41,5,0)/'4. Billing Determinants'!$F$41*$D5,IF($E5="Non-RPP kWh",VLOOKUP(X$4,'4. Billing Determinants'!$B$19:$R$41,6,0)/'4. Billing Determinants'!$G$41*$D5,IF($E5="Distribution Rev.",VLOOKUP(X$4,'4. Billing Determinants'!$B$19:$R$41,8,0)/'4. Billing Determinants'!$I$41*$D5, VLOOKUP(X$4,'4. Billing Determinants'!$B$19:$R$41,3,0)/'4. Billing Determinants'!$D$41*$D5))))),0) -> 0 | Y5: =IFERROR(IF(Y$4="",0,IF($E5="kWh",VLOOKUP(Y$4,'4. Billing Determinants'!$B$19:$R$41,4,0)/'4. Billing Determinants'!$E$41*$D5,IF($E5="kW",VLOOKUP(Y$4,'4. Billing Determinants'!$B$19:$R$41,5,0)/'4. Billing Determinants'!$F$41*$D5,IF($E5="Non-RPP kWh",VLOOKUP(Y$4,'4. Billing Determinants'!$B$19:$R$41,6,0)/'4. Billing Determinants'!$G$41*$D5,IF($E5="Distribution Rev.",VLOOKUP(Y$4,'4. Billing Determinants'!$B$19:$R$41,8,0)/'4. Billing Determinants'!$I$41*$D5, VLOOKUP(Y$4,'4. Billing Determinants'!$B$19:$R$41,3,0)/'4. Billing Determinants'!$D$41*$D5))))),0) -> 0
A6: 3 | B6: Smart Metering Entity Charge Variance Account | C6: 1551 | D6: ='2. 2016 Continuity Schedule'!BT25 -> -11557 | E6: # of Customers | F6: =(17119/(17119+2018))*D6 -> -10338.31233 | G6: =(2018/(17119+2018))*D6 -> -1218.687673 | H6: 0 | I6: 0 | J6: 0 | K6: 0 | L6: 0 | M6: 0 | N6: 0 | O6: 0 | P6: 0 | Q6: 0 | R6: 0 | S6: 0 | T6: 0 | U6: 0 | V6: 0 | W6: 0 | X6: 0 | Y6: 0
A7: 4 | B7: RSVA - Wholesale Market Service Charge | C7: 1580 | D7: =IF('2. 2016 Continuity Schedule'!CA12,'2. 2016 Continuity Schedule'!BT26,'2. 2016 Continuity Schedule'!BT26+'2. 2016 Continuity Schedule'!BT28) -> -1526138 | E7: kWh | F7: =IFERROR(IF(F$4="",0,IF($E7="kWh",VLOOKUP(F$4,'4. Billing Determinants'!$B$19:$R$41,11,0)/'4. Billing Determinants'!$L$41*$D7,IF($E7="kW",VLOOKUP(F$4,'4. Billing Determinants'!$B$19:$R$41,12,0)/'4. Billing Determinants'!$M$41*$D7,))),0) -> -433372.0714 | G7: =IFERROR(IF(G$4="",0,IF($E7="kWh",VLOOKUP(G$4,'4. Billing Determinants'!$B$19:$R$41,11,0)/'4. Billing Determinants'!$L$41*$D7,IF($E7="kW",VLOOKUP(G$4,'4. Billing Determinants'!$B$19:$R$41,12,0)/'4. Billing Determinants'!$M$41*$D7,))),0) -> -153152.6949 | H7: =IFERROR(IF(H$4="",0,IF($E7="kWh",VLOOKUP(H$4,'4. Billing Determinants'!$B$19:$R$41,11,0)/'4. Billing Determinants'!$L$41*$D7,IF($E7="kW",VLOOKUP(H$4,'4. Billing Determinants'!$B$19:$R$41,12,0)/'4. Billing Determinants'!$M$41*$D7,))),0) -> -356803.6662 | I7: =IFERROR(IF(I$4="",0,IF($E7="kWh",VLOOKUP(I$4,'4. Billing Determinants'!$B$19:$R$41,11,0)/'4. Billing Determinants'!$L$41*$D7,IF($E7="kW",VLOOKUP(I$4,'4. Billing Determinants'!$B$19:$R$41,12,0)/'4. Billing Determinants'!$M$41*$D7,))),0) -> -180477.5584 | J7: =IFERROR(IF(J$4="",0,IF($E7="kWh",VLOOKUP(J$4,'4. Billing Determinants'!$B$19:$R$41,11,0)/'4. Billing Determinants'!$L$41*$D7,IF($E7="kW",VLOOKUP(J$4,'4. Billing Determinants'!$B$19:$R$41,12,0)/'4. Billing Determinants'!$M$41*$D7,))),0) -> -342706.803 | K7: =IFERROR(IF(K$4="",0,IF($E7="kWh",VLOOKUP(K$4,'4. Billing Determinants'!$B$19:$R$41,11,0)/'4. Billing Determinants'!$L$41*$D7,IF($E7="kW",VLOOKUP(K$4,'4. Billing Determinants'!$B$19:$R$41,12,0)/'4. Billing Determinants'!$M$41*$D7,))),0) -> -1641.292269 | L7: =IFERROR(IF(L$4="",0,IF($E7="kWh",VLOOKUP(L$4,'4. Billing Determinants'!$B$19:$R$41,11,0)/'4. Billing Determinants'!$L$41*$D7,IF($E7="kW",VLOOKUP(L$4,'4. Billing Determinants'!$B$19:$R$41,12,0)/'4. Billing Determinants'!$M$41*$D7,))),0) -> -703.6468745 | M7: =IFERROR(IF(M$4="",0,IF($E7="kWh",VLOOKUP(M$4,'4. Billing Determinants'!$B$19:$R$41,11,0)/'4. Billing Determinants'!$L$41*$D7,IF($E7="kW",VLOOKUP(M$4,'4. Billing Determinants'!$B$19:$R$41,12,0)/'4. Billing Determinants'!$M$41*$D7,))),0) -> -6153.878353 | N7: =IFERROR(IF(N$4="",0,IF($E7="kWh",VLOOKUP(N$4,'4. Billing Determinants'!$B$19:$R$41,11,0)/'4. Billing Determinants'!$L$41*$D7,IF($E7="kW",VLOOKUP(N$4,'4. Billing Determinants'!$B$19:$R$41,12,0)/'4. Billing Determinants'!$M$41*$D7,))),0) -> -51126.38867 | O7: =IFERROR(IF(O$4="",0,IF($E7="kWh",VLOOKUP(O$4,'4. Billing Determinants'!$B$19:$R$41,11,0)/'4. Billing Determinants'!$L$41*$D7,IF($E7="kW",VLOOKUP(O$4,'4. Billing Determinants'!$B$19:$R$41,12,0)/'4. Billing Determinants'!$M$41*$D7,))),0) -> 0 | P7: =IFERROR(IF(P$4="",0,IF($E7="kWh",VLOOKUP(P$4,'4. Billing Determinants'!$B$19:$R$41,11,0)/'4. Billing Determinants'!$L$41*$D7,IF($E7="kW",VLOOKUP(P$4,'4. Billing Determinants'!$B$19:$R$41,12,0)/'4. Billing Determinants'!$M$41*$D7,))),0) -> 0 | Q7: =IFERROR(IF(Q$4="",0,IF($E7="kWh",VLOOKUP(Q$4,'4. Billing Determinants'!$B$19:$R$41,11,0)/'4. Billing Determinants'!$L$41*$D7,IF($E7="kW",VLOOKUP(Q$4,'4. Billing Determinants'!$B$19:$R$41,12,0)/'4. Billing Determinants'!$M$41*$D7,))),0) -> 0 | R7: =IFERROR(IF(R$4="",0,IF($E7="kWh",VLOOKUP(R$4,'4. Billing Determinants'!$B$19:$R$41,11,0)/'4. Billing Determinants'!$L$41*$D7,IF($E7="kW",VLOOKUP(R$4,'4. Billing Determinants'!$B$19:$R$41,12,0)/'4. Billing Determinants'!$M$41*$D7,))),0) -> 0 | S7: =IFERROR(IF(S$4="",0,IF($E7="kWh",VLOOKUP(S$4,'4. Billing Determinants'!$B$19:$R$41,11,0)/'4. Billing Determinants'!$L$41*$D7,IF($E7="kW",VLOOKUP(S$4,'4. Billing Determinants'!$B$19:$R$41,12,0)/'4. Billing Determinants'!$M$41*$D7,))),0) -> 0 | T7: =IFERROR(IF(T$4="",0,IF($E7="kWh",VLOOKUP(T$4,'4. Billing Determinants'!$B$19:$R$41,11,0)/'4. Billing Determinants'!$L$41*$D7,IF($E7="kW",VLOOKUP(T$4,'4. Billing Determinants'!$B$19:$R$41,12,0)/'4. Billing Determinants'!$M$41*$D7,))),0) -> 0 | U7: =IFERROR(IF(U$4="",0,IF($E7="kWh",VLOOKUP(U$4,'4. Billing Determinants'!$B$19:$R$41,11,0)/'4. Billing Determinants'!$L$41*$D7,IF($E7="kW",VLOOKUP(U$4,'4. Billing Determinants'!$B$19:$R$41,12,0)/'4. Billing Determinants'!$M$41*$D7,))),0) -> 0 | V7: =IFERROR(IF(V$4="",0,IF($E7="kWh",VLOOKUP(V$4,'4. Billing Determinants'!$B$19:$R$41,11,0)/'4. Billing Determinants'!$L$41*$D7,IF($E7="kW",VLOOKUP(V$4,'4. Billing Determinants'!$B$19:$R$41,12,0)/'4. Billing Determinants'!$M$41*$D7,))),0) -> 0 | W7: =IFERROR(IF(W$4="",0,IF($E7="kWh",VLOOKUP(W$4,'4. Billing Determinants'!$B$19:$R$41,11,0)/'4. Billing Determinants'!$L$41*$D7,IF($E7="kW",VLOOKUP(W$4,'4. Billing Determinants'!$B$19:$R$41,12,0)/'4. Billing Determinants'!$M$41*$D7,))),0) -> 0 | X7: =IFERROR(IF(X$4="",0,IF($E7="kWh",VLOOKUP(X$4,'4. Billing Determinants'!$B$19:$R$41,11,0)/'4. Billing Determinants'!$L$41*$D7,IF($E7="kW",VLOOKUP(X$4,'4. Billing Determinants'!$B$19:$R$41,12,0)/'4. Billing Determinants'!$M$41*$D7,))),0) -> 0 | Y7: =IFERROR(IF(Y$4="",0,IF($E7="kWh",VLOOKUP(Y$4,'4. Billing Determinants'!$B$19:$R$41,11,0)/'4. Billing Determinants'!$L$41*$D7,IF($E7="kW",VLOOKUP(Y$4,'4. Billing Determinants'!$B$19:$R$41,12,0)/'4. Billing Determinants'!$M$41*$D7,))),0) -> 0
A8: 5 | B8: RSVA - Retail Transmission Network Charge | C8: 1584 | D8: ='2. 2016 Continuity Schedule'!BT29 -> 56324 | E8: kWh | F8: =IFERROR(IF(F$4="",0,IF($E8="kWh",VLOOKUP(F$4,'4. Billing Determinants'!$B$19:$R$41,4,0)/'4. Billing Determinants'!$E$41*$D8,IF($E8="kW",VLOOKUP(F$4,'4. Billing Determinants'!$B$19:$R$41,5,0)/'4. Billing Determinants'!$F$41*$D8,IF($E8="Non-RPP kWh",VLOOKUP(F$4,'4. Billing Determinants'!$B$19:$R$41,6,0)/'4. Billing Determinants'!$G$41*$D8,IF($E8="Distribution Rev.",VLOOKUP(F$4,'4. Billing Determinants'!$B$19:$R$41,8,0)/'4. Billing Determinants'!$I$41*$D8, VLOOKUP(F$4,'4. Billing Determinants'!$B$19:$R$41,3,0)/'4. Billing Determinants'!$D$41*$D8))))),0) -> 15994.12933 | G8: =IFERROR(IF(G$4="",0,IF($E8="kWh",VLOOKUP(G$4,'4. Billing Determinants'!$B$19:$R$41,4,0)/'4. Billing Determinants'!$E$41*$D8,IF($E8="kW",VLOOKUP(G$4,'4. Billing Determinants'!$B$19:$R$41,5,0)/'4. Billing Determinants'!$F$41*$D8,IF($E8="Non-RPP kWh",VLOOKUP(G$4,'4. Billing Determinants'!$B$19:$R$41,6,0)/'4. Billing Determinants'!$G$41*$D8,IF($E8="Distribution Rev.",VLOOKUP(G$4,'4. Billing Determinants'!$B$19:$R$41,8,0)/'4. Billing Determinants'!$I$41*$D8, VLOOKUP(G$4,'4. Billing Determinants'!$B$19:$R$41,3,0)/'4. Billing Determinants'!$D$41*$D8))))),0) -> 5652.28858 | H8: =IFERROR(IF(H$4="",0,IF($E8="kWh",VLOOKUP(H$4,'4. Billing Determinants'!$B$19:$R$41,4,0)/'4. Billing Determinants'!$E$41*$D8,IF($E8="kW",VLOOKUP(H$4,'4. Billing Determinants'!$B$19:$R$41,5,0)/'4. Billing Determinants'!$F$41*$D8,IF($E8="Non-RPP kWh",VLOOKUP(H$4,'4. Billing Determinants'!$B$19:$R$41,6,0)/'4. Billing Determinants'!$G$41*$D8,IF($E8="Distribution Rev.",VLOOKUP(H$4,'4. Billing Determinants'!$B$19:$R$41,8,0)/'4. Billing Determinants'!$I$41*$D8, VLOOKUP(H$4,'4. Billing Determinants'!$B$19:$R$41,3,0)/'4. Billing Determinants'!$D$41*$D8))))),0) -> 13168.27816 | I8: =IFERROR(IF(I$4="",0,IF($E8="kWh",VLOOKUP(I$4,'4. Billing Determinants'!$B$19:$R$41,4,0)/'4. Billing Determinants'!$E$41*$D8,IF($E8="kW",VLOOKUP(I$4,'4. Billing Determinants'!$B$19:$R$41,5,0)/'4. Billing Determinants'!$F$41*$D8,IF($E8="Non-RPP kWh",VLOOKUP(I$4,'4. Billing Determinants'!$B$19:$R$41,6,0)/'4. Billing Determinants'!$G$41*$D8,IF($E8="Distribution Rev.",VLOOKUP(I$4,'4. Billing Determinants'!$B$19:$R$41,8,0)/'4. Billing Determinants'!$I$41*$D8, VLOOKUP(I$4,'4. Billing Determinants'!$B$19:$R$41,3,0)/'4. Billing Determinants'!$D$41*$D8))))),0) -> 6660.746276 | J8: =IFERROR(IF(J$4="",0,IF($E8="kWh",VLOOKUP(J$4,'4. Billing Determinants'!$B$19:$R$41,4,0)/'4. Billing Determinants'!$E$41*$D8,IF($E8="kW",VLOOKUP(J$4,'4. Billing Determinants'!$B$19:$R$41,5,0)/'4. Billing Determinants'!$F$41*$D8,IF($E8="Non-RPP kWh",VLOOKUP(J$4,'4. Billing Determinants'!$B$19:$R$41,6,0)/'4. Billing Determinants'!$G$41*$D8,IF($E8="Distribution Rev.",VLOOKUP(J$4,'4. Billing Determinants'!$B$19:$R$41,8,0)/'4. Billing Determinants'!$I$41*$D8, VLOOKUP(J$4,'4. Billing Determinants'!$B$19:$R$41,3,0)/'4. Billing Determinants'!$D$41*$D8))))),0) -> 12648.01608 | K8: =IFERROR(IF(K$4="",0,IF($E8="kWh",VLOOKUP(K$4,'4. Billing Determinants'!$B$19:$R$41,4,0)/'4. Billing Determinants'!$E$41*$D8,IF($E8="kW",VLOOKUP(K$4,'4. Billing Determinants'!$B$19:$R$41,5,0)/'4. Billing Determinants'!$F$41*$D8,IF($E8="Non-RPP kWh",VLOOKUP(K$4,'4. Billing Determinants'!$B$19:$R$41,6,0)/'4. Billing Determinants'!$G$41*$D8,IF($E8="Distribution Rev.",VLOOKUP(K$4,'4. Billing Determinants'!$B$19:$R$41,8,0)/'4. Billing Determinants'!$I$41*$D8, VLOOKUP(K$4,'4. Billing Determinants'!$B$19:$R$41,3,0)/'4. Billing Determinants'!$D$41*$D8))))),0) -> 60.57390993 | L8: =IFERROR(IF(L$4="",0,IF($E8="kWh",VLOOKUP(L$4,'4. Billing Determinants'!$B$19:$R$41,4,0)/'4. Billing Determinants'!$E$41*$D8,IF($E8="kW",VLOOKUP(L$4,'4. Billing Determinants'!$B$19:$R$41,5,0)/'4. Billing Determinants'!$F$41*$D8,IF($E8="Non-RPP kWh",VLOOKUP(L$4,'4. Billing Determinants'!$B$19:$R$41,6,0)/'4. Billing Determinants'!$G$41*$D8,IF($E8="Distribution Rev.",VLOOKUP(L$4,'4. Billing Determinants'!$B$19:$R$41,8,0)/'4. Billing Determinants'!$I$41*$D8, VLOOKUP(L$4,'4. Billing Determinants'!$B$19:$R$41,3,0)/'4. Billing Determinants'!$D$41*$D8))))),0) -> 25.96895337 | M8: =IFERROR(IF(M$4="",0,IF($E8="kWh",VLOOKUP(M$4,'4. Billing Determinants'!$B$19:$R$41,4,0)/'4. Billing Determinants'!$E$41*$D8,IF($E8="kW",VLOOKUP(M$4,'4. Billing Determinants'!$B$19:$R$41,5,0)/'4. Billing Determinants'!$F$41*$D8,IF($E8="Non-RPP kWh",VLOOKUP(M$4,'4. Billing Determinants'!$B$19:$R$41,6,0)/'4. Billing Determinants'!$G$41*$D8,IF($E8="Distribution Rev.",VLOOKUP(M$4,'4. Billing Determinants'!$B$19:$R$41,8,0)/'4. Billing Determinants'!$I$41*$D8, VLOOKUP(M$4,'4. Billing Determinants'!$B$19:$R$41,3,0)/'4. Billing Determinants'!$D$41*$D8))))),0) -> 227.1164497 | N8: =IFERROR(IF(N$4="",0,IF($E8="kWh",VLOOKUP(N$4,'4. Billing Determinants'!$B$19:$R$41,4,0)/'4. Billing Determinants'!$E$41*$D8,IF($E8="kW",VLOOKUP(N$4,'4. Billing Determinants'!$B$19:$R$41,5,0)/'4. Billing Determinants'!$F$41*$D8,IF($E8="Non-RPP kWh",VLOOKUP(N$4,'4. Billing Determinants'!$B$19:$R$41,6,0)/'4. Billing Determinants'!$G$41*$D8,IF($E8="Distribution Rev.",VLOOKUP(N$4,'4. Billing Determinants'!$B$19:$R$41,8,0)/'4. Billing Determinants'!$I$41*$D8, VLOOKUP(N$4,'4. Billing Determinants'!$B$19:$R$41,3,0)/'4. Billing Determinants'!$D$41*$D8))))),0) -> 1886.882258 | O8: =IFERROR(IF(O$4="",0,IF($E8="kWh",VLOOKUP(O$4,'4. Billing Determinants'!$B$19:$R$41,4,0)/'4. Billing Determinants'!$E$41*$D8,IF($E8="kW",VLOOKUP(O$4,'4. Billing Determinants'!$B$19:$R$41,5,0)/'4. Billing Determinants'!$F$41*$D8,IF($E8="Non-RPP kWh",VLOOKUP(O$4,'4. Billing Determinants'!$B$19:$R$41,6,0)/'4. Billing Determinants'!$G$41*$D8,IF($E8="Distribution Rev.",VLOOKUP(O$4,'4. Billing Determinants'!$B$19:$R$41,8,0)/'4. Billing Determinants'!$I$41*$D8, VLOOKUP(O$4,'4. Billing Determinants'!$B$19:$R$41,3,0)/'4. Billing Determinants'!$D$41*$D8))))),0) -> 0 | P8: =IFERROR(IF(P$4="",0,IF($E8="kWh",VLOOKUP(P$4,'4. Billing Determinants'!$B$19:$R$41,4,0)/'4. Billing Determinants'!$E$41*$D8,IF($E8="kW",VLOOKUP(P$4,'4. Billing Determinants'!$B$19:$R$41,5,0)/'4. Billing Determinants'!$F$41*$D8,IF($E8="Non-RPP kWh",VLOOKUP(P$4,'4. Billing Determinants'!$B$19:$R$41,6,0)/'4. Billing Determinants'!$G$41*$D8,IF($E8="Distribution Rev.",VLOOKUP(P$4,'4. Billing Determinants'!$B$19:$R$41,8,0)/'4. Billing Determinants'!$I$41*$D8, VLOOKUP(P$4,'4. Billing Determinants'!$B$19:$R$41,3,0)/'4. Billing Determinants'!$D$41*$D8))))),0) -> 0 | Q8: =IFERROR(IF(Q$4="",0,IF($E8="kWh",VLOOKUP(Q$4,'4. Billing Determinants'!$B$19:$R$41,4,0)/'4. Billing Determinants'!$E$41*$D8,IF($E8="kW",VLOOKUP(Q$4,'4. Billing Determinants'!$B$19:$R$41,5,0)/'4. Billing Determinants'!$F$41*$D8,IF($E8="Non-RPP kWh",VLOOKUP(Q$4,'4. Billing Determinants'!$B$19:$R$41,6,0)/'4. Billing Determinants'!$G$41*$D8,IF($E8="Distribution Rev.",VLOOKUP(Q$4,'4. Billing Determinants'!$B$19:$R$41,8,0)/'4. Billing Determinants'!$I$41*$D8, VLOOKUP(Q$4,'4. Billing Determinants'!$B$19:$R$41,3,0)/'4. Billing Determinants'!$D$41*$D8))))),0) -> 0 | R8: =IFERROR(IF(R$4="",0,IF($E8="kWh",VLOOKUP(R$4,'4. Billing Determinants'!$B$19:$R$41,4,0)/'4. Billing Determinants'!$E$41*$D8,IF($E8="kW",VLOOKUP(R$4,'4. Billing Determinants'!$B$19:$R$41,5,0)/'4. Billing Determinants'!$F$41*$D8,IF($E8="Non-RPP kWh",VLOOKUP(R$4,'4. Billing Determinants'!$B$19:$R$41,6,0)/'4. Billing Determinants'!$G$41*$D8,IF($E8="Distribution Rev.",VLOOKUP(R$4,'4. Billing Determinants'!$B$19:$R$41,8,0)/'4. Billing Determinants'!$I$41*$D8, VLOOKUP(R$4,'4. Billing Determinants'!$B$19:$R$41,3,0)/'4. Billing Determinants'!$D$41*$D8))))),0) -> 0 | S8: =IFERROR(IF(S$4="",0,IF($E8="kWh",VLOOKUP(S$4,'4. Billing Determinants'!$B$19:$R$41,4,0)/'4. Billing Determinants'!$E$41*$D8,IF($E8="kW",VLOOKUP(S$4,'4. Billing Determinants'!$B$19:$R$41,5,0)/'4. Billing Determinants'!$F$41*$D8,IF($E8="Non-RPP kWh",VLOOKUP(S$4,'4. Billing Determinants'!$B$19:$R$41,6,0)/'4. Billing Determinants'!$G$41*$D8,IF($E8="Distribution Rev.",VLOOKUP(S$4,'4. Billing Determinants'!$B$19:$R$41,8,0)/'4. Billing Determinants'!$I$41*$D8, VLOOKUP(S$4,'4. Billing Determinants'!$B$19:$R$41,3,0)/'4. Billing Determinants'!$D$41*$D8))))),0) -> 0 | T8: =IFERROR(IF(T$4="",0,IF($E8="kWh",VLOOKUP(T$4,'4. Billing Determinants'!$B$19:$R$41,4,0)/'4. Billing Determinants'!$E$41*$D8,IF($E8="kW",VLOOKUP(T$4,'4. Billing Determinants'!$B$19:$R$41,5,0)/'4. Billing Determinants'!$F$41*$D8,IF($E8="Non-RPP kWh",VLOOKUP(T$4,'4. Billing Determinants'!$B$19:$R$41,6,0)/'4. Billing Determinants'!$G$41*$D8,IF($E8="Distribution Rev.",VLOOKUP(T$4,'4. Billing Determinants'!$B$19:$R$41,8,0)/'4. Billing Determinants'!$I$41*$D8, VLOOKUP(T$4,'4. Billing Determinants'!$B$19:$R$41,3,0)/'4. Billing Determinants'!$D$41*$D8))))),0) -> 0 | U8: =IFERROR(IF(U$4="",0,IF($E8="kWh",VLOOKUP(U$4,'4. Billing Determinants'!$B$19:$R$41,4,0)/'4. Billing Determinants'!$E$41*$D8,IF($E8="kW",VLOOKUP(U$4,'4. Billing Determinants'!$B$19:$R$41,5,0)/'4. Billing Determinants'!$F$41*$D8,IF($E8="Non-RPP kWh",VLOOKUP(U$4,'4. Billing Determinants'!$B$19:$R$41,6,0)/'4. Billing Determinants'!$G$41*$D8,IF($E8="Distribution Rev.",VLOOKUP(U$4,'4. Billing Determinants'!$B$19:$R$41,8,0)/'4. Billing Determinants'!$I$41*$D8, VLOOKUP(U$4,'4. Billing Determinants'!$B$19:$R$41,3,0)/'4. Billing Determinants'!$D$41*$D8))))),0) -> 0 | V8: =IFERROR(IF(V$4="",0,IF($E8="kWh",VLOOKUP(V$4,'4. Billing Determinants'!$B$19:$R$41,4,0)/'4. Billing Determinants'!$E$41*$D8,IF($E8="kW",VLOOKUP(V$4,'4. Billing Determinants'!$B$19:$R$41,5,0)/'4. Billing Determinants'!$F$41*$D8,IF($E8="Non-RPP kWh",VLOOKUP(V$4,'4. Billing Determinants'!$B$19:$R$41,6,0)/'4. Billing Determinants'!$G$41*$D8,IF($E8="Distribution Rev.",VLOOKUP(V$4,'4. Billing Determinants'!$B$19:$R$41,8,0)/'4. Billing Determinants'!$I$41*$D8, VLOOKUP(V$4,'4. Billing Determinants'!$B$19:$R$41,3,0)/'4. Billing Determinants'!$D$41*$D8))))),0) -> 0 | W8: =IFERROR(IF(W$4="",0,IF($E8="kWh",VLOOKUP(W$4,'4. Billing Determinants'!$B$19:$R$41,4,0)/'4. Billing Determinants'!$E$41*$D8,IF($E8="kW",VLOOKUP(W$4,'4. Billing Determinants'!$B$19:$R$41,5,0)/'4. Billing Determinants'!$F$41*$D8,IF($E8="Non-RPP kWh",VLOOKUP(W$4,'4. Billing Determinants'!$B$19:$R$41,6,0)/'4. Billing Determinants'!$G$41*$D8,IF($E8="Distribution Rev.",VLOOKUP(W$4,'4. Billing Determinants'!$B$19:$R$41,8,0)/'4. Billing Determinants'!$I$41*$D8, VLOOKUP(W$4,'4. Billing Determinants'!$B$19:$R$41,3,0)/'4. Billing Determinants'!$D$41*$D8))))),0) -> 0 | X8: =IFERROR(IF(X$4="",0,IF($E8="kWh",VLOOKUP(X$4,'4. Billing Determinants'!$B$19:$R$41,4,0)/'4. Billing Determinants'!$E$41*$D8,IF($E8="kW",VLOOKUP(X$4,'4. Billing Determinants'!$B$19:$R$41,5,0)/'4. Billing Determinants'!$F$41*$D8,IF($E8="Non-RPP kWh",VLOOKUP(X$4,'4. Billing Determinants'!$B$19:$R$41,6,0)/'4. Billing Determinants'!$G$41*$D8,IF($E8="Distribution Rev.",VLOOKUP(X$4,'4. Billing Determinants'!$B$19:$R$41,8,0)/'4. Billing Determinants'!$I$41*$D8, VLOOKUP(X$4,'4. Billing Determinants'!$B$19:$R$41,3,0)/'4. Billing Determinants'!$D$41*$D8))))),0) -> 0 | Y8: =IFERROR(IF(Y$4="",0,IF($E8="kWh",VLOOKUP(Y$4,'4. Billing Determinants'!$B$19:$R$41,4,0)/'4. Billing Determinants'!$E$41*$D8,IF($E8="kW",VLOOKUP(Y$4,'4. Billing Determinants'!$B$19:$R$41,5,0)/'4. Billing Determinants'!$F$41*$D8,IF($E8="Non-RPP kWh",VLOOKUP(Y$4,'4. Billing Determinants'!$B$19:$R$41,6,0)/'4. Billing Determinants'!$G$41*$D8,IF($E8="Distribution Rev.",VLOOKUP(Y$4,'4. Billing Determinants'!$B$19:$R$41,8,0)/'4. Billing Determinants'!$I$41*$D8, VLOOKUP(Y$4,'4. Billing Determinants'!$B$19:$R$41,3,0)/'4. Billing Determinants'!$D$41*$D8))))),0) -> 0
A9: 6 | B9: RSVA - Retail Transmission Connection Charge | C9: 1586 | D9: ='2. 2016 Continuity Schedule'!BT30 -> 243195 | E9: kWh | F9: =IFERROR(IF(F$4="",0,IF($E9="kWh",VLOOKUP(F$4,'4. Billing Determinants'!$B$19:$R$41,4,0)/'4. Billing Determinants'!$E$41*$D9,IF($E9="kW",VLOOKUP(F$4,'4. Billing Determinants'!$B$19:$R$41,5,0)/'4. Billing Determinants'!$F$41*$D9,IF($E9="Non-RPP kWh",VLOOKUP(F$4,'4. Billing Determinants'!$B$19:$R$41,6,0)/'4. Billing Determinants'!$G$41*$D9,IF($E9="Distribution Rev.",VLOOKUP(F$4,'4. Billing Determinants'!$B$19:$R$41,8,0)/'4. Billing Determinants'!$I$41*$D9, VLOOKUP(F$4,'4. Billing Determinants'!$B$19:$R$41,3,0)/'4. Billing Determinants'!$D$41*$D9))))),0) -> 69059.23376 | G9: =IFERROR(IF(G$4="",0,IF($E9="kWh",VLOOKUP(G$4,'4. Billing Determinants'!$B$19:$R$41,4,0)/'4. Billing Determinants'!$E$41*$D9,IF($E9="kW",VLOOKUP(G$4,'4. Billing Determinants'!$B$19:$R$41,5,0)/'4. Billing Determinants'!$F$41*$D9,IF($E9="Non-RPP kWh",VLOOKUP(G$4,'4. Billing Determinants'!$B$19:$R$41,6,0)/'4. Billing Determinants'!$G$41*$D9,IF($E9="Distribution Rev.",VLOOKUP(G$4,'4. Billing Determinants'!$B$19:$R$41,8,0)/'4. Billing Determinants'!$I$41*$D9, VLOOKUP(G$4,'4. Billing Determinants'!$B$19:$R$41,3,0)/'4. Billing Determinants'!$D$41*$D9))))),0) -> 24405.37464 | H9: =IFERROR(IF(H$4="",0,IF($E9="kWh",VLOOKUP(H$4,'4. Billing Determinants'!$B$19:$R$41,4,0)/'4. Billing Determinants'!$E$41*$D9,IF($E9="kW",VLOOKUP(H$4,'4. Billing Determinants'!$B$19:$R$41,5,0)/'4. Billing Determinants'!$F$41*$D9,IF($E9="Non-RPP kWh",VLOOKUP(H$4,'4. Billing Determinants'!$B$19:$R$41,6,0)/'4. Billing Determinants'!$G$41*$D9,IF($E9="Distribution Rev.",VLOOKUP(H$4,'4. Billing Determinants'!$B$19:$R$41,8,0)/'4. Billing Determinants'!$I$41*$D9, VLOOKUP(H$4,'4. Billing Determinants'!$B$19:$R$41,3,0)/'4. Billing Determinants'!$D$41*$D9))))),0) -> 56857.81207 | I9: =IFERROR(IF(I$4="",0,IF($E9="kWh",VLOOKUP(I$4,'4. Billing Determinants'!$B$19:$R$41,4,0)/'4. Billing Determinants'!$E$41*$D9,IF($E9="kW",VLOOKUP(I$4,'4. Billing Determinants'!$B$19:$R$41,5,0)/'4. Billing Determinants'!$F$41*$D9,IF($E9="Non-RPP kWh",VLOOKUP(I$4,'4. Billing Determinants'!$B$19:$R$41,6,0)/'4. Billing Determinants'!$G$41*$D9,IF($E9="Distribution Rev.",VLOOKUP(I$4,'4. Billing Determinants'!$B$19:$R$41,8,0)/'4. Billing Determinants'!$I$41*$D9, VLOOKUP(I$4,'4. Billing Determinants'!$B$19:$R$41,3,0)/'4. Billing Determinants'!$D$41*$D9))))),0) -> 28759.67954 | J9: =IFERROR(IF(J$4="",0,IF($E9="kWh",VLOOKUP(J$4,'4. Billing Determinants'!$B$19:$R$41,4,0)/'4. Billing Determinants'!$E$41*$D9,IF($E9="kW",VLOOKUP(J$4,'4. Billing Determinants'!$B$19:$R$41,5,0)/'4. Billing Determinants'!$F$41*$D9,IF($E9="Non-RPP kWh",VLOOKUP(J$4,'4. Billing Determinants'!$B$19:$R$41,6,0)/'4. Billing Determinants'!$G$41*$D9,IF($E9="Distribution Rev.",VLOOKUP(J$4,'4. Billing Determinants'!$B$19:$R$41,8,0)/'4. Billing Determinants'!$I$41*$D9, VLOOKUP(J$4,'4. Billing Determinants'!$B$19:$R$41,3,0)/'4. Billing Determinants'!$D$41*$D9))))),0) -> 54611.43156 | K9: =IFERROR(IF(K$4="",0,IF($E9="kWh",VLOOKUP(K$4,'4. Billing Determinants'!$B$19:$R$41,4,0)/'4. Billing Determinants'!$E$41*$D9,IF($E9="kW",VLOOKUP(K$4,'4. Billing Determinants'!$B$19:$R$41,5,0)/'4. Billing Determinants'!$F$41*$D9,IF($E9="Non-RPP kWh",VLOOKUP(K$4,'4. Billing Determinants'!$B$19:$R$41,6,0)/'4. Billing Determinants'!$G$41*$D9,IF($E9="Distribution Rev.",VLOOKUP(K$4,'4. Billing Determinants'!$B$19:$R$41,8,0)/'4. Billing Determinants'!$I$41*$D9, VLOOKUP(K$4,'4. Billing Determinants'!$B$19:$R$41,3,0)/'4. Billing Determinants'!$D$41*$D9))))),0) -> 261.5452032 | L9: =IFERROR(IF(L$4="",0,IF($E9="kWh",VLOOKUP(L$4,'4. Billing Determinants'!$B$19:$R$41,4,0)/'4. Billing Determinants'!$E$41*$D9,IF($E9="kW",VLOOKUP(L$4,'4. Billing Determinants'!$B$19:$R$41,5,0)/'4. Billing Determinants'!$F$41*$D9,IF($E9="Non-RPP kWh",VLOOKUP(L$4,'4. Billing Determinants'!$B$19:$R$41,6,0)/'4. Billing Determinants'!$G$41*$D9,IF($E9="Distribution Rev.",VLOOKUP(L$4,'4. Billing Determinants'!$B$19:$R$41,8,0)/'4. Billing Determinants'!$I$41*$D9, VLOOKUP(L$4,'4. Billing Determinants'!$B$19:$R$41,3,0)/'4. Billing Determinants'!$D$41*$D9))))),0) -> 112.1283931 | M9: =IFERROR(IF(M$4="",0,IF($E9="kWh",VLOOKUP(M$4,'4. Billing Determinants'!$B$19:$R$41,4,0)/'4. Billing Determinants'!$E$41*$D9,IF($E9="kW",VLOOKUP(M$4,'4. Billing Determinants'!$B$19:$R$41,5,0)/'4. Billing Determinants'!$F$41*$D9,IF($E9="Non-RPP kWh",VLOOKUP(M$4,'4. Billing Determinants'!$B$19:$R$41,6,0)/'4. Billing Determinants'!$G$41*$D9,IF($E9="Distribution Rev.",VLOOKUP(M$4,'4. Billing Determinants'!$B$19:$R$41,8,0)/'4. Billing Determinants'!$I$41*$D9, VLOOKUP(M$4,'4. Billing Determinants'!$B$19:$R$41,3,0)/'4. Billing Determinants'!$D$41*$D9))))),0) -> 980.6403131 | N9: =IFERROR(IF(N$4="",0,IF($E9="kWh",VLOOKUP(N$4,'4. Billing Determinants'!$B$19:$R$41,4,0)/'4. Billing Determinants'!$E$41*$D9,IF($E9="kW",VLOOKUP(N$4,'4. Billing Determinants'!$B$19:$R$41,5,0)/'4. Billing Determinants'!$F$41*$D9,IF($E9="Non-RPP kWh",VLOOKUP(N$4,'4. Billing Determinants'!$B$19:$R$41,6,0)/'4. Billing Determinants'!$G$41*$D9,IF($E9="Distribution Rev.",VLOOKUP(N$4,'4. Billing Determinants'!$B$19:$R$41,8,0)/'4. Billing Determinants'!$I$41*$D9, VLOOKUP(N$4,'4. Billing Determinants'!$B$19:$R$41,3,0)/'4. Billing Determinants'!$D$41*$D9))))),0) -> 8147.154512 | O9: =IFERROR(IF(O$4="",0,IF($E9="kWh",VLOOKUP(O$4,'4. Billing Determinants'!$B$19:$R$41,4,0)/'4. Billing Determinants'!$E$41*$D9,IF($E9="kW",VLOOKUP(O$4,'4. Billing Determinants'!$B$19:$R$41,5,0)/'4. Billing Determinants'!$F$41*$D9,IF($E9="Non-RPP kWh",VLOOKUP(O$4,'4. Billing Determinants'!$B$19:$R$41,6,0)/'4. Billing Determinants'!$G$41*$D9,IF($E9="Distribution Rev.",VLOOKUP(O$4,'4. Billing Determinants'!$B$19:$R$41,8,0)/'4. Billing Determinants'!$I$41*$D9, VLOOKUP(O$4,'4. Billing Determinants'!$B$19:$R$41,3,0)/'4. Billing Determinants'!$D$41*$D9))))),0) -> 0 | P9: =IFERROR(IF(P$4="",0,IF($E9="kWh",VLOOKUP(P$4,'4. Billing Determinants'!$B$19:$R$41,4,0)/'4. Billing Determinants'!$E$41*$D9,IF($E9="kW",VLOOKUP(P$4,'4. Billing Determinants'!$B$19:$R$41,5,0)/'4. Billing Determinants'!$F$41*$D9,IF($E9="Non-RPP kWh",VLOOKUP(P$4,'4. Billing Determinants'!$B$19:$R$41,6,0)/'4. Billing Determinants'!$G$41*$D9,IF($E9="Distribution Rev.",VLOOKUP(P$4,'4. Billing Determinants'!$B$19:$R$41,8,0)/'4. Billing Determinants'!$I$41*$D9, VLOOKUP(P$4,'4. Billing Determinants'!$B$19:$R$41,3,0)/'4. Billing Determinants'!$D$41*$D9))))),0) -> 0 | Q9: =IFERROR(IF(Q$4="",0,IF($E9="kWh",VLOOKUP(Q$4,'4. Billing Determinants'!$B$19:$R$41,4,0)/'4. Billing Determinants'!$E$41*$D9,IF($E9="kW",VLOOKUP(Q$4,'4. Billing Determinants'!$B$19:$R$41,5,0)/'4. Billing Determinants'!$F$41*$D9,IF($E9="Non-RPP kWh",VLOOKUP(Q$4,'4. Billing Determinants'!$B$19:$R$41,6,0)/'4. Billing Determinants'!$G$41*$D9,IF($E9="Distribution Rev.",VLOOKUP(Q$4,'4. Billing Determinants'!$B$19:$R$41,8,0)/'4. Billing Determinants'!$I$41*$D9, VLOOKUP(Q$4,'4. Billing Determinants'!$B$19:$R$41,3,0)/'4. Billing Determinants'!$D$41*$D9))))),0) -> 0 | R9: =IFERROR(IF(R$4="",0,IF($E9="kWh",VLOOKUP(R$4,'4. Billing Determinants'!$B$19:$R$41,4,0)/'4. Billing Determinants'!$E$41*$D9,IF($E9="kW",VLOOKUP(R$4,'4. Billing Determinants'!$B$19:$R$41,5,0)/'4. Billing Determinants'!$F$41*$D9,IF($E9="Non-RPP kWh",VLOOKUP(R$4,'4. Billing Determinants'!$B$19:$R$41,6,0)/'4. Billing Determinants'!$G$41*$D9,IF($E9="Distribution Rev.",VLOOKUP(R$4,'4. Billing Determinants'!$B$19:$R$41,8,0)/'4. Billing Determinants'!$I$41*$D9, VLOOKUP(R$4,'4. Billing Determinants'!$B$19:$R$41,3,0)/'4. Billing Determinants'!$D$41*$D9))))),0) -> 0 | S9: =IFERROR(IF(S$4="",0,IF($E9="kWh",VLOOKUP(S$4,'4. Billing Determinants'!$B$19:$R$41,4,0)/'4. Billing Determinants'!$E$41*$D9,IF($E9="kW",VLOOKUP(S$4,'4. Billing Determinants'!$B$19:$R$41,5,0)/'4. Billing Determinants'!$F$41*$D9,IF($E9="Non-RPP kWh",VLOOKUP(S$4,'4. Billing Determinants'!$B$19:$R$41,6,0)/'4. Billing Determinants'!$G$41*$D9,IF($E9="Distribution Rev.",VLOOKUP(S$4,'4. Billing Determinants'!$B$19:$R$41,8,0)/'4. Billing Determinants'!$I$41*$D9, VLOOKUP(S$4,'4. Billing Determinants'!$B$19:$R$41,3,0)/'4. Billing Determinants'!$D$41*$D9))))),0) -> 0 | T9: =IFERROR(IF(T$4="",0,IF($E9="kWh",VLOOKUP(T$4,'4. Billing Determinants'!$B$19:$R$41,4,0)/'4. Billing Determinants'!$E$41*$D9,IF($E9="kW",VLOOKUP(T$4,'4. Billing Determinants'!$B$19:$R$41,5,0)/'4. Billing Determinants'!$F$41*$D9,IF($E9="Non-RPP kWh",VLOOKUP(T$4,'4. Billing Determinants'!$B$19:$R$41,6,0)/'4. Billing Determinants'!$G$41*$D9,IF($E9="Distribution Rev.",VLOOKUP(T$4,'4. Billing Determinants'!$B$19:$R$41,8,0)/'4. Billing Determinants'!$I$41*$D9, VLOOKUP(T$4,'4. Billing Determinants'!$B$19:$R$41,3,0)/'4. Billing Determinants'!$D$41*$D9))))),0) -> 0 | U9: =IFERROR(IF(U$4="",0,IF($E9="kWh",VLOOKUP(U$4,'4. Billing Determinants'!$B$19:$R$41,4,0)/'4. Billing Determinants'!$E$41*$D9,IF($E9="kW",VLOOKUP(U$4,'4. Billing Determinants'!$B$19:$R$41,5,0)/'4. Billing Determinants'!$F$41*$D9,IF($E9="Non-RPP kWh",VLOOKUP(U$4,'4. Billing Determinants'!$B$19:$R$41,6,0)/'4. Billing Determinants'!$G$41*$D9,IF($E9="Distribution Rev.",VLOOKUP(U$4,'4. Billing Determinants'!$B$19:$R$41,8,0)/'4. Billing Determinants'!$I$41*$D9, VLOOKUP(U$4,'4. Billing Determinants'!$B$19:$R$41,3,0)/'4. Billing Determinants'!$D$41*$D9))))),0) -> 0 | V9: =IFERROR(IF(V$4="",0,IF($E9="kWh",VLOOKUP(V$4,'4. Billing Determinants'!$B$19:$R$41,4,0)/'4. Billing Determinants'!$E$41*$D9,IF($E9="kW",VLOOKUP(V$4,'4. Billing Determinants'!$B$19:$R$41,5,0)/'4. Billing Determinants'!$F$41*$D9,IF($E9="Non-RPP kWh",VLOOKUP(V$4,'4. Billing Determinants'!$B$19:$R$41,6,0)/'4. Billing Determinants'!$G$41*$D9,IF($E9="Distribution Rev.",VLOOKUP(V$4,'4. Billing Determinants'!$B$19:$R$41,8,0)/'4. Billing Determinants'!$I$41*$D9, VLOOKUP(V$4,'4. Billing Determinants'!$B$19:$R$41,3,0)/'4. Billing Determinants'!$D$41*$D9))))),0) -> 0 | W9: =IFERROR(IF(W$4="",0,IF($E9="kWh",VLOOKUP(W$4,'4. Billing Determinants'!$B$19:$R$41,4,0)/'4. Billing Determinants'!$E$41*$D9,IF($E9="kW",VLOOKUP(W$4,'4. Billing Determinants'!$B$19:$R$41,5,0)/'4. Billing Determinants'!$F$41*$D9,IF($E9="Non-RPP kWh",VLOOKUP(W$4,'4. Billing Determinants'!$B$19:$R$41,6,0)/'4. Billing Determinants'!$G$41*$D9,IF($E9="Distribution Rev.",VLOOKUP(W$4,'4. Billing Determinants'!$B$19:$R$41,8,0)/'4. Billing Determinants'!$I$41*$D9, VLOOKUP(W$4,'4. Billing Determinants'!$B$19:$R$41,3,0)/'4. Billing Determinants'!$D$41*$D9))))),0) -> 0 | X9: =IFERROR(IF(X$4="",0,IF($E9="kWh",VLOOKUP(X$4,'4. Billing Determinants'!$B$19:$R$41,4,0)/'4. Billing Determinants'!$E$41*$D9,IF($E9="kW",VLOOKUP(X$4,'4. Billing Determinants'!$B$19:$R$41,5,0)/'4. Billing Determinants'!$F$41*$D9,IF($E9="Non-RPP kWh",VLOOKUP(X$4,'4. Billing Determinants'!$B$19:$R$41,6,0)/'4. Billing Determinants'!$G$41*$D9,IF($E9="Distribution Rev.",VLOOKUP(X$4,'4. Billing Determinants'!$B$19:$R$41,8,0)/'4. Billing Determinants'!$I$41*$D9, VLOOKUP(X$4,'4. Billing Determinants'!$B$19:$R$41,3,0)/'4. Billing Determinants'!$D$41*$D9))))),0) -> 0 | Y9: =IFERROR(IF(Y$4="",0,IF($E9="kWh",VLOOKUP(Y$4,'4. Billing Determinants'!$B$19:$R$41,4,0)/'4. Billing Determinants'!$E$41*$D9,IF($E9="kW",VLOOKUP(Y$4,'4. Billing Determinants'!$B$19:$R$41,5,0)/'4. Billing Determinants'!$F$41*$D9,IF($E9="Non-RPP kWh",VLOOKUP(Y$4,'4. Billing Determinants'!$B$19:$R$41,6,0)/'4. Billing Determinants'!$G$41*$D9,IF($E9="Distribution Rev.",VLOOKUP(Y$4,'4. Billing Determinants'!$B$19:$R$41,8,0)/'4. Billing Determinants'!$I$41*$D9, VLOOKUP(Y$4,'4. Billing Determinants'!$B$19:$R$41,3,0)/'4. Billing Determinants'!$D$41*$D9))))),0) -> 0
A10: 7 | B10: RSVA - Power (excluding Global Adjustment) | C10: 1588 | D10: ='2. 2016 Continuity Schedule'!BT31 -> 318226.08 | E10: kWh | F10: =IFERROR(IF(F$4="",0,IF($E10="kWh",VLOOKUP(F$4,'4. Billing Determinants'!$B$19:$R$41,11,0)/'4. Billing Determinants'!$L$41*$D10,IF($E10="kW",VLOOKUP(F$4,'4. Billing Determinants'!$B$19:$R$41,12,0)/'4. Billing Determinants'!$M$41*$D10,))),0) -> 90365.54719 | G10: =IFERROR(IF(G$4="",0,IF($E10="kWh",VLOOKUP(G$4,'4. Billing Determinants'!$B$19:$R$41,11,0)/'4. Billing Determinants'!$L$41*$D10,IF($E10="kW",VLOOKUP(G$4,'4. Billing Determinants'!$B$19:$R$41,12,0)/'4. Billing Determinants'!$M$41*$D10,))),0) -> 31934.97688 | H10: =IFERROR(IF(H$4="",0,IF($E10="kWh",VLOOKUP(H$4,'4. Billing Determinants'!$B$19:$R$41,11,0)/'4. Billing Determinants'!$L$41*$D10,IF($E10="kW",VLOOKUP(H$4,'4. Billing Determinants'!$B$19:$R$41,12,0)/'4. Billing Determinants'!$M$41*$D10,))),0) -> 74399.71484 | I10: =IFERROR(IF(I$4="",0,IF($E10="kWh",VLOOKUP(I$4,'4. Billing Determinants'!$B$19:$R$41,11,0)/'4. Billing Determinants'!$L$41*$D10,IF($E10="kW",VLOOKUP(I$4,'4. Billing Determinants'!$B$19:$R$41,12,0)/'4. Billing Determinants'!$M$41*$D10,))),0) -> 37632.68193 | J10: =IFERROR(IF(J$4="",0,IF($E10="kWh",VLOOKUP(J$4,'4. Billing Determinants'!$B$19:$R$41,11,0)/'4. Billing Determinants'!$L$41*$D10,IF($E10="kW",VLOOKUP(J$4,'4. Billing Determinants'!$B$19:$R$41,12,0)/'4. Billing Determinants'!$M$41*$D10,))),0) -> 71460.27587 | K10: =IFERROR(IF(K$4="",0,IF($E10="kWh",VLOOKUP(K$4,'4. Billing Determinants'!$B$19:$R$41,11,0)/'4. Billing Determinants'!$L$41*$D10,IF($E10="kW",VLOOKUP(K$4,'4. Billing Determinants'!$B$19:$R$41,12,0)/'4. Billing Determinants'!$M$41*$D10,))),0) -> 342.23773 | L10: =IFERROR(IF(L$4="",0,IF($E10="kWh",VLOOKUP(L$4,'4. Billing Determinants'!$B$19:$R$41,11,0)/'4. Billing Determinants'!$L$41*$D10,IF($E10="kW",VLOOKUP(L$4,'4. Billing Determinants'!$B$19:$R$41,12,0)/'4. Billing Determinants'!$M$41*$D10,))),0) -> 146.7225025 | M10: =IFERROR(IF(M$4="",0,IF($E10="kWh",VLOOKUP(M$4,'4. Billing Determinants'!$B$19:$R$41,11,0)/'4. Billing Determinants'!$L$41*$D10,IF($E10="kW",VLOOKUP(M$4,'4. Billing Determinants'!$B$19:$R$41,12,0)/'4. Billing Determinants'!$M$41*$D10,))),0) -> 1283.189715 | N10: =IFERROR(IF(N$4="",0,IF($E10="kWh",VLOOKUP(N$4,'4. Billing Determinants'!$B$19:$R$41,11,0)/'4. Billing Determinants'!$L$41*$D10,IF($E10="kW",VLOOKUP(N$4,'4. Billing Determinants'!$B$19:$R$41,12,0)/'4. Billing Determinants'!$M$41*$D10,))),0) -> 10660.73334 | O10: =IFERROR(IF(O$4="",0,IF($E10="kWh",VLOOKUP(O$4,'4. Billing Determinants'!$B$19:$R$41,11,0)/'4. Billing Determinants'!$L$41*$D10,IF($E10="kW",VLOOKUP(O$4,'4. Billing Determinants'!$B$19:$R$41,12,0)/'4. Billing Determinants'!$M$41*$D10,))),0) -> 0 | P10: =IFERROR(IF(P$4="",0,IF($E10="kWh",VLOOKUP(P$4,'4. Billing Determinants'!$B$19:$R$41,11,0)/'4. Billing Determinants'!$L$41*$D10,IF($E10="kW",VLOOKUP(P$4,'4. Billing Determinants'!$B$19:$R$41,12,0)/'4. Billing Determinants'!$M$41*$D10,))),0) -> 0 | Q10: =IFERROR(IF(Q$4="",0,IF($E10="kWh",VLOOKUP(Q$4,'4. Billing Determinants'!$B$19:$R$41,11,0)/'4. Billing Determinants'!$L$41*$D10,IF($E10="kW",VLOOKUP(Q$4,'4. Billing Determinants'!$B$19:$R$41,12,0)/'4. Billing Determinants'!$M$41*$D10,))),0) -> 0 | R10: =IFERROR(IF(R$4="",0,IF($E10="kWh",VLOOKUP(R$4,'4. Billing Determinants'!$B$19:$R$41,11,0)/'4. Billing Determinants'!$L$41*$D10,IF($E10="kW",VLOOKUP(R$4,'4. Billing Determinants'!$B$19:$R$41,12,0)/'4. Billing Determinants'!$M$41*$D10,))),0) -> 0 | S10: =IFERROR(IF(S$4="",0,IF($E10="kWh",VLOOKUP(S$4,'4. Billing Determinants'!$B$19:$R$41,11,0)/'4. Billing Determinants'!$L$41*$D10,IF($E10="kW",VLOOKUP(S$4,'4. Billing Determinants'!$B$19:$R$41,12,0)/'4. Billing Determinants'!$M$41*$D10,))),0) -> 0 | T10: =IFERROR(IF(T$4="",0,IF($E10="kWh",VLOOKUP(T$4,'4. Billing Determinants'!$B$19:$R$41,11,0)/'4. Billing Determinants'!$L$41*$D10,IF($E10="kW",VLOOKUP(T$4,'4. Billing Determinants'!$B$19:$R$41,12,0)/'4. Billing Determinants'!$M$41*$D10,))),0) -> 0 | U10: =IFERROR(IF(U$4="",0,IF($E10="kWh",VLOOKUP(U$4,'4. Billing Determinants'!$B$19:$R$41,11,0)/'4. Billing Determinants'!$L$41*$D10,IF($E10="kW",VLOOKUP(U$4,'4. Billing Determinants'!$B$19:$R$41,12,0)/'4. Billing Determinants'!$M$41*$D10,))),0) -> 0 | V10: =IFERROR(IF(V$4="",0,IF($E10="kWh",VLOOKUP(V$4,'4. Billing Determinants'!$B$19:$R$41,11,0)/'4. Billing Determinants'!$L$41*$D10,IF($E10="kW",VLOOKUP(V$4,'4. Billing Determinants'!$B$19:$R$41,12,0)/'4. Billing Determinants'!$M$41*$D10,))),0) -> 0 | W10: =IFERROR(IF(W$4="",0,IF($E10="kWh",VLOOKUP(W$4,'4. Billing Determinants'!$B$19:$R$41,11,0)/'4. Billing Determinants'!$L$41*$D10,IF($E10="kW",VLOOKUP(W$4,'4. Billing Determinants'!$B$19:$R$41,12,0)/'4. Billing Determinants'!$M$41*$D10,))),0) -> 0 | X10: =IFERROR(IF(X$4="",0,IF($E10="kWh",VLOOKUP(X$4,'4. Billing Determinants'!$B$19:$R$41,11,0)/'4. Billing Determinants'!$L$41*$D10,IF($E10="kW",VLOOKUP(X$4,'4. Billing Determinants'!$B$19:$R$41,12,0)/'4. Billing Determinants'!$M$41*$D10,))),0) -> 0 | Y10: =IFERROR(IF(Y$4="",0,IF($E10="kWh",VLOOKUP(Y$4,'4. Billing Determinants'!$B$19:$R$41,11,0)/'4. Billing Determinants'!$L$41*$D10,IF($E10="kW",VLOOKUP(Y$4,'4. Billing Determinants'!$B$19:$R$41,12,0)/'4. Billing Determinants'!$M$41*$D10,))),0) -> 0
A11: 8 | B11: RSVA - Global Adjustment | C11: 1589 | D11: ='5.2 GA Allocation'!C29 -> 1031918.93 | E11: Non-RPP kWh | F11: =IFERROR(IF(F$4="",0,IF($E11="kWh",VLOOKUP(F$4,'4. Billing Determinants'!$B$19:$R$41,4,0)/'4. Billing Determinants'!$E$41*$D11,IF($E11="kW",VLOOKUP(F$4,'4. Billing Determinants'!$B$19:$R$41,5,0)/'4. Billing Determinants'!$F$41*$D11,IF($E11="Non-RPP kWh",VLOOKUP(F$4,'4. Billing Determinants'!$B$19:$T$41,18,0)/'4. Billing Determinants'!$S$41*$D11,IF($E11="Distribution Rev.",VLOOKUP(F$4,'4. Billing Determinants'!$B$19:$R$41,8,0)/'4. Billing Determinants'!$I$41*$D11, VLOOKUP(F$4,'4. Billing Determinants'!$B$19:$R$41,3,0)/'4. Billing Determinants'!$D$41*$D11))))),0) -> 83576.9475 | G11: =IFERROR(IF(G$4="",0,IF($E11="kWh",VLOOKUP(G$4,'4. Billing Determinants'!$B$19:$R$41,4,0)/'4. Billing Determinants'!$E$41*$D11,IF($E11="kW",VLOOKUP(G$4,'4. Billing Determinants'!$B$19:$R$41,5,0)/'4. Billing Determinants'!$F$41*$D11,IF($E11="Non-RPP kWh",VLOOKUP(G$4,'4. Billing Determinants'!$B$19:$T$41,18,0)/'4. Billing Determinants'!$S$41*$D11,IF($E11="Distribution Rev.",VLOOKUP(G$4,'4. Billing Determinants'!$B$19:$R$41,8,0)/'4. Billing Determinants'!$I$41*$D11, VLOOKUP(G$4,'4. Billing Determinants'!$B$19:$R$41,3,0)/'4. Billing Determinants'!$D$41*$D11))))),0) -> 83020.02464 | H11: =IFERROR(IF(H$4="",0,IF($E11="kWh",VLOOKUP(H$4,'4. Billing Determinants'!$B$19:$R$41,4,0)/'4. Billing Determinants'!$E$41*$D11,IF($E11="kW",VLOOKUP(H$4,'4. Billing Determinants'!$B$19:$R$41,5,0)/'4. Billing Determinants'!$F$41*$D11,IF($E11="Non-RPP kWh",VLOOKUP(H$4,'4. Billing Determinants'!$B$19:$T$41,18,0)/'4. Billing Determinants'!$S$41*$D11,IF($E11="Distribution Rev.",VLOOKUP(H$4,'4. Billing Determinants'!$B$19:$R$41,8,0)/'4. Billing Determinants'!$I$41*$D11, VLOOKUP(H$4,'4. Billing Determinants'!$B$19:$R$41,3,0)/'4. Billing Determinants'!$D$41*$D11))))),0) -> 381805.4646 | I11: =IFERROR(IF(I$4="",0,IF($E11="kWh",VLOOKUP(I$4,'4. Billing Determinants'!$B$19:$R$41,4,0)/'4. Billing Determinants'!$E$41*$D11,IF($E11="kW",VLOOKUP(I$4,'4. Billing Determinants'!$B$19:$R$41,5,0)/'4. Billing Determinants'!$F$41*$D11,IF($E11="Non-RPP kWh",VLOOKUP(I$4,'4. Billing Determinants'!$B$19:$T$41,18,0)/'4. Billing Determinants'!$S$41*$D11,IF($E11="Distribution Rev.",VLOOKUP(I$4,'4. Billing Determinants'!$B$19:$R$41,8,0)/'4. Billing Determinants'!$I$41*$D11, VLOOKUP(I$4,'4. Billing Determinants'!$B$19:$R$41,3,0)/'4. Billing Determinants'!$D$41*$D11))))),0) -> 369770.2569 | J11: =IFERROR(IF(J$4="",0,IF($E11="kWh",VLOOKUP(J$4,'4. Billing Determinants'!$B$19:$R$41,4,0)/'4. Billing Determinants'!$E$41*$D11,IF($E11="kW",VLOOKUP(J$4,'4. Billing Determinants'!$B$19:$R$41,5,0)/'4. Billing Determinants'!$F$41*$D11,IF($E11="Non-RPP kWh",VLOOKUP(J$4,'4. Billing Determinants'!$B$19:$T$41,18,0)/'4. Billing Determinants'!$S$41*$D11,IF($E11="Distribution Rev.",VLOOKUP(J$4,'4. Billing Determinants'!$B$19:$R$41,8,0)/'4. Billing Determinants'!$I$41*$D11, VLOOKUP(J$4,'4. Billing Determinants'!$B$19:$R$41,3,0)/'4. Billing Determinants'!$D$41*$D11))))),0) -> 0 | K11: =IFERROR(IF(K$4="",0,IF($E11="kWh",VLOOKUP(K$4,'4. Billing Determinants'!$B$19:$R$41,4,0)/'4. Billing Determinants'!$E$41*$D11,IF($E11="kW",VLOOKUP(K$4,'4. Billing Determinants'!$B$19:$R$41,5,0)/'4. Billing Determinants'!$F$41*$D11,IF($E11="Non-RPP kWh",VLOOKUP(K$4,'4. Billing Determinants'!$B$19:$T$41,18,0)/'4. Billing Determinants'!$S$41*$D11,IF($E11="Distribution Rev.",VLOOKUP(K$4,'4. Billing Determinants'!$B$19:$R$41,8,0)/'4. Billing Determinants'!$I$41*$D11, VLOOKUP(K$4,'4. Billing Determinants'!$B$19:$R$41,3,0)/'4. Billing Determinants'!$D$41*$D11))))),0) -> 357.9941467 | L11: =IFERROR(IF(L$4="",0,IF($E11="kWh",VLOOKUP(L$4,'4. Billing Determinants'!$B$19:$R$41,4,0)/'4. Billing Determinants'!$E$41*$D11,IF($E11="kW",VLOOKUP(L$4,'4. Billing Determinants'!$B$19:$R$41,5,0)/'4. Billing Determinants'!$F$41*$D11,IF($E11="Non-RPP kWh",VLOOKUP(L$4,'4. Billing Determinants'!$B$19:$T$41,18,0)/'4. Billing Determinants'!$S$41*$D11,IF($E11="Distribution Rev.",VLOOKUP(L$4,'4. Billing Determinants'!$B$19:$R$41,8,0)/'4. Billing Determinants'!$I$41*$D11, VLOOKUP(L$4,'4. Billing Determinants'!$B$19:$R$41,3,0)/'4. Billing Determinants'!$D$41*$D11))))),0) -> 203.9908938 | M11: =IFERROR(IF(M$4="",0,IF($E11="kWh",VLOOKUP(M$4,'4. Billing Determinants'!$B$19:$R$41,4,0)/'4. Billing Determinants'!$E$41*$D11,IF($E11="kW",VLOOKUP(M$4,'4. Billing Determinants'!$B$19:$R$41,5,0)/'4. Billing Determinants'!$F$41*$D11,IF($E11="Non-RPP kWh",VLOOKUP(M$4,'4. Billing Determinants'!$B$19:$T$41,18,0)/'4. Billing Determinants'!$S$41*$D11,IF($E11="Distribution Rev.",VLOOKUP(M$4,'4. Billing Determinants'!$B$19:$R$41,8,0)/'4. Billing Determinants'!$I$41*$D11, VLOOKUP(M$4,'4. Billing Determinants'!$B$19:$R$41,3,0)/'4. Billing Determinants'!$D$41*$D11))))),0) -> 8434.286656 | N11: =IFERROR(IF(N$4="",0,IF($E11="kWh",VLOOKUP(N$4,'4. Billing Determinants'!$B$19:$R$41,4,0)/'4. Billing Determinants'!$E$41*$D11,IF($E11="kW",VLOOKUP(N$4,'4. Billing Determinants'!$B$19:$R$41,5,0)/'4. Billing Determinants'!$F$41*$D11,IF($E11="Non-RPP kWh",VLOOKUP(N$4,'4. Billing Determinants'!$B$19:$T$41,18,0)/'4. Billing Determinants'!$S$41*$D11,IF($E11="Distribution Rev.",VLOOKUP(N$4,'4. Billing Determinants'!$B$19:$R$41,8,0)/'4. Billing Determinants'!$I$41*$D11, VLOOKUP(N$4,'4. Billing Determinants'!$B$19:$R$41,3,0)/'4. Billing Determinants'!$D$41*$D11))))),0) -> 104749.9647 | O11: =IFERROR(IF(O$4="",0,IF($E11="kWh",VLOOKUP(O$4,'4. Billing Determinants'!$B$19:$R$41,4,0)/'4. Billing Determinants'!$E$41*$D11,IF($E11="kW",VLOOKUP(O$4,'4. Billing Determinants'!$B$19:$R$41,5,0)/'4. Billing Determinants'!$F$41*$D11,IF($E11="Non-RPP kWh",VLOOKUP(O$4,'4. Billing Determinants'!$B$19:$T$41,18,0)/'4. Billing Determinants'!$S$41*$D11,IF($E11="Distribution Rev.",VLOOKUP(O$4,'4. Billing Determinants'!$B$19:$R$41,8,0)/'4. Billing Determinants'!$I$41*$D11, VLOOKUP(O$4,'4. Billing Determinants'!$B$19:$R$41,3,0)/'4. Billing Determinants'!$D$41*$D11))))),0) -> 0 | P11: =IFERROR(IF(P$4="",0,IF($E11="kWh",VLOOKUP(P$4,'4. Billing Determinants'!$B$19:$R$41,4,0)/'4. Billing Determinants'!$E$41*$D11,IF($E11="kW",VLOOKUP(P$4,'4. Billing Determinants'!$B$19:$R$41,5,0)/'4. Billing Determinants'!$F$41*$D11,IF($E11="Non-RPP kWh",VLOOKUP(P$4,'4. Billing Determinants'!$B$19:$T$41,18,0)/'4. Billing Determinants'!$S$41*$D11,IF($E11="Distribution Rev.",VLOOKUP(P$4,'4. Billing Determinants'!$B$19:$R$41,8,0)/'4. Billing Determinants'!$I$41*$D11, VLOOKUP(P$4,'4. Billing Determinants'!$B$19:$R$41,3,0)/'4. Billing Determinants'!$D$41*$D11))))),0) -> 0 | Q11: =IFERROR(IF(Q$4="",0,IF($E11="kWh",VLOOKUP(Q$4,'4. Billing Determinants'!$B$19:$R$41,4,0)/'4. Billing Determinants'!$E$41*$D11,IF($E11="kW",VLOOKUP(Q$4,'4. Billing Determinants'!$B$19:$R$41,5,0)/'4. Billing Determinants'!$F$41*$D11,IF($E11="Non-RPP kWh",VLOOKUP(Q$4,'4. Billing Determinants'!$B$19:$T$41,18,0)/'4. Billing Determinants'!$S$41*$D11,IF($E11="Distribution Rev.",VLOOKUP(Q$4,'4. Billing Determinants'!$B$19:$R$41,8,0)/'4. Billing Determinants'!$I$41*$D11, VLOOKUP(Q$4,'4. Billing Determinants'!$B$19:$R$41,3,0)/'4. Billing Determinants'!$D$41*$D11))))),0) -> 0 | R11: =IFERROR(IF(R$4="",0,IF($E11="kWh",VLOOKUP(R$4,'4. Billing Determinants'!$B$19:$R$41,4,0)/'4. Billing Determinants'!$E$41*$D11,IF($E11="kW",VLOOKUP(R$4,'4. Billing Determinants'!$B$19:$R$41,5,0)/'4. Billing Determinants'!$F$41*$D11,IF($E11="Non-RPP kWh",VLOOKUP(R$4,'4. Billing Determinants'!$B$19:$T$41,18,0)/'4. Billing Determinants'!$S$41*$D11,IF($E11="Distribution Rev.",VLOOKUP(R$4,'4. Billing Determinants'!$B$19:$R$41,8,0)/'4. Billing Determinants'!$I$41*$D11, VLOOKUP(R$4,'4. Billing Determinants'!$B$19:$R$41,3,0)/'4. Billing Determinants'!$D$41*$D11))))),0) -> 0 | S11: =IFERROR(IF(S$4="",0,IF($E11="kWh",VLOOKUP(S$4,'4. Billing Determinants'!$B$19:$R$41,4,0)/'4. Billing Determinants'!$E$41*$D11,IF($E11="kW",VLOOKUP(S$4,'4. Billing Determinants'!$B$19:$R$41,5,0)/'4. Billing Determinants'!$F$41*$D11,IF($E11="Non-RPP kWh",VLOOKUP(S$4,'4. Billing Determinants'!$B$19:$T$41,18,0)/'4. Billing Determinants'!$S$41*$D11,IF($E11="Distribution Rev.",VLOOKUP(S$4,'4. Billing Determinants'!$B$19:$R$41,8,0)/'4. Billing Determinants'!$I$41*$D11, VLOOKUP(S$4,'4. Billing Determinants'!$B$19:$R$41,3,0)/'4. Billing Determinants'!$D$41*$D11))))),0) -> 0 | T11: =IFERROR(IF(T$4="",0,IF($E11="kWh",VLOOKUP(T$4,'4. Billing Determinants'!$B$19:$R$41,4,0)/'4. Billing Determinants'!$E$41*$D11,IF($E11="kW",VLOOKUP(T$4,'4. Billing Determinants'!$B$19:$R$41,5,0)/'4. Billing Determinants'!$F$41*$D11,IF($E11="Non-RPP kWh",VLOOKUP(T$4,'4. Billing Determinants'!$B$19:$T$41,18,0)/'4. Billing Determinants'!$S$41*$D11,IF($E11="Distribution Rev.",VLOOKUP(T$4,'4. Billing Determinants'!$B$19:$R$41,8,0)/'4. Billing Determinants'!$I$41*$D11, VLOOKUP(T$4,'4. Billing Determinants'!$B$19:$R$41,3,0)/'4. Billing Determinants'!$D$41*$D11))))),0) -> 0 | U11: =IFERROR(IF(U$4="",0,IF($E11="kWh",VLOOKUP(U$4,'4. Billing Determinants'!$B$19:$R$41,4,0)/'4. Billing Determinants'!$E$41*$D11,IF($E11="kW",VLOOKUP(U$4,'4. Billing Determinants'!$B$19:$R$41,5,0)/'4. Billing Determinants'!$F$41*$D11,IF($E11="Non-RPP kWh",VLOOKUP(U$4,'4. Billing Determinants'!$B$19:$T$41,18,0)/'4. Billing Determinants'!$S$41*$D11,IF($E11="Distribution Rev.",VLOOKUP(U$4,'4. Billing Determinants'!$B$19:$R$41,8,0)/'4. Billing Determinants'!$I$41*$D11, VLOOKUP(U$4,'4. Billing Determinants'!$B$19:$R$41,3,0)/'4. Billing Determinants'!$D$41*$D11))))),0) -> 0 | V11: =IFERROR(IF(V$4="",0,IF($E11="kWh",VLOOKUP(V$4,'4. Billing Determinants'!$B$19:$R$41,4,0)/'4. Billing Determinants'!$E$41*$D11,IF($E11="kW",VLOOKUP(V$4,'4. Billing Determinants'!$B$19:$R$41,5,0)/'4. Billing Determinants'!$F$41*$D11,IF($E11="Non-RPP kWh",VLOOKUP(V$4,'4. Billing Determinants'!$B$19:$T$41,18,0)/'4. Billing Determinants'!$S$41*$D11,IF($E11="Distribution Rev.",VLOOKUP(V$4,'4. Billing Determinants'!$B$19:$R$41,8,0)/'4. Billing Determinants'!$I$41*$D11, VLOOKUP(V$4,'4. Billing Determinants'!$B$19:$R$41,3,0)/'4. Billing Determinants'!$D$41*$D11))))),0) -> 0 | W11: =IFERROR(IF(W$4="",0,IF($E11="kWh",VLOOKUP(W$4,'4. Billing Determinants'!$B$19:$R$41,4,0)/'4. Billing Determinants'!$E$41*$D11,IF($E11="kW",VLOOKUP(W$4,'4. Billing Determinants'!$B$19:$R$41,5,0)/'4. Billing Determinants'!$F$41*$D11,IF($E11="Non-RPP kWh",VLOOKUP(W$4,'4. Billing Determinants'!$B$19:$T$41,18,0)/'4. Billing Determinants'!$S$41*$D11,IF($E11="Distribution Rev.",VLOOKUP(W$4,'4. Billing Determinants'!$B$19:$R$41,8,0)/'4. Billing Determinants'!$I$41*$D11, VLOOKUP(W$4,'4. Billing Determinants'!$B$19:$R$41,3,0)/'4. Billing Determinants'!$D$41*$D11))))),0) -> 0 | X11: =IFERROR(IF(X$4="",0,IF($E11="kWh",VLOOKUP(X$4,'4. Billing Determinants'!$B$19:$R$41,4,0)/'4. Billing Determinants'!$E$41*$D11,IF($E11="kW",VLOOKUP(X$4,'4. Billing Determinants'!$B$19:$R$41,5,0)/'4. Billing Determinants'!$F$41*$D11,IF($E11="Non-RPP kWh",VLOOKUP(X$4,'4. Billing Determinants'!$B$19:$T$41,18,0)/'4. Billing Determinants'!$S$41*$D11,IF($E11="Distribution Rev.",VLOOKUP(X$4,'4. Billing Determinants'!$B$19:$R$41,8,0)/'4. Billing Determinants'!$I$41*$D11, VLOOKUP(X$4,'4. Billing Determinants'!$B$19:$R$41,3,0)/'4. Billing Determinants'!$D$41*$D11))))),0) -> 0 | Y11: =IFERROR(IF(Y$4="",0,IF($E11="kWh",VLOOKUP(Y$4,'4. Billing Determinants'!$B$19:$R$41,4,0)/'4. Billing Determinants'!$E$41*$D11,IF($E11="kW",VLOOKUP(Y$4,'4. Billing Determinants'!$B$19:$R$41,5,0)/'4. Billing Determinants'!$F$41*$D11,IF($E11="Non-RPP kWh",VLOOKUP(Y$4,'4. Billing Determinants'!$B$19:$T$41,18,0)/'4. Billing Determinants'!$S$41*$D11,IF($E11="Distribution Rev.",VLOOKUP(Y$4,'4. Billing Determinants'!$B$19:$R$41,8,0)/'4. Billing Determinants'!$I$41*$D11, VLOOKUP(Y$4,'4. Billing Determinants'!$B$19:$R$41,3,0)/'4. Billing Determinants'!$D$41*$D11))))),0) -> 0
A12: 9 | B12: Disposition and Recovery/Refund of Regulatory Balances (2009) | C12: 1595 | D12: ='2. 2016 Continuity Schedule'!BT33 -> 0 | E12: % | F12: =IFERROR(IF(F$4="",0,IF($E12="kWh",VLOOKUP(F$4,'4. Billing Determinants'!$B$19:$R$41,4,0)/'4. Billing Determinants'!$E$41*$D12,IF($E12="kW",VLOOKUP(F$4,'4. Billing Determinants'!$B$19:$R$41,5,0)/'4. Billing Determinants'!$F$41*$D12,IF($E12="Non-RPP kWh",VLOOKUP(F$4,'4. Billing Determinants'!$B$19:$R$41,6,0)/'4. Billing Determinants'!$G$41*$D12, VLOOKUP(F$4,'4. Billing Determinants'!$B$19:$AA$41,20,0)*$D12)))),0) -> 0 | G12: =IFERROR(IF(G$4="",0,IF($E12="kWh",VLOOKUP(G$4,'4. Billing Determinants'!$B$19:$R$41,4,0)/'4. Billing Determinants'!$E$41*$D12,IF($E12="kW",VLOOKUP(G$4,'4. Billing Determinants'!$B$19:$R$41,5,0)/'4. Billing Determinants'!$F$41*$D12,IF($E12="Non-RPP kWh",VLOOKUP(G$4,'4. Billing Determinants'!$B$19:$R$41,6,0)/'4. Billing Determinants'!$G$41*$D12, VLOOKUP(G$4,'4. Billing Determinants'!$B$19:$AA$41,20,0)*$D12)))),0) -> 0 | H12: =IFERROR(IF(H$4="",0,IF($E12="kWh",VLOOKUP(H$4,'4. Billing Determinants'!$B$19:$R$41,4,0)/'4. Billing Determinants'!$E$41*$D12,IF($E12="kW",VLOOKUP(H$4,'4. Billing Determinants'!$B$19:$R$41,5,0)/'4. Billing Determinants'!$F$41*$D12,IF($E12="Non-RPP kWh",VLOOKUP(H$4,'4. Billing Determinants'!$B$19:$R$41,6,0)/'4. Billing Determinants'!$G$41*$D12, VLOOKUP(H$4,'4. Billing Determinants'!$B$19:$AA$41,20,0)*$D12)))),0) -> 0 | I12: =IFERROR(IF(I$4="",0,IF($E12="kWh",VLOOKUP(I$4,'4. Billing Determinants'!$B$19:$R$41,4,0)/'4. Billing Determinants'!$E$41*$D12,IF($E12="kW",VLOOKUP(I$4,'4. Billing Determinants'!$B$19:$R$41,5,0)/'4. Billing Determinants'!$F$41*$D12,IF($E12="Non-RPP kWh",VLOOKUP(I$4,'4. Billing Determinants'!$B$19:$R$41,6,0)/'4. Billing Determinants'!$G$41*$D12, VLOOKUP(I$4,'4. Billing Determinants'!$B$19:$AA$41,20,0)*$D12)))),0) -> 0 | J12: =IFERROR(IF(J$4="",0,IF($E12="kWh",VLOOKUP(J$4,'4. Billing Determinants'!$B$19:$R$41,4,0)/'4. Billing Determinants'!$E$41*$D12,IF($E12="kW",VLOOKUP(J$4,'4. Billing Determinants'!$B$19:$R$41,5,0)/'4. Billing Determinants'!$F$41*$D12,IF($E12="Non-RPP kWh",VLOOKUP(J$4,'4. Billing Determinants'!$B$19:$R$41,6,0)/'4. Billing Determinants'!$G$41*$D12, VLOOKUP(J$4,'4. Billing Determinants'!$B$19:$AA$41,20,0)*$D12)))),0) -> 0 | K12: =IFERROR(IF(K$4="",0,IF($E12="kWh",VLOOKUP(K$4,'4. Billing Determinants'!$B$19:$R$41,4,0)/'4. Billing Determinants'!$E$41*$D12,IF($E12="kW",VLOOKUP(K$4,'4. Billing Determinants'!$B$19:$R$41,5,0)/'4. Billing Determinants'!$F$41*$D12,IF($E12="Non-RPP kWh",VLOOKUP(K$4,'4. Billing Determinants'!$B$19:$R$41,6,0)/'4. Billing Determinants'!$G$41*$D12, VLOOKUP(K$4,'4. Billing Determinants'!$B$19:$AA$41,20,0)*$D12)))),0) -> 0 | L12: =IFERROR(IF(L$4="",0,IF($E12="kWh",VLOOKUP(L$4,'4. Billing Determinants'!$B$19:$R$41,4,0)/'4. Billing Determinants'!$E$41*$D12,IF($E12="kW",VLOOKUP(L$4,'4. Billing Determinants'!$B$19:$R$41,5,0)/'4. Billing Determinants'!$F$41*$D12,IF($E12="Non-RPP kWh",VLOOKUP(L$4,'4. Billing Determinants'!$B$19:$R$41,6,0)/'4. Billing Determinants'!$G$41*$D12, VLOOKUP(L$4,'4. Billing Determinants'!$B$19:$AA$41,20,0)*$D12)))),0) -> 0 | M12: =IFERROR(IF(M$4="",0,IF($E12="kWh",VLOOKUP(M$4,'4. Billing Determinants'!$B$19:$R$41,4,0)/'4. Billing Determinants'!$E$41*$D12,IF($E12="kW",VLOOKUP(M$4,'4. Billing Determinants'!$B$19:$R$41,5,0)/'4. Billing Determinants'!$F$41*$D12,IF($E12="Non-RPP kWh",VLOOKUP(M$4,'4. Billing Determinants'!$B$19:$R$41,6,0)/'4. Billing Determinants'!$G$41*$D12, VLOOKUP(M$4,'4. Billing Determinants'!$B$19:$AA$41,20,0)*$D12)))),0) -> 0 | N12: =IFERROR(IF(N$4="",0,IF($E12="kWh",VLOOKUP(N$4,'4. Billing Determinants'!$B$19:$R$41,4,0)/'4. Billing Determinants'!$E$41*$D12,IF($E12="kW",VLOOKUP(N$4,'4. Billing Determinants'!$B$19:$R$41,5,0)/'4. Billing Determinants'!$F$41*$D12,IF($E12="Non-RPP kWh",VLOOKUP(N$4,'4. Billing Determinants'!$B$19:$R$41,6,0)/'4. Billing Determinants'!$G$41*$D12, VLOOKUP(N$4,'4. Billing Determinants'!$B$19:$AA$41,20,0)*$D12)))),0) -> 0 | O12: =IFERROR(IF(O$4="",0,IF($E12="kWh",VLOOKUP(O$4,'4. Billing Determinants'!$B$19:$R$41,4,0)/'4. Billing Determinants'!$E$41*$D12,IF($E12="kW",VLOOKUP(O$4,'4. Billing Determinants'!$B$19:$R$41,5,0)/'4. Billing Determinants'!$F$41*$D12,IF($E12="Non-RPP kWh",VLOOKUP(O$4,'4. Billing Determinants'!$B$19:$R$41,6,0)/'4. Billing Determinants'!$G$41*$D12, VLOOKUP(O$4,'4. Billing Determinants'!$B$19:$AA$41,20,0)*$D12)))),0) -> 0 | P12: =IFERROR(IF(P$4="",0,IF($E12="kWh",VLOOKUP(P$4,'4. Billing Determinants'!$B$19:$R$41,4,0)/'4. Billing Determinants'!$E$41*$D12,IF($E12="kW",VLOOKUP(P$4,'4. Billing Determinants'!$B$19:$R$41,5,0)/'4. Billing Determinants'!$F$41*$D12,IF($E12="Non-RPP kWh",VLOOKUP(P$4,'4. Billing Determinants'!$B$19:$R$41,6,0)/'4. Billing Determinants'!$G$41*$D12, VLOOKUP(P$4,'4. Billing Determinants'!$B$19:$AA$41,20,0)*$D12)))),0) -> 0 | Q12: =IFERROR(IF(Q$4="",0,IF($E12="kWh",VLOOKUP(Q$4,'4. Billing Determinants'!$B$19:$R$41,4,0)/'4. Billing Determinants'!$E$41*$D12,IF($E12="kW",VLOOKUP(Q$4,'4. Billing Determinants'!$B$19:$R$41,5,0)/'4. Billing Determinants'!$F$41*$D12,IF($E12="Non-RPP kWh",VLOOKUP(Q$4,'4. Billing Determinants'!$B$19:$R$41,6,0)/'4. Billing Determinants'!$G$41*$D12, VLOOKUP(Q$4,'4. Billing Determinants'!$B$19:$AA$41,20,0)*$D12)))),0) -> 0 | R12: =IFERROR(IF(R$4="",0,IF($E12="kWh",VLOOKUP(R$4,'4. Billing Determinants'!$B$19:$R$41,4,0)/'4. Billing Determinants'!$E$41*$D12,IF($E12="kW",VLOOKUP(R$4,'4. Billing Determinants'!$B$19:$R$41,5,0)/'4. Billing Determinants'!$F$41*$D12,IF($E12="Non-RPP kWh",VLOOKUP(R$4,'4. Billing Determinants'!$B$19:$R$41,6,0)/'4. Billing Determinants'!$G$41*$D12, VLOOKUP(R$4,'4. Billing Determinants'!$B$19:$AA$41,20,0)*$D12)))),0) -> 0 | S12: =IFERROR(IF(S$4="",0,IF($E12="kWh",VLOOKUP(S$4,'4. Billing Determinants'!$B$19:$R$41,4,0)/'4. Billing Determinants'!$E$41*$D12,IF($E12="kW",VLOOKUP(S$4,'4. Billing Determinants'!$B$19:$R$41,5,0)/'4. Billing Determinants'!$F$41*$D12,IF($E12="Non-RPP kWh",VLOOKUP(S$4,'4. Billing Determinants'!$B$19:$R$41,6,0)/'4. Billing Determinants'!$G$41*$D12, VLOOKUP(S$4,'4. Billing Determinants'!$B$19:$AA$41,20,0)*$D12)))),0) -> 0 | T12: =IFERROR(IF(T$4="",0,IF($E12="kWh",VLOOKUP(T$4,'4. Billing Determinants'!$B$19:$R$41,4,0)/'4. Billing Determinants'!$E$41*$D12,IF($E12="kW",VLOOKUP(T$4,'4. Billing Determinants'!$B$19:$R$41,5,0)/'4. Billing Determinants'!$F$41*$D12,IF($E12="Non-RPP kWh",VLOOKUP(T$4,'4. Billing Determinants'!$B$19:$R$41,6,0)/'4. Billing Determinants'!$G$41*$D12, VLOOKUP(T$4,'4. Billing Determinants'!$B$19:$AA$41,20,0)*$D12)))),0) -> 0 | U12: =IFERROR(IF(U$4="",0,IF($E12="kWh",VLOOKUP(U$4,'4. Billing Determinants'!$B$19:$R$41,4,0)/'4. Billing Determinants'!$E$41*$D12,IF($E12="kW",VLOOKUP(U$4,'4. Billing Determinants'!$B$19:$R$41,5,0)/'4. Billing Determinants'!$F$41*$D12,IF($E12="Non-RPP kWh",VLOOKUP(U$4,'4. Billing Determinants'!$B$19:$R$41,6,0)/'4. Billing Determinants'!$G$41*$D12, VLOOKUP(U$4,'4. Billing Determinants'!$B$19:$AA$41,20,0)*$D12)))),0) -> 0 | V12: =IFERROR(IF(V$4="",0,IF($E12="kWh",VLOOKUP(V$4,'4. Billing Determinants'!$B$19:$R$41,4,0)/'4. Billing Determinants'!$E$41*$D12,IF($E12="kW",VLOOKUP(V$4,'4. Billing Determinants'!$B$19:$R$41,5,0)/'4. Billing Determinants'!$F$41*$D12,IF($E12="Non-RPP kWh",VLOOKUP(V$4,'4. Billing Determinants'!$B$19:$R$41,6,0)/'4. Billing Determinants'!$G$41*$D12, VLOOKUP(V$4,'4. Billing Determinants'!$B$19:$AA$41,20,0)*$D12)))),0) -> 0 | W12: =IFERROR(IF(W$4="",0,IF($E12="kWh",VLOOKUP(W$4,'4. Billing Determinants'!$B$19:$R$41,4,0)/'4. Billing Determinants'!$E$41*$D12,IF($E12="kW",VLOOKUP(W$4,'4. Billing Determinants'!$B$19:$R$41,5,0)/'4. Billing Determinants'!$F$41*$D12,IF($E12="Non-RPP kWh",VLOOKUP(W$4,'4. Billing Determinants'!$B$19:$R$41,6,0)/'4. Billing Determinants'!$G$41*$D12, VLOOKUP(W$4,'4. Billing Determinants'!$B$19:$AA$41,20,0)*$D12)))),0) -> 0 | X12: =IFERROR(IF(X$4="",0,IF($E12="kWh",VLOOKUP(X$4,'4. Billing Determinants'!$B$19:$R$41,4,0)/'4. Billing Determinants'!$E$41*$D12,IF($E12="kW",VLOOKUP(X$4,'4. Billing Determinants'!$B$19:$R$41,5,0)/'4. Billing Determinants'!$F$41*$D12,IF($E12="Non-RPP kWh",VLOOKUP(X$4,'4. Billing Determinants'!$B$19:$R$41,6,0)/'4. Billing Determinants'!$G$41*$D12, VLOOKUP(X$4,'4. Billing Determinants'!$B$19:$AA$41,20,0)*$D12)))),0) -> 0 | Y12: =IFERROR(IF(Y$4="",0,IF($E12="kWh",VLOOKUP(Y$4,'4. Billing Determinants'!$B$19:$R$41,4,0)/'4. Billing Determinants'!$E$41*$D12,IF($E12="kW",VLOOKUP(Y$4,'4. Billing Determinants'!$B$19:$R$41,5,0)/'4. Billing Determinants'!$F$41*$D12,IF($E12="Non-RPP kWh",VLOOKUP(Y$4,'4. Billing Determinants'!$B$19:$R$41,6,0)/'4. Billing Determinants'!$G$41*$D12, VLOOKUP(Y$4,'4. Billing Determinants'!$B$19:$AA$41,20,0)*$D12)))),0) -> 0
A13: 10 | B13: Disposition and Recovery/Refund of Regulatory Balances (2010) | C13: 1595 | D13: ='2. 2016 Continuity Schedule'!BT34 -> 0 | E13: % | F13: =IFERROR(IF(F$4="",0,IF($E13="kWh",VLOOKUP(F$4,'4. Billing Determinants'!$B$19:$R$41,4,0)/'4. Billing Determinants'!$E$41*$D13,IF($E13="kW",VLOOKUP(F$4,'4. Billing Determinants'!$B$19:$R$41,5,0)/'4. Billing Determinants'!$F$41*$D13,IF($E13="Non-RPP kWh",VLOOKUP(F$4,'4. Billing Determinants'!$B$19:$R$41,6,0)/'4. Billing Determinants'!$G$41*$D13,VLOOKUP(F$4,'4. Billing Determinants'!$B$19:$AA$41,21,0)*$D13)))),0) -> 0 | G13: =IFERROR(IF(G$4="",0,IF($E13="kWh",VLOOKUP(G$4,'4. Billing Determinants'!$B$19:$R$41,4,0)/'4. Billing Determinants'!$E$41*$D13,IF($E13="kW",VLOOKUP(G$4,'4. Billing Determinants'!$B$19:$R$41,5,0)/'4. Billing Determinants'!$F$41*$D13,IF($E13="Non-RPP kWh",VLOOKUP(G$4,'4. Billing Determinants'!$B$19:$R$41,6,0)/'4. Billing Determinants'!$G$41*$D13,VLOOKUP(G$4,'4. Billing Determinants'!$B$19:$AA$41,21,0)*$D13)))),0) -> 0 | H13: =IFERROR(IF(H$4="",0,IF($E13="kWh",VLOOKUP(H$4,'4. Billing Determinants'!$B$19:$R$41,4,0)/'4. Billing Determinants'!$E$41*$D13,IF($E13="kW",VLOOKUP(H$4,'4. Billing Determinants'!$B$19:$R$41,5,0)/'4. Billing Determinants'!$F$41*$D13,IF($E13="Non-RPP kWh",VLOOKUP(H$4,'4. Billing Determinants'!$B$19:$R$41,6,0)/'4. Billing Determinants'!$G$41*$D13,VLOOKUP(H$4,'4. Billing Determinants'!$B$19:$AA$41,21,0)*$D13)))),0) -> 0 | I13: =IFERROR(IF(I$4="",0,IF($E13="kWh",VLOOKUP(I$4,'4. Billing Determinants'!$B$19:$R$41,4,0)/'4. Billing Determinants'!$E$41*$D13,IF($E13="kW",VLOOKUP(I$4,'4. Billing Determinants'!$B$19:$R$41,5,0)/'4. Billing Determinants'!$F$41*$D13,IF($E13="Non-RPP kWh",VLOOKUP(I$4,'4. Billing Determinants'!$B$19:$R$41,6,0)/'4. Billing Determinants'!$G$41*$D13,VLOOKUP(I$4,'4. Billing Determinants'!$B$19:$AA$41,21,0)*$D13)))),0) -> 0 | J13: =IFERROR(IF(J$4="",0,IF($E13="kWh",VLOOKUP(J$4,'4. Billing Determinants'!$B$19:$R$41,4,0)/'4. Billing Determinants'!$E$41*$D13,IF($E13="kW",VLOOKUP(J$4,'4. Billing Determinants'!$B$19:$R$41,5,0)/'4. Billing Determinants'!$F$41*$D13,IF($E13="Non-RPP kWh",VLOOKUP(J$4,'4. Billing Determinants'!$B$19:$R$41,6,0)/'4. Billing Determinants'!$G$41*$D13,VLOOKUP(J$4,'4. Billing Determinants'!$B$19:$AA$41,21,0)*$D13)))),0) -> 0 | K13: =IFERROR(IF(K$4="",0,IF($E13="kWh",VLOOKUP(K$4,'4. Billing Determinants'!$B$19:$R$41,4,0)/'4. Billing Determinants'!$E$41*$D13,IF($E13="kW",VLOOKUP(K$4,'4. Billing Determinants'!$B$19:$R$41,5,0)/'4. Billing Determinants'!$F$41*$D13,IF($E13="Non-RPP kWh",VLOOKUP(K$4,'4. Billing Determinants'!$B$19:$R$41,6,0)/'4. Billing Determinants'!$G$41*$D13,VLOOKUP(K$4,'4. Billing Determinants'!$B$19:$AA$41,21,0)*$D13)))),0) -> 0 | L13: =IFERROR(IF(L$4="",0,IF($E13="kWh",VLOOKUP(L$4,'4. Billing Determinants'!$B$19:$R$41,4,0)/'4. Billing Determinants'!$E$41*$D13,IF($E13="kW",VLOOKUP(L$4,'4. Billing Determinants'!$B$19:$R$41,5,0)/'4. Billing Determinants'!$F$41*$D13,IF($E13="Non-RPP kWh",VLOOKUP(L$4,'4. Billing Determinants'!$B$19:$R$41,6,0)/'4. Billing Determinants'!$G$41*$D13,VLOOKUP(L$4,'4. Billing Determinants'!$B$19:$AA$41,21,0)*$D13)))),0) -> 0 | M13: =IFERROR(IF(M$4="",0,IF($E13="kWh",VLOOKUP(M$4,'4. Billing Determinants'!$B$19:$R$41,4,0)/'4. Billing Determinants'!$E$41*$D13,IF($E13="kW",VLOOKUP(M$4,'4. Billing Determinants'!$B$19:$R$41,5,0)/'4. Billing Determinants'!$F$41*$D13,IF($E13="Non-RPP kWh",VLOOKUP(M$4,'4. Billing Determinants'!$B$19:$R$41,6,0)/'4. Billing Determinants'!$G$41*$D13,VLOOKUP(M$4,'4. Billing Determinants'!$B$19:$AA$41,21,0)*$D13)))),0) -> 0 | N13: =IFERROR(IF(N$4="",0,IF($E13="kWh",VLOOKUP(N$4,'4. Billing Determinants'!$B$19:$R$41,4,0)/'4. Billing Determinants'!$E$41*$D13,IF($E13="kW",VLOOKUP(N$4,'4. Billing Determinants'!$B$19:$R$41,5,0)/'4. Billing Determinants'!$F$41*$D13,IF($E13="Non-RPP kWh",VLOOKUP(N$4,'4. Billing Determinants'!$B$19:$R$41,6,0)/'4. Billing Determinants'!$G$41*$D13,VLOOKUP(N$4,'4. Billing Determinants'!$B$19:$AA$41,21,0)*$D13)))),0) -> 0 | O13: =IFERROR(IF(O$4="",0,IF($E13="kWh",VLOOKUP(O$4,'4. Billing Determinants'!$B$19:$R$41,4,0)/'4. Billing Determinants'!$E$41*$D13,IF($E13="kW",VLOOKUP(O$4,'4. Billing Determinants'!$B$19:$R$41,5,0)/'4. Billing Determinants'!$F$41*$D13,IF($E13="Non-RPP kWh",VLOOKUP(O$4,'4. Billing Determinants'!$B$19:$R$41,6,0)/'4. Billing Determinants'!$G$41*$D13,VLOOKUP(O$4,'4. Billing Determinants'!$B$19:$AA$41,21,0)*$D13)))),0) -> 0 | P13: =IFERROR(IF(P$4="",0,IF($E13="kWh",VLOOKUP(P$4,'4. Billing Determinants'!$B$19:$R$41,4,0)/'4. Billing Determinants'!$E$41*$D13,IF($E13="kW",VLOOKUP(P$4,'4. Billing Determinants'!$B$19:$R$41,5,0)/'4. Billing Determinants'!$F$41*$D13,IF($E13="Non-RPP kWh",VLOOKUP(P$4,'4. Billing Determinants'!$B$19:$R$41,6,0)/'4. Billing Determinants'!$G$41*$D13,VLOOKUP(P$4,'4. Billing Determinants'!$B$19:$AA$41,21,0)*$D13)))),0) -> 0 | Q13: =IFERROR(IF(Q$4="",0,IF($E13="kWh",VLOOKUP(Q$4,'4. Billing Determinants'!$B$19:$R$41,4,0)/'4. Billing Determinants'!$E$41*$D13,IF($E13="kW",VLOOKUP(Q$4,'4. Billing Determinants'!$B$19:$R$41,5,0)/'4. Billing Determinants'!$F$41*$D13,IF($E13="Non-RPP kWh",VLOOKUP(Q$4,'4. Billing Determinants'!$B$19:$R$41,6,0)/'4. Billing Determinants'!$G$41*$D13,VLOOKUP(Q$4,'4. Billing Determinants'!$B$19:$AA$41,21,0)*$D13)))),0) -> 0 | R13: =IFERROR(IF(R$4="",0,IF($E13="kWh",VLOOKUP(R$4,'4. Billing Determinants'!$B$19:$R$41,4,0)/'4. Billing Determinants'!$E$41*$D13,IF($E13="kW",VLOOKUP(R$4,'4. Billing Determinants'!$B$19:$R$41,5,0)/'4. Billing Determinants'!$F$41*$D13,IF($E13="Non-RPP kWh",VLOOKUP(R$4,'4. Billing Determinants'!$B$19:$R$41,6,0)/'4. Billing Determinants'!$G$41*$D13,VLOOKUP(R$4,'4. Billing Determinants'!$B$19:$AA$41,21,0)*$D13)))),0) -> 0 | S13: =IFERROR(IF(S$4="",0,IF($E13="kWh",VLOOKUP(S$4,'4. Billing Determinants'!$B$19:$R$41,4,0)/'4. Billing Determinants'!$E$41*$D13,IF($E13="kW",VLOOKUP(S$4,'4. Billing Determinants'!$B$19:$R$41,5,0)/'4. Billing Determinants'!$F$41*$D13,IF($E13="Non-RPP kWh",VLOOKUP(S$4,'4. Billing Determinants'!$B$19:$R$41,6,0)/'4. Billing Determinants'!$G$41*$D13,VLOOKUP(S$4,'4. Billing Determinants'!$B$19:$AA$41,21,0)*$D13)))),0) -> 0 | T13: =IFERROR(IF(T$4="",0,IF($E13="kWh",VLOOKUP(T$4,'4. Billing Determinants'!$B$19:$R$41,4,0)/'4. Billing Determinants'!$E$41*$D13,IF($E13="kW",VLOOKUP(T$4,'4. Billing Determinants'!$B$19:$R$41,5,0)/'4. Billing Determinants'!$F$41*$D13,IF($E13="Non-RPP kWh",VLOOKUP(T$4,'4. Billing Determinants'!$B$19:$R$41,6,0)/'4. Billing Determinants'!$G$41*$D13,VLOOKUP(T$4,'4. Billing Determinants'!$B$19:$AA$41,21,0)*$D13)))),0) -> 0 | U13: =IFERROR(IF(U$4="",0,IF($E13="kWh",VLOOKUP(U$4,'4. Billing Determinants'!$B$19:$R$41,4,0)/'4. Billing Determinants'!$E$41*$D13,IF($E13="kW",VLOOKUP(U$4,'4. Billing Determinants'!$B$19:$R$41,5,0)/'4. Billing Determinants'!$F$41*$D13,IF($E13="Non-RPP kWh",VLOOKUP(U$4,'4. Billing Determinants'!$B$19:$R$41,6,0)/'4. Billing Determinants'!$G$41*$D13,VLOOKUP(U$4,'4. Billing Determinants'!$B$19:$AA$41,21,0)*$D13)))),0) -> 0 | V13: =IFERROR(IF(V$4="",0,IF($E13="kWh",VLOOKUP(V$4,'4. Billing Determinants'!$B$19:$R$41,4,0)/'4. Billing Determinants'!$E$41*$D13,IF($E13="kW",VLOOKUP(V$4,'4. Billing Determinants'!$B$19:$R$41,5,0)/'4. Billing Determinants'!$F$41*$D13,IF($E13="Non-RPP kWh",VLOOKUP(V$4,'4. Billing Determinants'!$B$19:$R$41,6,0)/'4. Billing Determinants'!$G$41*$D13,VLOOKUP(V$4,'4. Billing Determinants'!$B$19:$AA$41,21,0)*$D13)))),0) -> 0 | W13: =IFERROR(IF(W$4="",0,IF($E13="kWh",VLOOKUP(W$4,'4. Billing Determinants'!$B$19:$R$41,4,0)/'4. Billing Determinants'!$E$41*$D13,IF($E13="kW",VLOOKUP(W$4,'4. Billing Determinants'!$B$19:$R$41,5,0)/'4. Billing Determinants'!$F$41*$D13,IF($E13="Non-RPP kWh",VLOOKUP(W$4,'4. Billing Determinants'!$B$19:$R$41,6,0)/'4. Billing Determinants'!$G$41*$D13,VLOOKUP(W$4,'4. Billing Determinants'!$B$19:$AA$41,21,0)*$D13)))),0) -> 0 | X13: =IFERROR(IF(X$4="",0,IF($E13="kWh",VLOOKUP(X$4,'4. Billing Determinants'!$B$19:$R$41,4,0)/'4. Billing Determinants'!$E$41*$D13,IF($E13="kW",VLOOKUP(X$4,'4. Billing Determinants'!$B$19:$R$41,5,0)/'4. Billing Determinants'!$F$41*$D13,IF($E13="Non-RPP kWh",VLOOKUP(X$4,'4. Billing Determinants'!$B$19:$R$41,6,0)/'4. Billing Determinants'!$G$41*$D13,VLOOKUP(X$4,'4. Billing Determinants'!$B$19:$AA$41,21,0)*$D13)))),0) -> 0 | Y13: =IFERROR(IF(Y$4="",0,IF($E13="kWh",VLOOKUP(Y$4,'4. Billing Determinants'!$B$19:$R$41,4,0)/'4. Billing Determinants'!$E$41*$D13,IF($E13="kW",VLOOKUP(Y$4,'4. Billing Determinants'!$B$19:$R$41,5,0)/'4. Billing Determinants'!$F$41*$D13,IF($E13="Non-RPP kWh",VLOOKUP(Y$4,'4. Billing Determinants'!$B$19:$R$41,6,0)/'4. Billing Determinants'!$G$41*$D13,VLOOKUP(Y$4,'4. Billing Determinants'!$B$19:$AA$41,21,0)*$D13)))),0) -> 0
A14: 11 | B14: Disposition and Recovery/Refund of Regulatory Balances (2011) | C14: 1595 | D14: ='2. 2016 Continuity Schedule'!BT35 -> 0 | E14: % | F14: =IFERROR(IF(F$4="",0,IF($E14="kWh",VLOOKUP(F$4,'4. Billing Determinants'!$B$19:$R$41,4,0)/'4. Billing Determinants'!$E$41*$D14,IF($E14="kW",VLOOKUP(F$4,'4. Billing Determinants'!$B$19:$R$41,5,0)/'4. Billing Determinants'!$F$41*$D14,IF($E14="Non-RPP kWh",VLOOKUP(F$4,'4. Billing Determinants'!$B$19:$R$41,6,0)/'4. Billing Determinants'!$G$41*$D14, VLOOKUP(F$4,'4. Billing Determinants'!$B$19:$AA$41,22,0)*$D14)))),0) -> 0 | G14: =IFERROR(IF(G$4="",0,IF($E14="kWh",VLOOKUP(G$4,'4. Billing Determinants'!$B$19:$R$41,4,0)/'4. Billing Determinants'!$E$41*$D14,IF($E14="kW",VLOOKUP(G$4,'4. Billing Determinants'!$B$19:$R$41,5,0)/'4. Billing Determinants'!$F$41*$D14,IF($E14="Non-RPP kWh",VLOOKUP(G$4,'4. Billing Determinants'!$B$19:$R$41,6,0)/'4. Billing Determinants'!$G$41*$D14, VLOOKUP(G$4,'4. Billing Determinants'!$B$19:$AA$41,22,0)*$D14)))),0) -> 0 | H14: =IFERROR(IF(H$4="",0,IF($E14="kWh",VLOOKUP(H$4,'4. Billing Determinants'!$B$19:$R$41,4,0)/'4. Billing Determinants'!$E$41*$D14,IF($E14="kW",VLOOKUP(H$4,'4. Billing Determinants'!$B$19:$R$41,5,0)/'4. Billing Determinants'!$F$41*$D14,IF($E14="Non-RPP kWh",VLOOKUP(H$4,'4. Billing Determinants'!$B$19:$R$41,6,0)/'4. Billing Determinants'!$G$41*$D14, VLOOKUP(H$4,'4. Billing Determinants'!$B$19:$AA$41,22,0)*$D14)))),0) -> 0 | I14: =IFERROR(IF(I$4="",0,IF($E14="kWh",VLOOKUP(I$4,'4. Billing Determinants'!$B$19:$R$41,4,0)/'4. Billing Determinants'!$E$41*$D14,IF($E14="kW",VLOOKUP(I$4,'4. Billing Determinants'!$B$19:$R$41,5,0)/'4. Billing Determinants'!$F$41*$D14,IF($E14="Non-RPP kWh",VLOOKUP(I$4,'4. Billing Determinants'!$B$19:$R$41,6,0)/'4. Billing Determinants'!$G$41*$D14, VLOOKUP(I$4,'4. Billing Determinants'!$B$19:$AA$41,22,0)*$D14)))),0) -> 0 | J14: =IFERROR(IF(J$4="",0,IF($E14="kWh",VLOOKUP(J$4,'4. Billing Determinants'!$B$19:$R$41,4,0)/'4. Billing Determinants'!$E$41*$D14,IF($E14="kW",VLOOKUP(J$4,'4. Billing Determinants'!$B$19:$R$41,5,0)/'4. Billing Determinants'!$F$41*$D14,IF($E14="Non-RPP kWh",VLOOKUP(J$4,'4. Billing Determinants'!$B$19:$R$41,6,0)/'4. Billing Determinants'!$G$41*$D14, VLOOKUP(J$4,'4. Billing Determinants'!$B$19:$AA$41,22,0)*$D14)))),0) -> 0 | K14: =IFERROR(IF(K$4="",0,IF($E14="kWh",VLOOKUP(K$4,'4. Billing Determinants'!$B$19:$R$41,4,0)/'4. Billing Determinants'!$E$41*$D14,IF($E14="kW",VLOOKUP(K$4,'4. Billing Determinants'!$B$19:$R$41,5,0)/'4. Billing Determinants'!$F$41*$D14,IF($E14="Non-RPP kWh",VLOOKUP(K$4,'4. Billing Determinants'!$B$19:$R$41,6,0)/'4. Billing Determinants'!$G$41*$D14, VLOOKUP(K$4,'4. Billing Determinants'!$B$19:$AA$41,22,0)*$D14)))),0) -> 0 | L14: =IFERROR(IF(L$4="",0,IF($E14="kWh",VLOOKUP(L$4,'4. Billing Determinants'!$B$19:$R$41,4,0)/'4. Billing Determinants'!$E$41*$D14,IF($E14="kW",VLOOKUP(L$4,'4. Billing Determinants'!$B$19:$R$41,5,0)/'4. Billing Determinants'!$F$41*$D14,IF($E14="Non-RPP kWh",VLOOKUP(L$4,'4. Billing Determinants'!$B$19:$R$41,6,0)/'4. Billing Determinants'!$G$41*$D14, VLOOKUP(L$4,'4. Billing Determinants'!$B$19:$AA$41,22,0)*$D14)))),0) -> 0 | M14: =IFERROR(IF(M$4="",0,IF($E14="kWh",VLOOKUP(M$4,'4. Billing Determinants'!$B$19:$R$41,4,0)/'4. Billing Determinants'!$E$41*$D14,IF($E14="kW",VLOOKUP(M$4,'4. Billing Determinants'!$B$19:$R$41,5,0)/'4. Billing Determinants'!$F$41*$D14,IF($E14="Non-RPP kWh",VLOOKUP(M$4,'4. Billing Determinants'!$B$19:$R$41,6,0)/'4. Billing Determinants'!$G$41*$D14, VLOOKUP(M$4,'4. Billing Determinants'!$B$19:$AA$41,22,0)*$D14)))),0) -> 0 | N14: =IFERROR(IF(N$4="",0,IF($E14="kWh",VLOOKUP(N$4,'4. Billing Determinants'!$B$19:$R$41,4,0)/'4. Billing Determinants'!$E$41*$D14,IF($E14="kW",VLOOKUP(N$4,'4. Billing Determinants'!$B$19:$R$41,5,0)/'4. Billing Determinants'!$F$41*$D14,IF($E14="Non-RPP kWh",VLOOKUP(N$4,'4. Billing Determinants'!$B$19:$R$41,6,0)/'4. Billing Determinants'!$G$41*$D14, VLOOKUP(N$4,'4. Billing Determinants'!$B$19:$AA$41,22,0)*$D14)))),0) -> 0 | O14: =IFERROR(IF(O$4="",0,IF($E14="kWh",VLOOKUP(O$4,'4. Billing Determinants'!$B$19:$R$41,4,0)/'4. Billing Determinants'!$E$41*$D14,IF($E14="kW",VLOOKUP(O$4,'4. Billing Determinants'!$B$19:$R$41,5,0)/'4. Billing Determinants'!$F$41*$D14,IF($E14="Non-RPP kWh",VLOOKUP(O$4,'4. Billing Determinants'!$B$19:$R$41,6,0)/'4. Billing Determinants'!$G$41*$D14, VLOOKUP(O$4,'4. Billing Determinants'!$B$19:$AA$41,22,0)*$D14)))),0) -> 0 | P14: =IFERROR(IF(P$4="",0,IF($E14="kWh",VLOOKUP(P$4,'4. Billing Determinants'!$B$19:$R$41,4,0)/'4. Billing Determinants'!$E$41*$D14,IF($E14="kW",VLOOKUP(P$4,'4. Billing Determinants'!$B$19:$R$41,5,0)/'4. Billing Determinants'!$F$41*$D14,IF($E14="Non-RPP kWh",VLOOKUP(P$4,'4. Billing Determinants'!$B$19:$R$41,6,0)/'4. Billing Determinants'!$G$41*$D14, VLOOKUP(P$4,'4. Billing Determinants'!$B$19:$AA$41,22,0)*$D14)))),0) -> 0 | Q14: =IFERROR(IF(Q$4="",0,IF($E14="kWh",VLOOKUP(Q$4,'4. Billing Determinants'!$B$19:$R$41,4,0)/'4. Billing Determinants'!$E$41*$D14,IF($E14="kW",VLOOKUP(Q$4,'4. Billing Determinants'!$B$19:$R$41,5,0)/'4. Billing Determinants'!$F$41*$D14,IF($E14="Non-RPP kWh",VLOOKUP(Q$4,'4. Billing Determinants'!$B$19:$R$41,6,0)/'4. Billing Determinants'!$G$41*$D14, VLOOKUP(Q$4,'4. Billing Determinants'!$B$19:$AA$41,22,0)*$D14)))),0) -> 0 | R14: =IFERROR(IF(R$4="",0,IF($E14="kWh",VLOOKUP(R$4,'4. Billing Determinants'!$B$19:$R$41,4,0)/'4. Billing Determinants'!$E$41*$D14,IF($E14="kW",VLOOKUP(R$4,'4. Billing Determinants'!$B$19:$R$41,5,0)/'4. Billing Determinants'!$F$41*$D14,IF($E14="Non-RPP kWh",VLOOKUP(R$4,'4. Billing Determinants'!$B$19:$R$41,6,0)/'4. Billing Determinants'!$G$41*$D14, VLOOKUP(R$4,'4. Billing Determinants'!$B$19:$AA$41,22,0)*$D14)))),0) -> 0 | S14: =IFERROR(IF(S$4="",0,IF($E14="kWh",VLOOKUP(S$4,'4. Billing Determinants'!$B$19:$R$41,4,0)/'4. Billing Determinants'!$E$41*$D14,IF($E14="kW",VLOOKUP(S$4,'4. Billing Determinants'!$B$19:$R$41,5,0)/'4. Billing Determinants'!$F$41*$D14,IF($E14="Non-RPP kWh",VLOOKUP(S$4,'4. Billing Determinants'!$B$19:$R$41,6,0)/'4. Billing Determinants'!$G$41*$D14, VLOOKUP(S$4,'4. Billing Determinants'!$B$19:$AA$41,22,0)*$D14)))),0) -> 0 | T14: =IFERROR(IF(T$4="",0,IF($E14="kWh",VLOOKUP(T$4,'4. Billing Determinants'!$B$19:$R$41,4,0)/'4. Billing Determinants'!$E$41*$D14,IF($E14="kW",VLOOKUP(T$4,'4. Billing Determinants'!$B$19:$R$41,5,0)/'4. Billing Determinants'!$F$41*$D14,IF($E14="Non-RPP kWh",VLOOKUP(T$4,'4. Billing Determinants'!$B$19:$R$41,6,0)/'4. Billing Determinants'!$G$41*$D14, VLOOKUP(T$4,'4. Billing Determinants'!$B$19:$AA$41,22,0)*$D14)))),0) -> 0 | U14: =IFERROR(IF(U$4="",0,IF($E14="kWh",VLOOKUP(U$4,'4. Billing Determinants'!$B$19:$R$41,4,0)/'4. Billing Determinants'!$E$41*$D14,IF($E14="kW",VLOOKUP(U$4,'4. Billing Determinants'!$B$19:$R$41,5,0)/'4. Billing Determinants'!$F$41*$D14,IF($E14="Non-RPP kWh",VLOOKUP(U$4,'4. Billing Determinants'!$B$19:$R$41,6,0)/'4. Billing Determinants'!$G$41*$D14, VLOOKUP(U$4,'4. Billing Determinants'!$B$19:$AA$41,22,0)*$D14)))),0) -> 0 | V14: =IFERROR(IF(V$4="",0,IF($E14="kWh",VLOOKUP(V$4,'4. Billing Determinants'!$B$19:$R$41,4,0)/'4. Billing Determinants'!$E$41*$D14,IF($E14="kW",VLOOKUP(V$4,'4. Billing Determinants'!$B$19:$R$41,5,0)/'4. Billing Determinants'!$F$41*$D14,IF($E14="Non-RPP kWh",VLOOKUP(V$4,'4. Billing Determinants'!$B$19:$R$41,6,0)/'4. Billing Determinants'!$G$41*$D14, VLOOKUP(V$4,'4. Billing Determinants'!$B$19:$AA$41,22,0)*$D14)))),0) -> 0 | W14: =IFERROR(IF(W$4="",0,IF($E14="kWh",VLOOKUP(W$4,'4. Billing Determinants'!$B$19:$R$41,4,0)/'4. Billing Determinants'!$E$41*$D14,IF($E14="kW",VLOOKUP(W$4,'4. Billing Determinants'!$B$19:$R$41,5,0)/'4. Billing Determinants'!$F$41*$D14,IF($E14="Non-RPP kWh",VLOOKUP(W$4,'4. Billing Determinants'!$B$19:$R$41,6,0)/'4. Billing Determinants'!$G$41*$D14, VLOOKUP(W$4,'4. Billing Determinants'!$B$19:$AA$41,22,0)*$D14)))),0) -> 0 | X14: =IFERROR(IF(X$4="",0,IF($E14="kWh",VLOOKUP(X$4,'4. Billing Determinants'!$B$19:$R$41,4,0)/'4. Billing Determinants'!$E$41*$D14,IF($E14="kW",VLOOKUP(X$4,'4. Billing Determinants'!$B$19:$R$41,5,0)/'4. Billing Determinants'!$F$41*$D14,IF($E14="Non-RPP kWh",VLOOKUP(X$4,'4. Billing Determinants'!$B$19:$R$41,6,0)/'4. Billing Determinants'!$G$41*$D14, VLOOKUP(X$4,'4. Billing Determinants'!$B$19:$AA$41,22,0)*$D14)))),0) -> 0 | Y14: =IFERROR(IF(Y$4="",0,IF($E14="kWh",VLOOKUP(Y$4,'4. Billing Determinants'!$B$19:$R$41,4,0)/'4. Billing Determinants'!$E$41*$D14,IF($E14="kW",VLOOKUP(Y$4,'4. Billing Determinants'!$B$19:$R$41,5,0)/'4. Billing Determinants'!$F$41*$D14,IF($E14="Non-RPP kWh",VLOOKUP(Y$4,'4. Billing Determinants'!$B$19:$R$41,6,0)/'4. Billing Determinants'!$G$41*$D14, VLOOKUP(Y$4,'4. Billing Determinants'!$B$19:$AA$41,22,0)*$D14)))),0) -> 0
A15: 12 | B15: Disposition and Recovery/Refund of Regulatory Balances (2012) | C15: 1595 | D15: ='2. 2016 Continuity Schedule'!BT36 -> -602884 | E15: % | F15: =IFERROR(IF(F$4="",0,IF($E15="kWh",VLOOKUP(F$4,'4. Billing Determinants'!$B$19:$R$41,4,0)/'4. Billing Determinants'!$E$41*$D15,IF($E15="kW",VLOOKUP(F$4,'4. Billing Determinants'!$B$19:$R$41,5,0)/'4. Billing Determinants'!$F$41*$D15,IF($E15="Non-RPP kWh",VLOOKUP(F$4,'4. Billing Determinants'!$B$19:$R$41,6,0)/'4. Billing Determinants'!$G$41*$D15, VLOOKUP(F$4,'4. Billing Determinants'!$B$19:$AA$41,23,0)*$D15)))),0) -> -196479.8956 | G15: =IFERROR(IF(G$4="",0,IF($E15="kWh",VLOOKUP(G$4,'4. Billing Determinants'!$B$19:$R$41,4,0)/'4. Billing Determinants'!$E$41*$D15,IF($E15="kW",VLOOKUP(G$4,'4. Billing Determinants'!$B$19:$R$41,5,0)/'4. Billing Determinants'!$F$41*$D15,IF($E15="Non-RPP kWh",VLOOKUP(G$4,'4. Billing Determinants'!$B$19:$R$41,6,0)/'4. Billing Determinants'!$G$41*$D15, VLOOKUP(G$4,'4. Billing Determinants'!$B$19:$AA$41,23,0)*$D15)))),0) -> -60830.9956 | H15: =IFERROR(IF(H$4="",0,IF($E15="kWh",VLOOKUP(H$4,'4. Billing Determinants'!$B$19:$R$41,4,0)/'4. Billing Determinants'!$E$41*$D15,IF($E15="kW",VLOOKUP(H$4,'4. Billing Determinants'!$B$19:$R$41,5,0)/'4. Billing Determinants'!$F$41*$D15,IF($E15="Non-RPP kWh",VLOOKUP(H$4,'4. Billing Determinants'!$B$19:$R$41,6,0)/'4. Billing Determinants'!$G$41*$D15, VLOOKUP(H$4,'4. Billing Determinants'!$B$19:$AA$41,23,0)*$D15)))),0) -> -46060.3376 | I15: =IFERROR(IF(I$4="",0,IF($E15="kWh",VLOOKUP(I$4,'4. Billing Determinants'!$B$19:$R$41,4,0)/'4. Billing Determinants'!$E$41*$D15,IF($E15="kW",VLOOKUP(I$4,'4. Billing Determinants'!$B$19:$R$41,5,0)/'4. Billing Determinants'!$F$41*$D15,IF($E15="Non-RPP kWh",VLOOKUP(I$4,'4. Billing Determinants'!$B$19:$R$41,6,0)/'4. Billing Determinants'!$G$41*$D15, VLOOKUP(I$4,'4. Billing Determinants'!$B$19:$AA$41,23,0)*$D15)))),0) -> -113462.7688 | J15: =IFERROR(IF(J$4="",0,IF($E15="kWh",VLOOKUP(J$4,'4. Billing Determinants'!$B$19:$R$41,4,0)/'4. Billing Determinants'!$E$41*$D15,IF($E15="kW",VLOOKUP(J$4,'4. Billing Determinants'!$B$19:$R$41,5,0)/'4. Billing Determinants'!$F$41*$D15,IF($E15="Non-RPP kWh",VLOOKUP(J$4,'4. Billing Determinants'!$B$19:$R$41,6,0)/'4. Billing Determinants'!$G$41*$D15, VLOOKUP(J$4,'4. Billing Determinants'!$B$19:$AA$41,23,0)*$D15)))),0) -> -151022.442 | K15: =IFERROR(IF(K$4="",0,IF($E15="kWh",VLOOKUP(K$4,'4. Billing Determinants'!$B$19:$R$41,4,0)/'4. Billing Determinants'!$E$41*$D15,IF($E15="kW",VLOOKUP(K$4,'4. Billing Determinants'!$B$19:$R$41,5,0)/'4. Billing Determinants'!$F$41*$D15,IF($E15="Non-RPP kWh",VLOOKUP(K$4,'4. Billing Determinants'!$B$19:$R$41,6,0)/'4. Billing Determinants'!$G$41*$D15, VLOOKUP(K$4,'4. Billing Determinants'!$B$19:$AA$41,23,0)*$D15)))),0) -> -844.0376 | L15: =IFERROR(IF(L$4="",0,IF($E15="kWh",VLOOKUP(L$4,'4. Billing Determinants'!$B$19:$R$41,4,0)/'4. Billing Determinants'!$E$41*$D15,IF($E15="kW",VLOOKUP(L$4,'4. Billing Determinants'!$B$19:$R$41,5,0)/'4. Billing Determinants'!$F$41*$D15,IF($E15="Non-RPP kWh",VLOOKUP(L$4,'4. Billing Determinants'!$B$19:$R$41,6,0)/'4. Billing Determinants'!$G$41*$D15, VLOOKUP(L$4,'4. Billing Determinants'!$B$19:$AA$41,23,0)*$D15)))),0) -> -361.7304 | M15: =IFERROR(IF(M$4="",0,IF($E15="kWh",VLOOKUP(M$4,'4. Billing Determinants'!$B$19:$R$41,4,0)/'4. Billing Determinants'!$E$41*$D15,IF($E15="kW",VLOOKUP(M$4,'4. Billing Determinants'!$B$19:$R$41,5,0)/'4. Billing Determinants'!$F$41*$D15,IF($E15="Non-RPP kWh",VLOOKUP(M$4,'4. Billing Determinants'!$B$19:$R$41,6,0)/'4. Billing Determinants'!$G$41*$D15, VLOOKUP(M$4,'4. Billing Determinants'!$B$19:$AA$41,23,0)*$D15)))),0) -> -5124.514 | N15: =IFERROR(IF(N$4="",0,IF($E15="kWh",VLOOKUP(N$4,'4. Billing Determinants'!$B$19:$R$41,4,0)/'4. Billing Determinants'!$E$41*$D15,IF($E15="kW",VLOOKUP(N$4,'4. Billing Determinants'!$B$19:$R$41,5,0)/'4. Billing Determinants'!$F$41*$D15,IF($E15="Non-RPP kWh",VLOOKUP(N$4,'4. Billing Determinants'!$B$19:$R$41,6,0)/'4. Billing Determinants'!$G$41*$D15, VLOOKUP(N$4,'4. Billing Determinants'!$B$19:$AA$41,23,0)*$D15)))),0) -> -28636.99 | O15: =IFERROR(IF(O$4="",0,IF($E15="kWh",VLOOKUP(O$4,'4. Billing Determinants'!$B$19:$R$41,4,0)/'4. Billing Determinants'!$E$41*$D15,IF($E15="kW",VLOOKUP(O$4,'4. Billing Determinants'!$B$19:$R$41,5,0)/'4. Billing Determinants'!$F$41*$D15,IF($E15="Non-RPP kWh",VLOOKUP(O$4,'4. Billing Determinants'!$B$19:$R$41,6,0)/'4. Billing Determinants'!$G$41*$D15, VLOOKUP(O$4,'4. Billing Determinants'!$B$19:$AA$41,23,0)*$D15)))),0) -> 0 | P15: =IFERROR(IF(P$4="",0,IF($E15="kWh",VLOOKUP(P$4,'4. Billing Determinants'!$B$19:$R$41,4,0)/'4. Billing Determinants'!$E$41*$D15,IF($E15="kW",VLOOKUP(P$4,'4. Billing Determinants'!$B$19:$R$41,5,0)/'4. Billing Determinants'!$F$41*$D15,IF($E15="Non-RPP kWh",VLOOKUP(P$4,'4. Billing Determinants'!$B$19:$R$41,6,0)/'4. Billing Determinants'!$G$41*$D15, VLOOKUP(P$4,'4. Billing Determinants'!$B$19:$AA$41,23,0)*$D15)))),0) -> 0 | Q15: =IFERROR(IF(Q$4="",0,IF($E15="kWh",VLOOKUP(Q$4,'4. Billing Determinants'!$B$19:$R$41,4,0)/'4. Billing Determinants'!$E$41*$D15,IF($E15="kW",VLOOKUP(Q$4,'4. Billing Determinants'!$B$19:$R$41,5,0)/'4. Billing Determinants'!$F$41*$D15,IF($E15="Non-RPP kWh",VLOOKUP(Q$4,'4. Billing Determinants'!$B$19:$R$41,6,0)/'4. Billing Determinants'!$G$41*$D15, VLOOKUP(Q$4,'4. Billing Determinants'!$B$19:$AA$41,23,0)*$D15)))),0) -> 0 | R15: =IFERROR(IF(R$4="",0,IF($E15="kWh",VLOOKUP(R$4,'4. Billing Determinants'!$B$19:$R$41,4,0)/'4. Billing Determinants'!$E$41*$D15,IF($E15="kW",VLOOKUP(R$4,'4. Billing Determinants'!$B$19:$R$41,5,0)/'4. Billing Determinants'!$F$41*$D15,IF($E15="Non-RPP kWh",VLOOKUP(R$4,'4. Billing Determinants'!$B$19:$R$41,6,0)/'4. Billing Determinants'!$G$41*$D15, VLOOKUP(R$4,'4. Billing Determinants'!$B$19:$AA$41,23,0)*$D15)))),0) -> 0 | S15: =IFERROR(IF(S$4="",0,IF($E15="kWh",VLOOKUP(S$4,'4. Billing Determinants'!$B$19:$R$41,4,0)/'4. Billing Determinants'!$E$41*$D15,IF($E15="kW",VLOOKUP(S$4,'4. Billing Determinants'!$B$19:$R$41,5,0)/'4. Billing Determinants'!$F$41*$D15,IF($E15="Non-RPP kWh",VLOOKUP(S$4,'4. Billing Determinants'!$B$19:$R$41,6,0)/'4. Billing Determinants'!$G$41*$D15, VLOOKUP(S$4,'4. Billing Determinants'!$B$19:$AA$41,23,0)*$D15)))),0) -> 0 | T15: =IFERROR(IF(T$4="",0,IF($E15="kWh",VLOOKUP(T$4,'4. Billing Determinants'!$B$19:$R$41,4,0)/'4. Billing Determinants'!$E$41*$D15,IF($E15="kW",VLOOKUP(T$4,'4. Billing Determinants'!$B$19:$R$41,5,0)/'4. Billing Determinants'!$F$41*$D15,IF($E15="Non-RPP kWh",VLOOKUP(T$4,'4. Billing Determinants'!$B$19:$R$41,6,0)/'4. Billing Determinants'!$G$41*$D15, VLOOKUP(T$4,'4. Billing Determinants'!$B$19:$AA$41,23,0)*$D15)))),0) -> 0 | U15: =IFERROR(IF(U$4="",0,IF($E15="kWh",VLOOKUP(U$4,'4. Billing Determinants'!$B$19:$R$41,4,0)/'4. Billing Determinants'!$E$41*$D15,IF($E15="kW",VLOOKUP(U$4,'4. Billing Determinants'!$B$19:$R$41,5,0)/'4. Billing Determinants'!$F$41*$D15,IF($E15="Non-RPP kWh",VLOOKUP(U$4,'4. Billing Determinants'!$B$19:$R$41,6,0)/'4. Billing Determinants'!$G$41*$D15, VLOOKUP(U$4,'4. Billing Determinants'!$B$19:$AA$41,23,0)*$D15)))),0) -> 0 | V15: =IFERROR(IF(V$4="",0,IF($E15="kWh",VLOOKUP(V$4,'4. Billing Determinants'!$B$19:$R$41,4,0)/'4. Billing Determinants'!$E$41*$D15,IF($E15="kW",VLOOKUP(V$4,'4. Billing Determinants'!$B$19:$R$41,5,0)/'4. Billing Determinants'!$F$41*$D15,IF($E15="Non-RPP kWh",VLOOKUP(V$4,'4. Billing Determinants'!$B$19:$R$41,6,0)/'4. Billing Determinants'!$G$41*$D15, VLOOKUP(V$4,'4. Billing Determinants'!$B$19:$AA$41,23,0)*$D15)))),0) -> 0 | W15: =IFERROR(IF(W$4="",0,IF($E15="kWh",VLOOKUP(W$4,'4. Billing Determinants'!$B$19:$R$41,4,0)/'4. Billing Determinants'!$E$41*$D15,IF($E15="kW",VLOOKUP(W$4,'4. Billing Determinants'!$B$19:$R$41,5,0)/'4. Billing Determinants'!$F$41*$D15,IF($E15="Non-RPP kWh",VLOOKUP(W$4,'4. Billing Determinants'!$B$19:$R$41,6,0)/'4. Billing Determinants'!$G$41*$D15, VLOOKUP(W$4,'4. Billing Determinants'!$B$19:$AA$41,23,0)*$D15)))),0) -> 0 | X15: =IFERROR(IF(X$4="",0,IF($E15="kWh",VLOOKUP(X$4,'4. Billing Determinants'!$B$19:$R$41,4,0)/'4. Billing Determinants'!$E$41*$D15,IF($E15="kW",VLOOKUP(X$4,'4. Billing Determinants'!$B$19:$R$41,5,0)/'4. Billing Determinants'!$F$41*$D15,IF($E15="Non-RPP kWh",VLOOKUP(X$4,'4. Billing Determinants'!$B$19:$R$41,6,0)/'4. Billing Determinants'!$G$41*$D15, VLOOKUP(X$4,'4. Billing Determinants'!$B$19:$AA$41,23,0)*$D15)))),0) -> 0 | Y15: =IFERROR(IF(Y$4="",0,IF($E15="kWh",VLOOKUP(Y$4,'4. Billing Determinants'!$B$19:$R$41,4,0)/'4. Billing Determinants'!$E$41*$D15,IF($E15="kW",VLOOKUP(Y$4,'4. Billing Determinants'!$B$19:$R$41,5,0)/'4. Billing Determinants'!$F$41*$D15,IF($E15="Non-RPP kWh",VLOOKUP(Y$4,'4. Billing Determinants'!$B$19:$R$41,6,0)/'4. Billing Determinants'!$G$41*$D15, VLOOKUP(Y$4,'4. Billing Determinants'!$B$19:$AA$41,23,0)*$D15)))),0) -> 0
A16: 13 | B16: Disposition and Recovery/Refund of Regulatory Balances (2013) | C16: 1595 | D16: ='2. 2016 Continuity Schedule'!BT37 -> 0 | E16: % | F16: =IFERROR(IF(F$4="",0,IF($E16="kWh",VLOOKUP(F$4,'4. Billing Determinants'!$B$19:$R$41,4,0)/'4. Billing Determinants'!$E$41*$D16,IF($E16="kW",VLOOKUP(F$4,'4. Billing Determinants'!$B$19:$R$41,5,0)/'4. Billing Determinants'!$F$41*$D16,IF($E16="Non-RPP kWh",VLOOKUP(F$4,'4. Billing Determinants'!$B$19:$R$41,6,0)/'4. Billing Determinants'!$G$41*$D16, VLOOKUP(F$4,'4. Billing Determinants'!$B$19:$AA$41,24,0)*$D16)))),0) -> 0 | G16: =IFERROR(IF(G$4="",0,IF($E16="kWh",VLOOKUP(G$4,'4. Billing Determinants'!$B$19:$R$41,4,0)/'4. Billing Determinants'!$E$41*$D16,IF($E16="kW",VLOOKUP(G$4,'4. Billing Determinants'!$B$19:$R$41,5,0)/'4. Billing Determinants'!$F$41*$D16,IF($E16="Non-RPP kWh",VLOOKUP(G$4,'4. Billing Determinants'!$B$19:$R$41,6,0)/'4. Billing Determinants'!$G$41*$D16, VLOOKUP(G$4,'4. Billing Determinants'!$B$19:$AA$41,24,0)*$D16)))),0) -> 0 | H16: =IFERROR(IF(H$4="",0,IF($E16="kWh",VLOOKUP(H$4,'4. Billing Determinants'!$B$19:$R$41,4,0)/'4. Billing Determinants'!$E$41*$D16,IF($E16="kW",VLOOKUP(H$4,'4. Billing Determinants'!$B$19:$R$41,5,0)/'4. Billing Determinants'!$F$41*$D16,IF($E16="Non-RPP kWh",VLOOKUP(H$4,'4. Billing Determinants'!$B$19:$R$41,6,0)/'4. Billing Determinants'!$G$41*$D16, VLOOKUP(H$4,'4. Billing Determinants'!$B$19:$AA$41,24,0)*$D16)))),0) -> 0 | I16: =IFERROR(IF(I$4="",0,IF($E16="kWh",VLOOKUP(I$4,'4. Billing Determinants'!$B$19:$R$41,4,0)/'4. Billing Determinants'!$E$41*$D16,IF($E16="kW",VLOOKUP(I$4,'4. Billing Determinants'!$B$19:$R$41,5,0)/'4. Billing Determinants'!$F$41*$D16,IF($E16="Non-RPP kWh",VLOOKUP(I$4,'4. Billing Determinants'!$B$19:$R$41,6,0)/'4. Billing Determinants'!$G$41*$D16, VLOOKUP(I$4,'4. Billing Determinants'!$B$19:$AA$41,24,0)*$D16)))),0) -> 0 | J16: =IFERROR(IF(J$4="",0,IF($E16="kWh",VLOOKUP(J$4,'4. Billing Determinants'!$B$19:$R$41,4,0)/'4. Billing Determinants'!$E$41*$D16,IF($E16="kW",VLOOKUP(J$4,'4. Billing Determinants'!$B$19:$R$41,5,0)/'4. Billing Determinants'!$F$41*$D16,IF($E16="Non-RPP kWh",VLOOKUP(J$4,'4. Billing Determinants'!$B$19:$R$41,6,0)/'4. Billing Determinants'!$G$41*$D16, VLOOKUP(J$4,'4. Billing Determinants'!$B$19:$AA$41,24,0)*$D16)))),0) -> 0 | K16: =IFERROR(IF(K$4="",0,IF($E16="kWh",VLOOKUP(K$4,'4. Billing Determinants'!$B$19:$R$41,4,0)/'4. Billing Determinants'!$E$41*$D16,IF($E16="kW",VLOOKUP(K$4,'4. Billing Determinants'!$B$19:$R$41,5,0)/'4. Billing Determinants'!$F$41*$D16,IF($E16="Non-RPP kWh",VLOOKUP(K$4,'4. Billing Determinants'!$B$19:$R$41,6,0)/'4. Billing Determinants'!$G$41*$D16, VLOOKUP(K$4,'4. Billing Determinants'!$B$19:$AA$41,24,0)*$D16)))),0) -> 0 | L16: =IFERROR(IF(L$4="",0,IF($E16="kWh",VLOOKUP(L$4,'4. Billing Determinants'!$B$19:$R$41,4,0)/'4. Billing Determinants'!$E$41*$D16,IF($E16="kW",VLOOKUP(L$4,'4. Billing Determinants'!$B$19:$R$41,5,0)/'4. Billing Determinants'!$F$41*$D16,IF($E16="Non-RPP kWh",VLOOKUP(L$4,'4. Billing Determinants'!$B$19:$R$41,6,0)/'4. Billing Determinants'!$G$41*$D16, VLOOKUP(L$4,'4. Billing Determinants'!$B$19:$AA$41,24,0)*$D16)))),0) -> 0 | M16: =IFERROR(IF(M$4="",0,IF($E16="kWh",VLOOKUP(M$4,'4. Billing Determinants'!$B$19:$R$41,4,0)/'4. Billing Determinants'!$E$41*$D16,IF($E16="kW",VLOOKUP(M$4,'4. Billing Determinants'!$B$19:$R$41,5,0)/'4. Billing Determinants'!$F$41*$D16,IF($E16="Non-RPP kWh",VLOOKUP(M$4,'4. Billing Determinants'!$B$19:$R$41,6,0)/'4. Billing Determinants'!$G$41*$D16, VLOOKUP(M$4,'4. Billing Determinants'!$B$19:$AA$41,24,0)*$D16)))),0) -> 0 | N16: =IFERROR(IF(N$4="",0,IF($E16="kWh",VLOOKUP(N$4,'4. Billing Determinants'!$B$19:$R$41,4,0)/'4. Billing Determinants'!$E$41*$D16,IF($E16="kW",VLOOKUP(N$4,'4. Billing Determinants'!$B$19:$R$41,5,0)/'4. Billing Determinants'!$F$41*$D16,IF($E16="Non-RPP kWh",VLOOKUP(N$4,'4. Billing Determinants'!$B$19:$R$41,6,0)/'4. Billing Determinants'!$G$41*$D16, VLOOKUP(N$4,'4. Billing Determinants'!$B$19:$AA$41,24,0)*$D16)))),0) -> 0 | O16: =IFERROR(IF(O$4="",0,IF($E16="kWh",VLOOKUP(O$4,'4. Billing Determinants'!$B$19:$R$41,4,0)/'4. Billing Determinants'!$E$41*$D16,IF($E16="kW",VLOOKUP(O$4,'4. Billing Determinants'!$B$19:$R$41,5,0)/'4. Billing Determinants'!$F$41*$D16,IF($E16="Non-RPP kWh",VLOOKUP(O$4,'4. Billing Determinants'!$B$19:$R$41,6,0)/'4. Billing Determinants'!$G$41*$D16, VLOOKUP(O$4,'4. Billing Determinants'!$B$19:$AA$41,24,0)*$D16)))),0) -> 0 | P16: =IFERROR(IF(P$4="",0,IF($E16="kWh",VLOOKUP(P$4,'4. Billing Determinants'!$B$19:$R$41,4,0)/'4. Billing Determinants'!$E$41*$D16,IF($E16="kW",VLOOKUP(P$4,'4. Billing Determinants'!$B$19:$R$41,5,0)/'4. Billing Determinants'!$F$41*$D16,IF($E16="Non-RPP kWh",VLOOKUP(P$4,'4. Billing Determinants'!$B$19:$R$41,6,0)/'4. Billing Determinants'!$G$41*$D16, VLOOKUP(P$4,'4. Billing Determinants'!$B$19:$AA$41,24,0)*$D16)))),0) -> 0 | Q16: =IFERROR(IF(Q$4="",0,IF($E16="kWh",VLOOKUP(Q$4,'4. Billing Determinants'!$B$19:$R$41,4,0)/'4. Billing Determinants'!$E$41*$D16,IF($E16="kW",VLOOKUP(Q$4,'4. Billing Determinants'!$B$19:$R$41,5,0)/'4. Billing Determinants'!$F$41*$D16,IF($E16="Non-RPP kWh",VLOOKUP(Q$4,'4. Billing Determinants'!$B$19:$R$41,6,0)/'4. Billing Determinants'!$G$41*$D16, VLOOKUP(Q$4,'4. Billing Determinants'!$B$19:$AA$41,24,0)*$D16)))),0) -> 0 | R16: =IFERROR(IF(R$4="",0,IF($E16="kWh",VLOOKUP(R$4,'4. Billing Determinants'!$B$19:$R$41,4,0)/'4. Billing Determinants'!$E$41*$D16,IF($E16="kW",VLOOKUP(R$4,'4. Billing Determinants'!$B$19:$R$41,5,0)/'4. Billing Determinants'!$F$41*$D16,IF($E16="Non-RPP kWh",VLOOKUP(R$4,'4. Billing Determinants'!$B$19:$R$41,6,0)/'4. Billing Determinants'!$G$41*$D16, VLOOKUP(R$4,'4. Billing Determinants'!$B$19:$AA$41,24,0)*$D16)))),0) -> 0 | S16: =IFERROR(IF(S$4="",0,IF($E16="kWh",VLOOKUP(S$4,'4. Billing Determinants'!$B$19:$R$41,4,0)/'4. Billing Determinants'!$E$41*$D16,IF($E16="kW",VLOOKUP(S$4,'4. Billing Determinants'!$B$19:$R$41,5,0)/'4. Billing Determinants'!$F$41*$D16,IF($E16="Non-RPP kWh",VLOOKUP(S$4,'4. Billing Determinants'!$B$19:$R$41,6,0)/'4. Billing Determinants'!$G$41*$D16, VLOOKUP(S$4,'4. Billing Determinants'!$B$19:$AA$41,24,0)*$D16)))),0) -> 0 | T16: =IFERROR(IF(T$4="",0,IF($E16="kWh",VLOOKUP(T$4,'4. Billing Determinants'!$B$19:$R$41,4,0)/'4. Billing Determinants'!$E$41*$D16,IF($E16="kW",VLOOKUP(T$4,'4. Billing Determinants'!$B$19:$R$41,5,0)/'4. Billing Determinants'!$F$41*$D16,IF($E16="Non-RPP kWh",VLOOKUP(T$4,'4. Billing Determinants'!$B$19:$R$41,6,0)/'4. Billing Determinants'!$G$41*$D16, VLOOKUP(T$4,'4. Billing Determinants'!$B$19:$AA$41,24,0)*$D16)))),0) -> 0 | U16: =IFERROR(IF(U$4="",0,IF($E16="kWh",VLOOKUP(U$4,'4. Billing Determinants'!$B$19:$R$41,4,0)/'4. Billing Determinants'!$E$41*$D16,IF($E16="kW",VLOOKUP(U$4,'4. Billing Determinants'!$B$19:$R$41,5,0)/'4. Billing Determinants'!$F$41*$D16,IF($E16="Non-RPP kWh",VLOOKUP(U$4,'4. Billing Determinants'!$B$19:$R$41,6,0)/'4. Billing Determinants'!$G$41*$D16, VLOOKUP(U$4,'4. Billing Determinants'!$B$19:$AA$41,24,0)*$D16)))),0) -> 0 | V16: =IFERROR(IF(V$4="",0,IF($E16="kWh",VLOOKUP(V$4,'4. Billing Determinants'!$B$19:$R$41,4,0)/'4. Billing Determinants'!$E$41*$D16,IF($E16="kW",VLOOKUP(V$4,'4. Billing Determinants'!$B$19:$R$41,5,0)/'4. Billing Determinants'!$F$41*$D16,IF($E16="Non-RPP kWh",VLOOKUP(V$4,'4. Billing Determinants'!$B$19:$R$41,6,0)/'4. Billing Determinants'!$G$41*$D16, VLOOKUP(V$4,'4. Billing Determinants'!$B$19:$AA$41,24,0)*$D16)))),0) -> 0 | W16: =IFERROR(IF(W$4="",0,IF($E16="kWh",VLOOKUP(W$4,'4. Billing Determinants'!$B$19:$R$41,4,0)/'4. Billing Determinants'!$E$41*$D16,IF($E16="kW",VLOOKUP(W$4,'4. Billing Determinants'!$B$19:$R$41,5,0)/'4. Billing Determinants'!$F$41*$D16,IF($E16="Non-RPP kWh",VLOOKUP(W$4,'4. Billing Determinants'!$B$19:$R$41,6,0)/'4. Billing Determinants'!$G$41*$D16, VLOOKUP(W$4,'4. Billing Determinants'!$B$19:$AA$41,24,0)*$D16)))),0) -> 0 | X16: =IFERROR(IF(X$4="",0,IF($E16="kWh",VLOOKUP(X$4,'4. Billing Determinants'!$B$19:$R$41,4,0)/'4. Billing Determinants'!$E$41*$D16,IF($E16="kW",VLOOKUP(X$4,'4. Billing Determinants'!$B$19:$R$41,5,0)/'4. Billing Determinants'!$F$41*$D16,IF($E16="Non-RPP kWh",VLOOKUP(X$4,'4. Billing Determinants'!$B$19:$R$41,6,0)/'4. Billing Determinants'!$G$41*$D16, VLOOKUP(X$4,'4. Billing Determinants'!$B$19:$AA$41,24,0)*$D16)))),0) -> 0 | Y16: =IFERROR(IF(Y$4="",0,IF($E16="kWh",VLOOKUP(Y$4,'4. Billing Determinants'!$B$19:$R$41,4,0)/'4. Billing Determinants'!$E$41*$D16,IF($E16="kW",VLOOKUP(Y$4,'4. Billing Determinants'!$B$19:$R$41,5,0)/'4. Billing Determinants'!$F$41*$D16,IF($E16="Non-RPP kWh",VLOOKUP(Y$4,'4. Billing Determinants'!$B$19:$R$41,6,0)/'4. Billing Determinants'!$G$41*$D16, VLOOKUP(Y$4,'4. Billing Determinants'!$B$19:$AA$41,24,0)*$D16)))),0) -> 0
A17: 14 | B17: Disposition and Recovery/Refund of Regulatory Balances (2014) | C17: 1595 | D17: ='2. 2016 Continuity Schedule'!BT38 -> 640410 | E17: % | F17: =IFERROR(IF(F$4="",0,IF($E17="kWh",VLOOKUP(F$4,'4. Billing Determinants'!$B$19:$R$41,4,0)/'4. Billing Determinants'!$E$41*$D17,IF($E17="kW",VLOOKUP(F$4,'4. Billing Determinants'!$B$19:$R$41,5,0)/'4. Billing Determinants'!$F$41*$D17,IF($E17="Non-RPP kWh",VLOOKUP(F$4,'4. Billing Determinants'!$B$19:$R$41,6,0)/'4. Billing Determinants'!$G$41*$D17, VLOOKUP(F$4,'4. Billing Determinants'!$B$19:$AA$41,25,0)*$D17)))),0) -> 204931.2 | G17: =IFERROR(IF(G$4="",0,IF($E17="kWh",VLOOKUP(G$4,'4. Billing Determinants'!$B$19:$R$41,4,0)/'4. Billing Determinants'!$E$41*$D17,IF($E17="kW",VLOOKUP(G$4,'4. Billing Determinants'!$B$19:$R$41,5,0)/'4. Billing Determinants'!$F$41*$D17,IF($E17="Non-RPP kWh",VLOOKUP(G$4,'4. Billing Determinants'!$B$19:$R$41,6,0)/'4. Billing Determinants'!$G$41*$D17, VLOOKUP(G$4,'4. Billing Determinants'!$B$19:$AA$41,25,0)*$D17)))),0) -> 70445.1 | H17: =IFERROR(IF(H$4="",0,IF($E17="kWh",VLOOKUP(H$4,'4. Billing Determinants'!$B$19:$R$41,4,0)/'4. Billing Determinants'!$E$41*$D17,IF($E17="kW",VLOOKUP(H$4,'4. Billing Determinants'!$B$19:$R$41,5,0)/'4. Billing Determinants'!$F$41*$D17,IF($E17="Non-RPP kWh",VLOOKUP(H$4,'4. Billing Determinants'!$B$19:$R$41,6,0)/'4. Billing Determinants'!$G$41*$D17, VLOOKUP(H$4,'4. Billing Determinants'!$B$19:$AA$41,25,0)*$D17)))),0) -> 108869.7 | I17: =IFERROR(IF(I$4="",0,IF($E17="kWh",VLOOKUP(I$4,'4. Billing Determinants'!$B$19:$R$41,4,0)/'4. Billing Determinants'!$E$41*$D17,IF($E17="kW",VLOOKUP(I$4,'4. Billing Determinants'!$B$19:$R$41,5,0)/'4. Billing Determinants'!$F$41*$D17,IF($E17="Non-RPP kWh",VLOOKUP(I$4,'4. Billing Determinants'!$B$19:$R$41,6,0)/'4. Billing Determinants'!$G$41*$D17, VLOOKUP(I$4,'4. Billing Determinants'!$B$19:$AA$41,25,0)*$D17)))),0) -> 96061.5 | J17: =IFERROR(IF(J$4="",0,IF($E17="kWh",VLOOKUP(J$4,'4. Billing Determinants'!$B$19:$R$41,4,0)/'4. Billing Determinants'!$E$41*$D17,IF($E17="kW",VLOOKUP(J$4,'4. Billing Determinants'!$B$19:$R$41,5,0)/'4. Billing Determinants'!$F$41*$D17,IF($E17="Non-RPP kWh",VLOOKUP(J$4,'4. Billing Determinants'!$B$19:$R$41,6,0)/'4. Billing Determinants'!$G$41*$D17, VLOOKUP(J$4,'4. Billing Determinants'!$B$19:$AA$41,25,0)*$D17)))),0) -> 134486.1 | K17: =IFERROR(IF(K$4="",0,IF($E17="kWh",VLOOKUP(K$4,'4. Billing Determinants'!$B$19:$R$41,4,0)/'4. Billing Determinants'!$E$41*$D17,IF($E17="kW",VLOOKUP(K$4,'4. Billing Determinants'!$B$19:$R$41,5,0)/'4. Billing Determinants'!$F$41*$D17,IF($E17="Non-RPP kWh",VLOOKUP(K$4,'4. Billing Determinants'!$B$19:$R$41,6,0)/'4. Billing Determinants'!$G$41*$D17, VLOOKUP(K$4,'4. Billing Determinants'!$B$19:$AA$41,25,0)*$D17)))),0) -> 0 | L17: =IFERROR(IF(L$4="",0,IF($E17="kWh",VLOOKUP(L$4,'4. Billing Determinants'!$B$19:$R$41,4,0)/'4. Billing Determinants'!$E$41*$D17,IF($E17="kW",VLOOKUP(L$4,'4. Billing Determinants'!$B$19:$R$41,5,0)/'4. Billing Determinants'!$F$41*$D17,IF($E17="Non-RPP kWh",VLOOKUP(L$4,'4. Billing Determinants'!$B$19:$R$41,6,0)/'4. Billing Determinants'!$G$41*$D17, VLOOKUP(L$4,'4. Billing Determinants'!$B$19:$AA$41,25,0)*$D17)))),0) -> 0 | M17: =IFERROR(IF(M$4="",0,IF($E17="kWh",VLOOKUP(M$4,'4. Billing Determinants'!$B$19:$R$41,4,0)/'4. Billing Determinants'!$E$41*$D17,IF($E17="kW",VLOOKUP(M$4,'4. Billing Determinants'!$B$19:$R$41,5,0)/'4. Billing Determinants'!$F$41*$D17,IF($E17="Non-RPP kWh",VLOOKUP(M$4,'4. Billing Determinants'!$B$19:$R$41,6,0)/'4. Billing Determinants'!$G$41*$D17, VLOOKUP(M$4,'4. Billing Determinants'!$B$19:$AA$41,25,0)*$D17)))),0) -> 6404.1 | N17: =IFERROR(IF(N$4="",0,IF($E17="kWh",VLOOKUP(N$4,'4. Billing Determinants'!$B$19:$R$41,4,0)/'4. Billing Determinants'!$E$41*$D17,IF($E17="kW",VLOOKUP(N$4,'4. Billing Determinants'!$B$19:$R$41,5,0)/'4. Billing Determinants'!$F$41*$D17,IF($E17="Non-RPP kWh",VLOOKUP(N$4,'4. Billing Determinants'!$B$19:$R$41,6,0)/'4. Billing Determinants'!$G$41*$D17, VLOOKUP(N$4,'4. Billing Determinants'!$B$19:$AA$41,25,0)*$D17)))),0) -> 25616.4 | O17: =IFERROR(IF(O$4="",0,IF($E17="kWh",VLOOKUP(O$4,'4. Billing Determinants'!$B$19:$R$41,4,0)/'4. Billing Determinants'!$E$41*$D17,IF($E17="kW",VLOOKUP(O$4,'4. Billing Determinants'!$B$19:$R$41,5,0)/'4. Billing Determinants'!$F$41*$D17,IF($E17="Non-RPP kWh",VLOOKUP(O$4,'4. Billing Determinants'!$B$19:$R$41,6,0)/'4. Billing Determinants'!$G$41*$D17, VLOOKUP(O$4,'4. Billing Determinants'!$B$19:$AA$41,25,0)*$D17)))),0) -> 0 | P17: =IFERROR(IF(P$4="",0,IF($E17="kWh",VLOOKUP(P$4,'4. Billing Determinants'!$B$19:$R$41,4,0)/'4. Billing Determinants'!$E$41*$D17,IF($E17="kW",VLOOKUP(P$4,'4. Billing Determinants'!$B$19:$R$41,5,0)/'4. Billing Determinants'!$F$41*$D17,IF($E17="Non-RPP kWh",VLOOKUP(P$4,'4. Billing Determinants'!$B$19:$R$41,6,0)/'4. Billing Determinants'!$G$41*$D17, VLOOKUP(P$4,'4. Billing Determinants'!$B$19:$AA$41,25,0)*$D17)))),0) -> 0 | Q17: =IFERROR(IF(Q$4="",0,IF($E17="kWh",VLOOKUP(Q$4,'4. Billing Determinants'!$B$19:$R$41,4,0)/'4. Billing Determinants'!$E$41*$D17,IF($E17="kW",VLOOKUP(Q$4,'4. Billing Determinants'!$B$19:$R$41,5,0)/'4. Billing Determinants'!$F$41*$D17,IF($E17="Non-RPP kWh",VLOOKUP(Q$4,'4. Billing Determinants'!$B$19:$R$41,6,0)/'4. Billing Determinants'!$G$41*$D17, VLOOKUP(Q$4,'4. Billing Determinants'!$B$19:$AA$41,25,0)*$D17)))),0) -> 0 | R17: =IFERROR(IF(R$4="",0,IF($E17="kWh",VLOOKUP(R$4,'4. Billing Determinants'!$B$19:$R$41,4,0)/'4. Billing Determinants'!$E$41*$D17,IF($E17="kW",VLOOKUP(R$4,'4. Billing Determinants'!$B$19:$R$41,5,0)/'4. Billing Determinants'!$F$41*$D17,IF($E17="Non-RPP kWh",VLOOKUP(R$4,'4. Billing Determinants'!$B$19:$R$41,6,0)/'4. Billing Determinants'!$G$41*$D17, VLOOKUP(R$4,'4. Billing Determinants'!$B$19:$AA$41,25,0)*$D17)))),0) -> 0 | S17: =IFERROR(IF(S$4="",0,IF($E17="kWh",VLOOKUP(S$4,'4. Billing Determinants'!$B$19:$R$41,4,0)/'4. Billing Determinants'!$E$41*$D17,IF($E17="kW",VLOOKUP(S$4,'4. Billing Determinants'!$B$19:$R$41,5,0)/'4. Billing Determinants'!$F$41*$D17,IF($E17="Non-RPP kWh",VLOOKUP(S$4,'4. Billing Determinants'!$B$19:$R$41,6,0)/'4. Billing Determinants'!$G$41*$D17, VLOOKUP(S$4,'4. Billing Determinants'!$B$19:$AA$41,25,0)*$D17)))),0) -> 0 | T17: =IFERROR(IF(T$4="",0,IF($E17="kWh",VLOOKUP(T$4,'4. Billing Determinants'!$B$19:$R$41,4,0)/'4. Billing Determinants'!$E$41*$D17,IF($E17="kW",VLOOKUP(T$4,'4. Billing Determinants'!$B$19:$R$41,5,0)/'4. Billing Determinants'!$F$41*$D17,IF($E17="Non-RPP kWh",VLOOKUP(T$4,'4. Billing Determinants'!$B$19:$R$41,6,0)/'4. Billing Determinants'!$G$41*$D17, VLOOKUP(T$4,'4. Billing Determinants'!$B$19:$AA$41,25,0)*$D17)))),0) -> 0 | U17: =IFERROR(IF(U$4="",0,IF($E17="kWh",VLOOKUP(U$4,'4. Billing Determinants'!$B$19:$R$41,4,0)/'4. Billing Determinants'!$E$41*$D17,IF($E17="kW",VLOOKUP(U$4,'4. Billing Determinants'!$B$19:$R$41,5,0)/'4. Billing Determinants'!$F$41*$D17,IF($E17="Non-RPP kWh",VLOOKUP(U$4,'4. Billing Determinants'!$B$19:$R$41,6,0)/'4. Billing Determinants'!$G$41*$D17, VLOOKUP(U$4,'4. Billing Determinants'!$B$19:$AA$41,25,0)*$D17)))),0) -> 0 | V17: =IFERROR(IF(V$4="",0,IF($E17="kWh",VLOOKUP(V$4,'4. Billing Determinants'!$B$19:$R$41,4,0)/'4. Billing Determinants'!$E$41*$D17,IF($E17="kW",VLOOKUP(V$4,'4. Billing Determinants'!$B$19:$R$41,5,0)/'4. Billing Determinants'!$F$41*$D17,IF($E17="Non-RPP kWh",VLOOKUP(V$4,'4. Billing Determinants'!$B$19:$R$41,6,0)/'4. Billing Determinants'!$G$41*$D17, VLOOKUP(V$4,'4. Billing Determinants'!$B$19:$AA$41,25,0)*$D17)))),0) -> 0 | W17: =IFERROR(IF(W$4="",0,IF($E17="kWh",VLOOKUP(W$4,'4. Billing Determinants'!$B$19:$R$41,4,0)/'4. Billing Determinants'!$E$41*$D17,IF($E17="kW",VLOOKUP(W$4,'4. Billing Determinants'!$B$19:$R$41,5,0)/'4. Billing Determinants'!$F$41*$D17,IF($E17="Non-RPP kWh",VLOOKUP(W$4,'4. Billing Determinants'!$B$19:$R$41,6,0)/'4. Billing Determinants'!$G$41*$D17, VLOOKUP(W$4,'4. Billing Determinants'!$B$19:$AA$41,25,0)*$D17)))),0) -> 0 | X17: =IFERROR(IF(X$4="",0,IF($E17="kWh",VLOOKUP(X$4,'4. Billing Determinants'!$B$19:$R$41,4,0)/'4. Billing Determinants'!$E$41*$D17,IF($E17="kW",VLOOKUP(X$4,'4. Billing Determinants'!$B$19:$R$41,5,0)/'4. Billing Determinants'!$F$41*$D17,IF($E17="Non-RPP kWh",VLOOKUP(X$4,'4. Billing Determinants'!$B$19:$R$41,6,0)/'4. Billing Determinants'!$G$41*$D17, VLOOKUP(X$4,'4. Billing Determinants'!$B$19:$AA$41,25,0)*$D17)))),0) -> 0 | Y17: =IFERROR(IF(Y$4="",0,IF($E17="kWh",VLOOKUP(Y$4,'4. Billing Determinants'!$B$19:$R$41,4,0)/'4. Billing Determinants'!$E$41*$D17,IF($E17="kW",VLOOKUP(Y$4,'4. Billing Determinants'!$B$19:$R$41,5,0)/'4. Billing Determinants'!$F$41*$D17,IF($E17="Non-RPP kWh",VLOOKUP(Y$4,'4. Billing Determinants'!$B$19:$R$41,6,0)/'4. Billing Determinants'!$G$41*$D17, VLOOKUP(Y$4,'4. Billing Determinants'!$B$19:$AA$41,25,0)*$D17)))),0) -> 0
A18: 15 | B18: Disposition and Recovery/Refund of Regulatory Balances (2015) | C18: 1595 | D18: ='2. 2016 Continuity Schedule'!BT39 -> -52680 | E18: % | F18: =IFERROR(IF(F$4="",0,IF($E18="kWh",VLOOKUP(F$4,'4. Billing Determinants'!$B$19:$R$41,4,0)/'4. Billing Determinants'!$E$41*$D18,IF($E18="kW",VLOOKUP(F$4,'4. Billing Determinants'!$B$19:$R$41,5,0)/'4. Billing Determinants'!$F$41*$D18,IF($E18="Non-RPP kWh",VLOOKUP(F$4,'4. Billing Determinants'!$B$19:$R$41,6,0)/'4. Billing Determinants'!$G$41*$D18, VLOOKUP(F$4,'4. Billing Determinants'!$B$19:$AA$41,26,0)*$D18)))),0) -> -16857.6 | G18: =IFERROR(IF(G$4="",0,IF($E18="kWh",VLOOKUP(G$4,'4. Billing Determinants'!$B$19:$R$41,4,0)/'4. Billing Determinants'!$E$41*$D18,IF($E18="kW",VLOOKUP(G$4,'4. Billing Determinants'!$B$19:$R$41,5,0)/'4. Billing Determinants'!$F$41*$D18,IF($E18="Non-RPP kWh",VLOOKUP(G$4,'4. Billing Determinants'!$B$19:$R$41,6,0)/'4. Billing Determinants'!$G$41*$D18, VLOOKUP(G$4,'4. Billing Determinants'!$B$19:$AA$41,26,0)*$D18)))),0) -> -5794.8 | H18: =IFERROR(IF(H$4="",0,IF($E18="kWh",VLOOKUP(H$4,'4. Billing Determinants'!$B$19:$R$41,4,0)/'4. Billing Determinants'!$E$41*$D18,IF($E18="kW",VLOOKUP(H$4,'4. Billing Determinants'!$B$19:$R$41,5,0)/'4. Billing Determinants'!$F$41*$D18,IF($E18="Non-RPP kWh",VLOOKUP(H$4,'4. Billing Determinants'!$B$19:$R$41,6,0)/'4. Billing Determinants'!$G$41*$D18, VLOOKUP(H$4,'4. Billing Determinants'!$B$19:$AA$41,26,0)*$D18)))),0) -> -8955.6 | I18: =IFERROR(IF(I$4="",0,IF($E18="kWh",VLOOKUP(I$4,'4. Billing Determinants'!$B$19:$R$41,4,0)/'4. Billing Determinants'!$E$41*$D18,IF($E18="kW",VLOOKUP(I$4,'4. Billing Determinants'!$B$19:$R$41,5,0)/'4. Billing Determinants'!$F$41*$D18,IF($E18="Non-RPP kWh",VLOOKUP(I$4,'4. Billing Determinants'!$B$19:$R$41,6,0)/'4. Billing Determinants'!$G$41*$D18, VLOOKUP(I$4,'4. Billing Determinants'!$B$19:$AA$41,26,0)*$D18)))),0) -> -7902 | J18: =IFERROR(IF(J$4="",0,IF($E18="kWh",VLOOKUP(J$4,'4. Billing Determinants'!$B$19:$R$41,4,0)/'4. Billing Determinants'!$E$41*$D18,IF($E18="kW",VLOOKUP(J$4,'4. Billing Determinants'!$B$19:$R$41,5,0)/'4. Billing Determinants'!$F$41*$D18,IF($E18="Non-RPP kWh",VLOOKUP(J$4,'4. Billing Determinants'!$B$19:$R$41,6,0)/'4. Billing Determinants'!$G$41*$D18, VLOOKUP(J$4,'4. Billing Determinants'!$B$19:$AA$41,26,0)*$D18)))),0) -> -11062.8 | K18: =IFERROR(IF(K$4="",0,IF($E18="kWh",VLOOKUP(K$4,'4. Billing Determinants'!$B$19:$R$41,4,0)/'4. Billing Determinants'!$E$41*$D18,IF($E18="kW",VLOOKUP(K$4,'4. Billing Determinants'!$B$19:$R$41,5,0)/'4. Billing Determinants'!$F$41*$D18,IF($E18="Non-RPP kWh",VLOOKUP(K$4,'4. Billing Determinants'!$B$19:$R$41,6,0)/'4. Billing Determinants'!$G$41*$D18, VLOOKUP(K$4,'4. Billing Determinants'!$B$19:$AA$41,26,0)*$D18)))),0) -> 0 | L18: =IFERROR(IF(L$4="",0,IF($E18="kWh",VLOOKUP(L$4,'4. Billing Determinants'!$B$19:$R$41,4,0)/'4. Billing Determinants'!$E$41*$D18,IF($E18="kW",VLOOKUP(L$4,'4. Billing Determinants'!$B$19:$R$41,5,0)/'4. Billing Determinants'!$F$41*$D18,IF($E18="Non-RPP kWh",VLOOKUP(L$4,'4. Billing Determinants'!$B$19:$R$41,6,0)/'4. Billing Determinants'!$G$41*$D18, VLOOKUP(L$4,'4. Billing Determinants'!$B$19:$AA$41,26,0)*$D18)))),0) -> 0 | M18: =IFERROR(IF(M$4="",0,IF($E18="kWh",VLOOKUP(M$4,'4. Billing Determinants'!$B$19:$R$41,4,0)/'4. Billing Determinants'!$E$41*$D18,IF($E18="kW",VLOOKUP(M$4,'4. Billing Determinants'!$B$19:$R$41,5,0)/'4. Billing Determinants'!$F$41*$D18,IF($E18="Non-RPP kWh",VLOOKUP(M$4,'4. Billing Determinants'!$B$19:$R$41,6,0)/'4. Billing Determinants'!$G$41*$D18, VLOOKUP(M$4,'4. Billing Determinants'!$B$19:$AA$41,26,0)*$D18)))),0) -> -526.8 | N18: =IFERROR(IF(N$4="",0,IF($E18="kWh",VLOOKUP(N$4,'4. Billing Determinants'!$B$19:$R$41,4,0)/'4. Billing Determinants'!$E$41*$D18,IF($E18="kW",VLOOKUP(N$4,'4. Billing Determinants'!$B$19:$R$41,5,0)/'4. Billing Determinants'!$F$41*$D18,IF($E18="Non-RPP kWh",VLOOKUP(N$4,'4. Billing Determinants'!$B$19:$R$41,6,0)/'4. Billing Determinants'!$G$41*$D18, VLOOKUP(N$4,'4. Billing Determinants'!$B$19:$AA$41,26,0)*$D18)))),0) -> -2107.2 | O18: =IFERROR(IF(O$4="",0,IF($E18="kWh",VLOOKUP(O$4,'4. Billing Determinants'!$B$19:$R$41,4,0)/'4. Billing Determinants'!$E$41*$D18,IF($E18="kW",VLOOKUP(O$4,'4. Billing Determinants'!$B$19:$R$41,5,0)/'4. Billing Determinants'!$F$41*$D18,IF($E18="Non-RPP kWh",VLOOKUP(O$4,'4. Billing Determinants'!$B$19:$R$41,6,0)/'4. Billing Determinants'!$G$41*$D18, VLOOKUP(O$4,'4. Billing Determinants'!$B$19:$AA$41,26,0)*$D18)))),0) -> 0 | P18: =IFERROR(IF(P$4="",0,IF($E18="kWh",VLOOKUP(P$4,'4. Billing Determinants'!$B$19:$R$41,4,0)/'4. Billing Determinants'!$E$41*$D18,IF($E18="kW",VLOOKUP(P$4,'4. Billing Determinants'!$B$19:$R$41,5,0)/'4. Billing Determinants'!$F$41*$D18,IF($E18="Non-RPP kWh",VLOOKUP(P$4,'4. Billing Determinants'!$B$19:$R$41,6,0)/'4. Billing Determinants'!$G$41*$D18, VLOOKUP(P$4,'4. Billing Determinants'!$B$19:$AA$41,26,0)*$D18)))),0) -> 0 | Q18: =IFERROR(IF(Q$4="",0,IF($E18="kWh",VLOOKUP(Q$4,'4. Billing Determinants'!$B$19:$R$41,4,0)/'4. Billing Determinants'!$E$41*$D18,IF($E18="kW",VLOOKUP(Q$4,'4. Billing Determinants'!$B$19:$R$41,5,0)/'4. Billing Determinants'!$F$41*$D18,IF($E18="Non-RPP kWh",VLOOKUP(Q$4,'4. Billing Determinants'!$B$19:$R$41,6,0)/'4. Billing Determinants'!$G$41*$D18, VLOOKUP(Q$4,'4. Billing Determinants'!$B$19:$AA$41,26,0)*$D18)))),0) -> 0 | R18: =IFERROR(IF(R$4="",0,IF($E18="kWh",VLOOKUP(R$4,'4. Billing Determinants'!$B$19:$R$41,4,0)/'4. Billing Determinants'!$E$41*$D18,IF($E18="kW",VLOOKUP(R$4,'4. Billing Determinants'!$B$19:$R$41,5,0)/'4. Billing Determinants'!$F$41*$D18,IF($E18="Non-RPP kWh",VLOOKUP(R$4,'4. Billing Determinants'!$B$19:$R$41,6,0)/'4. Billing Determinants'!$G$41*$D18, VLOOKUP(R$4,'4. Billing Determinants'!$B$19:$AA$41,26,0)*$D18)))),0) -> 0 | S18: =IFERROR(IF(S$4="",0,IF($E18="kWh",VLOOKUP(S$4,'4. Billing Determinants'!$B$19:$R$41,4,0)/'4. Billing Determinants'!$E$41*$D18,IF($E18="kW",VLOOKUP(S$4,'4. Billing Determinants'!$B$19:$R$41,5,0)/'4. Billing Determinants'!$F$41*$D18,IF($E18="Non-RPP kWh",VLOOKUP(S$4,'4. Billing Determinants'!$B$19:$R$41,6,0)/'4. Billing Determinants'!$G$41*$D18, VLOOKUP(S$4,'4. Billing Determinants'!$B$19:$AA$41,26,0)*$D18)))),0) -> 0 | T18: =IFERROR(IF(T$4="",0,IF($E18="kWh",VLOOKUP(T$4,'4. Billing Determinants'!$B$19:$R$41,4,0)/'4. Billing Determinants'!$E$41*$D18,IF($E18="kW",VLOOKUP(T$4,'4. Billing Determinants'!$B$19:$R$41,5,0)/'4. Billing Determinants'!$F$41*$D18,IF($E18="Non-RPP kWh",VLOOKUP(T$4,'4. Billing Determinants'!$B$19:$R$41,6,0)/'4. Billing Determinants'!$G$41*$D18, VLOOKUP(T$4,'4. Billing Determinants'!$B$19:$AA$41,26,0)*$D18)))),0) -> 0 | U18: =IFERROR(IF(U$4="",0,IF($E18="kWh",VLOOKUP(U$4,'4. Billing Determinants'!$B$19:$R$41,4,0)/'4. Billing Determinants'!$E$41*$D18,IF($E18="kW",VLOOKUP(U$4,'4. Billing Determinants'!$B$19:$R$41,5,0)/'4. Billing Determinants'!$F$41*$D18,IF($E18="Non-RPP kWh",VLOOKUP(U$4,'4. Billing Determinants'!$B$19:$R$41,6,0)/'4. Billing Determinants'!$G$41*$D18, VLOOKUP(U$4,'4. Billing Determinants'!$B$19:$AA$41,26,0)*$D18)))),0) -> 0 | V18: =IFERROR(IF(V$4="",0,IF($E18="kWh",VLOOKUP(V$4,'4. Billing Determinants'!$B$19:$R$41,4,0)/'4. Billing Determinants'!$E$41*$D18,IF($E18="kW",VLOOKUP(V$4,'4. Billing Determinants'!$B$19:$R$41,5,0)/'4. Billing Determinants'!$F$41*$D18,IF($E18="Non-RPP kWh",VLOOKUP(V$4,'4. Billing Determinants'!$B$19:$R$41,6,0)/'4. Billing Determinants'!$G$41*$D18, VLOOKUP(V$4,'4. Billing Determinants'!$B$19:$AA$41,26,0)*$D18)))),0) -> 0 | W18: =IFERROR(IF(W$4="",0,IF($E18="kWh",VLOOKUP(W$4,'4. Billing Determinants'!$B$19:$R$41,4,0)/'4. Billing Determinants'!$E$41*$D18,IF($E18="kW",VLOOKUP(W$4,'4. Billing Determinants'!$B$19:$R$41,5,0)/'4. Billing Determinants'!$F$41*$D18,IF($E18="Non-RPP kWh",VLOOKUP(W$4,'4. Billing Determinants'!$B$19:$R$41,6,0)/'4. Billing Determinants'!$G$41*$D18, VLOOKUP(W$4,'4. Billing Determinants'!$B$19:$AA$41,26,0)*$D18)))),0) -> 0 | X18: =IFERROR(IF(X$4="",0,IF($E18="kWh",VLOOKUP(X$4,'4. Billing Determinants'!$B$19:$R$41,4,0)/'4. Billing Determinants'!$E$41*$D18,IF($E18="kW",VLOOKUP(X$4,'4. Billing Determinants'!$B$19:$R$41,5,0)/'4. Billing Determinants'!$F$41*$D18,IF($E18="Non-RPP kWh",VLOOKUP(X$4,'4. Billing Determinants'!$B$19:$R$41,6,0)/'4. Billing Determinants'!$G$41*$D18, VLOOKUP(X$4,'4. Billing Determinants'!$B$19:$AA$41,26,0)*$D18)))),0) -> 0 | Y18: =IFERROR(IF(Y$4="",0,IF($E18="kWh",VLOOKUP(Y$4,'4. Billing Determinants'!$B$19:$R$41,4,0)/'4. Billing Determinants'!$E$41*$D18,IF($E18="kW",VLOOKUP(Y$4,'4. Billing Determinants'!$B$19:$R$41,5,0)/'4. Billing Determinants'!$F$41*$D18,IF($E18="Non-RPP kWh",VLOOKUP(Y$4,'4. Billing Determinants'!$B$19:$R$41,6,0)/'4. Billing Determinants'!$G$41*$D18, VLOOKUP(Y$4,'4. Billing Determinants'!$B$19:$AA$41,26,0)*$D18)))),0) -> 0
B19: Disposition and Recovery/Refund of Regulatory Balances (2016) | C19: 1595 | D19: ='2. 2016 Continuity Schedule'!BT40 -> 0 | E19: % | F19: =IFERROR(IF(F$4="",0,IF($E19="kWh",VLOOKUP(F$4,'4. Billing Determinants'!$B$19:$R$41,4,0)/'4. Billing Determinants'!$E$41*$D19,IF($E19="kW",VLOOKUP(F$4,'4. Billing Determinants'!$B$19:$R$41,5,0)/'4. Billing Determinants'!$F$41*$D19,IF($E19="Non-RPP kWh",VLOOKUP(F$4,'4. Billing Determinants'!$B$19:$R$41,6,0)/'4. Billing Determinants'!$G$41*$D19, VLOOKUP(F$4,'4. Billing Determinants'!$B$19:$AB$41,27,0)*$D19)))),0) -> 0 | G19: =IFERROR(IF(G$4="",0,IF($E19="kWh",VLOOKUP(G$4,'4. Billing Determinants'!$B$19:$R$41,4,0)/'4. Billing Determinants'!$E$41*$D19,IF($E19="kW",VLOOKUP(G$4,'4. Billing Determinants'!$B$19:$R$41,5,0)/'4. Billing Determinants'!$F$41*$D19,IF($E19="Non-RPP kWh",VLOOKUP(G$4,'4. Billing Determinants'!$B$19:$R$41,6,0)/'4. Billing Determinants'!$G$41*$D19, VLOOKUP(G$4,'4. Billing Determinants'!$B$19:$AB$41,27,0)*$D19)))),0) -> 0 | H19: =IFERROR(IF(H$4="",0,IF($E19="kWh",VLOOKUP(H$4,'4. Billing Determinants'!$B$19:$R$41,4,0)/'4. Billing Determinants'!$E$41*$D19,IF($E19="kW",VLOOKUP(H$4,'4. Billing Determinants'!$B$19:$R$41,5,0)/'4. Billing Determinants'!$F$41*$D19,IF($E19="Non-RPP kWh",VLOOKUP(H$4,'4. Billing Determinants'!$B$19:$R$41,6,0)/'4. Billing Determinants'!$G$41*$D19, VLOOKUP(H$4,'4. Billing Determinants'!$B$19:$AB$41,27,0)*$D19)))),0) -> 0 | I19: =IFERROR(IF(I$4="",0,IF($E19="kWh",VLOOKUP(I$4,'4. Billing Determinants'!$B$19:$R$41,4,0)/'4. Billing Determinants'!$E$41*$D19,IF($E19="kW",VLOOKUP(I$4,'4. Billing Determinants'!$B$19:$R$41,5,0)/'4. Billing Determinants'!$F$41*$D19,IF($E19="Non-RPP kWh",VLOOKUP(I$4,'4. Billing Determinants'!$B$19:$R$41,6,0)/'4. Billing Determinants'!$G$41*$D19, VLOOKUP(I$4,'4. Billing Determinants'!$B$19:$AB$41,27,0)*$D19)))),0) -> 0 | J19: =IFERROR(IF(J$4="",0,IF($E19="kWh",VLOOKUP(J$4,'4. Billing Determinants'!$B$19:$R$41,4,0)/'4. Billing Determinants'!$E$41*$D19,IF($E19="kW",VLOOKUP(J$4,'4. Billing Determinants'!$B$19:$R$41,5,0)/'4. Billing Determinants'!$F$41*$D19,IF($E19="Non-RPP kWh",VLOOKUP(J$4,'4. Billing Determinants'!$B$19:$R$41,6,0)/'4. Billing Determinants'!$G$41*$D19, VLOOKUP(J$4,'4. Billing Determinants'!$B$19:$AB$41,27,0)*$D19)))),0) -> 0 | K19: =IFERROR(IF(K$4="",0,IF($E19="kWh",VLOOKUP(K$4,'4. Billing Determinants'!$B$19:$R$41,4,0)/'4. Billing Determinants'!$E$41*$D19,IF($E19="kW",VLOOKUP(K$4,'4. Billing Determinants'!$B$19:$R$41,5,0)/'4. Billing Determinants'!$F$41*$D19,IF($E19="Non-RPP kWh",VLOOKUP(K$4,'4. Billing Determinants'!$B$19:$R$41,6,0)/'4. Billing Determinants'!$G$41*$D19, VLOOKUP(K$4,'4. Billing Determinants'!$B$19:$AB$41,27,0)*$D19)))),0) -> 0 | L19: =IFERROR(IF(L$4="",0,IF($E19="kWh",VLOOKUP(L$4,'4. Billing Determinants'!$B$19:$R$41,4,0)/'4. Billing Determinants'!$E$41*$D19,IF($E19="kW",VLOOKUP(L$4,'4. Billing Determinants'!$B$19:$R$41,5,0)/'4. Billing Determinants'!$F$41*$D19,IF($E19="Non-RPP kWh",VLOOKUP(L$4,'4. Billing Determinants'!$B$19:$R$41,6,0)/'4. Billing Determinants'!$G$41*$D19, VLOOKUP(L$4,'4. Billing Determinants'!$B$19:$AB$41,27,0)*$D19)))),0) -> 0 | M19: =IFERROR(IF(M$4="",0,IF($E19="kWh",VLOOKUP(M$4,'4. Billing Determinants'!$B$19:$R$41,4,0)/'4. Billing Determinants'!$E$41*$D19,IF($E19="kW",VLOOKUP(M$4,'4. Billing Determinants'!$B$19:$R$41,5,0)/'4. Billing Determinants'!$F$41*$D19,IF($E19="Non-RPP kWh",VLOOKUP(M$4,'4. Billing Determinants'!$B$19:$R$41,6,0)/'4. Billing Determinants'!$G$41*$D19, VLOOKUP(M$4,'4. Billing Determinants'!$B$19:$AB$41,27,0)*$D19)))),0) -> 0 | N19: =IFERROR(IF(N$4="",0,IF($E19="kWh",VLOOKUP(N$4,'4. Billing Determinants'!$B$19:$R$41,4,0)/'4. Billing Determinants'!$E$41*$D19,IF($E19="kW",VLOOKUP(N$4,'4. Billing Determinants'!$B$19:$R$41,5,0)/'4. Billing Determinants'!$F$41*$D19,IF($E19="Non-RPP kWh",VLOOKUP(N$4,'4. Billing Determinants'!$B$19:$R$41,6,0)/'4. Billing Determinants'!$G$41*$D19, VLOOKUP(N$4,'4. Billing Determinants'!$B$19:$AB$41,27,0)*$D19)))),0) -> 0 | O19: =IFERROR(IF(O$4="",0,IF($E19="kWh",VLOOKUP(O$4,'4. Billing Determinants'!$B$19:$R$41,4,0)/'4. Billing Determinants'!$E$41*$D19,IF($E19="kW",VLOOKUP(O$4,'4. Billing Determinants'!$B$19:$R$41,5,0)/'4. Billing Determinants'!$F$41*$D19,IF($E19="Non-RPP kWh",VLOOKUP(O$4,'4. Billing Determinants'!$B$19:$R$41,6,0)/'4. Billing Determinants'!$G$41*$D19, VLOOKUP(O$4,'4. Billing Determinants'!$B$19:$AB$41,27,0)*$D19)))),0) -> 0 | P19: =IFERROR(IF(P$4="",0,IF($E19="kWh",VLOOKUP(P$4,'4. Billing Determinants'!$B$19:$R$41,4,0)/'4. Billing Determinants'!$E$41*$D19,IF($E19="kW",VLOOKUP(P$4,'4. Billing Determinants'!$B$19:$R$41,5,0)/'4. Billing Determinants'!$F$41*$D19,IF($E19="Non-RPP kWh",VLOOKUP(P$4,'4. Billing Determinants'!$B$19:$R$41,6,0)/'4. Billing Determinants'!$G$41*$D19, VLOOKUP(P$4,'4. Billing Determinants'!$B$19:$AB$41,27,0)*$D19)))),0) -> 0 | Q19: =IFERROR(IF(Q$4="",0,IF($E19="kWh",VLOOKUP(Q$4,'4. Billing Determinants'!$B$19:$R$41,4,0)/'4. Billing Determinants'!$E$41*$D19,IF($E19="kW",VLOOKUP(Q$4,'4. Billing Determinants'!$B$19:$R$41,5,0)/'4. Billing Determinants'!$F$41*$D19,IF($E19="Non-RPP kWh",VLOOKUP(Q$4,'4. Billing Determinants'!$B$19:$R$41,6,0)/'4. Billing Determinants'!$G$41*$D19, VLOOKUP(Q$4,'4. Billing Determinants'!$B$19:$AB$41,27,0)*$D19)))),0) -> 0 | R19: =IFERROR(IF(R$4="",0,IF($E19="kWh",VLOOKUP(R$4,'4. Billing Determinants'!$B$19:$R$41,4,0)/'4. Billing Determinants'!$E$41*$D19,IF($E19="kW",VLOOKUP(R$4,'4. Billing Determinants'!$B$19:$R$41,5,0)/'4. Billing Determinants'!$F$41*$D19,IF($E19="Non-RPP kWh",VLOOKUP(R$4,'4. Billing Determinants'!$B$19:$R$41,6,0)/'4. Billing Determinants'!$G$41*$D19, VLOOKUP(R$4,'4. Billing Determinants'!$B$19:$AB$41,27,0)*$D19)))),0) -> 0 | S19: =IFERROR(IF(S$4="",0,IF($E19="kWh",VLOOKUP(S$4,'4. Billing Determinants'!$B$19:$R$41,4,0)/'4. Billing Determinants'!$E$41*$D19,IF($E19="kW",VLOOKUP(S$4,'4. Billing Determinants'!$B$19:$R$41,5,0)/'4. Billing Determinants'!$F$41*$D19,IF($E19="Non-RPP kWh",VLOOKUP(S$4,'4. Billing Determinants'!$B$19:$R$41,6,0)/'4. Billing Determinants'!$G$41*$D19, VLOOKUP(S$4,'4. Billing Determinants'!$B$19:$AB$41,27,0)*$D19)))),0) -> 0 | T19: =IFERROR(IF(T$4="",0,IF($E19="kWh",VLOOKUP(T$4,'4. Billing Determinants'!$B$19:$R$41,4,0)/'4. Billing Determinants'!$E$41*$D19,IF($E19="kW",VLOOKUP(T$4,'4. Billing Determinants'!$B$19:$R$41,5,0)/'4. Billing Determinants'!$F$41*$D19,IF($E19="Non-RPP kWh",VLOOKUP(T$4,'4. Billing Determinants'!$B$19:$R$41,6,0)/'4. Billing Determinants'!$G$41*$D19, VLOOKUP(T$4,'4. Billing Determinants'!$B$19:$AB$41,27,0)*$D19)))),0) -> 0 | U19: =IFERROR(IF(U$4="",0,IF($E19="kWh",VLOOKUP(U$4,'4. Billing Determinants'!$B$19:$R$41,4,0)/'4. Billing Determinants'!$E$41*$D19,IF($E19="kW",VLOOKUP(U$4,'4. Billing Determinants'!$B$19:$R$41,5,0)/'4. Billing Determinants'!$F$41*$D19,IF($E19="Non-RPP kWh",VLOOKUP(U$4,'4. Billing Determinants'!$B$19:$R$41,6,0)/'4. Billing Determinants'!$G$41*$D19, VLOOKUP(U$4,'4. Billing Determinants'!$B$19:$AB$41,27,0)*$D19)))),0) -> 0 | V19: =IFERROR(IF(V$4="",0,IF($E19="kWh",VLOOKUP(V$4,'4. Billing Determinants'!$B$19:$R$41,4,0)/'4. Billing Determinants'!$E$41*$D19,IF($E19="kW",VLOOKUP(V$4,'4. Billing Determinants'!$B$19:$R$41,5,0)/'4. Billing Determinants'!$F$41*$D19,IF($E19="Non-RPP kWh",VLOOKUP(V$4,'4. Billing Determinants'!$B$19:$R$41,6,0)/'4. Billing Determinants'!$G$41*$D19, VLOOKUP(V$4,'4. Billing Determinants'!$B$19:$AB$41,27,0)*$D19)))),0) -> 0 | W19: =IFERROR(IF(W$4="",0,IF($E19="kWh",VLOOKUP(W$4,'4. Billing Determinants'!$B$19:$R$41,4,0)/'4. Billing Determinants'!$E$41*$D19,IF($E19="kW",VLOOKUP(W$4,'4. Billing Determinants'!$B$19:$R$41,5,0)/'4. Billing Determinants'!$F$41*$D19,IF($E19="Non-RPP kWh",VLOOKUP(W$4,'4. Billing Determinants'!$B$19:$R$41,6,0)/'4. Billing Determinants'!$G$41*$D19, VLOOKUP(W$4,'4. Billing Determinants'!$B$19:$AB$41,27,0)*$D19)))),0) -> 0 | X19: =IFERROR(IF(X$4="",0,IF($E19="kWh",VLOOKUP(X$4,'4. Billing Determinants'!$B$19:$R$41,4,0)/'4. Billing Determinants'!$E$41*$D19,IF($E19="kW",VLOOKUP(X$4,'4. Billing Determinants'!$B$19:$R$41,5,0)/'4. Billing Determinants'!$F$41*$D19,IF($E19="Non-RPP kWh",VLOOKUP(X$4,'4. Billing Determinants'!$B$19:$R$41,6,0)/'4. Billing Determinants'!$G$41*$D19, VLOOKUP(X$4,'4. Billing Determinants'!$B$19:$AB$41,27,0)*$D19)))),0) -> 0 | Y19: =IFERROR(IF(Y$4="",0,IF($E19="kWh",VLOOKUP(Y$4,'4. Billing Determinants'!$B$19:$R$41,4,0)/'4. Billing Determinants'!$E$41*$D19,IF($E19="kW",VLOOKUP(Y$4,'4. Billing Determinants'!$B$19:$R$41,5,0)/'4. Billing Determinants'!$F$41*$D19,IF($E19="Non-RPP kWh",VLOOKUP(Y$4,'4. Billing Determinants'!$B$19:$R$41,6,0)/'4. Billing Determinants'!$G$41*$D19, VLOOKUP(Y$4,'4. Billing Determinants'!$B$19:$AB$41,27,0)*$D19)))),0) -> 0
A20: 16 | B20: Total of Group 1 Accounts (excluding 1589) | D20: =SUM(D5:D19)-D11 -> 439293.08 | F20: =SUM(F5:F19)-F11 -> 113584.9412 | G20: =SUM(G5:G19)-G11 -> 49365.57553 | H20: =SUM(H5:H19)-H11 -> 162803.2573 | I20: =SUM(I5:I19)-I11 -> 29805.29843 | J20: 77045.89562 | K20: -342.8713269 | L20: -146.872822 | M20: 2631.864052 | N20: 10483.58048 | O20: 0 | P20: 0 | Q20: 0 | R20: 0 | S20: 0 | T20: 0 | U20: 0 | V20: 0 | W20: 0 | X20: 0 | Y20: =SUM(Y5:Y19)-Y11 -> 0
A21: 17
A22: 18 | B22: Other Regulatory Assets - Sub-Account - Deferred IFRS Transition Costs | C22: 1508 | D22: ='2. 2016 Continuity Schedule'!BT48 -> 309430.99 | E22: kWh | F22: =IFERROR(IF(F$4="",0,IF($E22="kWh",VLOOKUP(F$4,'4. Billing Determinants'!$B$19:$R$41,4,0)/'4. Billing Determinants'!$E$41*$D22,IF($E22="kW",VLOOKUP(F$4,'4. Billing Determinants'!$B$19:$R$41,5,0)/'4. Billing Determinants'!$F$41*$D22,IF($E22="Non-RPP kWh",VLOOKUP(F$4,'4. Billing Determinants'!$B$19:$R$41,6,0)/'4. Billing Determinants'!$G$41*$D22,IF($E22="Distribution Rev.",VLOOKUP(F$4,'4. Billing Determinants'!$B$19:$R$41,8,0)/'4. Billing Determinants'!$I$41*$D22, VLOOKUP(F$4,'4. Billing Determinants'!$B$19:$R$41,3,0)/'4. Billing Determinants'!$D$41*$D22))))),0) -> 87868.03623 | G22: =IFERROR(IF(G$4="",0,IF($E22="kWh",VLOOKUP(G$4,'4. Billing Determinants'!$B$19:$R$41,4,0)/'4. Billing Determinants'!$E$41*$D22,IF($E22="kW",VLOOKUP(G$4,'4. Billing Determinants'!$B$19:$R$41,5,0)/'4. Billing Determinants'!$F$41*$D22,IF($E22="Non-RPP kWh",VLOOKUP(G$4,'4. Billing Determinants'!$B$19:$R$41,6,0)/'4. Billing Determinants'!$G$41*$D22,IF($E22="Distribution Rev.",VLOOKUP(G$4,'4. Billing Determinants'!$B$19:$R$41,8,0)/'4. Billing Determinants'!$I$41*$D22, VLOOKUP(G$4,'4. Billing Determinants'!$B$19:$R$41,3,0)/'4. Billing Determinants'!$D$41*$D22))))),0) -> 31052.36225 | H22: =IFERROR(IF(H$4="",0,IF($E22="kWh",VLOOKUP(H$4,'4. Billing Determinants'!$B$19:$R$41,4,0)/'4. Billing Determinants'!$E$41*$D22,IF($E22="kW",VLOOKUP(H$4,'4. Billing Determinants'!$B$19:$R$41,5,0)/'4. Billing Determinants'!$F$41*$D22,IF($E22="Non-RPP kWh",VLOOKUP(H$4,'4. Billing Determinants'!$B$19:$R$41,6,0)/'4. Billing Determinants'!$G$41*$D22,IF($E22="Distribution Rev.",VLOOKUP(H$4,'4. Billing Determinants'!$B$19:$R$41,8,0)/'4. Billing Determinants'!$I$41*$D22, VLOOKUP(H$4,'4. Billing Determinants'!$B$19:$R$41,3,0)/'4. Billing Determinants'!$D$41*$D22))))),0) -> 72343.46544 | I22: =IFERROR(IF(I$4="",0,IF($E22="kWh",VLOOKUP(I$4,'4. Billing Determinants'!$B$19:$R$41,4,0)/'4. Billing Determinants'!$E$41*$D22,IF($E22="kW",VLOOKUP(I$4,'4. Billing Determinants'!$B$19:$R$41,5,0)/'4. Billing Determinants'!$F$41*$D22,IF($E22="Non-RPP kWh",VLOOKUP(I$4,'4. Billing Determinants'!$B$19:$R$41,6,0)/'4. Billing Determinants'!$G$41*$D22,IF($E22="Distribution Rev.",VLOOKUP(I$4,'4. Billing Determinants'!$B$19:$R$41,8,0)/'4. Billing Determinants'!$I$41*$D22, VLOOKUP(I$4,'4. Billing Determinants'!$B$19:$R$41,3,0)/'4. Billing Determinants'!$D$41*$D22))))),0) -> 36592.59489 | J22: =IFERROR(IF(J$4="",0,IF($E22="kWh",VLOOKUP(J$4,'4. Billing Determinants'!$B$19:$R$41,4,0)/'4. Billing Determinants'!$E$41*$D22,IF($E22="kW",VLOOKUP(J$4,'4. Billing Determinants'!$B$19:$R$41,5,0)/'4. Billing Determinants'!$F$41*$D22,IF($E22="Non-RPP kWh",VLOOKUP(J$4,'4. Billing Determinants'!$B$19:$R$41,6,0)/'4. Billing Determinants'!$G$41*$D22,IF($E22="Distribution Rev.",VLOOKUP(J$4,'4. Billing Determinants'!$B$19:$R$41,8,0)/'4. Billing Determinants'!$I$41*$D22, VLOOKUP(J$4,'4. Billing Determinants'!$B$19:$R$41,3,0)/'4. Billing Determinants'!$D$41*$D22))))),0) -> 69485.26629 | K22: =IFERROR(IF(K$4="",0,IF($E22="kWh",VLOOKUP(K$4,'4. Billing Determinants'!$B$19:$R$41,4,0)/'4. Billing Determinants'!$E$41*$D22,IF($E22="kW",VLOOKUP(K$4,'4. Billing Determinants'!$B$19:$R$41,5,0)/'4. Billing Determinants'!$F$41*$D22,IF($E22="Non-RPP kWh",VLOOKUP(K$4,'4. Billing Determinants'!$B$19:$R$41,6,0)/'4. Billing Determinants'!$G$41*$D22,IF($E22="Distribution Rev.",VLOOKUP(K$4,'4. Billing Determinants'!$B$19:$R$41,8,0)/'4. Billing Determinants'!$I$41*$D22, VLOOKUP(K$4,'4. Billing Determinants'!$B$19:$R$41,3,0)/'4. Billing Determinants'!$D$41*$D22))))),0) -> 332.7790092 | L22: =IFERROR(IF(L$4="",0,IF($E22="kWh",VLOOKUP(L$4,'4. Billing Determinants'!$B$19:$R$41,4,0)/'4. Billing Determinants'!$E$41*$D22,IF($E22="kW",VLOOKUP(L$4,'4. Billing Determinants'!$B$19:$R$41,5,0)/'4. Billing Determinants'!$F$41*$D22,IF($E22="Non-RPP kWh",VLOOKUP(L$4,'4. Billing Determinants'!$B$19:$R$41,6,0)/'4. Billing Determinants'!$G$41*$D22,IF($E22="Distribution Rev.",VLOOKUP(L$4,'4. Billing Determinants'!$B$19:$R$41,8,0)/'4. Billing Determinants'!$I$41*$D22, VLOOKUP(L$4,'4. Billing Determinants'!$B$19:$R$41,3,0)/'4. Billing Determinants'!$D$41*$D22))))),0) -> 142.6674056 | M22: =IFERROR(IF(M$4="",0,IF($E22="kWh",VLOOKUP(M$4,'4. Billing Determinants'!$B$19:$R$41,4,0)/'4. Billing Determinants'!$E$41*$D22,IF($E22="kW",VLOOKUP(M$4,'4. Billing Determinants'!$B$19:$R$41,5,0)/'4. Billing Determinants'!$F$41*$D22,IF($E22="Non-RPP kWh",VLOOKUP(M$4,'4. Billing Determinants'!$B$19:$R$41,6,0)/'4. Billing Determinants'!$G$41*$D22,IF($E22="Distribution Rev.",VLOOKUP(M$4,'4. Billing Determinants'!$B$19:$R$41,8,0)/'4. Billing Determinants'!$I$41*$D22, VLOOKUP(M$4,'4. Billing Determinants'!$B$19:$R$41,3,0)/'4. Billing Determinants'!$D$41*$D22))))),0) -> 1247.725089 | N22: =IFERROR(IF(N$4="",0,IF($E22="kWh",VLOOKUP(N$4,'4. Billing Determinants'!$B$19:$R$41,4,0)/'4. Billing Determinants'!$E$41*$D22,IF($E22="kW",VLOOKUP(N$4,'4. Billing Determinants'!$B$19:$R$41,5,0)/'4. Billing Determinants'!$F$41*$D22,IF($E22="Non-RPP kWh",VLOOKUP(N$4,'4. Billing Determinants'!$B$19:$R$41,6,0)/'4. Billing Determinants'!$G$41*$D22,IF($E22="Distribution Rev.",VLOOKUP(N$4,'4. Billing Determinants'!$B$19:$R$41,8,0)/'4. Billing Determinants'!$I$41*$D22, VLOOKUP(N$4,'4. Billing Determinants'!$B$19:$R$41,3,0)/'4. Billing Determinants'!$D$41*$D22))))),0) -> 10366.09341 | O22: =IFERROR(IF(O$4="",0,IF($E22="kWh",VLOOKUP(O$4,'4. Billing Determinants'!$B$19:$R$41,4,0)/'4. Billing Determinants'!$E$41*$D22,IF($E22="kW",VLOOKUP(O$4,'4. Billing Determinants'!$B$19:$R$41,5,0)/'4. Billing Determinants'!$F$41*$D22,IF($E22="Non-RPP kWh",VLOOKUP(O$4,'4. Billing Determinants'!$B$19:$R$41,6,0)/'4. Billing Determinants'!$G$41*$D22,IF($E22="Distribution Rev.",VLOOKUP(O$4,'4. Billing Determinants'!$B$19:$R$41,8,0)/'4. Billing Determinants'!$I$41*$D22, VLOOKUP(O$4,'4. Billing Determinants'!$B$19:$R$41,3,0)/'4. Billing Determinants'!$D$41*$D22))))),0) -> 0 | P22: =IFERROR(IF(P$4="",0,IF($E22="kWh",VLOOKUP(P$4,'4. Billing Determinants'!$B$19:$R$41,4,0)/'4. Billing Determinants'!$E$41*$D22,IF($E22="kW",VLOOKUP(P$4,'4. Billing Determinants'!$B$19:$R$41,5,0)/'4. Billing Determinants'!$F$41*$D22,IF($E22="Non-RPP kWh",VLOOKUP(P$4,'4. Billing Determinants'!$B$19:$R$41,6,0)/'4. Billing Determinants'!$G$41*$D22,IF($E22="Distribution Rev.",VLOOKUP(P$4,'4. Billing Determinants'!$B$19:$R$41,8,0)/'4. Billing Determinants'!$I$41*$D22, VLOOKUP(P$4,'4. Billing Determinants'!$B$19:$R$41,3,0)/'4. Billing Determinants'!$D$41*$D22))))),0) -> 0 | Q22: =IFERROR(IF(Q$4="",0,IF($E22="kWh",VLOOKUP(Q$4,'4. Billing Determinants'!$B$19:$R$41,4,0)/'4. Billing Determinants'!$E$41*$D22,IF($E22="kW",VLOOKUP(Q$4,'4. Billing Determinants'!$B$19:$R$41,5,0)/'4. Billing Determinants'!$F$41*$D22,IF($E22="Non-RPP kWh",VLOOKUP(Q$4,'4. Billing Determinants'!$B$19:$R$41,6,0)/'4. Billing Determinants'!$G$41*$D22,IF($E22="Distribution Rev.",VLOOKUP(Q$4,'4. Billing Determinants'!$B$19:$R$41,8,0)/'4. Billing Determinants'!$I$41*$D22, VLOOKUP(Q$4,'4. Billing Determinants'!$B$19:$R$41,3,0)/'4. Billing Determinants'!$D$41*$D22))))),0) -> 0 | R22: =IFERROR(IF(R$4="",0,IF($E22="kWh",VLOOKUP(R$4,'4. Billing Determinants'!$B$19:$R$41,4,0)/'4. Billing Determinants'!$E$41*$D22,IF($E22="kW",VLOOKUP(R$4,'4. Billing Determinants'!$B$19:$R$41,5,0)/'4. Billing Determinants'!$F$41*$D22,IF($E22="Non-RPP kWh",VLOOKUP(R$4,'4. Billing Determinants'!$B$19:$R$41,6,0)/'4. Billing Determinants'!$G$41*$D22,IF($E22="Distribution Rev.",VLOOKUP(R$4,'4. Billing Determinants'!$B$19:$R$41,8,0)/'4. Billing Determinants'!$I$41*$D22, VLOOKUP(R$4,'4. Billing Determinants'!$B$19:$R$41,3,0)/'4. Billing Determinants'!$D$41*$D22))))),0) -> 0 | S22: =IFERROR(IF(S$4="",0,IF($E22="kWh",VLOOKUP(S$4,'4. Billing Determinants'!$B$19:$R$41,4,0)/'4. Billing Determinants'!$E$41*$D22,IF($E22="kW",VLOOKUP(S$4,'4. Billing Determinants'!$B$19:$R$41,5,0)/'4. Billing Determinants'!$F$41*$D22,IF($E22="Non-RPP kWh",VLOOKUP(S$4,'4. Billing Determinants'!$B$19:$R$41,6,0)/'4. Billing Determinants'!$G$41*$D22,IF($E22="Distribution Rev.",VLOOKUP(S$4,'4. Billing Determinants'!$B$19:$R$41,8,0)/'4. Billing Determinants'!$I$41*$D22, VLOOKUP(S$4,'4. Billing Determinants'!$B$19:$R$41,3,0)/'4. Billing Determinants'!$D$41*$D22))))),0) -> 0 | T22: =IFERROR(IF(T$4="",0,IF($E22="kWh",VLOOKUP(T$4,'4. Billing Determinants'!$B$19:$R$41,4,0)/'4. Billing Determinants'!$E$41*$D22,IF($E22="kW",VLOOKUP(T$4,'4. Billing Determinants'!$B$19:$R$41,5,0)/'4. Billing Determinants'!$F$41*$D22,IF($E22="Non-RPP kWh",VLOOKUP(T$4,'4. Billing Determinants'!$B$19:$R$41,6,0)/'4. Billing Determinants'!$G$41*$D22,IF($E22="Distribution Rev.",VLOOKUP(T$4,'4. Billing Determinants'!$B$19:$R$41,8,0)/'4. Billing Determinants'!$I$41*$D22, VLOOKUP(T$4,'4. Billing Determinants'!$B$19:$R$41,3,0)/'4. Billing Determinants'!$D$41*$D22))))),0) -> 0 | U22: =IFERROR(IF(U$4="",0,IF($E22="kWh",VLOOKUP(U$4,'4. Billing Determinants'!$B$19:$R$41,4,0)/'4. Billing Determinants'!$E$41*$D22,IF($E22="kW",VLOOKUP(U$4,'4. Billing Determinants'!$B$19:$R$41,5,0)/'4. Billing Determinants'!$F$41*$D22,IF($E22="Non-RPP kWh",VLOOKUP(U$4,'4. Billing Determinants'!$B$19:$R$41,6,0)/'4. Billing Determinants'!$G$41*$D22,IF($E22="Distribution Rev.",VLOOKUP(U$4,'4. Billing Determinants'!$B$19:$R$41,8,0)/'4. Billing Determinants'!$I$41*$D22, VLOOKUP(U$4,'4. Billing Determinants'!$B$19:$R$41,3,0)/'4. Billing Determinants'!$D$41*$D22))))),0) -> 0 | V22: =IFERROR(IF(V$4="",0,IF($E22="kWh",VLOOKUP(V$4,'4. Billing Determinants'!$B$19:$R$41,4,0)/'4. Billing Determinants'!$E$41*$D22,IF($E22="kW",VLOOKUP(V$4,'4. Billing Determinants'!$B$19:$R$41,5,0)/'4. Billing Determinants'!$F$41*$D22,IF($E22="Non-RPP kWh",VLOOKUP(V$4,'4. Billing Determinants'!$B$19:$R$41,6,0)/'4. Billing Determinants'!$G$41*$D22,IF($E22="Distribution Rev.",VLOOKUP(V$4,'4. Billing Determinants'!$B$19:$R$41,8,0)/'4. Billing Determinants'!$I$41*$D22, VLOOKUP(V$4,'4. Billing Determinants'!$B$19:$R$41,3,0)/'4. Billing Determinants'!$D$41*$D22))))),0) -> 0 | W22: =IFERROR(IF(W$4="",0,IF($E22="kWh",VLOOKUP(W$4,'4. Billing Determinants'!$B$19:$R$41,4,0)/'4. Billing Determinants'!$E$41*$D22,IF($E22="kW",VLOOKUP(W$4,'4. Billing Determinants'!$B$19:$R$41,5,0)/'4. Billing Determinants'!$F$41*$D22,IF($E22="Non-RPP kWh",VLOOKUP(W$4,'4. Billing Determinants'!$B$19:$R$41,6,0)/'4. Billing Determinants'!$G$41*$D22,IF($E22="Distribution Rev.",VLOOKUP(W$4,'4. Billing Determinants'!$B$19:$R$41,8,0)/'4. Billing Determinants'!$I$41*$D22, VLOOKUP(W$4,'4. Billing Determinants'!$B$19:$R$41,3,0)/'4. Billing Determinants'!$D$41*$D22))))),0) -> 0 | X22: =IFERROR(IF(X$4="",0,IF($E22="kWh",VLOOKUP(X$4,'4. Billing Determinants'!$B$19:$R$41,4,0)/'4. Billing Determinants'!$E$41*$D22,IF($E22="kW",VLOOKUP(X$4,'4. Billing Determinants'!$B$19:$R$41,5,0)/'4. Billing Determinants'!$F$41*$D22,IF($E22="Non-RPP kWh",VLOOKUP(X$4,'4. Billing Determinants'!$B$19:$R$41,6,0)/'4. Billing Determinants'!$G$41*$D22,IF($E22="Distribution Rev.",VLOOKUP(X$4,'4. Billing Determinants'!$B$19:$R$41,8,0)/'4. Billing Determinants'!$I$41*$D22, VLOOKUP(X$4,'4. Billing Determinants'!$B$19:$R$41,3,0)/'4. Billing Determinants'!$D$41*$D22))))),0) -> 0 | Y22: =IFERROR(IF(Y$4="",0,IF($E22="kWh",VLOOKUP(Y$4,'4. Billing Determinants'!$B$19:$R$41,4,0)/'4. Billing Determinants'!$E$41*$D22,IF($E22="kW",VLOOKUP(Y$4,'4. Billing Determinants'!$B$19:$R$41,5,0)/'4. Billing Determinants'!$F$41*$D22,IF($E22="Non-RPP kWh",VLOOKUP(Y$4,'4. Billing Determinants'!$B$19:$R$41,6,0)/'4. Billing Determinants'!$G$41*$D22,IF($E22="Distribution Rev.",VLOOKUP(Y$4,'4. Billing Determinants'!$B$19:$R$41,8,0)/'4. Billing Determinants'!$I$41*$D22, VLOOKUP(Y$4,'4. Billing Determinants'!$B$19:$R$41,3,0)/'4. Billing Determinants'!$D$41*$D22))))),0) -> 0
A23: 19 | B23: Other Regulatory Assets - Sub-Account - Incremental Capital Charges | C23: 1508 | D23: ='2. 2016 Continuity Schedule'!BT49 -> 0 | E23: kWh | F23: =IFERROR(IF(F$4="",0,IF($E23="kWh",VLOOKUP(F$4,'4. Billing Determinants'!$B$19:$R$41,4,0)/'4. Billing Determinants'!$E$41*$D23,IF($E23="kW",VLOOKUP(F$4,'4. Billing Determinants'!$B$19:$R$41,5,0)/'4. Billing Determinants'!$F$41*$D23,IF($E23="Non-RPP kWh",VLOOKUP(F$4,'4. Billing Determinants'!$B$19:$R$41,6,0)/'4. Billing Determinants'!$G$41*$D23,IF($E23="Distribution Rev.",VLOOKUP(F$4,'4. Billing Determinants'!$B$19:$R$41,8,0)/'4. Billing Determinants'!$I$41*$D23, VLOOKUP(F$4,'4. Billing Determinants'!$B$19:$R$41,3,0)/'4. Billing Determinants'!$D$41*$D23))))),0) -> 0 | G23: =IFERROR(IF(G$4="",0,IF($E23="kWh",VLOOKUP(G$4,'4. Billing Determinants'!$B$19:$R$41,4,0)/'4. Billing Determinants'!$E$41*$D23,IF($E23="kW",VLOOKUP(G$4,'4. Billing Determinants'!$B$19:$R$41,5,0)/'4. Billing Determinants'!$F$41*$D23,IF($E23="Non-RPP kWh",VLOOKUP(G$4,'4. Billing Determinants'!$B$19:$R$41,6,0)/'4. Billing Determinants'!$G$41*$D23,IF($E23="Distribution Rev.",VLOOKUP(G$4,'4. Billing Determinants'!$B$19:$R$41,8,0)/'4. Billing Determinants'!$I$41*$D23, VLOOKUP(G$4,'4. Billing Determinants'!$B$19:$R$41,3,0)/'4. Billing Determinants'!$D$41*$D23))))),0) -> 0 | H23: =IFERROR(IF(H$4="",0,IF($E23="kWh",VLOOKUP(H$4,'4. Billing Determinants'!$B$19:$R$41,4,0)/'4. Billing Determinants'!$E$41*$D23,IF($E23="kW",VLOOKUP(H$4,'4. Billing Determinants'!$B$19:$R$41,5,0)/'4. Billing Determinants'!$F$41*$D23,IF($E23="Non-RPP kWh",VLOOKUP(H$4,'4. Billing Determinants'!$B$19:$R$41,6,0)/'4. Billing Determinants'!$G$41*$D23,IF($E23="Distribution Rev.",VLOOKUP(H$4,'4. Billing Determinants'!$B$19:$R$41,8,0)/'4. Billing Determinants'!$I$41*$D23, VLOOKUP(H$4,'4. Billing Determinants'!$B$19:$R$41,3,0)/'4. Billing Determinants'!$D$41*$D23))))),0) -> 0 | I23: =IFERROR(IF(I$4="",0,IF($E23="kWh",VLOOKUP(I$4,'4. Billing Determinants'!$B$19:$R$41,4,0)/'4. Billing Determinants'!$E$41*$D23,IF($E23="kW",VLOOKUP(I$4,'4. Billing Determinants'!$B$19:$R$41,5,0)/'4. Billing Determinants'!$F$41*$D23,IF($E23="Non-RPP kWh",VLOOKUP(I$4,'4. Billing Determinants'!$B$19:$R$41,6,0)/'4. Billing Determinants'!$G$41*$D23,IF($E23="Distribution Rev.",VLOOKUP(I$4,'4. Billing Determinants'!$B$19:$R$41,8,0)/'4. Billing Determinants'!$I$41*$D23, VLOOKUP(I$4,'4. Billing Determinants'!$B$19:$R$41,3,0)/'4. Billing Determinants'!$D$41*$D23))))),0) -> 0 | J23: =IFERROR(IF(J$4="",0,IF($E23="kWh",VLOOKUP(J$4,'4. Billing Determinants'!$B$19:$R$41,4,0)/'4. Billing Determinants'!$E$41*$D23,IF($E23="kW",VLOOKUP(J$4,'4. Billing Determinants'!$B$19:$R$41,5,0)/'4. Billing Determinants'!$F$41*$D23,IF($E23="Non-RPP kWh",VLOOKUP(J$4,'4. Billing Determinants'!$B$19:$R$41,6,0)/'4. Billing Determinants'!$G$41*$D23,IF($E23="Distribution Rev.",VLOOKUP(J$4,'4. Billing Determinants'!$B$19:$R$41,8,0)/'4. Billing Determinants'!$I$41*$D23, VLOOKUP(J$4,'4. Billing Determinants'!$B$19:$R$41,3,0)/'4. Billing Determinants'!$D$41*$D23))))),0) -> 0 | K23: =IFERROR(IF(K$4="",0,IF($E23="kWh",VLOOKUP(K$4,'4. Billing Determinants'!$B$19:$R$41,4,0)/'4. Billing Determinants'!$E$41*$D23,IF($E23="kW",VLOOKUP(K$4,'4. Billing Determinants'!$B$19:$R$41,5,0)/'4. Billing Determinants'!$F$41*$D23,IF($E23="Non-RPP kWh",VLOOKUP(K$4,'4. Billing Determinants'!$B$19:$R$41,6,0)/'4. Billing Determinants'!$G$41*$D23,IF($E23="Distribution Rev.",VLOOKUP(K$4,'4. Billing Determinants'!$B$19:$R$41,8,0)/'4. Billing Determinants'!$I$41*$D23, VLOOKUP(K$4,'4. Billing Determinants'!$B$19:$R$41,3,0)/'4. Billing Determinants'!$D$41*$D23))))),0) -> 0 | L23: =IFERROR(IF(L$4="",0,IF($E23="kWh",VLOOKUP(L$4,'4. Billing Determinants'!$B$19:$R$41,4,0)/'4. Billing Determinants'!$E$41*$D23,IF($E23="kW",VLOOKUP(L$4,'4. Billing Determinants'!$B$19:$R$41,5,0)/'4. Billing Determinants'!$F$41*$D23,IF($E23="Non-RPP kWh",VLOOKUP(L$4,'4. Billing Determinants'!$B$19:$R$41,6,0)/'4. Billing Determinants'!$G$41*$D23,IF($E23="Distribution Rev.",VLOOKUP(L$4,'4. Billing Determinants'!$B$19:$R$41,8,0)/'4. Billing Determinants'!$I$41*$D23, VLOOKUP(L$4,'4. Billing Determinants'!$B$19:$R$41,3,0)/'4. Billing Determinants'!$D$41*$D23))))),0) -> 0 | M23: =IFERROR(IF(M$4="",0,IF($E23="kWh",VLOOKUP(M$4,'4. Billing Determinants'!$B$19:$R$41,4,0)/'4. Billing Determinants'!$E$41*$D23,IF($E23="kW",VLOOKUP(M$4,'4. Billing Determinants'!$B$19:$R$41,5,0)/'4. Billing Determinants'!$F$41*$D23,IF($E23="Non-RPP kWh",VLOOKUP(M$4,'4. Billing Determinants'!$B$19:$R$41,6,0)/'4. Billing Determinants'!$G$41*$D23,IF($E23="Distribution Rev.",VLOOKUP(M$4,'4. Billing Determinants'!$B$19:$R$41,8,0)/'4. Billing Determinants'!$I$41*$D23, VLOOKUP(M$4,'4. Billing Determinants'!$B$19:$R$41,3,0)/'4. Billing Determinants'!$D$41*$D23))))),0) -> 0 | N23: =IFERROR(IF(N$4="",0,IF($E23="kWh",VLOOKUP(N$4,'4. Billing Determinants'!$B$19:$R$41,4,0)/'4. Billing Determinants'!$E$41*$D23,IF($E23="kW",VLOOKUP(N$4,'4. Billing Determinants'!$B$19:$R$41,5,0)/'4. Billing Determinants'!$F$41*$D23,IF($E23="Non-RPP kWh",VLOOKUP(N$4,'4. Billing Determinants'!$B$19:$R$41,6,0)/'4. Billing Determinants'!$G$41*$D23,IF($E23="Distribution Rev.",VLOOKUP(N$4,'4. Billing Determinants'!$B$19:$R$41,8,0)/'4. Billing Determinants'!$I$41*$D23, VLOOKUP(N$4,'4. Billing Determinants'!$B$19:$R$41,3,0)/'4. Billing Determinants'!$D$41*$D23))))),0) -> 0 | O23: =IFERROR(IF(O$4="",0,IF($E23="kWh",VLOOKUP(O$4,'4. Billing Determinants'!$B$19:$R$41,4,0)/'4. Billing Determinants'!$E$41*$D23,IF($E23="kW",VLOOKUP(O$4,'4. Billing Determinants'!$B$19:$R$41,5,0)/'4. Billing Determinants'!$F$41*$D23,IF($E23="Non-RPP kWh",VLOOKUP(O$4,'4. Billing Determinants'!$B$19:$R$41,6,0)/'4. Billing Determinants'!$G$41*$D23,IF($E23="Distribution Rev.",VLOOKUP(O$4,'4. Billing Determinants'!$B$19:$R$41,8,0)/'4. Billing Determinants'!$I$41*$D23, VLOOKUP(O$4,'4. Billing Determinants'!$B$19:$R$41,3,0)/'4. Billing Determinants'!$D$41*$D23))))),0) -> 0 | P23: =IFERROR(IF(P$4="",0,IF($E23="kWh",VLOOKUP(P$4,'4. Billing Determinants'!$B$19:$R$41,4,0)/'4. Billing Determinants'!$E$41*$D23,IF($E23="kW",VLOOKUP(P$4,'4. Billing Determinants'!$B$19:$R$41,5,0)/'4. Billing Determinants'!$F$41*$D23,IF($E23="Non-RPP kWh",VLOOKUP(P$4,'4. Billing Determinants'!$B$19:$R$41,6,0)/'4. Billing Determinants'!$G$41*$D23,IF($E23="Distribution Rev.",VLOOKUP(P$4,'4. Billing Determinants'!$B$19:$R$41,8,0)/'4. Billing Determinants'!$I$41*$D23, VLOOKUP(P$4,'4. Billing Determinants'!$B$19:$R$41,3,0)/'4. Billing Determinants'!$D$41*$D23))))),0) -> 0 | Q23: =IFERROR(IF(Q$4="",0,IF($E23="kWh",VLOOKUP(Q$4,'4. Billing Determinants'!$B$19:$R$41,4,0)/'4. Billing Determinants'!$E$41*$D23,IF($E23="kW",VLOOKUP(Q$4,'4. Billing Determinants'!$B$19:$R$41,5,0)/'4. Billing Determinants'!$F$41*$D23,IF($E23="Non-RPP kWh",VLOOKUP(Q$4,'4. Billing Determinants'!$B$19:$R$41,6,0)/'4. Billing Determinants'!$G$41*$D23,IF($E23="Distribution Rev.",VLOOKUP(Q$4,'4. Billing Determinants'!$B$19:$R$41,8,0)/'4. Billing Determinants'!$I$41*$D23, VLOOKUP(Q$4,'4. Billing Determinants'!$B$19:$R$41,3,0)/'4. Billing Determinants'!$D$41*$D23))))),0) -> 0 | R23: =IFERROR(IF(R$4="",0,IF($E23="kWh",VLOOKUP(R$4,'4. Billing Determinants'!$B$19:$R$41,4,0)/'4. Billing Determinants'!$E$41*$D23,IF($E23="kW",VLOOKUP(R$4,'4. Billing Determinants'!$B$19:$R$41,5,0)/'4. Billing Determinants'!$F$41*$D23,IF($E23="Non-RPP kWh",VLOOKUP(R$4,'4. Billing Determinants'!$B$19:$R$41,6,0)/'4. Billing Determinants'!$G$41*$D23,IF($E23="Distribution Rev.",VLOOKUP(R$4,'4. Billing Determinants'!$B$19:$R$41,8,0)/'4. Billing Determinants'!$I$41*$D23, VLOOKUP(R$4,'4. Billing Determinants'!$B$19:$R$41,3,0)/'4. Billing Determinants'!$D$41*$D23))))),0) -> 0 | S23: =IFERROR(IF(S$4="",0,IF($E23="kWh",VLOOKUP(S$4,'4. Billing Determinants'!$B$19:$R$41,4,0)/'4. Billing Determinants'!$E$41*$D23,IF($E23="kW",VLOOKUP(S$4,'4. Billing Determinants'!$B$19:$R$41,5,0)/'4. Billing Determinants'!$F$41*$D23,IF($E23="Non-RPP kWh",VLOOKUP(S$4,'4. Billing Determinants'!$B$19:$R$41,6,0)/'4. Billing Determinants'!$G$41*$D23,IF($E23="Distribution Rev.",VLOOKUP(S$4,'4. Billing Determinants'!$B$19:$R$41,8,0)/'4. Billing Determinants'!$I$41*$D23, VLOOKUP(S$4,'4. Billing Determinants'!$B$19:$R$41,3,0)/'4. Billing Determinants'!$D$41*$D23))))),0) -> 0 | T23: =IFERROR(IF(T$4="",0,IF($E23="kWh",VLOOKUP(T$4,'4. Billing Determinants'!$B$19:$R$41,4,0)/'4. Billing Determinants'!$E$41*$D23,IF($E23="kW",VLOOKUP(T$4,'4. Billing Determinants'!$B$19:$R$41,5,0)/'4. Billing Determinants'!$F$41*$D23,IF($E23="Non-RPP kWh",VLOOKUP(T$4,'4. Billing Determinants'!$B$19:$R$41,6,0)/'4. Billing Determinants'!$G$41*$D23,IF($E23="Distribution Rev.",VLOOKUP(T$4,'4. Billing Determinants'!$B$19:$R$41,8,0)/'4. Billing Determinants'!$I$41*$D23, VLOOKUP(T$4,'4. Billing Determinants'!$B$19:$R$41,3,0)/'4. Billing Determinants'!$D$41*$D23))))),0) -> 0 | U23: =IFERROR(IF(U$4="",0,IF($E23="kWh",VLOOKUP(U$4,'4. Billing Determinants'!$B$19:$R$41,4,0)/'4. Billing Determinants'!$E$41*$D23,IF($E23="kW",VLOOKUP(U$4,'4. Billing Determinants'!$B$19:$R$41,5,0)/'4. Billing Determinants'!$F$41*$D23,IF($E23="Non-RPP kWh",VLOOKUP(U$4,'4. Billing Determinants'!$B$19:$R$41,6,0)/'4. Billing Determinants'!$G$41*$D23,IF($E23="Distribution Rev.",VLOOKUP(U$4,'4. Billing Determinants'!$B$19:$R$41,8,0)/'4. Billing Determinants'!$I$41*$D23, VLOOKUP(U$4,'4. Billing Determinants'!$B$19:$R$41,3,0)/'4. Billing Determinants'!$D$41*$D23))))),0) -> 0 | V23: =IFERROR(IF(V$4="",0,IF($E23="kWh",VLOOKUP(V$4,'4. Billing Determinants'!$B$19:$R$41,4,0)/'4. Billing Determinants'!$E$41*$D23,IF($E23="kW",VLOOKUP(V$4,'4. Billing Determinants'!$B$19:$R$41,5,0)/'4. Billing Determinants'!$F$41*$D23,IF($E23="Non-RPP kWh",VLOOKUP(V$4,'4. Billing Determinants'!$B$19:$R$41,6,0)/'4. Billing Determinants'!$G$41*$D23,IF($E23="Distribution Rev.",VLOOKUP(V$4,'4. Billing Determinants'!$B$19:$R$41,8,0)/'4. Billing Determinants'!$I$41*$D23, VLOOKUP(V$4,'4. Billing Determinants'!$B$19:$R$41,3,0)/'4. Billing Determinants'!$D$41*$D23))))),0) -> 0 | W23: =IFERROR(IF(W$4="",0,IF($E23="kWh",VLOOKUP(W$4,'4. Billing Determinants'!$B$19:$R$41,4,0)/'4. Billing Determinants'!$E$41*$D23,IF($E23="kW",VLOOKUP(W$4,'4. Billing Determinants'!$B$19:$R$41,5,0)/'4. Billing Determinants'!$F$41*$D23,IF($E23="Non-RPP kWh",VLOOKUP(W$4,'4. Billing Determinants'!$B$19:$R$41,6,0)/'4. Billing Determinants'!$G$41*$D23,IF($E23="Distribution Rev.",VLOOKUP(W$4,'4. Billing Determinants'!$B$19:$R$41,8,0)/'4. Billing Determinants'!$I$41*$D23, VLOOKUP(W$4,'4. Billing Determinants'!$B$19:$R$41,3,0)/'4. Billing Determinants'!$D$41*$D23))))),0) -> 0 | X23: =IFERROR(IF(X$4="",0,IF($E23="kWh",VLOOKUP(X$4,'4. Billing Determinants'!$B$19:$R$41,4,0)/'4. Billing Determinants'!$E$41*$D23,IF($E23="kW",VLOOKUP(X$4,'4. Billing Determinants'!$B$19:$R$41,5,0)/'4. Billing Determinants'!$F$41*$D23,IF($E23="Non-RPP kWh",VLOOKUP(X$4,'4. Billing Determinants'!$B$19:$R$41,6,0)/'4. Billing Determinants'!$G$41*$D23,IF($E23="Distribution Rev.",VLOOKUP(X$4,'4. Billing Determinants'!$B$19:$R$41,8,0)/'4. Billing Determinants'!$I$41*$D23, VLOOKUP(X$4,'4. Billing Determinants'!$B$19:$R$41,3,0)/'4. Billing Determinants'!$D$41*$D23))))),0) -> 0 | Y23: =IFERROR(IF(Y$4="",0,IF($E23="kWh",VLOOKUP(Y$4,'4. Billing Determinants'!$B$19:$R$41,4,0)/'4. Billing Determinants'!$E$41*$D23,IF($E23="kW",VLOOKUP(Y$4,'4. Billing Determinants'!$B$19:$R$41,5,0)/'4. Billing Determinants'!$F$41*$D23,IF($E23="Non-RPP kWh",VLOOKUP(Y$4,'4. Billing Determinants'!$B$19:$R$41,6,0)/'4. Billing Determinants'!$G$41*$D23,IF($E23="Distribution Rev.",VLOOKUP(Y$4,'4. Billing Determinants'!$B$19:$R$41,8,0)/'4. Billing Determinants'!$I$41*$D23, VLOOKUP(Y$4,'4. Billing Determinants'!$B$19:$R$41,3,0)/'4. Billing Determinants'!$D$41*$D23))))),0) -> 0
A24: 20 | B24: Other Regulatory Assets - Sub-Account - Financial Assistance Payment and Recovery Variance - Ontario Clean Energy Benefit Act | C24: 1508 | D24: ='2. 2016 Continuity Schedule'!BT50 -> 0 | E24: kWh | F24: =IFERROR(IF(F$4="",0,IF($E24="kWh",VLOOKUP(F$4,'4. Billing Determinants'!$B$19:$R$41,4,0)/'4. Billing Determinants'!$E$41*$D24,IF($E24="kW",VLOOKUP(F$4,'4. Billing Determinants'!$B$19:$R$41,5,0)/'4. Billing Determinants'!$F$41*$D24,IF($E24="Non-RPP kWh",VLOOKUP(F$4,'4. Billing Determinants'!$B$19:$R$41,6,0)/'4. Billing Determinants'!$G$41*$D24,IF($E24="Distribution Rev.",VLOOKUP(F$4,'4. Billing Determinants'!$B$19:$R$41,8,0)/'4. Billing Determinants'!$I$41*$D24, VLOOKUP(F$4,'4. Billing Determinants'!$B$19:$R$41,3,0)/'4. Billing Determinants'!$D$41*$D24))))),0) -> 0 | G24: =IFERROR(IF(G$4="",0,IF($E24="kWh",VLOOKUP(G$4,'4. Billing Determinants'!$B$19:$R$41,4,0)/'4. Billing Determinants'!$E$41*$D24,IF($E24="kW",VLOOKUP(G$4,'4. Billing Determinants'!$B$19:$R$41,5,0)/'4. Billing Determinants'!$F$41*$D24,IF($E24="Non-RPP kWh",VLOOKUP(G$4,'4. Billing Determinants'!$B$19:$R$41,6,0)/'4. Billing Determinants'!$G$41*$D24,IF($E24="Distribution Rev.",VLOOKUP(G$4,'4. Billing Determinants'!$B$19:$R$41,8,0)/'4. Billing Determinants'!$I$41*$D24, VLOOKUP(G$4,'4. Billing Determinants'!$B$19:$R$41,3,0)/'4. Billing Determinants'!$D$41*$D24))))),0) -> 0 | H24: =IFERROR(IF(H$4="",0,IF($E24="kWh",VLOOKUP(H$4,'4. Billing Determinants'!$B$19:$R$41,4,0)/'4. Billing Determinants'!$E$41*$D24,IF($E24="kW",VLOOKUP(H$4,'4. Billing Determinants'!$B$19:$R$41,5,0)/'4. Billing Determinants'!$F$41*$D24,IF($E24="Non-RPP kWh",VLOOKUP(H$4,'4. Billing Determinants'!$B$19:$R$41,6,0)/'4. Billing Determinants'!$G$41*$D24,IF($E24="Distribution Rev.",VLOOKUP(H$4,'4. Billing Determinants'!$B$19:$R$41,8,0)/'4. Billing Determinants'!$I$41*$D24, VLOOKUP(H$4,'4. Billing Determinants'!$B$19:$R$41,3,0)/'4. Billing Determinants'!$D$41*$D24))))),0) -> 0 | I24: =IFERROR(IF(I$4="",0,IF($E24="kWh",VLOOKUP(I$4,'4. Billing Determinants'!$B$19:$R$41,4,0)/'4. Billing Determinants'!$E$41*$D24,IF($E24="kW",VLOOKUP(I$4,'4. Billing Determinants'!$B$19:$R$41,5,0)/'4. Billing Determinants'!$F$41*$D24,IF($E24="Non-RPP kWh",VLOOKUP(I$4,'4. Billing Determinants'!$B$19:$R$41,6,0)/'4. Billing Determinants'!$G$41*$D24,IF($E24="Distribution Rev.",VLOOKUP(I$4,'4. Billing Determinants'!$B$19:$R$41,8,0)/'4. Billing Determinants'!$I$41*$D24, VLOOKUP(I$4,'4. Billing Determinants'!$B$19:$R$41,3,0)/'4. Billing Determinants'!$D$41*$D24))))),0) -> 0 | J24: =IFERROR(IF(J$4="",0,IF($E24="kWh",VLOOKUP(J$4,'4. Billing Determinants'!$B$19:$R$41,4,0)/'4. Billing Determinants'!$E$41*$D24,IF($E24="kW",VLOOKUP(J$4,'4. Billing Determinants'!$B$19:$R$41,5,0)/'4. Billing Determinants'!$F$41*$D24,IF($E24="Non-RPP kWh",VLOOKUP(J$4,'4. Billing Determinants'!$B$19:$R$41,6,0)/'4. Billing Determinants'!$G$41*$D24,IF($E24="Distribution Rev.",VLOOKUP(J$4,'4. Billing Determinants'!$B$19:$R$41,8,0)/'4. Billing Determinants'!$I$41*$D24, VLOOKUP(J$4,'4. Billing Determinants'!$B$19:$R$41,3,0)/'4. Billing Determinants'!$D$41*$D24))))),0) -> 0 | K24: =IFERROR(IF(K$4="",0,IF($E24="kWh",VLOOKUP(K$4,'4. Billing Determinants'!$B$19:$R$41,4,0)/'4. Billing Determinants'!$E$41*$D24,IF($E24="kW",VLOOKUP(K$4,'4. Billing Determinants'!$B$19:$R$41,5,0)/'4. Billing Determinants'!$F$41*$D24,IF($E24="Non-RPP kWh",VLOOKUP(K$4,'4. Billing Determinants'!$B$19:$R$41,6,0)/'4. Billing Determinants'!$G$41*$D24,IF($E24="Distribution Rev.",VLOOKUP(K$4,'4. Billing Determinants'!$B$19:$R$41,8,0)/'4. Billing Determinants'!$I$41*$D24, VLOOKUP(K$4,'4. Billing Determinants'!$B$19:$R$41,3,0)/'4. Billing Determinants'!$D$41*$D24))))),0) -> 0 | L24: =IFERROR(IF(L$4="",0,IF($E24="kWh",VLOOKUP(L$4,'4. Billing Determinants'!$B$19:$R$41,4,0)/'4. Billing Determinants'!$E$41*$D24,IF($E24="kW",VLOOKUP(L$4,'4. Billing Determinants'!$B$19:$R$41,5,0)/'4. Billing Determinants'!$F$41*$D24,IF($E24="Non-RPP kWh",VLOOKUP(L$4,'4. Billing Determinants'!$B$19:$R$41,6,0)/'4. Billing Determinants'!$G$41*$D24,IF($E24="Distribution Rev.",VLOOKUP(L$4,'4. Billing Determinants'!$B$19:$R$41,8,0)/'4. Billing Determinants'!$I$41*$D24, VLOOKUP(L$4,'4. Billing Determinants'!$B$19:$R$41,3,0)/'4. Billing Determinants'!$D$41*$D24))))),0) -> 0 | M24: =IFERROR(IF(M$4="",0,IF($E24="kWh",VLOOKUP(M$4,'4. Billing Determinants'!$B$19:$R$41,4,0)/'4. Billing Determinants'!$E$41*$D24,IF($E24="kW",VLOOKUP(M$4,'4. Billing Determinants'!$B$19:$R$41,5,0)/'4. Billing Determinants'!$F$41*$D24,IF($E24="Non-RPP kWh",VLOOKUP(M$4,'4. Billing Determinants'!$B$19:$R$41,6,0)/'4. Billing Determinants'!$G$41*$D24,IF($E24="Distribution Rev.",VLOOKUP(M$4,'4. Billing Determinants'!$B$19:$R$41,8,0)/'4. Billing Determinants'!$I$41*$D24, VLOOKUP(M$4,'4. Billing Determinants'!$B$19:$R$41,3,0)/'4. Billing Determinants'!$D$41*$D24))))),0) -> 0 | N24: =IFERROR(IF(N$4="",0,IF($E24="kWh",VLOOKUP(N$4,'4. Billing Determinants'!$B$19:$R$41,4,0)/'4. Billing Determinants'!$E$41*$D24,IF($E24="kW",VLOOKUP(N$4,'4. Billing Determinants'!$B$19:$R$41,5,0)/'4. Billing Determinants'!$F$41*$D24,IF($E24="Non-RPP kWh",VLOOKUP(N$4,'4. Billing Determinants'!$B$19:$R$41,6,0)/'4. Billing Determinants'!$G$41*$D24,IF($E24="Distribution Rev.",VLOOKUP(N$4,'4. Billing Determinants'!$B$19:$R$41,8,0)/'4. Billing Determinants'!$I$41*$D24, VLOOKUP(N$4,'4. Billing Determinants'!$B$19:$R$41,3,0)/'4. Billing Determinants'!$D$41*$D24))))),0) -> 0 | O24: =IFERROR(IF(O$4="",0,IF($E24="kWh",VLOOKUP(O$4,'4. Billing Determinants'!$B$19:$R$41,4,0)/'4. Billing Determinants'!$E$41*$D24,IF($E24="kW",VLOOKUP(O$4,'4. Billing Determinants'!$B$19:$R$41,5,0)/'4. Billing Determinants'!$F$41*$D24,IF($E24="Non-RPP kWh",VLOOKUP(O$4,'4. Billing Determinants'!$B$19:$R$41,6,0)/'4. Billing Determinants'!$G$41*$D24,IF($E24="Distribution Rev.",VLOOKUP(O$4,'4. Billing Determinants'!$B$19:$R$41,8,0)/'4. Billing Determinants'!$I$41*$D24, VLOOKUP(O$4,'4. Billing Determinants'!$B$19:$R$41,3,0)/'4. Billing Determinants'!$D$41*$D24))))),0) -> 0 | P24: =IFERROR(IF(P$4="",0,IF($E24="kWh",VLOOKUP(P$4,'4. Billing Determinants'!$B$19:$R$41,4,0)/'4. Billing Determinants'!$E$41*$D24,IF($E24="kW",VLOOKUP(P$4,'4. Billing Determinants'!$B$19:$R$41,5,0)/'4. Billing Determinants'!$F$41*$D24,IF($E24="Non-RPP kWh",VLOOKUP(P$4,'4. Billing Determinants'!$B$19:$R$41,6,0)/'4. Billing Determinants'!$G$41*$D24,IF($E24="Distribution Rev.",VLOOKUP(P$4,'4. Billing Determinants'!$B$19:$R$41,8,0)/'4. Billing Determinants'!$I$41*$D24, VLOOKUP(P$4,'4. Billing Determinants'!$B$19:$R$41,3,0)/'4. Billing Determinants'!$D$41*$D24))))),0) -> 0 | Q24: =IFERROR(IF(Q$4="",0,IF($E24="kWh",VLOOKUP(Q$4,'4. Billing Determinants'!$B$19:$R$41,4,0)/'4. Billing Determinants'!$E$41*$D24,IF($E24="kW",VLOOKUP(Q$4,'4. Billing Determinants'!$B$19:$R$41,5,0)/'4. Billing Determinants'!$F$41*$D24,IF($E24="Non-RPP kWh",VLOOKUP(Q$4,'4. Billing Determinants'!$B$19:$R$41,6,0)/'4. Billing Determinants'!$G$41*$D24,IF($E24="Distribution Rev.",VLOOKUP(Q$4,'4. Billing Determinants'!$B$19:$R$41,8,0)/'4. Billing Determinants'!$I$41*$D24, VLOOKUP(Q$4,'4. Billing Determinants'!$B$19:$R$41,3,0)/'4. Billing Determinants'!$D$41*$D24))))),0) -> 0 | R24: =IFERROR(IF(R$4="",0,IF($E24="kWh",VLOOKUP(R$4,'4. Billing Determinants'!$B$19:$R$41,4,0)/'4. Billing Determinants'!$E$41*$D24,IF($E24="kW",VLOOKUP(R$4,'4. Billing Determinants'!$B$19:$R$41,5,0)/'4. Billing Determinants'!$F$41*$D24,IF($E24="Non-RPP kWh",VLOOKUP(R$4,'4. Billing Determinants'!$B$19:$R$41,6,0)/'4. Billing Determinants'!$G$41*$D24,IF($E24="Distribution Rev.",VLOOKUP(R$4,'4. Billing Determinants'!$B$19:$R$41,8,0)/'4. Billing Determinants'!$I$41*$D24, VLOOKUP(R$4,'4. Billing Determinants'!$B$19:$R$41,3,0)/'4. Billing Determinants'!$D$41*$D24))))),0) -> 0 | S24: =IFERROR(IF(S$4="",0,IF($E24="kWh",VLOOKUP(S$4,'4. Billing Determinants'!$B$19:$R$41,4,0)/'4. Billing Determinants'!$E$41*$D24,IF($E24="kW",VLOOKUP(S$4,'4. Billing Determinants'!$B$19:$R$41,5,0)/'4. Billing Determinants'!$F$41*$D24,IF($E24="Non-RPP kWh",VLOOKUP(S$4,'4. Billing Determinants'!$B$19:$R$41,6,0)/'4. Billing Determinants'!$G$41*$D24,IF($E24="Distribution Rev.",VLOOKUP(S$4,'4. Billing Determinants'!$B$19:$R$41,8,0)/'4. Billing Determinants'!$I$41*$D24, VLOOKUP(S$4,'4. Billing Determinants'!$B$19:$R$41,3,0)/'4. Billing Determinants'!$D$41*$D24))))),0) -> 0 | T24: =IFERROR(IF(T$4="",0,IF($E24="kWh",VLOOKUP(T$4,'4. Billing Determinants'!$B$19:$R$41,4,0)/'4. Billing Determinants'!$E$41*$D24,IF($E24="kW",VLOOKUP(T$4,'4. Billing Determinants'!$B$19:$R$41,5,0)/'4. Billing Determinants'!$F$41*$D24,IF($E24="Non-RPP kWh",VLOOKUP(T$4,'4. Billing Determinants'!$B$19:$R$41,6,0)/'4. Billing Determinants'!$G$41*$D24,IF($E24="Distribution Rev.",VLOOKUP(T$4,'4. Billing Determinants'!$B$19:$R$41,8,0)/'4. Billing Determinants'!$I$41*$D24, VLOOKUP(T$4,'4. Billing Determinants'!$B$19:$R$41,3,0)/'4. Billing Determinants'!$D$41*$D24))))),0) -> 0 | U24: =IFERROR(IF(U$4="",0,IF($E24="kWh",VLOOKUP(U$4,'4. Billing Determinants'!$B$19:$R$41,4,0)/'4. Billing Determinants'!$E$41*$D24,IF($E24="kW",VLOOKUP(U$4,'4. Billing Determinants'!$B$19:$R$41,5,0)/'4. Billing Determinants'!$F$41*$D24,IF($E24="Non-RPP kWh",VLOOKUP(U$4,'4. Billing Determinants'!$B$19:$R$41,6,0)/'4. Billing Determinants'!$G$41*$D24,IF($E24="Distribution Rev.",VLOOKUP(U$4,'4. Billing Determinants'!$B$19:$R$41,8,0)/'4. Billing Determinants'!$I$41*$D24, VLOOKUP(U$4,'4. Billing Determinants'!$B$19:$R$41,3,0)/'4. Billing Determinants'!$D$41*$D24))))),0) -> 0 | V24: =IFERROR(IF(V$4="",0,IF($E24="kWh",VLOOKUP(V$4,'4. Billing Determinants'!$B$19:$R$41,4,0)/'4. Billing Determinants'!$E$41*$D24,IF($E24="kW",VLOOKUP(V$4,'4. Billing Determinants'!$B$19:$R$41,5,0)/'4. Billing Determinants'!$F$41*$D24,IF($E24="Non-RPP kWh",VLOOKUP(V$4,'4. Billing Determinants'!$B$19:$R$41,6,0)/'4. Billing Determinants'!$G$41*$D24,IF($E24="Distribution Rev.",VLOOKUP(V$4,'4. Billing Determinants'!$B$19:$R$41,8,0)/'4. Billing Determinants'!$I$41*$D24, VLOOKUP(V$4,'4. Billing Determinants'!$B$19:$R$41,3,0)/'4. Billing Determinants'!$D$41*$D24))))),0) -> 0 | W24: =IFERROR(IF(W$4="",0,IF($E24="kWh",VLOOKUP(W$4,'4. Billing Determinants'!$B$19:$R$41,4,0)/'4. Billing Determinants'!$E$41*$D24,IF($E24="kW",VLOOKUP(W$4,'4. Billing Determinants'!$B$19:$R$41,5,0)/'4. Billing Determinants'!$F$41*$D24,IF($E24="Non-RPP kWh",VLOOKUP(W$4,'4. Billing Determinants'!$B$19:$R$41,6,0)/'4. Billing Determinants'!$G$41*$D24,IF($E24="Distribution Rev.",VLOOKUP(W$4,'4. Billing Determinants'!$B$19:$R$41,8,0)/'4. Billing Determinants'!$I$41*$D24, VLOOKUP(W$4,'4. Billing Determinants'!$B$19:$R$41,3,0)/'4. Billing Determinants'!$D$41*$D24))))),0) -> 0 | X24: =IFERROR(IF(X$4="",0,IF($E24="kWh",VLOOKUP(X$4,'4. Billing Determinants'!$B$19:$R$41,4,0)/'4. Billing Determinants'!$E$41*$D24,IF($E24="kW",VLOOKUP(X$4,'4. Billing Determinants'!$B$19:$R$41,5,0)/'4. Billing Determinants'!$F$41*$D24,IF($E24="Non-RPP kWh",VLOOKUP(X$4,'4. Billing Determinants'!$B$19:$R$41,6,0)/'4. Billing Determinants'!$G$41*$D24,IF($E24="Distribution Rev.",VLOOKUP(X$4,'4. Billing Determinants'!$B$19:$R$41,8,0)/'4. Billing Determinants'!$I$41*$D24, VLOOKUP(X$4,'4. Billing Determinants'!$B$19:$R$41,3,0)/'4. Billing Determinants'!$D$41*$D24))))),0) -> 0 | Y24: =IFERROR(IF(Y$4="",0,IF($E24="kWh",VLOOKUP(Y$4,'4. Billing Determinants'!$B$19:$R$41,4,0)/'4. Billing Determinants'!$E$41*$D24,IF($E24="kW",VLOOKUP(Y$4,'4. Billing Determinants'!$B$19:$R$41,5,0)/'4. Billing Determinants'!$F$41*$D24,IF($E24="Non-RPP kWh",VLOOKUP(Y$4,'4. Billing Determinants'!$B$19:$R$41,6,0)/'4. Billing Determinants'!$G$41*$D24,IF($E24="Distribution Rev.",VLOOKUP(Y$4,'4. Billing Determinants'!$B$19:$R$41,8,0)/'4. Billing Determinants'!$I$41*$D24, VLOOKUP(Y$4,'4. Billing Determinants'!$B$19:$R$41,3,0)/'4. Billing Determinants'!$D$41*$D24))))),0) -> 0
A25: 21 | B25: =IF('2. 2016 Continuity Schedule'!C51="","",'2. 2016 Continuity Schedule'!C51) -> Other Regulatory Assets - Sub-Account - OEB Cost Assessment | C25: 1508 | D25: ='2. 2016 Continuity Schedule'!BT51 -> 29992.53 | E25: kWh | F25: =IFERROR(IF(F$4="",0,IF($E25="kWh",VLOOKUP(F$4,'4. Billing Determinants'!$B$19:$R$41,4,0)/'4. Billing Determinants'!$E$41*$D25,IF($E25="kW",VLOOKUP(F$4,'4. Billing Determinants'!$B$19:$R$41,5,0)/'4. Billing Determinants'!$F$41*$D25,IF($E25="Non-RPP kWh",VLOOKUP(F$4,'4. Billing Determinants'!$B$19:$R$41,6,0)/'4. Billing Determinants'!$G$41*$D25,IF($E25="Distribution Rev.",VLOOKUP(F$4,'4. Billing Determinants'!$B$19:$R$41,8,0)/'4. Billing Determinants'!$I$41*$D25, VLOOKUP(F$4,'4. Billing Determinants'!$B$19:$R$41,3,0)/'4. Billing Determinants'!$D$41*$D25))))),0) -> 8516.873868 | G25: =IFERROR(IF(G$4="",0,IF($E25="kWh",VLOOKUP(G$4,'4. Billing Determinants'!$B$19:$R$41,4,0)/'4. Billing Determinants'!$E$41*$D25,IF($E25="kW",VLOOKUP(G$4,'4. Billing Determinants'!$B$19:$R$41,5,0)/'4. Billing Determinants'!$F$41*$D25,IF($E25="Non-RPP kWh",VLOOKUP(G$4,'4. Billing Determinants'!$B$19:$R$41,6,0)/'4. Billing Determinants'!$G$41*$D25,IF($E25="Distribution Rev.",VLOOKUP(G$4,'4. Billing Determinants'!$B$19:$R$41,8,0)/'4. Billing Determinants'!$I$41*$D25, VLOOKUP(G$4,'4. Billing Determinants'!$B$19:$R$41,3,0)/'4. Billing Determinants'!$D$41*$D25))))),0) -> 3009.843669 | H25: =IFERROR(IF(H$4="",0,IF($E25="kWh",VLOOKUP(H$4,'4. Billing Determinants'!$B$19:$R$41,4,0)/'4. Billing Determinants'!$E$41*$D25,IF($E25="kW",VLOOKUP(H$4,'4. Billing Determinants'!$B$19:$R$41,5,0)/'4. Billing Determinants'!$F$41*$D25,IF($E25="Non-RPP kWh",VLOOKUP(H$4,'4. Billing Determinants'!$B$19:$R$41,6,0)/'4. Billing Determinants'!$G$41*$D25,IF($E25="Distribution Rev.",VLOOKUP(H$4,'4. Billing Determinants'!$B$19:$R$41,8,0)/'4. Billing Determinants'!$I$41*$D25, VLOOKUP(H$4,'4. Billing Determinants'!$B$19:$R$41,3,0)/'4. Billing Determinants'!$D$41*$D25))))),0) -> 7012.10812 | I25: =IFERROR(IF(I$4="",0,IF($E25="kWh",VLOOKUP(I$4,'4. Billing Determinants'!$B$19:$R$41,4,0)/'4. Billing Determinants'!$E$41*$D25,IF($E25="kW",VLOOKUP(I$4,'4. Billing Determinants'!$B$19:$R$41,5,0)/'4. Billing Determinants'!$F$41*$D25,IF($E25="Non-RPP kWh",VLOOKUP(I$4,'4. Billing Determinants'!$B$19:$R$41,6,0)/'4. Billing Determinants'!$G$41*$D25,IF($E25="Distribution Rev.",VLOOKUP(I$4,'4. Billing Determinants'!$B$19:$R$41,8,0)/'4. Billing Determinants'!$I$41*$D25, VLOOKUP(I$4,'4. Billing Determinants'!$B$19:$R$41,3,0)/'4. Billing Determinants'!$D$41*$D25))))),0) -> 3546.847392 | J25: =IFERROR(IF(J$4="",0,IF($E25="kWh",VLOOKUP(J$4,'4. Billing Determinants'!$B$19:$R$41,4,0)/'4. Billing Determinants'!$E$41*$D25,IF($E25="kW",VLOOKUP(J$4,'4. Billing Determinants'!$B$19:$R$41,5,0)/'4. Billing Determinants'!$F$41*$D25,IF($E25="Non-RPP kWh",VLOOKUP(J$4,'4. Billing Determinants'!$B$19:$R$41,6,0)/'4. Billing Determinants'!$G$41*$D25,IF($E25="Distribution Rev.",VLOOKUP(J$4,'4. Billing Determinants'!$B$19:$R$41,8,0)/'4. Billing Determinants'!$I$41*$D25, VLOOKUP(J$4,'4. Billing Determinants'!$B$19:$R$41,3,0)/'4. Billing Determinants'!$D$41*$D25))))),0) -> 6735.068564 | K25: =IFERROR(IF(K$4="",0,IF($E25="kWh",VLOOKUP(K$4,'4. Billing Determinants'!$B$19:$R$41,4,0)/'4. Billing Determinants'!$E$41*$D25,IF($E25="kW",VLOOKUP(K$4,'4. Billing Determinants'!$B$19:$R$41,5,0)/'4. Billing Determinants'!$F$41*$D25,IF($E25="Non-RPP kWh",VLOOKUP(K$4,'4. Billing Determinants'!$B$19:$R$41,6,0)/'4. Billing Determinants'!$G$41*$D25,IF($E25="Distribution Rev.",VLOOKUP(K$4,'4. Billing Determinants'!$B$19:$R$41,8,0)/'4. Billing Determinants'!$I$41*$D25, VLOOKUP(K$4,'4. Billing Determinants'!$B$19:$R$41,3,0)/'4. Billing Determinants'!$D$41*$D25))))),0) -> 32.25560704 | L25: =IFERROR(IF(L$4="",0,IF($E25="kWh",VLOOKUP(L$4,'4. Billing Determinants'!$B$19:$R$41,4,0)/'4. Billing Determinants'!$E$41*$D25,IF($E25="kW",VLOOKUP(L$4,'4. Billing Determinants'!$B$19:$R$41,5,0)/'4. Billing Determinants'!$F$41*$D25,IF($E25="Non-RPP kWh",VLOOKUP(L$4,'4. Billing Determinants'!$B$19:$R$41,6,0)/'4. Billing Determinants'!$G$41*$D25,IF($E25="Distribution Rev.",VLOOKUP(L$4,'4. Billing Determinants'!$B$19:$R$41,8,0)/'4. Billing Determinants'!$I$41*$D25, VLOOKUP(L$4,'4. Billing Determinants'!$B$19:$R$41,3,0)/'4. Billing Determinants'!$D$41*$D25))))),0) -> 13.82846767 | M25: =IFERROR(IF(M$4="",0,IF($E25="kWh",VLOOKUP(M$4,'4. Billing Determinants'!$B$19:$R$41,4,0)/'4. Billing Determinants'!$E$41*$D25,IF($E25="kW",VLOOKUP(M$4,'4. Billing Determinants'!$B$19:$R$41,5,0)/'4. Billing Determinants'!$F$41*$D25,IF($E25="Non-RPP kWh",VLOOKUP(M$4,'4. Billing Determinants'!$B$19:$R$41,6,0)/'4. Billing Determinants'!$G$41*$D25,IF($E25="Distribution Rev.",VLOOKUP(M$4,'4. Billing Determinants'!$B$19:$R$41,8,0)/'4. Billing Determinants'!$I$41*$D25, VLOOKUP(M$4,'4. Billing Determinants'!$B$19:$R$41,3,0)/'4. Billing Determinants'!$D$41*$D25))))),0) -> 120.9395095 | N25: =IFERROR(IF(N$4="",0,IF($E25="kWh",VLOOKUP(N$4,'4. Billing Determinants'!$B$19:$R$41,4,0)/'4. Billing Determinants'!$E$41*$D25,IF($E25="kW",VLOOKUP(N$4,'4. Billing Determinants'!$B$19:$R$41,5,0)/'4. Billing Determinants'!$F$41*$D25,IF($E25="Non-RPP kWh",VLOOKUP(N$4,'4. Billing Determinants'!$B$19:$R$41,6,0)/'4. Billing Determinants'!$G$41*$D25,IF($E25="Distribution Rev.",VLOOKUP(N$4,'4. Billing Determinants'!$B$19:$R$41,8,0)/'4. Billing Determinants'!$I$41*$D25, VLOOKUP(N$4,'4. Billing Determinants'!$B$19:$R$41,3,0)/'4. Billing Determinants'!$D$41*$D25))))),0) -> 1004.764802 | O25: =IFERROR(IF(O$4="",0,IF($E25="kWh",VLOOKUP(O$4,'4. Billing Determinants'!$B$19:$R$41,4,0)/'4. Billing Determinants'!$E$41*$D25,IF($E25="kW",VLOOKUP(O$4,'4. Billing Determinants'!$B$19:$R$41,5,0)/'4. Billing Determinants'!$F$41*$D25,IF($E25="Non-RPP kWh",VLOOKUP(O$4,'4. Billing Determinants'!$B$19:$R$41,6,0)/'4. Billing Determinants'!$G$41*$D25,IF($E25="Distribution Rev.",VLOOKUP(O$4,'4. Billing Determinants'!$B$19:$R$41,8,0)/'4. Billing Determinants'!$I$41*$D25, VLOOKUP(O$4,'4. Billing Determinants'!$B$19:$R$41,3,0)/'4. Billing Determinants'!$D$41*$D25))))),0) -> 0 | P25: =IFERROR(IF(P$4="",0,IF($E25="kWh",VLOOKUP(P$4,'4. Billing Determinants'!$B$19:$R$41,4,0)/'4. Billing Determinants'!$E$41*$D25,IF($E25="kW",VLOOKUP(P$4,'4. Billing Determinants'!$B$19:$R$41,5,0)/'4. Billing Determinants'!$F$41*$D25,IF($E25="Non-RPP kWh",VLOOKUP(P$4,'4. Billing Determinants'!$B$19:$R$41,6,0)/'4. Billing Determinants'!$G$41*$D25,IF($E25="Distribution Rev.",VLOOKUP(P$4,'4. Billing Determinants'!$B$19:$R$41,8,0)/'4. Billing Determinants'!$I$41*$D25, VLOOKUP(P$4,'4. Billing Determinants'!$B$19:$R$41,3,0)/'4. Billing Determinants'!$D$41*$D25))))),0) -> 0 | Q25: =IFERROR(IF(Q$4="",0,IF($E25="kWh",VLOOKUP(Q$4,'4. Billing Determinants'!$B$19:$R$41,4,0)/'4. Billing Determinants'!$E$41*$D25,IF($E25="kW",VLOOKUP(Q$4,'4. Billing Determinants'!$B$19:$R$41,5,0)/'4. Billing Determinants'!$F$41*$D25,IF($E25="Non-RPP kWh",VLOOKUP(Q$4,'4. Billing Determinants'!$B$19:$R$41,6,0)/'4. Billing Determinants'!$G$41*$D25,IF($E25="Distribution Rev.",VLOOKUP(Q$4,'4. Billing Determinants'!$B$19:$R$41,8,0)/'4. Billing Determinants'!$I$41*$D25, VLOOKUP(Q$4,'4. Billing Determinants'!$B$19:$R$41,3,0)/'4. Billing Determinants'!$D$41*$D25))))),0) -> 0 | R25: =IFERROR(IF(R$4="",0,IF($E25="kWh",VLOOKUP(R$4,'4. Billing Determinants'!$B$19:$R$41,4,0)/'4. Billing Determinants'!$E$41*$D25,IF($E25="kW",VLOOKUP(R$4,'4. Billing Determinants'!$B$19:$R$41,5,0)/'4. Billing Determinants'!$F$41*$D25,IF($E25="Non-RPP kWh",VLOOKUP(R$4,'4. Billing Determinants'!$B$19:$R$41,6,0)/'4. Billing Determinants'!$G$41*$D25,IF($E25="Distribution Rev.",VLOOKUP(R$4,'4. Billing Determinants'!$B$19:$R$41,8,0)/'4. Billing Determinants'!$I$41*$D25, VLOOKUP(R$4,'4. Billing Determinants'!$B$19:$R$41,3,0)/'4. Billing Determinants'!$D$41*$D25))))),0) -> 0 | S25: =IFERROR(IF(S$4="",0,IF($E25="kWh",VLOOKUP(S$4,'4. Billing Determinants'!$B$19:$R$41,4,0)/'4. Billing Determinants'!$E$41*$D25,IF($E25="kW",VLOOKUP(S$4,'4. Billing Determinants'!$B$19:$R$41,5,0)/'4. Billing Determinants'!$F$41*$D25,IF($E25="Non-RPP kWh",VLOOKUP(S$4,'4. Billing Determinants'!$B$19:$R$41,6,0)/'4. Billing Determinants'!$G$41*$D25,IF($E25="Distribution Rev.",VLOOKUP(S$4,'4. Billing Determinants'!$B$19:$R$41,8,0)/'4. Billing Determinants'!$I$41*$D25, VLOOKUP(S$4,'4. Billing Determinants'!$B$19:$R$41,3,0)/'4. Billing Determinants'!$D$41*$D25))))),0) -> 0 | T25: =IFERROR(IF(T$4="",0,IF($E25="kWh",VLOOKUP(T$4,'4. Billing Determinants'!$B$19:$R$41,4,0)/'4. Billing Determinants'!$E$41*$D25,IF($E25="kW",VLOOKUP(T$4,'4. Billing Determinants'!$B$19:$R$41,5,0)/'4. Billing Determinants'!$F$41*$D25,IF($E25="Non-RPP kWh",VLOOKUP(T$4,'4. Billing Determinants'!$B$19:$R$41,6,0)/'4. Billing Determinants'!$G$41*$D25,IF($E25="Distribution Rev.",VLOOKUP(T$4,'4. Billing Determinants'!$B$19:$R$41,8,0)/'4. Billing Determinants'!$I$41*$D25, VLOOKUP(T$4,'4. Billing Determinants'!$B$19:$R$41,3,0)/'4. Billing Determinants'!$D$41*$D25))))),0) -> 0 | U25: =IFERROR(IF(U$4="",0,IF($E25="kWh",VLOOKUP(U$4,'4. Billing Determinants'!$B$19:$R$41,4,0)/'4. Billing Determinants'!$E$41*$D25,IF($E25="kW",VLOOKUP(U$4,'4. Billing Determinants'!$B$19:$R$41,5,0)/'4. Billing Determinants'!$F$41*$D25,IF($E25="Non-RPP kWh",VLOOKUP(U$4,'4. Billing Determinants'!$B$19:$R$41,6,0)/'4. Billing Determinants'!$G$41*$D25,IF($E25="Distribution Rev.",VLOOKUP(U$4,'4. Billing Determinants'!$B$19:$R$41,8,0)/'4. Billing Determinants'!$I$41*$D25, VLOOKUP(U$4,'4. Billing Determinants'!$B$19:$R$41,3,0)/'4. Billing Determinants'!$D$41*$D25))))),0) -> 0 | V25: =IFERROR(IF(V$4="",0,IF($E25="kWh",VLOOKUP(V$4,'4. Billing Determinants'!$B$19:$R$41,4,0)/'4. Billing Determinants'!$E$41*$D25,IF($E25="kW",VLOOKUP(V$4,'4. Billing Determinants'!$B$19:$R$41,5,0)/'4. Billing Determinants'!$F$41*$D25,IF($E25="Non-RPP kWh",VLOOKUP(V$4,'4. Billing Determinants'!$B$19:$R$41,6,0)/'4. Billing Determinants'!$G$41*$D25,IF($E25="Distribution Rev.",VLOOKUP(V$4,'4. Billing Determinants'!$B$19:$R$41,8,0)/'4. Billing Determinants'!$I$41*$D25, VLOOKUP(V$4,'4. Billing Determinants'!$B$19:$R$41,3,0)/'4. Billing Determinants'!$D$41*$D25))))),0) -> 0 | W25: =IFERROR(IF(W$4="",0,IF($E25="kWh",VLOOKUP(W$4,'4. Billing Determinants'!$B$19:$R$41,4,0)/'4. Billing Determinants'!$E$41*$D25,IF($E25="kW",VLOOKUP(W$4,'4. Billing Determinants'!$B$19:$R$41,5,0)/'4. Billing Determinants'!$F$41*$D25,IF($E25="Non-RPP kWh",VLOOKUP(W$4,'4. Billing Determinants'!$B$19:$R$41,6,0)/'4. Billing Determinants'!$G$41*$D25,IF($E25="Distribution Rev.",VLOOKUP(W$4,'4. Billing Determinants'!$B$19:$R$41,8,0)/'4. Billing Determinants'!$I$41*$D25, VLOOKUP(W$4,'4. Billing Determinants'!$B$19:$R$41,3,0)/'4. Billing Determinants'!$D$41*$D25))))),0) -> 0 | X25: =IFERROR(IF(X$4="",0,IF($E25="kWh",VLOOKUP(X$4,'4. Billing Determinants'!$B$19:$R$41,4,0)/'4. Billing Determinants'!$E$41*$D25,IF($E25="kW",VLOOKUP(X$4,'4. Billing Determinants'!$B$19:$R$41,5,0)/'4. Billing Determinants'!$F$41*$D25,IF($E25="Non-RPP kWh",VLOOKUP(X$4,'4. Billing Determinants'!$B$19:$R$41,6,0)/'4. Billing Determinants'!$G$41*$D25,IF($E25="Distribution Rev.",VLOOKUP(X$4,'4. Billing Determinants'!$B$19:$R$41,8,0)/'4. Billing Determinants'!$I$41*$D25, VLOOKUP(X$4,'4. Billing Determinants'!$B$19:$R$41,3,0)/'4. Billing Determinants'!$D$41*$D25))))),0) -> 0 | Y25: =IFERROR(IF(Y$4="",0,IF($E25="kWh",VLOOKUP(Y$4,'4. Billing Determinants'!$B$19:$R$41,4,0)/'4. Billing Determinants'!$E$41*$D25,IF($E25="kW",VLOOKUP(Y$4,'4. Billing Determinants'!$B$19:$R$41,5,0)/'4. Billing Determinants'!$F$41*$D25,IF($E25="Non-RPP kWh",VLOOKUP(Y$4,'4. Billing Determinants'!$B$19:$R$41,6,0)/'4. Billing Determinants'!$G$41*$D25,IF($E25="Distribution Rev.",VLOOKUP(Y$4,'4. Billing Determinants'!$B$19:$R$41,8,0)/'4. Billing Determinants'!$I$41*$D25, VLOOKUP(Y$4,'4. Billing Determinants'!$B$19:$R$41,3,0)/'4. Billing Determinants'!$D$41*$D25))))),0) -> 0
